Workbook

Sheet Om kalkylen
A1: OM KALKYLEN
A4: Kalkyldatum: | B4: T.ex. 2022-06-13
A5: Upprättare: | B5: Namn Namnsson
A6: Företag/organisation: | B6: Företag AB / Organisation
A7: Namn på objektet/åtgärden: | B7: Exempelvis "Malmporten Luleå"
A8: Ev. Objekt-id: | B8: Exempelvis ABC1234
A9: Kort, översiktlig beskrivning av föreslagen åtgärd: | B9: Exempelvis "Föreslagen investering avser breddning och fördjupning av farleden in till Luleå hamn i syfte att möjliggöra för större fartyg att anlöpa hamnen"
A10: ASEK-version: | B10: ASEK 7.1 | C10: <- Välj ASEK-version i rullisten | H10: Lista med ASEK-förutsättningar
H11: ASEK 7.0
H12: ASEK 7.1
C13: = celler som fylls i av kalkylupprättaren | H13: ASEK 8.0
H14: ASEK 9.0
H15: ASEK 10.0
A17: Flik | B17: Innehåller | C17: Fylls i av: | D17: Kommentar
A18: Flik 0 (denna flik) | B18: Grundläggande info om kalkylen/objektet | C18: Kalkylupprättaren | D18: Fyll i grundläggande uppgifter om kalkylen
A19: Flik 1 | B19: Kalkylsammanställning | C19: Automatiskt | D19: Här ses kalkylsammanställningen
A20: Flik 2 | B20: 2. Sammhällsekonomisk analys | C20: Automatiskt | D20: Flik för export till SEB-IT
A21: Flik 3 | B21: Investeringskostnader | C21: Kalkylupprättaren | D21: Fyll i investeringskostnader
A22: Flik 4 | B22: Drift & Underhåll | C22: Kalkylupprättaren | D22: Fyll i kostnader för drift och underhåll
A23: Flik 5 | B23: Indata | C23: Kalkylupprättaren | D23: Ändra vid behov ev. indata-parametrar
A24: Flik 6 | B24: Prognoser | C24: Kalkylupprättaren | D24: Fyll i person-, gods respektive fartygsprognos
A25: Flik 7 | B25: Grunduppgifter | C25: Automatiskt | D25: I denna flik kontrolleras inmatade uppgifter, samt att "Kör"-knappen finns här. Startar beräkningarna
A26: Flik 8 | B26: JA | C26: Automatiskt | D26: Här redovisas effektberäkningarna avseende JA
A27: Flik 9 | B27: UA | C27: Automatiskt | D27: Här redovisas effektberäkningarna avseende UA
A28: Flik 10 | B28: Effektberäkningar HA | C28: Automatiskt | D28: Här redovisas resultaten från effektberäkningarna avseende huvudkalkylen
A29: Flik 11 | B29: Effektberäkningar KA 0 % | C29: Automatiskt | D29: Här redovisas resultaten från effektberäkningarna avseende känslighetsanalysen med 0 % godsvolymtillväxt
A30: Flik 12 | B30: Effektberäkningar KA 50 % högre | C30: Automatiskt | D30: Här redovisas resultaten från effektberäkningarna avseende 50 % högre godsvolymtillväxt jämfört med HA
A31: Flik 13 | B31: Antaganden säkerhetsberäkningar | C31: Kalkylupprättaren | D31: Fyll i uppgifter vid ökad säkerhet till följd av farledsinvestering. Görs endast om tidtabellsbunden trafik bedöms erhålla ökad tillgänglighet till följd av ökade säkerhetsmarginaler
A32: Flik 14 | B32: Effekter resenärer | C32: Automatiskt | D32: Här beräknas tillgänglighetseffekter för resenärer
A33: Flik 15 | B33: Effekter gods | C33: Kalkylupprättaren | D33: Här beräknas tillgänglighetseffekter för gods. Fyll i nödvändiga uppgifter
A34: Flik 16 | B34: Effekter fartyg | C34: Kalkylupprättaren | D34: Här beräknas tillgänglighetseffekter för själva fartygen. Fyll i nödvändiga uppgifter
A35: Flik 17 | B35: Manuellt kompletterade effekter | C35: Kalkylupprättaren | D35: Extraflik som nyttjas om/när kalkylen behöver kompletteras med manuellt beräknade effekter
A36: Flik 18 | B36: Kalkyldata | C36: Automatiskt | D36: Här redovisas grundläggande kalkylparametrar avseende sjöfart
A37: Flik 19 | B37: Lastning & Lossning och SFC | C37: Automatiskt | D37: Här redovisas grundläggande kalkylparametrar avseende lastning, lossning samt den specifika bränsleförbrukningen
A38: Flik 20 | B38: Lotsavgifter | C38: Automatiskt | D38: Här redovisas gällande lotstaxa
A39: Flik 21 | B39: NOx | C39: Automatiskt | D39: Här redovisas av IMO fastställda gränsvärden för emissionsfaktorer avseende NOx
A40: Flik 22 | B40: Bränsleförbr. & utläspp NOx | C40: Automatiskt | D40: Här redovisas delberäkningar avseende årlig bränsleförbrukning samt utsläpp av NOx
A41: Flik 23 | B41: Tidsberoende kostnader | C41: Automatiskt | D41: Här redovisas delberäkningar avseende tidsberoende kostnader
A42: Flik 24 | B42: Lastning och lossning | C42: Automatiskt | D42: Här redovisas delberäkningar avseende lastning och lossningskostnader samt tidsberoende kostnader avseende lastning och lossning
A43: Flik 25 | B43: Lotskostnader | C43: Automatiskt | D43: Här redovisas delberäkningar avseende lotskostnader
A44: Flik 26 | B44: Förvaltningsflik Trafikverket | C44: Trafikverket | D44: Trafikverkets förvaltningsflik, vilken styr grundläggande kalkylparametrar i arket

Sheet Kalkylsammanställning
A1: KALKYLSAMMANSTÄLLNING
B3: mnkr | H3: Emissioner, volymer
B4: Öppningsåret (JA-UA) | C4: Prognosåret (JA-UA) | D4: Nuvärde (JA-UA) | H4: Öppningsåret | I4: Prognosåret | J4: Nuvärde
A5: Investeringskostnad | D5: =-Investeringskostnader!C24 -> 0 | G5: CO2 | H5: =-'Effektberäkningar HA'!B63 -> 0 | I5: =-'Effektberäkningar HA'!C63 -> 0 | J5: =-'Effektberäkningar HA'!C135 -> 0 | K5: ton | L5: Minustecken visar vilka besparingar i utsläpp som görs, dvs. utsläppen i UA är lägre än i JA.
A6: Drift och underhåll | D6: =-'Drift & Underhåll'!B28 -> 0 | G6: NOx | H6: =-'Effektberäkningar HA'!B64 -> 0 | I6: =-'Effektberäkningar HA'!C64 -> 0 | J6: =-'Effektberäkningar HA'!C136 -> 0 | K6: ton | L6: Vid positiva siffror ökar utsläppen, dvs. är större i UA än i JA
A7: Summa kostnader | D7: =SUM(D5:D6) -> 0 | G7: VOC | H7: =-'Effektberäkningar HA'!B65 -> 0 | I7: =-'Effektberäkningar HA'!C65 -> 0 | J7: =-'Effektberäkningar HA'!C137 -> 0 | K7: ton
A8: Effekter för resenärer | G8: SO2 | H8: =-'Effektberäkningar HA'!B66 -> 0 | I8: =-'Effektberäkningar HA'!C66 -> 0 | J8: =-'Effektberäkningar HA'!C138 -> 0 | K8: ton
A9: Förseningstider resenärer | B9: ='Effekter resenärer'!C15/1000000 -> 0 | C9: ='Effekter resenärer'!C16/1000000 -> 0 | D9: ='Effekter resenärer'!B24/1000000 -> 0 | G9: NH3 | H9: =-'Effektberäkningar HA'!B67 -> 0 | I9: =-'Effektberäkningar HA'!C67 -> 0 | J9: =-'Effektberäkningar HA'!C139 -> 0 | K9: ton
A10: Effekter för godskunder/transportörer | G10: PM | H10: =-'Effektberäkningar HA'!B68 -> 0 | I10: =-'Effektberäkningar HA'!C68 -> 0 | J10: =-'Effektberäkningar HA'!C140 -> 0 | K10: ton
A11: Distansberoende kostnader | B11: ='Effektberäkningar HA'!B69/1000000 -> 0 | C11: ='Effektberäkningar HA'!C69/1000000 -> 0 | D11: ='Effektberäkningar HA'!C141/1000000 -> 0
A12: Tidsberoende kostnader | B12: ='Effektberäkningar HA'!B70/1000000 -> 0 | C12: ='Effektberäkningar HA'!C70/1000000 -> 0 | D12: ='Effektberäkningar HA'!C142/1000000 -> 0
A13: Lastnings- och lossningskostnader | B13: ='Effektberäkningar HA'!B71/1000000 -> 0 | C13: ='Effektberäkningar HA'!C71/1000000 -> 0 | D13: ='Effektberäkningar HA'!C143/1000000 -> 0
A14: Tidsberoende kostnader för lastning- och lossning | B14: ='Effektberäkningar HA'!B72/1000000 -> 0 | C14: ='Effektberäkningar HA'!C72/1000000 -> 0 | D14: ='Effektberäkningar HA'!C144/1000000 -> 0 | I14: Effekt prognosår 1 | J14: Enhet
A15: Lotskostnader | B15: ='Effektberäkningar HA'!B73/1000000 -> 0 | C15: ='Effektberäkningar HA'!C73/1000000 -> 0 | D15: ='Effektberäkningar HA'!C145/1000000 -> 0 | H15: Trafiksäkerhet D | I15: 0 | J15: personer/år
A16: Förseningstider gods | B16: ='Effekter gods'!B128/1000000 -> 0 | C16: ='Effekter gods'!B129/1000000 -> 0 | D16: ='Effekter gods'!B140/1000000 -> 0 | H16: Trafiksäkerhet DAS | I16: 0 | J16: personer/år
A17: Förseningstider fartyg | B17: ='Effekter fartyg'!C40/1000000 -> 0 | C17: ='Effekter fartyg'!C41/1000000 -> 0 | D17: ='Effekter fartyg'!B49/1000000 -> 0 | H17: Restid | I17: =-'Antaganden säkerhetsberäkningar'!C34/1000 -> 0 | J17: ktim/år
A18: Externa effekter | H18: CO2 | I18: =I5/1000 -> 0 | J18: kton/år
A19: Klimatgaser (CO2) | B19: ='Effektberäkningar HA'!B74/1000000 -> 0 | C19: ='Effektberäkningar HA'!C74/1000000 -> 0 | D19: ='Effektberäkningar HA'!C146/1000000 -> 0
A20: Luftföroreningar (NOx, VOC, SO2, NH3 och PM) | B20: ='Effektberäkningar HA'!B75/1000000 -> 0 | C20: ='Effektberäkningar HA'!C75/1000000 -> 0 | D20: =SUM('Effektberäkningar HA'!C147:C151)/1000000 -> 0
A21: Manuellt kompletterade effekter
A22: ='Manuellt kompletterade effekter'!A8 -> Manuellt kompletterade effekter | B22: ='Manuellt kompletterade effekter'!B11 -> 0 | C22: ='Manuellt kompletterade effekter'!B12 -> 0 | D22: ='Manuellt kompletterade effekter'!B13 -> 0
A23: Summa effekter | B23: =SUM(B9:B22) -> 0 | C23: =SUM(C9:C22) -> 0 | D23: =SUM(D9:D22)+D6 -> 0
A25: Nettonuvärde | D25: =D23+D5 -> 0
A26: Nettonuvärdekvot | D26: =IF(D5=0,"-",D25/-D7) -> -
A30: Känslighetsanalyser
A31: Högre investeringskostnad
A32: Högre investeringskostnad | D32: =IF(Investeringskostnader!C41>1,-Investeringskostnader!C41,-Investeringskostnader!C30) -> 0
A33: Summa kostnader | D33: =D32+D6 -> 0
A34: Summa effekter | B34: =B23 -> 0 | C34: =C23 -> 0 | D34: 0
A35: Nettonuvärde | D35: =D34+D32 -> 0
A36: Nettonuvärdekvot | D36: =IFERROR(D35/-D33,"-") -> -
A39: 0 % godsvolymtillväxt från basåret
A40: Summa kostnader | D40: =D7 -> 0
A41: Summa effekter | B41: ='Effektberäkningar KA 0 %'!B80/1000000 -> 0 | C41: ='Effektberäkningar KA 0 %'!C80/1000000 -> 0 | D41: ='Effektberäkningar KA 0 %'!C152/1000000+D6+D22 -> 0
A42: Nettonuvärde | D42: =D41+D5 -> 0
A43: Nettonuvärdekvot | D43: =IFERROR(D42/-D40,"-") -> -
A46: 50 % högre godsvolymtillväxt från basåret
A47: Summa kostnader | D47: =D7 -> 0
A48: Summa effekter | B48: ='Effektberäkningar KA 50 % högre'!B80/1000000 -> 0 | C48: ='Effektberäkningar KA 50 % högre'!C80/1000000 -> 0 | D48: ='Effektberäkningar KA 50 % högre'!C152/1000000+D6+D22 -> 0
A49: Nettonuvärde | D49: =D48+D5 -> 0
A50: Nettonuvärdekvot | D50: =IFERROR(D49/-D47,"-") -> -

Sheet 2. Samhällsekonomisk analys
A1: Samlad effektbedömning v 1.17 | BN1: m | BO1: u | BQ1: Instruktioner | BT1: Kommentar Upprättaren | BU1: Kommentar Regional granskare | BV1: Kommentar Nationell granskare
A2: Objektnummer: Objekt-id, Ärendenummer: Ärendenr Kontaktperson: Ej skickad till granskning Skede: Ej angett Status: Ej granskad av Trafikverket, Ej godkänd | AV2: Samlad Effektbedömning
A3: 2. Samhällsekonomisk analys
A5: Tabell 2.1 Allmänna kalkylförutsättningar för samhällsekonomisk kalkyl
A6: Prognos persontrafik - huvudanalys | AJ6: =Prognoser!H9 -> Ej relevant
A7: Avvikelse från prognos persontrafik | AJ7: =Prognoser!H10 -> Nej
A8: Prognos godstrafik - huvudanalys | AJ8: =Prognoser!H27 -> Basprognos 2020-06-15
A9: Avvikelse från prognos godstrafik | AJ9: =Prognoser!H28 -> Nej
A10: ASEK-version | AJ10: ='Om kalkylen'!B10 -> ASEK 7.1
A11: Avvikelse från ASEK | AJ11: =Indata!B10 -> Nej
A12: Prisnivå för kalkylvärden | AJ12: =Indata!B4 -> 2017
A13: Kalkylränta % | AJ13: =Indata!B11 -> 0.035
A14: Prognosår 1 | AJ14: =Indata!B17 -> 2040
A15: Diskonteringsår | AJ15: =Indata!B14 -> 2025
A16: Öppningsår | AJ16: =Indata!B16 -> 2025
A17: Utförandetid/byggtid, antal år (projektspecifik) | AJ17: =MAX(Investeringskostnader!$I$14:$I$18) -> 0
A18: Kalkylperiod från startår för effekter | AJ18: =Indata!B12 -> 60
A19: Kalkylverktyg - samhällsekonomi | AJ19: Sjökalk 2022:1
A20: Datum för samhällsekonomisk kalkyl | AJ20: ='Om kalkylen'!B4 -> T.ex. 2022-06-13
A21: Trafiktillväxttal Personbil period 2014-2040 | AJ21: Ej angett
A22: Trafiktillväxttal Personbil period 2014-2060 | AJ22: Ej angett
A23: Trafiktillväxttal Lastbil period 2014-2040 | AJ23: Ej angett
A24: Trafiktillväxttal Lastbil period 2014-2060 | AJ24: Ej angett
A25: Tillväxt persontrafik sjöfart t o m 2040 | AJ25: =Prognoser!C16 -> 0
A26: Tillväxt persontrafik sjöfart efter 2040 | AJ26: =Prognoser!C17 -> 0
A27: Godsvolymtillväxt sjöfart t o m 2040 | AJ27: =Prognoser!C34 -> 0
A28: Godsvolymtillväxt sjöfart efter 2040 | AJ28: =Prognoser!C35 -> 0
A29: Trafiktillväxttal | AJ29: Ej angett | BQ29: Här finns möjlighet att själv välja fler trafikslag för vilka det finns trafiktillväxttal i analysen
A30: Trafiktillväxttal | AJ30: Ej angett
A31: Trafiktillväxttal | AJ31: Ej angett
A32: Trafiktillväxttal | AJ32: Ej angett
A33: Trafiktillväxttal | AJ33: Ej angett
A34: Trafiktillväxttal | AJ34: Ej angett
A35: Trafiktillväxttal | AJ35: Ej angett
A36: Trafiktillväxttal | AJ36: Ej angett
A37: Trafiktillväxttal | AJ37: Ej angett
A38: Trafiktillväxttal | AJ38: Ej angett
A40: Kommentar
A41: Ej angett | BQ41: Avvikelser från gällande förutsättningar beskrivs här
A44: Tabell 2.2 Nyckeltal samhällsekonomi
AS45: Samhälls-ekonomisk investerings-kostnad inkl skattefaktor (mnkr) | BB45: Netto-nuvärde* (mnkr) | BH45: NNK-idu** | BM45: Dou-kostnad (mnkr) | BN45: Summa nyttor (mnkr) | BQ45: För mer information se flik Instruktioner Om NNK-idu är under noll ska < 0 skrivas ut Gäller både huvudanalys och alla känslighetsanalyser
A46: Huvudanalys | AS46: =ABS(AF251) -> 0 | BB46: =+BN46-AS46 -> 0 | BH46: =IF(AS46=0," -",IF(BB46=" -"," -", IF(BB46/((-BM46)+AS46)<0, " < 0",BB46/((-BM46)+AS46)))) -> - | BM46: =Kalkylsammanställning!D6 -> 0 | BN46: =Kalkylsammanställning!D23 -> 0
A47: Känslighetsanalys Högre investeringskostnad t.ex. successivkalkyl 85% eller motsvarande | AS47: =ABS(Kalkylsammanställning!D32) -> 0 | BB47: =+BN46-AS47 -> 0 | BH47: =IF(AS47=0," -",IF(BB47=" -"," -", IF(BB47/((-BM46)+AS47)<0, " < 0",BB47/((-BM46)+AS47)))) -> - | BM47: =$BM$46 -> 0 | BN47: =BN46 -> 0 | BQ47: Känslighetsanalys högre invkostnad är defalut 1,3 * huvudanalysens kostnad, detta ska ersättas med uppgifter för 85% nivån om sådant underlag finns.
A48: Känslighetsanalys CO2-värdering=15 kr/kg
A49: Känslighetsanalys Trafiktillväxt 0% från basåret | AS49: =+AS46 -> 0 | BB49: =Kalkylsammanställning!D42 -> 0 | BH49: =IF(AS49=0," -",IF(BB49=" -"," -", IF(BB49/((-BM46)+AS49)<0, " < 0",BB49/((-BM46)+AS49)))) -> - | BM49: =$BM$46 -> 0 | BN49: =Kalkylsammanställning!D41 -> 0
A50: Känslighetsanalys Trafiktillväxt 50% högre från basåret och jämfört med huvudkalkylen | AS50: =+AS46 -> 0 | BB50: =Kalkylsammanställning!D49 -> 0 | BH50: =IF(AS50=0," -",IF(BB50=" -"," -", IF(BB50/((-BM46)+AS50)<0, " < 0",BB50/((-BM46)+AS50)))) -> - | BM50: =$BM$46 -> 0 | BN50: =Kalkylsammanställning!D48 -> 0
A51: Känslighetsanalys Trafiktillväxt 12% lägre personbilstrafik år 2040 och oförändrad volym lastbilstrafik jämfört med dagens nivå (2014). | BB51: - | BH51: -
A52: Ej angett | BB52: - | BH52: -
A53: Ej angett | BB53: - | BH53: -
A54: Ej angett | BB54: - | BH54: -
A55: Ej angett | BB55: - | BH55: -
A56: Ej angett | BB56: - | BH56: -
A57: * Nettonuvärdet är lika med summan av nuvärdet av alla positiva och negativa nyttoeffekter (årliga samhällsekonomiska intäkter och kostnader) minus investeringskostnaden.
A58: **Nettonuvärdeskvoten NNK-idu är lika med nettonuvärdet dividerat med summan av den samhällsekonomiska investeringskostnaden och nuvärdet av nettoförändringen av drift- och underhållskostnader för infrastrukturhållaren.
A59: Kommentar
A60: Ej angett
A62: Samhällsekonomisk analys
A63: I tabell 2.5a redovisas de effekter av åtgärden som är samhällsekonomiskt relevanta och som har kvantifierats och värderats monetärt (genom marknadspris eller skuggprisvärdering, direkt kostnadsberäkning eller alternativkostnadsvärdering). Samhällsekonomiskt relevanta effekter ska finnas med i den samhällsekonomiska analysen antingen som värderade effekter i tabell 2.5a eller som svårvärderade effekter i tabell 2.6a. I de fall en effekt är konstaterad och eventuellt kvantifierad men inte värderad redovisas den verbalt och bedöms i tabell 2.6a. Normalt redovisas en viss effekt antingen monetärt värderad i tabell 2.5a eller enbart beskriven i tabell 2.6a. I vissa fall omfattar emellertid den monetära värderingen av en effekt endast vissa delar av effektens samhällsekonomiska konsekvenser. I sådana fall kan man komplettera den monetära värderingen av effekten i tabell 2.5a med en beskrivning i tabell 2.6a av de delar av effekten som inte ingår i värderingen. Beräkningarna i avsnitt 2.1 och bedömningarna i avsnitt 2.2 är underlag för den sammanvägda bedömningen av om åtgärden är lönsam eller olönsam. Den bedömningan görs i avsnitt 2.3. | BM63: Den här texten behöver slås ihop med den nedan.
A64: Tabell 2.3 Samhällsekonomisk analys | BQ64: Vad är inte obligatoriskt vid enkel SEB.
S65: Effekter som värderats monetärt och som ingår i beräkning av nettonuvärde | AL65: Effekter som inte ingår i beräkningen av nettonuvärde men som ingår i den sammanvägda bedömningen | BQ65: Vid SEB utan samhällsekonomisk kalyl används endast den högra sidan av tabellen.
A66: Berörd/ påverkad av effekt | G66: Effektbenämning och kortfattad beskrivning | S66: Ex på årlig effekt för prognosår 1 | AA66: Nuvärde detaljerat (mnkr) | AF66: Nuvärde över- siktligt (mnkr) | AL66: Bedömning | AU66: Samman- vägd bedömning | BA66: Kortfattad beskrivning
S67: =AJ14 -> 2040
A68: TRAFIKANT EFFEKTER | D68: RESENÄRER | G68: Förseningstid | S68: =Kalkylsammanställning!C9 -> 0 | W68: mnkr/år | AA68: =Kalkylsammanställning!D9 -> 0 | AF68: =IF(ISNUMBER(SUM(AA68:AE90)),SUM(AA68:AE90),0) -> 0 | AL68: Ej bedömt | AU68: Ej bedömt | BA68: Ej angett | BQ68: I kolumn "Bedömning" görs bedömning av effekten på skalan Negativt/Försumbart/Positivt/Ingen effekt och kommentar till bedömningen skrivs därefter. Om effekten fångas i de monetärt värderade effekterna anges istället "-". I kolumn "Sammanvägd bedömning" görs på skalan Negativt/Försumbart/Positivt (obs alltså kan inte vara "ingen effekt") I kolumn "kortfattad beskrivning" skrivs en kortfattad text om bedömningen obs att denna går till sammanfattningen som har begränsat utrymme.
G69: Ej relevant | AL69: Ej bedömt
G70: Ej relevant | AL70: Ej bedömt
AL71: Ej bedömt
AL72: Ej bedömt
AL73: Ej bedömt
AL74: Ej bedömt
G75: Ej angett | W75: Ej angett | AL75: Ej bedömt
G76: Ej angett | W76: Ej angett | AL76: Ej bedömt
G77: Ej angett | W77: Ej angett | AL77: Ej bedömt
G78: Ej angett | W78: Ej angett | AL78: Ej bedömt
G79: Ej angett | W79: Ej angett | AL79: Ej bedömt
G80: Ej angett | W80: Ej angett | AL80: Ej bedömt
G81: Ej angett | W81: Ej angett | AL81: Ej bedömt
G82: Ej angett | W82: Ej angett | AL82: Ej bedömt
G83: Ej angett | W83: Ej angett | AL83: Ej bedömt
G84: Ej angett | W84: Ej angett | AL84: Ej bedömt
G85: Ej angett | W85: Ej angett | AL85: Ej bedömt
G86: Ej angett | W86: Ej angett | AL86: Ej bedömt
G87: Ej angett | W87: Ej angett | AL87: Ej bedömt
G88: Ej angett | W88: Ej angett | AL88: Ej bedömt
G89: Ej angett | W89: Ej angett | AL89: Ej bedömt
G90: Ej angett | W90: Ej angett | AL90: Ej bedömt
D91: GODSTRANSPORTER | G91: Distansberoende kostnader | S91: =Kalkylsammanställning!C11 -> 0 | W91: mnkr/år | AA91: =Kalkylsammanställning!D11 -> 0 | AF91: =IF(ISNUMBER(SUM(AA91:AE112)),SUM(AA91:AE112),0) -> 0 | AL91: Ej bedömt | AU91: Ej bedömt | BA91: Ej angett
G92: Tidsberoende kostnader | S92: =Kalkylsammanställning!C12 -> 0 | W92: mnkr/år | AA92: =Kalkylsammanställning!D12 -> 0 | AL92: Ej bedömt
G93: Lastning- & lossningskostnader | S93: =Kalkylsammanställning!C13 -> 0 | W93: mnkr/år | AA93: =Kalkylsammanställning!D13 -> 0 | AL93: Ej bedömt
G94: Tidsberoende kostnader avseende lastning & lossning | S94: =Kalkylsammanställning!C14 -> 0 | W94: mnkr/år | AA94: =Kalkylsammanställning!D14 -> 0 | AL94: Ej bedömt
G95: Lotskostnader | S95: =Kalkylsammanställning!C15 -> 0 | W95: mnkr/år | AA95: =Kalkylsammanställning!D15 -> 0 | AL95: Ej bedömt
G96: Förseningstid gods | S96: =Kalkylsammanställning!C16 -> 0 | W96: mnkr/år | AA96: =Kalkylsammanställning!D16 -> 0 | AL96: Ej bedömt
G97: Förseningstid fartyg | S97: =Kalkylsammanställning!C17 -> 0 | W97: mnkr/år | AA97: =Kalkylsammanställning!D17 -> 0 | AL97: Ej bedömt
G98: Ej relevant | S98: 0 | W98: mnkr/år | AA98: 0 | AL98: Ej bedömt
G99: Ej angett | W99: Ej angett | AA99: Ej beräknat | AL99: Ej bedömt
G100: Ej angett | W100: Ej angett | AA100: Ej beräknat | AL100: Ej bedömt
G101: Ej angett | W101: Ej angett | AA101: Ej beräknat | AL101: Ej bedömt
G102: Ej angett | W102: Ej angett | AA102: Ej beräknat | AL102: Ej bedömt
G103: Ej angett | W103: Ej angett | AA103: Ej beräknat | AL103: Ej bedömt
G104: Ej angett | W104: Ej angett | AA104: Ej beräknat | AL104: Ej bedömt
G105: Ej angett | W105: Ej angett | AA105: Ej beräknat | AL105: Ej bedömt
G106: Ej angett | W106: Ej angett | AA106: Ej beräknat | AL106: Ej bedömt
G107: Ej angett | W107: Ej angett | AA107: Ej beräknat | AL107: Ej bedömt
G108: Ej angett | W108: Ej angett | AA108: Ej beräknat | AL108: Ej bedömt
G109: Ej angett | W109: Ej angett | AA109: Ej beräknat | AL109: Ej bedömt
G110: Ej angett | W110: Ej angett | AA110: Ej beräknat | AL110: Ej bedömt
G111: Ej angett | W111: Ej angett | AA111: Ej beräknat | AL111: Ej bedömt
G112: Ej angett | W112: Ej angett | AA112: Ej beräknat | AL112: Ej bedömt
D113: PERSONTRANSPORTFÖRETAG | G113: Ej relevant | AF113: =IF(ISNUMBER(SUM(AA113:AE132)),SUM(AA113:AE132),0) -> 0 | AL113: Ej bedömt | AU113: Ej bedömt | BA113: Ej angett
G114: Ej relevant | AL114: Ej bedömt
G115: Ej relevant | AL115: Ej bedömt
AL116: Ej bedömt
AL117: Ej bedömt
AL118: Ej bedömt
G119: Ej angett | S119: Ej angett | W119: Ej angett | AL119: Ej bedömt
G120: Ej angett | S120: Ej angett | W120: Ej angett | AL120: Ej bedömt
G121: Ej angett | S121: Ej angett | W121: Ej angett | AL121: Ej bedömt
G122: Ej angett | S122: Ej angett | W122: Ej angett | AL122: Ej bedömt
G123: Ej angett | S123: Ej angett | W123: Ej angett | AL123: Ej bedömt
G124: Ej angett | S124: Ej angett | W124: Ej angett | AL124: Ej bedömt
G125: Ej angett | S125: Ej angett | W125: Ej angett | AL125: Ej bedömt
G126: Ej angett | S126: Ej angett | W126: Ej angett | AL126: Ej bedömt
G127: Ej angett | S127: Ej angett | W127: Ej angett | AL127: Ej bedömt
G128: Ej angett | S128: Ej angett | W128: Ej angett | AL128: Ej bedömt
G129: Ej angett | S129: Ej angett | W129: Ej angett | AL129: Ej bedömt
G130: Ej angett | S130: Ej angett | W130: Ej angett | AL130: Ej bedömt
G131: Ej angett | S131: Ej angett | W131: Ej angett | AL131: Ej bedömt
G132: Ej angett | S132: Ej angett | W132: Ej angett | AL132: Ej bedömt
A133: EXTERNA EFFEKTER | D133: TRAFIKSÄKERHET (TS) | G133: Ej angett | S133: 0 | W133: mnkr/år | AA133: 0 | AF133: =IF(ISNUMBER(SUM(AA133:AE149)),SUM(AA133:AE149),0) -> 0 | AL133: Ej bedömt | AU133: Ej bedömt | BA133: Ej angett
G134: Döda | S134: Ej angett | W134: Ej angett | AL134: Ej bedömt
G135: Ej angett | S135: Ej angett | W135: Ej angett | AL135: Ej bedömt
G136: Ej angett | S136: Ej angett | W136: Ej angett | AL136: Ej bedömt
G137: Ej angett | S137: Ej angett | W137: Ej angett | AL137: Ej bedömt
G138: Ej angett | S138: Ej angett | W138: Ej angett | AL138: Ej bedömt
G139: Ej angett | S139: Ej angett | W139: Ej angett | AL139: Ej bedömt
G140: Ej angett | S140: Ej angett | W140: Ej angett | AL140: Ej bedömt
G141: Ej angett | S141: Ej angett | W141: Ej angett | AL141: Ej bedömt
G142: Ej angett | S142: Ej angett | W142: Ej angett | AL142: Ej bedömt
G143: Ej angett | S143: Ej angett | W143: Ej angett | AL143: Ej bedömt
G144: Ej angett | S144: Ej angett | W144: Ej angett | AL144: Ej bedömt
G145: Ej angett | S145: Ej angett | W145: Ej angett | AL145: Ej bedömt
G146: Ej angett | S146: Ej angett | W146: Ej angett | AL146: Ej bedömt
G147: Ej angett | S147: Ej angett | W147: Ej angett | AL147: Ej bedömt
G148: Ej angett | S148: Ej angett | W148: Ej angett | AL148: Ej bedömt
G149: Ej angett | S149: Ej angett | W149: Ej angett | AL149: Ej bedömt
D150: KLIMAT | G150: CO2-ekvivalenter: Effekten år 2040 i kton avser koldioxid från dieseldriven tågtrafik, personbil, lastbil och fartyg | S150: =Kalkylsammanställning!I5/1000 -> 0 | W150: kton/år | AA150: =Kalkylsammanställning!D19 -> 0 | AF150: =IF(ISNUMBER(SUM(AA150:AE172)),SUM(AA150:AE172),0) -> 0 | AL150: Ej bedömt | AU150: Ej bedömt | BA150: Ej angett
G151: Ej angett | S151: Ej angett | W151: Ej angett | AL151: Ej bedömt
G152: Ej angett | S152: Ej angett | W152: Ej angett | AL152: Ej bedömt
G153: Ej angett | S153: Ej angett | W153: Ej angett | AL153: Ej bedömt
G154: Ej angett | S154: Ej angett | W154: Ej angett | AL154: Ej bedömt
G155: Ej angett | S155: Ej angett | W155: Ej angett | AL155: Ej bedömt
G156: Ej angett | S156: Ej angett | W156: Ej angett | AL156: Ej bedömt
G157: Ej angett | S157: Ej angett | W157: Ej angett | AL157: Ej bedömt
G158: Ej angett | S158: Ej angett | W158: Ej angett | AL158: Ej bedömt
G159: Ej angett | S159: Ej angett | W159: Ej angett | AL159: Ej bedömt
G160: Ej angett | S160: Ej angett | W160: Ej angett | AL160: Ej bedömt
G161: Ej angett | S161: Ej angett | W161: Ej angett | AL161: Ej bedömt
G162: Ej angett | S162: Ej angett | W162: Ej angett | AL162: Ej bedömt
G163: Ej angett | S163: Ej angett | W163: Ej angett | AL163: Ej bedömt
G164: Ej angett | S164: Ej angett | W164: Ej angett | AL164: Ej bedömt
G165: Ej angett | S165: Ej angett | W165: Ej angett | AL165: Ej bedömt
G166: Ej angett | S166: Ej angett | W166: Ej angett | AL166: Ej bedömt
G167: Ej angett | S167: Ej angett | W167: Ej angett | AL167: Ej bedömt
G168: Ej angett | S168: Ej angett | W168: Ej angett | AL168: Ej bedömt
G169: Ej angett | S169: Ej angett | W169: Ej angett | AL169: Ej bedömt
G170: Ej angett | S170: Ej angett | W170: Ej angett | AL170: Ej bedömt
G171: Ej angett | S171: Ej angett | W171: Ej angett | AL171: Ej bedömt
G172: Ej angett | S172: Ej angett | W172: Ej angett | AL172: Ej bedömt
D173: HÄLSA (exkl trafiksäkerhet) | G173: Luft: Avser NOX, VOC, SO2, NH3 och PM | S173: =Kalkylsammanställning!C20 -> 0 | W173: mnkr/år | AA173: =Kalkylsammanställning!D20 -> 0 | AF173: =IF(ISNUMBER(SUM(AA173:AE188)),SUM(AA173:AE188),0) -> 0 | AL173: Ej bedömt | AU173: Ej bedömt | BA173: Ej angett
G174: NOx | S174: =Kalkylsammanställning!I6 -> 0 | W174: ton/år | AA174: - | AL174: Ej bedömt
G175: VOC | S175: =Kalkylsammanställning!I7 -> 0 | W175: ton/år | AA175: - | AL175: Ej bedömt
G176: SO2 | S176: =Kalkylsammanställning!I8 -> 0 | W176: ton/år | AA176: - | AL176: Ej bedömt
G177: NH3 | S177: =Kalkylsammanställning!I9 -> 0 | W177: ton/år | AA177: - | AL177: Ej bedömt
G178: PM | S178: =Kalkylsammanställning!I10 -> 0 | W178: ton/år | AA178: - | AL178: Ej bedömt
G179: Ej angett | S179: Ej angett | W179: Ej angett | AA179: Ej beräknat | AL179: Ej bedömt
G180: Ej angett | S180: Ej angett | W180: Ej angett | AA180: Ej beräknat | AL180: Ej bedömt
G181: Ej angett | S181: Ej angett | W181: Ej angett | AA181: Ej beräknat | AL181: Ej bedömt
G182: Ej angett | S182: Ej angett | W182: Ej angett | AA182: Ej beräknat | AL182: Ej bedömt
G183: Ej angett | S183: Ej angett | W183: Ej angett | AA183: Ej beräknat | AL183: Ej bedömt
G184: Ej angett | S184: Ej angett | W184: Ej angett | AA184: Ej beräknat | AL184: Ej bedömt
G185: Ej angett | S185: Ej angett | W185: Ej angett | AA185: Ej beräknat | AL185: Ej bedömt
G186: Ej angett | S186: Ej angett | W186: Ej angett | AA186: Ej beräknat | AL186: Ej bedömt
G187: Ej angett | S187: Ej angett | W187: Ej angett | AA187: Ej beräknat | AL187: Ej bedömt
G188: Ej angett | S188: Ej angett | W188: Ej angett | AA188: Ej beräknat | AL188: Ej bedömt
D189: LANDSKAP | G189: Ej relevant | S189: Ej angett | W189: Ej angett | AA189: Ej beräknat | AF189: =IF(ISNUMBER(SUM(AA189:AE203)),SUM(AA189:AE203),0) -> 0 | AL189: Ej bedömt | AU189: Ej bedömt | BA189: Ej angett
G190: Ej relevant | S190: Ej angett | W190: Ej angett | AA190: Ej beräknat | AL190: Ej bedömt
G191: Ej relevant | S191: Ej angett | W191: Ej angett | AL191: Ej bedömt
G192: Ej angett | S192: Ej angett | W192: Ej angett | AA192: Ej beräknat | AL192: Ej bedömt
G193: Ej angett | S193: Ej angett | W193: Ej angett | AA193: Ej beräknat | AL193: Ej bedömt
G194: Ej angett | S194: Ej angett | W194: Ej angett | AA194: Ej beräknat | AL194: Ej bedömt
G195: Ej angett | S195: Ej angett | W195: Ej angett | AA195: Ej beräknat | AL195: Ej bedömt
G196: Ej angett | S196: Ej angett | W196: Ej angett | AA196: Ej beräknat | AL196: Ej bedömt
G197: Ej angett | S197: Ej angett | W197: Ej angett | AA197: Ej beräknat | AL197: Ej bedömt
G198: Ej angett | S198: Ej angett | W198: Ej angett | AA198: Ej beräknat | AL198: Ej bedömt
G199: Ej angett | S199: Ej angett | W199: Ej angett | AA199: Ej beräknat | AL199: Ej bedömt
G200: Ej angett | S200: Ej angett | W200: Ej angett | AA200: Ej beräknat | AL200: Ej bedömt
G201: Ej angett | S201: Ej angett | W201: Ej angett | AA201: Ej beräknat | AL201: Ej bedömt
G202: Ej angett | S202: Ej angett | W202: Ej angett | AA202: Ej beräknat | AL202: Ej bedömt
G203: Ej angett | S203: Ej angett | W203: Ej angett | AA203: Ej beräknat | AL203: Ej bedömt
D204: ÖVRIGA EXTERNA EFFEKTER | G204: Externa effekter, infrastruktur | S204: -9.231562586e-17 | W204: mnkr/år | AA204: -2.569680479e-15 | AF204: =IF(ISNUMBER(SUM(AA204:AE220)),SUM(AA204:AE220),0) -> -9.188228608e-15 | AL204: Ej bedömt | AU204: Ej bedömt | BA204: Ej angett
G205: Externa effekter,buller | S205: -2.161066653e-16 | W205: mnkr/år | AA205: -6.618548129e-15 | AL205: Ej bedömt
... 62 more rows

Sheet Indata
A1: INDATA
A3: Vald ASEK-version: | B3: ='Om kalkylen'!B10 -> ASEK 7.1
A4: Prisnivå: | B4: =INDEX('Förvaltningsflik Trafikverket'!$B5:$K5,1,MATCH($B$3,'Förvaltningsflik Trafikverket'!$B$4:$K$4,0)) -> 2017
B6: Indata som kan justeras | D6: =CONCATENATE("Standardvärden ",B3) -> Standardvärden ASEK 7.1 | F6: Övrigt
B7: Ansatt värde | C7: enhet | D7: =INDEX('Förvaltningsflik Trafikverket'!$B7:$K7,1,MATCH($B$3,'Förvaltningsflik Trafikverket'!$B$4:$K$4,0)) -> 2017
A8: Övergripande kalkylparametrar
A9: Bränslepris MGO SEK/ton | B9: 4080 | C9: kr/ton | D9: =INDEX('Förvaltningsflik Trafikverket'!$B9:$K9,1,MATCH($B$3,'Förvaltningsflik Trafikverket'!$B$4:$K$4,0)) -> 4080 | E9: =INDEX('Förvaltningsflik Trafikverket'!$B9:$K9,1,MATCH($B$3,'Förvaltningsflik Trafikverket'!$B$4:$K$4,0)+1) -> 5491.3
A10: Avvikelse från ASEK | B10: =D10 -> Nej | D10: =INDEX('Förvaltningsflik Trafikverket'!$B10:$K10,1,MATCH($B$3,'Förvaltningsflik Trafikverket'!$B$4:$K$4,0)) -> Nej
A11: Diskonteringsränta | B11: 0.035 | D11: =INDEX('Förvaltningsflik Trafikverket'!$B11:$K11,1,MATCH($B$3,'Förvaltningsflik Trafikverket'!$B$4:$K$4,0)) -> 0.035
A12: Kalkylperiod | B12: 60 | C12: år | D12: =INDEX('Förvaltningsflik Trafikverket'!$B12:$K12,1,MATCH($B$3,'Förvaltningsflik Trafikverket'!$B$4:$K$4,0)) -> 60 | E12: år
A13: Basår | B13: 2017 | D13: =INDEX('Förvaltningsflik Trafikverket'!$B13:$K13,1,MATCH($B$3,'Förvaltningsflik Trafikverket'!$B$4:$K$4,0)) -> 2017
A14: Diskonteringsår | B14: 2025 | D14: =INDEX('Förvaltningsflik Trafikverket'!$B14:$K14,1,MATCH($B$3,'Förvaltningsflik Trafikverket'!$B$4:$K$4,0)) -> 2025
A15: Byggstartsår | B15: 2025 | D15: =INDEX('Förvaltningsflik Trafikverket'!$B15:$K15,1,MATCH($B$3,'Förvaltningsflik Trafikverket'!$B$4:$K$4,0)) -> 2025
A16: Trafikstartsår | B16: =D16 -> 2025 | D16: =INDEX('Förvaltningsflik Trafikverket'!$B16:$K16,1,MATCH($B$3,'Förvaltningsflik Trafikverket'!$B$4:$K$4,0)) -> 2025
A17: Prognosår 1 | B17: 2040 | D17: =INDEX('Förvaltningsflik Trafikverket'!$B17:$K17,1,MATCH($B$3,'Förvaltningsflik Trafikverket'!$B$4:$K$4,0)) -> 2040
A18: Prognosår 2 | B18: 2065 | D18: =INDEX('Förvaltningsflik Trafikverket'!$B18:$K18,1,MATCH($B$3,'Förvaltningsflik Trafikverket'!$B$4:$K$4,0)) -> 2065
A19: Slutår | B19: =B16+B12-1 -> 2084 | D19: =INDEX('Förvaltningsflik Trafikverket'!$B19:$K19,1,MATCH($B$3,'Förvaltningsflik Trafikverket'!$B$4:$K$4,0)) -> 2084
A20: Uppräkningstal
A21: Bränsleeffektivisering | B21: =D21 -> 0.9866471711 | C21: per år | D21: =INDEX('Förvaltningsflik Trafikverket'!$B21:$K21,1,MATCH($B$3,'Förvaltningsflik Trafikverket'!$B$4:$K$4,0)) -> 0.9866471711 | E21: per år
A22: Slutår bränsleeffektivisering | B22: =D22 -> 2050 | D22: =INDEX('Förvaltningsflik Trafikverket'!$B22:$K22,1,MATCH($B$3,'Förvaltningsflik Trafikverket'!$B$4:$K$4,0)) -> 2050
A23: Basår till Prognosår 1, Bränslepris | B23: =D23 -> 1.013 | C23: per år | D23: =INDEX('Förvaltningsflik Trafikverket'!$B23:$K23,1,MATCH($B$3,'Förvaltningsflik Trafikverket'!$B$4:$K$4,0)) -> 1.013 | E23: per år | F23: Bprisupp1
A24: Prognosår 1 till Prognosår 2, Bränslepris | B24: 1.002 | C24: per år | D24: =INDEX('Förvaltningsflik Trafikverket'!$B24:$K24,1,MATCH($B$3,'Förvaltningsflik Trafikverket'!$B$4:$K$4,0)) -> 1.002 | E24: per år | F24: Bprisupp2
A25: Basår till Prognosår 1, Tidsberoende kostnader | B25: 1.015 | C25: per år | D25: =INDEX('Förvaltningsflik Trafikverket'!$B25:$K25,1,MATCH($B$3,'Förvaltningsflik Trafikverket'!$B$4:$K$4,0)) -> 1.015 | E25: per år | F25: Tkostupp1
A26: Prognosår 1 till Prognosår 2, Tidsberoende kostnader | B26: 1.015 | C26: per år | D26: =INDEX('Förvaltningsflik Trafikverket'!$B26:$K26,1,MATCH($B$3,'Förvaltningsflik Trafikverket'!$B$4:$K$4,0)) -> 1.015 | E26: per år | F26: Tkostupp2
A27: Basår till Prognosår 1, Lastning- & lossningskostnader | B27: 1.015 | C27: per år | D27: =INDEX('Förvaltningsflik Trafikverket'!$B27:$K27,1,MATCH($B$3,'Förvaltningsflik Trafikverket'!$B$4:$K$4,0)) -> 1.015 | E27: per år | F27: Lastupp1
A28: Prognosår 1 till Prognosår 2, Lastning- & lossningskostnader | B28: 1.015 | C28: per år | D28: =INDEX('Förvaltningsflik Trafikverket'!$B28:$K28,1,MATCH($B$3,'Förvaltningsflik Trafikverket'!$B$4:$K$4,0)) -> 1.015 | E28: per år | F28: Lastupp2
A29: Basår till Prognosår 1, Lotskostnader | B29: 1 | C29: per år | D29: =INDEX('Förvaltningsflik Trafikverket'!$B29:$K29,1,MATCH($B$3,'Förvaltningsflik Trafikverket'!$B$4:$K$4,0)) -> 1 | E29: per år | F29: Lotsupp1
A30: Prognosår 1 till Prognosår 2, Lotskostnader | B30: 1 | C30: per år | D30: =INDEX('Förvaltningsflik Trafikverket'!$B30:$K30,1,MATCH($B$3,'Förvaltningsflik Trafikverket'!$B$4:$K$4,0)) -> 1 | E30: per år | F30: Lotsupp2
A31: Basår till Prognosår 1, CO2 | B31: 1 | C31: per år | D31: =INDEX('Förvaltningsflik Trafikverket'!$B31:$K31,1,MATCH($B$3,'Förvaltningsflik Trafikverket'!$B$4:$K$4,0)) -> 1 | E31: per år | F31: CO2upp1
A32: Prognosår 1 till Prognosår 2, CO2 | B32: 1 | C32: per år | D32: =INDEX('Förvaltningsflik Trafikverket'!$B32:$K32,1,MATCH($B$3,'Förvaltningsflik Trafikverket'!$B$4:$K$4,0)) -> 1 | E32: per år | F32: CO2upp2
A33: Basår till Prognosår 1, NOx | B33: 1.015 | C33: per år | D33: =INDEX('Förvaltningsflik Trafikverket'!$B33:$K33,1,MATCH($B$3,'Förvaltningsflik Trafikverket'!$B$4:$K$4,0)) -> 1.015 | E33: per år | F33: NOxupp1
A34: Prognosår 1 till Prognosår 2, NOx | B34: 1.015 | C34: per år | D34: =INDEX('Förvaltningsflik Trafikverket'!$B34:$K34,1,MATCH($B$3,'Förvaltningsflik Trafikverket'!$B$4:$K$4,0)) -> 1.015 | E34: per år | F34: NOxupp2
A35: Basår till Prognosår 1, VOC | B35: 1.015 | C35: per år | D35: =INDEX('Förvaltningsflik Trafikverket'!$B35:$K35,1,MATCH($B$3,'Förvaltningsflik Trafikverket'!$B$4:$K$4,0)) -> 1.015 | E35: per år | F35: VOCupp1
A36: Prognosår 1 till Prognosår 2, VOC | B36: 1.015 | C36: per år | D36: =INDEX('Förvaltningsflik Trafikverket'!$B36:$K36,1,MATCH($B$3,'Förvaltningsflik Trafikverket'!$B$4:$K$4,0)) -> 1.015 | E36: per år | F36: VOCupp2
A37: Basår till Prognosår 1, SO2 | B37: 1.015 | C37: per år | D37: =INDEX('Förvaltningsflik Trafikverket'!$B37:$K37,1,MATCH($B$3,'Förvaltningsflik Trafikverket'!$B$4:$K$4,0)) -> 1.015 | E37: per år | F37: SO2upp1
A38: Prognosår 1 till Prognosår 2, SO2 | B38: 1.015 | C38: per år | D38: =INDEX('Förvaltningsflik Trafikverket'!$B38:$K38,1,MATCH($B$3,'Förvaltningsflik Trafikverket'!$B$4:$K$4,0)) -> 1.015 | E38: per år | F38: SO2upp2
A39: Basår till Prognosår 1, NH3 | B39: 1.015 | C39: per år | D39: =INDEX('Förvaltningsflik Trafikverket'!$B39:$K39,1,MATCH($B$3,'Förvaltningsflik Trafikverket'!$B$4:$K$4,0)) -> 1.015 | E39: per år | F39: NH3upp1
A40: Prognosår 1 till Prognosår 2, NH3 | B40: 1.015 | C40: per år | D40: =INDEX('Förvaltningsflik Trafikverket'!$B40:$K40,1,MATCH($B$3,'Förvaltningsflik Trafikverket'!$B$4:$K$4,0)) -> 1.015 | E40: per år | F40: NH3upp2
A41: Basår till Prognosår 1, PM | B41: 1.015 | C41: per år | D41: =INDEX('Förvaltningsflik Trafikverket'!$B41:$K41,1,MATCH($B$3,'Förvaltningsflik Trafikverket'!$B$4:$K$4,0)) -> 1.015 | E41: per år | F41: PMupp1
A42: Prognosår 1 till Prognosår 2, PM | B42: 1.015 | C42: per år | D42: =INDEX('Förvaltningsflik Trafikverket'!$B42:$K42,1,MATCH($B$3,'Förvaltningsflik Trafikverket'!$B$4:$K$4,0)) -> 1.015 | E42: per år | F42: PMupp2
A43: Värdering emissioner
A44: CO2 kr per kg | B44: =D44 -> 7 | C44: kr/kg | D44: =INDEX('Förvaltningsflik Trafikverket'!$B44:$K44,1,MATCH($B$3,'Förvaltningsflik Trafikverket'!$B$4:$K$4,0)) -> 7
A45: NOx kr per kg | B45: 3 | C45: kr/kg | D45: =INDEX('Förvaltningsflik Trafikverket'!$B45:$K45,1,MATCH($B$3,'Förvaltningsflik Trafikverket'!$B$4:$K$4,0)) -> 3
A46: VOC kr per kg | B46: 0 | C46: kr/kg | D46: =INDEX('Förvaltningsflik Trafikverket'!$B46:$K46,1,MATCH($B$3,'Förvaltningsflik Trafikverket'!$B$4:$K$4,0)) -> 0
A47: SO2 kr per kg | B47: 0 | C47: kr/kg | D47: =INDEX('Förvaltningsflik Trafikverket'!$B47:$K47,1,MATCH($B$3,'Förvaltningsflik Trafikverket'!$B$4:$K$4,0)) -> 0
A48: NH3 kr per kg | B48: 8 | C48: kr/kg | D48: =INDEX('Förvaltningsflik Trafikverket'!$B48:$K48,1,MATCH($B$3,'Förvaltningsflik Trafikverket'!$B$4:$K$4,0)) -> 8
A49: PM kr per kg | B49: 0 | C49: kr/kg | D49: =INDEX('Förvaltningsflik Trafikverket'!$B49:$K49,1,MATCH($B$3,'Förvaltningsflik Trafikverket'!$B$4:$K$4,0)) -> 0
A50: Emissionsfaktorer
A51: kg CO2 per kilo MGO | B51: 3.206 | D51: =INDEX('Förvaltningsflik Trafikverket'!$B51:$K51,1,MATCH($B$3,'Förvaltningsflik Trafikverket'!$B$4:$K$4,0)) -> 3.206
A52: kg NOx per kilo MGO | B52: se flik "NOx" | D52: =INDEX('Förvaltningsflik Trafikverket'!$B52:$K52,1,MATCH($B$3,'Förvaltningsflik Trafikverket'!$B$4:$K$4,0)) -> flik "NOx"
A53: kg VOC per kilo MGO | B53: =3/1000 -> 0.003 | D53: =INDEX('Förvaltningsflik Trafikverket'!$B53:$K53,1,MATCH($B$3,'Förvaltningsflik Trafikverket'!$B$4:$K$4,0)) -> 0.003
A54: kg SO2 per kilo MGO | B54: =2/1000 -> 0.002 | D54: =INDEX('Förvaltningsflik Trafikverket'!$B54:$K54,1,MATCH($B$3,'Förvaltningsflik Trafikverket'!$B$4:$K$4,0)) -> 0.002
A55: kg NH3 per kilo MGO | B55: =(0.02+0.37)/1000 -> 0.00039 | D55: =INDEX('Förvaltningsflik Trafikverket'!$B55:$K55,1,MATCH($B$3,'Förvaltningsflik Trafikverket'!$B$4:$K$4,0)) -> 0.00039
A56: kg PM per kilo MGO | B56: =1/1000 -> 0.001 | D56: =INDEX('Förvaltningsflik Trafikverket'!$B56:$K56,1,MATCH($B$3,'Förvaltningsflik Trafikverket'!$B$4:$K$4,0)) -> 0.001
A57: Sjöfartsspecifika kalkylparametrar
A58: Dollarkurs 2014 | B58: =D58 -> 7.61 | D58: =INDEX('Förvaltningsflik Trafikverket'!$B58:$K58,1,MATCH($B$3,'Förvaltningsflik Trafikverket'!$B$4:$K$4,0)) -> 7.61
A59: DWT/TEU | B59: =D59 -> 11.26 | D59: =INDEX('Förvaltningsflik Trafikverket'!$B59:$K59,1,MATCH($B$3,'Förvaltningsflik Trafikverket'!$B$4:$K$4,0)) -> 11.26
A60: Driftdagar per år | B60: 345 | C60: dagar/år | D60: =INDEX('Förvaltningsflik Trafikverket'!$B60:$K60,1,MATCH($B$3,'Förvaltningsflik Trafikverket'!$B$4:$K$4,0)) -> 345
A61: Drift, tim/dygn | B61: 24 | C61: h/dygn | D61: =INDEX('Förvaltningsflik Trafikverket'!$B61:$K61,1,MATCH($B$3,'Förvaltningsflik Trafikverket'!$B$4:$K$4,0)) -> 24
A62: Drifttimmar per år | B62: 8280 | C62: h/år | D62: =INDEX('Förvaltningsflik Trafikverket'!$B62:$K62,1,MATCH($B$3,'Förvaltningsflik Trafikverket'!$B$4:$K$4,0)) -> 8280
A63: Företagsekonomisk låneränta | B63: 0.05 | D63: =INDEX('Förvaltningsflik Trafikverket'!$B63:$K63,1,MATCH($B$3,'Förvaltningsflik Trafikverket'!$B$4:$K$4,0)) -> 0.05
A64: Ränta eget kapital (företag) | B64: 0.1 | D64: =INDEX('Förvaltningsflik Trafikverket'!$B64:$K64,1,MATCH($B$3,'Förvaltningsflik Trafikverket'!$B$4:$K$4,0)) -> 0.1
A65: Andel eget kapital | B65: 0.1 | D65: =INDEX('Förvaltningsflik Trafikverket'!$B65:$K65,1,MATCH($B$3,'Förvaltningsflik Trafikverket'!$B$4:$K$4,0)) -> 0.1
A66: Snittränta | B66: 0.055 | D66: =INDEX('Förvaltningsflik Trafikverket'!$B66:$K66,1,MATCH($B$3,'Förvaltningsflik Trafikverket'!$B$4:$K$4,0)) -> 0.055
A67: Fartygets avskrivningstid | B67: 25 | C67: år | D67: =INDEX('Förvaltningsflik Trafikverket'!$B67:$K67,1,MATCH($B$3,'Förvaltningsflik Trafikverket'!$B$4:$K$4,0)) -> 25
A68: Restvärde procent | B68: 0.1 | D68: =INDEX('Förvaltningsflik Trafikverket'!$B68:$K68,1,MATCH($B$3,'Förvaltningsflik Trafikverket'!$B$4:$K$4,0)) -> 0.1
A69: Utnyttjande av aux eng andel | B69: 0.245 | D69: =INDEX('Förvaltningsflik Trafikverket'!$B69:$K69,1,MATCH($B$3,'Förvaltningsflik Trafikverket'!$B$4:$K$4,0)) -> 0.245
A70: DWT i förhållande till lastkapacitet (ton)
A71: Container | B71: =D71 -> 0.85 | D71: =INDEX('Förvaltningsflik Trafikverket'!$B71:$K71,1,MATCH($B$3,'Förvaltningsflik Trafikverket'!$B$4:$K$4,0)) -> 0.85 | F71: T.ex. Ett fartyg på 1000 Dwt lastar 850 ton
A72: Dry_Bulk | B72: 0.85 | D72: =INDEX('Förvaltningsflik Trafikverket'!$B72:$K72,1,MATCH($B$3,'Förvaltningsflik Trafikverket'!$B$4:$K$4,0)) -> 0.85
A73: Liquid_Bulk | B73: 0.85 | D73: =INDEX('Förvaltningsflik Trafikverket'!$B73:$K73,1,MATCH($B$3,'Förvaltningsflik Trafikverket'!$B$4:$K$4,0)) -> 0.85
A74: General_Cargo | B74: =D74 -> 0.85 | D74: =INDEX('Förvaltningsflik Trafikverket'!$B74:$K74,1,MATCH($B$3,'Förvaltningsflik Trafikverket'!$B$4:$K$4,0)) -> 0.85
A75: RoRo | B75: 0.85 | D75: =INDEX('Förvaltningsflik Trafikverket'!$B75:$K75,1,MATCH($B$3,'Förvaltningsflik Trafikverket'!$B$4:$K$4,0)) -> 0.85
A76: Road_Ferry | B76: 0.85 | D76: =INDEX('Förvaltningsflik Trafikverket'!$B76:$K76,1,MATCH($B$3,'Förvaltningsflik Trafikverket'!$B$4:$K$4,0)) -> 0.85
A77: Rail_Ferry | B77: 0.85 | D77: =INDEX('Förvaltningsflik Trafikverket'!$B77:$K77,1,MATCH($B$3,'Förvaltningsflik Trafikverket'!$B$4:$K$4,0)) -> 0.85
A78: Indexuppräkning kalkylvärden
A79: Uppräkning från prisnivå 2017 till aktuellt basår | B79: =D79 -> 1 | D79: =INDEX('Förvaltningsflik Trafikverket'!$B79:$K79,1,MATCH($B$3,'Förvaltningsflik Trafikverket'!$B$4:$K$4,0)) -> 1

Sheet Investeringskostnader
A1: INVESTERINGSKOSTNADER
B3: För ifyllnad och omräkning mellan de olika prisnivåerna nyttjas Excel-arket "Lathund indexomräkning kostnad kapitalisering investeringskostnad" på https://www.trafikverket.se/for-dig-i-branschen/Planera-och-utreda/Planerings--och-analysmetoder/Samhallsekonomisk-analys-och-trafikanalys/gallande-forutsattningar-och-indata/
B6: Aktör/Organisation | C6: Skattefaktor? | D6: Skattefaktor-andel (0-1) | E6: Investerings-kostnad (mnkr) | F6: Prisnivå | G6: Summa i prisnivå 2019-06 | H6: Summa i prisnivå 2017-medel | I6: Byggtid (år) | J6: Kapitaliserad investeringskostnad, prisnivå 2017-medel | K6: Totalt inkl. skattefaktor (prisnivå 2017)
A7: JA | B7: T.ex. Trafikverket | C7: Ja/Nej | D7: =IF(C7="Nej",0,1) -> 1 | K7: =IF(C7="Ja",J7*1.3*D7,J7) -> 0
B8: T.ex kommun | C8: Ja/Nej | D8: =IF(C8="Nej",0,1) -> 1 | K8: =IF(C8="Ja",J8*1.3*D8,J8) -> 0
C9: Ja/Nej | D9: 1 | K9: 0
C10: Ja/Nej | D10: 1 | K10: 0
C11: Ja/Nej | D11: 1 | K11: 0
B12: Summa | E12: =SUM(E7:E11) -> 0 | G12: =SUM(G7:G11) -> 0 | H12: =SUM(H7:H11) -> 0 | J12: =SUM(J7:J11) -> 0 | K12: =SUM(K7:K11) -> 0
A14: UA | B14: T.ex. Trafikverket | C14: Ja | D14: =IF(C14="Nej",0,1) -> 1 | K14: =IF(C14="Ja",J14*1.3*D14,J14) -> 0
B15: T.ex kommun | C15: Ja/Nej | D15: =IF(C15="Nej",0,1) -> 1 | K15: =IF(C15="Ja",J15*1.3*D15,J15) -> 0
C16: Ja/Nej | D16: 1 | K16: 0
C17: Ja/Nej | D17: 1 | K17: 0
C18: Ja/Nej | D18: 1 | K18: 0
B19: Summa | E19: =SUM(E14:E18) -> 0 | G19: =SUM(G14:G18) -> 0 | H19: =SUM(H14:H18) -> 0 | J19: =SUM(J14:J18) -> 0 | K19: =SUM(K14:K18) -> 0
A22: UA-JA | E22: =E19-E12 -> 0 | F22: 0 | G22: 0 | H22: 0 | J22: 0 | K22: 0
B24: Till Kalkylsammanställning: | C24: =K22 -> 0 | D24: mnkr (inkl. skattefaktor)
A28: Känslighetsanalys högre investeringskostnad
B30: Om GKI: | C30: =K22*1.3 -> 0 | D30: mnkr (inkl. skattefaktor)
B33: Om FKS (eller motsvarande), fyll i nedanstående:
A34: UA högre investerings-kostnad | B34: =IF(B14>1,B14,"") -> T.ex. Trafikverket | C34: =IF(C14>1,C14,"") -> Ja | D34: =IF(C34="Nej",0,1) -> 1 | F34: =IF(F14>1,F14,"") ->  | I34: =IF(I14>0,I14,"") ->  | K34: =IF(C34="Ja",J34*1.3*D34,J34) -> 0
B35: =IF(B15>1,B15,"") -> T.ex kommun | C35: Ja/Nej | D35: =IF(C35="Nej",0,1) -> 1 | F35: =IF(F15>1,F15,"") ->  | I35: =IF(I15>0,I15,"") ->  | K35: =IF(C35="Ja",J35*1.3*D35,J35) -> 0
C36: Ja/Nej | D36: 1 | K36: 0
C37: Ja/Nej | D37: 1 | K37: 0
C38: Ja/Nej | D38: 1 | K38: 0
B39: Summa | K39: =SUM(K34:K38) -> 0
B41: Om FKS: | C41: =K39-K12 -> 0 | D41: mnkr (inkl. skattefaktor)

Sheet Drift & Underhåll
A1: DRIFT & UNDERHÅLL
B4: =Indata!A14 -> Diskonteringsår | C4: =Indata!B14 -> 2025
C5: =Indata!B13 -> 2017 | D5: =C5+1 -> 2018 | E5: =D5+1 -> 2019 | F5: 2020 | G5: 2021 | H5: 2022 | I5: 2023 | J5: 2024 | K5: 2025 | L5: 2026 | M5: 2027 | N5: 2028 | O5: 2029 | P5: 2030 | Q5: 2031 | R5: 2032 | S5: 2033 | T5: 2034 | U5: 2035 | V5: 2036 | W5: 2037 | X5: 2038 | Y5: 2039 | Z5: 2040 | AA5: 2041 | AB5: 2042 | AC5: 2043 | AD5: 2044 | AE5: 2045 | AF5: 2046 | AG5: 2047 | AH5: 2048 | AI5: 2049 | AJ5: 2050 | AK5: 2051 | AL5: 2052 | AM5: 2053 | AN5: 2054 | AO5: 2055 | AP5: 2056 | AQ5: 2057 | AR5: 2058 | AS5: 2059 | AT5: 2060 | AU5: 2061 | AV5: 2062 | AW5: 2063 | AX5: 2064 | AY5: 2065 | AZ5: 2066 | BA5: 2067 | BB5: 2068 | BC5: 2069 | BD5: 2070 | BE5: 2071 | BF5: 2072 | BG5: 2073 | BH5: 2074 | BI5: 2075 | BJ5: 2076 | BK5: 2077 | BL5: 2078 | BM5: 2079 | BN5: 2080 | BO5: 2081 | BP5: 2082 | BQ5: =BP5+1 -> 2083 | BR5: 2084 | BS5: 2085 | BT5: 2086 | BU5: 2087 | BV5: 2088 | BW5: 2089 | BX5: 2090 | BY5: 2091 | BZ5: 2092 | CA5: 2093 | CB5: 2094 | CC5: 2095 | CD5: 2096 | CE5: 2097 | CF5: 2098 | CG5: 2099 | CH5: 2100 | CI5: 2101 | CJ5: 2102 | CK5: 2103 | CL5: 2104 | CM5: 2105 | CN5: 2106 | CO5: 2107 | CP5: 2108 | CQ5: 2109 | CR5: 2110
A6: JA | B6: Kostnad per år (mnkr)
A7: UA | B7: Kostnad per år (mnkr)
A8: UA-JA | B8: Kostnad per år (mnkr) | C8: =C7-C6 -> 0 | D8: =D7-D6 -> 0 | E8: =E7-E6 -> 0 | F8: =F7-F6 -> 0 | G8: =G7-G6 -> 0 | H8: =H7-H6 -> 0 | I8: =I7-I6 -> 0 | J8: =J7-J6 -> 0 | K8: =K7-K6 -> 0 | L8: 0 | M8: 0 | N8: 0 | O8: 0 | P8: 0 | Q8: 0 | R8: 0 | S8: 0 | T8: 0 | U8: 0 | V8: 0 | W8: 0 | X8: 0 | Y8: 0 | Z8: 0 | AA8: 0 | AB8: 0 | AC8: 0 | AD8: 0 | AE8: 0 | AF8: 0 | AG8: 0 | AH8: 0 | AI8: 0 | AJ8: 0 | AK8: 0 | AL8: 0 | AM8: 0 | AN8: 0 | AO8: 0 | AP8: 0 | AQ8: =AQ7-AQ6 -> 0 | AR8: 0 | AS8: 0 | AT8: 0 | AU8: 0 | AV8: 0 | AW8: 0 | AX8: 0 | AY8: 0 | AZ8: 0 | BA8: 0 | BB8: 0 | BC8: 0 | BD8: 0 | BE8: 0 | BF8: 0 | BG8: 0 | BH8: 0 | BI8: 0 | BJ8: 0 | BK8: 0 | BL8: 0 | BM8: 0 | BN8: 0 | BO8: 0 | BP8: 0 | BQ8: 0 | BR8: 0 | BS8: =BS7-BS6 -> 0 | BT8: 0 | BU8: 0 | BV8: 0 | BW8: 0 | BX8: 0 | BY8: 0 | BZ8: 0 | CA8: 0 | CB8: 0 | CC8: 0 | CD8: 0 | CE8: 0 | CF8: 0 | CG8: 0 | CH8: 0 | CI8: 0 | CJ8: 0 | CK8: 0 | CL8: 0 | CM8: 0 | CN8: 0 | CO8: 0 | CP8: 0 | CQ8: 0 | CR8: 0
A12: DISKONTERING
B13: Diskonteringsränta: | C13: =Indata!B11 -> 0.035
B14: Diskonteringsfaktor | C14: =IF(C5<=$C$4,1,1/($C$13+1)^(C5-$C$4)) -> 1 | D14: =IF(D5<=$C$4,1,1/($C$13+1)^(D5-$C$4)) -> 1 | E14: 1 | F14: 1 | G14: 1 | H14: 1 | I14: 1 | J14: 1 | K14: 1 | L14: 0.9661835749 | M14: 0.9335107004 | N14: 0.9019427057 | O14: 0.8714422277 | P14: 0.8419731669 | Q14: 0.8135006443 | R14: 0.7859909607 | S14: 0.7594115562 | T14: 0.7337309722 | U14: 0.7089188137 | V14: 0.6849457137 | W14: 0.6617832983 | X14: 0.6394041529 | Y14: 0.6177817903 | Z14: 0.5968906186 | AA14: 0.5767059117 | AB14: 0.5572037794 | AC14: 0.5383611396 | AD14: 0.5201556904 | AE14: 0.5025658844 | AF14: 0.4855709028 | AG14: 0.4691506308 | AH14: 0.4532856336 | AI14: 0.4379571339 | AJ14: 0.4231469893 | AK14: 0.4088376708 | AL14: 0.3950122423 | AM14: 0.3816543404 | AN14: 0.368748155 | AO14: 0.3562784106 | AP14: 0.3442303484 | AQ14: 0.3325897086 | AR14: 0.3213427136 | AS14: 0.3104760518 | AT14: 0.2999768617 | AU14: 0.2898327166 | AV14: 0.2800316102 | AW14: 0.2705619422 | AX14: 0.2614125046 | AY14: 0.2525724682 | AZ14: 0.2440313702 | BA14: 0.2357791017 | BB14: 0.2278058953 | BC14: 0.2201023143 | BD14: 0.2126592409 | BE14: 0.2054678656 | BF14: 0.1985196769 | BG14: 0.1918064511 | BH14: 0.1853202426 | BI14: 0.1790533745 | BJ14: 0.1729984295 | BK14: 0.1671482411 | BL14: 0.1614958851 | BM14: 0.1560346716 | BN14: 0.1507581368 | BO14: 0.1456600355 | BP14: =IF(BP5<=$C$4,1,1/($C$13+1)^(BP5-$C$4)) -> 0.1407343339 | BQ14: 0.1359752018 | BR14: 0.1313770066 | BS14: =IF(BS5<=$C$4,1,1/($C$13+1)^(BS5-$C$4)) -> 0.1269343059 | BT14: 0.1226418414 | BU14: 0.1184945328 | BV14: 0.1144874713 | BW14: 0.1106159143 | BX14: 0.1068752795 | BY14: 0.1032611396 | BZ14: 0.09976921701 | CA14: 0.09639537875 | CB14: 0.09313563164 | CC14: 0.08998611753 | CD14: 0.08694310872 | CE14: 0.0840030036 | CF14: 0.08116232232 | CG14: 0.07841770272 | CH14: 0.07576589635 | CI14: 0.07320376459 | CJ14: 0.07072827497 | CK14: 0.06833649755 | CL14: 0.0660256015 | CM14: 0.06379285169 | CN14: 0.0616356055 | CO14: 0.05955130966 | CP14: 0.05753749726 | CQ14: 0.05559178479 | CR14: 0.05371186936
B15: JA | C15: =C6*C$14 -> 0 | D15: 0 | E15: 0 | F15: 0 | G15: 0 | H15: 0 | I15: 0 | J15: 0 | K15: =K6*K$14 -> 0 | L15: 0 | M15: 0 | N15: 0 | O15: 0 | P15: 0 | Q15: 0 | R15: 0 | S15: 0 | T15: 0 | U15: 0 | V15: 0 | W15: 0 | X15: 0 | Y15: 0 | Z15: 0 | AA15: 0 | AB15: 0 | AC15: 0 | AD15: 0 | AE15: 0 | AF15: 0 | AG15: 0 | AH15: 0 | AI15: 0 | AJ15: 0 | AK15: 0 | AL15: 0 | AM15: 0 | AN15: 0 | AO15: 0 | AP15: 0 | AQ15: =AQ6*AQ$14 -> 0 | AR15: 0 | AS15: 0 | AT15: 0 | AU15: 0 | AV15: 0 | AW15: 0 | AX15: 0 | AY15: 0 | AZ15: 0 | BA15: 0 | BB15: 0 | BC15: 0 | BD15: 0 | BE15: 0 | BF15: 0 | BG15: 0 | BH15: 0 | BI15: 0 | BJ15: 0 | BK15: 0 | BL15: 0 | BM15: 0 | BN15: 0 | BO15: 0 | BP15: 0 | BQ15: 0 | BR15: 0 | BS15: =BS6*BS$14 -> 0 | BT15: 0 | BU15: 0 | BV15: 0 | BW15: 0 | BX15: 0 | BY15: 0 | BZ15: 0 | CA15: 0 | CB15: 0 | CC15: 0 | CD15: 0 | CE15: 0 | CF15: 0 | CG15: 0 | CH15: 0 | CI15: 0 | CJ15: 0 | CK15: 0 | CL15: 0 | CM15: 0 | CN15: 0 | CO15: 0 | CP15: 0 | CQ15: 0 | CR15: 0
B16: UA | C16: =C7*C$14 -> 0 | D16: 0 | E16: 0 | F16: 0 | G16: 0 | H16: 0 | I16: 0 | J16: 0 | K16: =K7*K$14 -> 0 | L16: =L7*L$14 -> 0 | M16: 0 | N16: 0 | O16: 0 | P16: 0 | Q16: 0 | R16: 0 | S16: 0 | T16: 0 | U16: 0 | V16: 0 | W16: 0 | X16: 0 | Y16: 0 | Z16: 0 | AA16: 0 | AB16: 0 | AC16: 0 | AD16: 0 | AE16: 0 | AF16: 0 | AG16: 0 | AH16: 0 | AI16: 0 | AJ16: 0 | AK16: 0 | AL16: 0 | AM16: 0 | AN16: 0 | AO16: 0 | AP16: 0 | AQ16: =AQ7*AQ$14 -> 0 | AR16: 0 | AS16: 0 | AT16: 0 | AU16: 0 | AV16: 0 | AW16: 0 | AX16: 0 | AY16: 0 | AZ16: 0 | BA16: 0 | BB16: 0 | BC16: 0 | BD16: 0 | BE16: 0 | BF16: 0 | BG16: 0 | BH16: 0 | BI16: 0 | BJ16: 0 | BK16: 0 | BL16: 0 | BM16: 0 | BN16: 0 | BO16: 0 | BP16: 0 | BQ16: 0 | BR16: 0 | BS16: =BS7*BS$14 -> 0 | BT16: 0 | BU16: 0 | BV16: 0 | BW16: 0 | BX16: 0 | BY16: 0 | BZ16: 0 | CA16: 0 | CB16: 0 | CC16: 0 | CD16: 0 | CE16: 0 | CF16: 0 | CG16: 0 | CH16: 0 | CI16: 0 | CJ16: 0 | CK16: 0 | CL16: 0 | CM16: 0 | CN16: 0 | CO16: 0 | CP16: 0 | CQ16: 0 | CR16: 0
B17: UA-JA | C17: =C8*C$14 -> 0 | D17: 0 | E17: 0 | F17: 0 | G17: 0 | H17: 0 | I17: 0 | J17: 0 | K17: =K8*K$14 -> 0 | L17: 0 | M17: 0 | N17: 0 | O17: 0 | P17: 0 | Q17: 0 | R17: 0 | S17: 0 | T17: 0 | U17: 0 | V17: 0 | W17: 0 | X17: 0 | Y17: 0 | Z17: 0 | AA17: 0 | AB17: 0 | AC17: 0 | AD17: 0 | AE17: 0 | AF17: 0 | AG17: 0 | AH17: 0 | AI17: 0 | AJ17: 0 | AK17: 0 | AL17: 0 | AM17: 0 | AN17: 0 | AO17: 0 | AP17: 0 | AQ17: =AQ8*AQ$14 -> 0 | AR17: 0 | AS17: 0 | AT17: 0 | AU17: 0 | AV17: 0 | AW17: 0 | AX17: 0 | AY17: 0 | AZ17: 0 | BA17: 0 | BB17: 0 | BC17: 0 | BD17: 0 | BE17: 0 | BF17: 0 | BG17: 0 | BH17: 0 | BI17: 0 | BJ17: 0 | BK17: 0 | BL17: 0 | BM17: 0 | BN17: 0 | BO17: 0 | BP17: 0 | BQ17: 0 | BR17: 0 | BS17: =BS8*BS$14 -> 0 | BT17: 0 | BU17: 0 | BV17: 0 | BW17: 0 | BX17: 0 | BY17: 0 | BZ17: 0 | CA17: 0 | CB17: 0 | CC17: 0 | CD17: 0 | CE17: 0 | CF17: 0 | CG17: 0 | CH17: 0 | CI17: 0 | CJ17: 0 | CK17: 0 | CL17: 0 | CM17: 0 | CN17: 0 | CO17: 0 | CP17: 0 | CQ17: 0 | CR17: 0
B20: Summor, kalkylperioden
A21: JA | B21: =SUMIFS(15:15,$5:$5,">="&$C$4,$5:$5,"<"&$C$4+Indata!$B$12) -> 0
A22: UA | B22: =SUMIFS(16:16,$5:$5,">="&$C$4,$5:$5,"<"&$C$4+Indata!$B$12) -> 0
A23: UA-JA | B23: =SUMIFS(17:17,$5:$5,">="&$C$4,$5:$5,"<"&$C$4+Indata!$B$12) -> 0
B27: Till Kalkylsammanställning
B28: =B23 -> 0

Sheet Prognoser
A1: PROGNOSER (PERSON, GODS & FARTYG)
A4: Personprognos | B4: Finns någon persontrafik i hamnen?
B5: - Nej. Fyll i "Ej relevant" i cell H9, gå vidare och ange godsvolymer
B6: - Ja. Ta fram statistik avseende basåret (år 2017) samt ansätt därefter, tillsammans med hamnen och Trafikverket, en prognos för år prognosåret (år 2040). Därefter, ange volymerna nedan
E8: År
A9: Antal resenärer basåret: | B9: 0 | C9: passagerare | E9: =Indata!B13 -> 2017 | G9: BAS-prognos: | H9: Ej relevant
A10: Antal resenärer öppningsåret: | B10: =B9*B20^(E10-E9) -> 0 | C10: passagerare | E10: =Indata!B16 -> 2025 | G10: Avvikelse från prognos: | H10: Nej
A11: Antal resenärer prognosår 1: | B11: 0 | C11: passagerare | E11: =Indata!B17 -> 2040
A12: Antal resenärer prognosår 2: | B12: =B11 -> 0 | C12: passagerare | E12: =Indata!B18 -> 2065
A13: Antal resenärer slutåret: | B13: =B11 -> 0 | C13: passagerare | E13: =Indata!B19 -> 2084
A15: =CONCATENATE("Kvot ",E11,"/",E9,":") -> Kvot 2040/2017: | B15: =IF(AND(B11=0,B9=0),1,B11/B9) -> 1
A16: =CONCATENATE("Årlig förändring passagerarvolymer, ",E9,"-",E11,":") -> Årlig förändring passagerarvolymer, 2017-2040: | B16: =B15^(1/(E11-E9)) -> 1 | C16: =IF(B16=0,0,B16-1) -> 0
A17: =CONCATENATE("Årlig förändring passagerarvolymer, ",E11+1,"-",E12,":") -> Årlig förändring passagerarvolymer, 2041-2065: | B17: =IF(B12>B11,(B12/B11)^(1/(E12-E11)),1) -> 1 | C17: =IF(B17=0,0,B17-1) -> 0
A18: =CONCATENATE("Årlig förändring passagerarvolymer, ",E12+1,"-",E13,":") -> Årlig förändring passagerarvolymer, 2066-2084: | B18: =IF(B13>B12,(B13/B12)^(1/(E13-E12)),1) -> 1 | C18: =B18-1 -> 0
A21: Godsprognos | B21: Omfattas hamnen/farleden av Trafikverkets Basprognos?
B22: - Ja, ange godsvolymerna direkt nedan, samt namnet på Basprognosen
B23: - Nej. Ta fram statistik avseende basåret samt ansätt därefter, tillsammans med hamnen och Trafikverket, en prognos för år prognosår 1. Därefter, ange volymerna nedan
E26: År
A27: Godsvolymer basåret: | C27: ton | E27: =Indata!B13 -> 2017 | G27: BAS-prognos: | H27: Basprognos 2020-06-15
A28: Godsvolymer öppningsåret: | B28: =IF(B27=0,0,B27*B34^(E28-E27)) -> 0 | C28: ton | E28: =Indata!B16 -> 2025 | G28: Avvikelse från prognos: | H28: Nej
A29: Godsvolymer prognosår 1: | C29: ton | E29: =Indata!B17 -> 2040
A30: Godsvolymer prognosår 2: | B30: =B29 -> 0 | C30: ton | E30: =Indata!B18 -> 2065
A31: Godsvolymer slutåret: | B31: =B29 -> 0 | C31: ton | E31: =Indata!B19 -> 2084
A33: =CONCATENATE("Kvot ",E29,"/",E27,":") -> Kvot 2040/2017: | B33: =IF(AND(B29=0,B27=0),1,B29/B27) -> 1 | G33: KA 0 % | H33: KA 50 % högre
A34: =CONCATENATE("Årlig förändring godsvolymer, ",E27,"-",E29,":") -> Årlig förändring godsvolymer, 2017-2040: | B34: =B33^(1/(E29-E27)) -> 1 | C34: =IF(B34=0,0,B34-1) -> 0 | D34: per år | G34: ='Förvaltningsflik Trafikverket'!O6 -> 1 | H34: =C34*'Förvaltningsflik Trafikverket'!P6 -> 0 | I34: =H34+1 -> 1
A35: =CONCATENATE("Årlig förändring godsvolymer, ",E29+1,"-",E30,":") -> Årlig förändring godsvolymer, 2041-2065: | B35: =IF(B30>B29,(B30/B29)^(1/(E30-E29)),1) -> 1 | C35: =B35-1 -> 0 | D35: per år | G35: ='Förvaltningsflik Trafikverket'!O7 -> 1 | H35: =C35*'Förvaltningsflik Trafikverket'!P7 -> 0 | I35: =H35+1 -> 1
A36: =CONCATENATE("Årlig förändring godsvolymer, ",E30+1,"-",E31,":") -> Årlig förändring godsvolymer, 2066-2084: | B36: =IF(B31>B30,(B31/B30)^(1/(E31-E30)),1) -> 1 | C36: 0 | D36: per år | G36: ='Förvaltningsflik Trafikverket'!O8 -> 1 | H36: =C36*'Förvaltningsflik Trafikverket'!P8 -> 0 | I36: 1
A38: Ovanstående totalvolymer behöver brytas ned i olika fartygskategorier. Detta görs nedan genom att fördela totalvolymerna på de olika fartygskategorierna.
A39: Verktyget beräknar godsvolymer för respektive år utifrån de generella tillväxttalen, men dessa behöver ersättas om olika godprognoser gäller för olika fartygskategorier
G41: Förändring i godsvolymer per år
B42: =E27 -> 2017 | C42: =E28 -> 2025 | D42: =E29 -> 2040 | E42: =E30 -> 2065 | F42: =E31 -> 2084 | G42: =CONCATENATE(B42," - ",C42) -> 2017 - 2025 | H42: =CONCATENATE(C42," - ",D42) -> 2025 - 2040 | I42: 2040 - 2065 | J42: 2065 - 2084 | L42: Stödberäkningar KA 50 % högre godstillväxt
A43: Container | C43: =B43*($B$34^($E$28-$E$27)) -> 0 | D43: =B43*$B$33 -> 0 | E43: =D43*($B$35^($E$30-$E$29)) -> 0 | F43: =E43*($B$36^($E$31-$E$30)) -> 0 | G43: =IFERROR((C43/B43)^(1/(C$42-B$42)),"-") -> - | H43: =IFERROR((D43/C43)^(1/(D$42-C$42)),"-") -> - | I43: - | J43: - | L43: =IFERROR(IF(G43=0,0,G43-1),0) -> 0 | M43: =IF(H43="-",0,H43-1) -> 0 | N43: =IF(I43="-",0,I43-1) -> 0 | O43: =IF(J43="-",0,J43-1) -> 0 | Q43: =L43*'Förvaltningsflik Trafikverket'!$P$6 -> 0 | R43: =M43*'Förvaltningsflik Trafikverket'!$P$6 -> 0 | S43: =N43*'Förvaltningsflik Trafikverket'!$P$7 -> 0 | T43: =O43*'Förvaltningsflik Trafikverket'!$P$8 -> 0 | V43: =Q43+1 -> 1 | W43: =R43+1 -> 1 | X43: =S43+1 -> 1 | Y43: =T43+1 -> 1
A44: Dry_Bulk | C44: =B44*($B$34^($E$28-$E$27)) -> 0 | D44: =B44*$B$33 -> 0 | E44: =D44*($B$35^($E$30-$E$29)) -> 0 | F44: =E44*($B$36^($E$31-$E$30)) -> 0 | G44: - | H44: - | I44: - | J44: - | L44: =IFERROR(IF(G44=0,0,G44-1),0) -> 0 | M44: =IF(H44="-",0,H44-1) -> 0 | N44: =IF(I44="-",0,I44-1) -> 0 | O44: =IF(J44="-",0,J44-1) -> 0 | Q44: =L44*'Förvaltningsflik Trafikverket'!$P$6 -> 0 | R44: =M44*'Förvaltningsflik Trafikverket'!$P$6 -> 0 | S44: =N44*'Förvaltningsflik Trafikverket'!$P$7 -> 0 | T44: =O44*'Förvaltningsflik Trafikverket'!$P$8 -> 0 | V44: =Q44+1 -> 1 | W44: =R44+1 -> 1 | X44: =S44+1 -> 1 | Y44: =T44+1 -> 1
A45: Liquid_Bulk | C45: 0 | D45: 0 | E45: 0 | F45: 0 | G45: - | H45: - | I45: - | J45: - | L45: 0 | M45: 0 | N45: 0 | O45: 0 | Q45: =L45*'Förvaltningsflik Trafikverket'!$P$6 -> 0 | R45: =M45*'Förvaltningsflik Trafikverket'!$P$6 -> 0 | S45: =N45*'Förvaltningsflik Trafikverket'!$P$7 -> 0 | T45: =O45*'Förvaltningsflik Trafikverket'!$P$8 -> 0 | V45: 1 | W45: 1 | X45: 1 | Y45: 1
A46: General_Cargo | C46: 0 | D46: 0 | E46: 0 | F46: 0 | G46: - | H46: - | I46: - | J46: - | L46: 0 | M46: 0 | N46: 0 | O46: 0 | Q46: =L46*'Förvaltningsflik Trafikverket'!$P$6 -> 0 | R46: =M46*'Förvaltningsflik Trafikverket'!$P$6 -> 0 | S46: =N46*'Förvaltningsflik Trafikverket'!$P$7 -> 0 | T46: =O46*'Förvaltningsflik Trafikverket'!$P$8 -> 0 | V46: 1 | W46: 1 | X46: 1 | Y46: 1
A47: RoRo | C47: 0 | D47: 0 | E47: 0 | F47: 0 | G47: - | H47: - | I47: - | J47: - | L47: 0 | M47: 0 | N47: 0 | O47: 0 | Q47: =L47*'Förvaltningsflik Trafikverket'!$P$6 -> 0 | R47: =M47*'Förvaltningsflik Trafikverket'!$P$6 -> 0 | S47: =N47*'Förvaltningsflik Trafikverket'!$P$7 -> 0 | T47: =O47*'Förvaltningsflik Trafikverket'!$P$8 -> 0 | V47: 1 | W47: 1 | X47: 1 | Y47: 1
A48: Road_Ferry | C48: 0 | D48: 0 | E48: 0 | F48: 0 | G48: - | H48: - | I48: - | J48: - | L48: 0 | M48: 0 | N48: 0 | O48: 0 | Q48: =L48*'Förvaltningsflik Trafikverket'!$P$6 -> 0 | R48: =M48*'Förvaltningsflik Trafikverket'!$P$6 -> 0 | S48: =N48*'Förvaltningsflik Trafikverket'!$P$7 -> 0 | T48: =O48*'Förvaltningsflik Trafikverket'!$P$8 -> 0 | V48: 1 | W48: 1 | X48: 1 | Y48: 1
A49: Rail_Ferry | C49: 0 | D49: 0 | E49: 0 | F49: 0 | G49: - | H49: - | I49: - | J49: - | L49: 0 | M49: 0 | N49: 0 | O49: 0 | Q49: =L49*'Förvaltningsflik Trafikverket'!$P$6 -> 0 | R49: =M49*'Förvaltningsflik Trafikverket'!$P$6 -> 0 | S49: =N49*'Förvaltningsflik Trafikverket'!$P$7 -> 0 | T49: =O49*'Förvaltningsflik Trafikverket'!$P$8 -> 0 | V49: 1 | W49: 1 | X49: 1 | Y49: 1
A50: Kontroll: | B50: =SUM(B43:B49) -> 0 | C50: =SUM(C43:C49) -> 0 | D50: =SUM(D43:D49) -> 0 | E50: =SUM(E43:E49) -> 0 | F50: =SUM(F43:F49) -> 0
A52: Fartygsprognos | C52: =B42 -> 2017 | Q52: =C42 -> 2025 | AD52: =D42 -> 2040 | AQ52: =E42 -> 2065 | BD52: =F42 -> 2084
A53: JA | N53: Lotstid (h) | AA53: Lotstid (h) | AN53: Lotstid (h) | BA53: Lotstid (h) | BN53: Lotstid (h)
A54: Fartygstyp | B54: Ev. kommentar | C54: Fartygs-storlek (Dwt) | D54: Last-kapacitet (ton) | E54: Antal anlöp JA (per år) | F54: Destination | G54: Avstånd (sjömil) | H54: Avstånd (km) | I54: Operativ hastighet (km/h) | J54: Transport-tid (h) | K54: Fyllnads-grad | L54: Gods-volymer (ton på år) | M54: Inrikestrafik = 1 Utrikestrafik = 0,5 | N54: Lotstids (h) Avgångs-hamn | O54: Lotstid (h) Destinations-hamn | Q54: Fartygs-storlek (Dwt) | R54: Last-kapacitet (ton) | S54: Gods-volymer (ton på år) | T54: Fyllnads-grad | U54: Antal anlöp JA | V54: Destination | W54: Avstånd (km) | X54: Operativ hastighet (km/h) | Y54: Transport-tid (h) | Z54: Inrikestrafik = 1 Utrikestrafik = 0,5 | AA54: Lotstids (h) Avgångs-hamn | AB54: Lotstid (h) Destinations-hamn | AD54: Fartygs-storlek (Dwt) | AE54: Last-kapacitet (ton) | AF54: Gods-volymer (ton på år) | AG54: Fyllnads-grad | AH54: Antal anlöp JA | AI54: Destination | AJ54: Avstånd (km) | AK54: Operativ hastighet (km/h) | AL54: Transport-tid (h) | AM54: Inrikestrafik = 1 Utrikestrafik = 0,5 | AN54: Lotstids (h) Avgångs-hamn | AO54: Lotstid (h) Destinations-hamn | AQ54: Fartygs-storlek (Dwt) | AR54: Last-kapacitet (ton) | AS54: Gods-volymer (ton på år) | AT54: Fyllnads-grad | AU54: Antal anlöp JA | AV54: Destination | AW54: Avstånd (km) | AX54: Operativ hastighet (km/h) | AY54: Transport-tid (h) | AZ54: Inrikestrafik = 1 Utrikestrafik = 0,5 | BA54: Lotstids (h) Avgångs-hamn | BB54: Lotstid (h) Destinations-hamn | BD54: Fartygs-storlek (Dwt) | BE54: Last-kapacitet (ton) | BF54: Gods-volymer (ton på år) | BG54: Fyllnads-grad | BH54: Antal anlöp JA | BI54: Destination | BJ54: Avstånd (km) | BK54: Operativ hastighet (km/h) | BL54: Transport-tid (h) | BM54: Inrikestrafik = 1 Utrikestrafik = 0,5 | BN54: Lotstids (h) Avgångs-hamn | BO54: Lotstid (h) Destinations-hamn
D55: =IFERROR(INDEX(Indata!$B$71:$B$77,MATCH(A55,Indata!$A$71:$A$77,0))*C55,"") ->  | H55: =IF(G55>1,G55*1.852,"") ->  | I55: =IFERROR((INDIRECT("Kalkyldata!F"&MATCH(A55,Kalkyldata!A:A,0))*LN($C55)+INDIRECT("Kalkyldata!$G"&MATCH(A55,Kalkyldata!A:A,0)))*1.825,"") ->  | J55: =IFERROR(H55/I55,"") ->  | K55: =IFERROR(INDEX($B$43:$B$49,MATCH(A55,$A$43:$A$49,0))/SUMPRODUCT(--(JA_Fartygstyp=A55),lastkapacitet_JA_nuläge,antal_anlöp_nuläge_JA),"") ->  | L55: =IF(C55>1,D55*E55*K55,"") ->  | Q55: =IF(C55>1,C55,"") ->  | R55: =IF(D55>1,D55,"") ->  | S55: =IFERROR(L55*INDEX($G$43:$G$49,MATCH($A55,$A$43:$A$49,0)),"") ->  | T55: =IF(K55>0.001,K55,"") ->  | U55: =IFERROR(S55/(R55*T55),"") ->  | V55: =IF(F55>1,F55,"") ->  | W55: =IF(H55>1,H55,"") ->  | X55: =IF(I55>1,I55,"") ->  | Y55: =IF(J55>1,J55,"") ->  | Z55: =IF(M55>0.1,M55,"") ->  | AA55: =IF(N55>0.1,N55,"") ->  | AB55: =IF(Z55=1,O55,"") ->  | AD55: =IF(Q55>1,Q55,"") ->  | AE55: =IF(R55>1,R55,"") ->  | AF55: =IFERROR(L55*INDEX($H$43:$H$49,MATCH($A55,$A$43:$A$49,0)),"") ->  | AG55: =IF(T55>0.001,T55,"") ->  | AH55: =IFERROR(AF55/(AE55*AG55),"") ->  | AI55: =IF(ISBLANK(V55),"",V55) ->  | AJ55: =IF(W55>1,W55,"") ->  | AK55: =IF(X55>1,X55,"") ->  | AL55: =IF(Y55>1,Y55,"") ->  | AM55: =IF(Z55>0.1,Z55,"") ->  | AN55: =IF(AA55>0.1,AA55,"") ->  | AO55: =IF(AB55>0.1,AB55,"") ->  | AQ55: =IF(AD55>1,AD55,"") ->  | AR55: =IF(AE55>1,AE55,"") ->  | AS55: =IFERROR(L55*INDEX($I$43:$I$49,MATCH($A55,$A$43:$A$49,0)),"") ->  | AT55: =IF(AG55>0.001,AG55,"") ->  | AU55: =IFERROR(AS55/(AR55*AT55),"") ->  | AV55: =IF(ISBLANK(AI55),"",AI55) ->  | AW55: =IF(AJ55>1,AJ55,"") ->  | AX55: =IF(AK55>1,AK55,"") ->  | AY55: =IF(AL55>1,AL55,"") ->  | AZ55: =IF(AM55>0.1,AM55,"") ->  | BA55: =IF(AN55>0.1,AN55,"") ->  | BB55: =IF(AO55>0.1,AO55,"") ->  | BD55: =IF(AQ55>1,AQ55,"") ->  | BE55: =IF(AR55>1,AR55,"") ->  | BF55: =IFERROR(AS55*INDEX($J$43:$J$49,MATCH($A55,$A$43:$A$49,0)),"") ->  | BG55: =IF(AT55>0.001,AT55,"") ->  | BH55: =IFERROR(BF55/(BE55*BG55),"") ->  | BI55: =IF(ISBLANK(AV55),"",AV55) ->  | BJ55: =IF(AW55>1,AW55,"") ->  | BK55: =IF(AX55>1,AX55,"") ->  | BL55: =IF(AY55>1,AY55,"") ->  | BM55: =IF(AZ55>0.1,AZ55,"") ->  | BN55: =IF(BA55>0.1,BA55,"") ->  | BO55: =IF(BB55>0.1,BB55,"") -> 
D56: =IFERROR(INDEX(Indata!$B$71:$B$77,MATCH(A56,Indata!$A$71:$A$77,0))*C56,"") ->  | H56: =IF(G56>1,G56*1.852,"") ->  | I56: =IFERROR((INDIRECT("Kalkyldata!F"&MATCH(A56,Kalkyldata!A:A,0))*LN($C56)+INDIRECT("Kalkyldata!$G"&MATCH(A56,Kalkyldata!A:A,0)))*1.825,"") ->  | J56: =IFERROR(H56/I56,"") ->  | K56: =IFERROR(INDEX($B$43:$B$49,MATCH(A56,$A$43:$A$49,0))/SUMPRODUCT(--(JA_Fartygstyp=A56),lastkapacitet_JA_nuläge,antal_anlöp_nuläge_JA),"") ->  | L56: =IF(C56>1,D56*E56*K56,"") ->  | Q56: =IF(C56>1,C56,"") ->  | R56: =IF(D56>1,D56,"") ->  | T56: =IF(K56>0.001,K56,"") ->  | U56: =IFERROR(S56/(R56*T56),"") ->  | AH56: =IFERROR(AF56/(AE56*AG56),"") ->  | AT56: =IF(AG56>0.001,AG56,"") ->  | AU56: =IFERROR(AS56/(AR56*AT56),"") ->  | BG56: =IF(AT56>0.001,AT56,"") ->  | BH56: =IFERROR(BF56/(BE56*BG56),"") ->  | BM56: =IF(AZ56>0.1,AZ56,"") ->  | BN56: =IF(BA56>0.1,BA56,"") ->  | BO56: =IF(BB56>0.1,BB56,"") -> 
D57: =IFERROR(INDEX(Indata!$B$71:$B$77,MATCH(A57,Indata!$A$71:$A$77,0))*C57,"") ->  | I57: =IFERROR((INDIRECT("Kalkyldata!F"&MATCH(A57,Kalkyldata!A:A,0))*LN($C57)+INDIRECT("Kalkyldata!$G"&MATCH(A57,Kalkyldata!A:A,0)))*1.825,"") ->  | K57: =IFERROR(INDEX($B$43:$B$49,MATCH(A57,$A$43:$A$49,0))/SUMPRODUCT(--(JA_Fartygstyp=A57),lastkapacitet_JA_nuläge,antal_anlöp_nuläge_JA),"") ->  | L57: =IF(C57>1,D57*E57*K57,"") -> 
D58: =IFERROR(INDEX(Indata!$B$71:$B$77,MATCH(A58,Indata!$A$71:$A$77,0))*C58,"") ->  | I58: =IFERROR((INDIRECT("Kalkyldata!F"&MATCH(A58,Kalkyldata!A:A,0))*LN($C58)+INDIRECT("Kalkyldata!$G"&MATCH(A58,Kalkyldata!A:A,0)))*1.825,"") ->  | K58: =IFERROR(INDEX($B$43:$B$49,MATCH(A58,$A$43:$A$49,0))/SUMPRODUCT(--(JA_Fartygstyp=A58),lastkapacitet_JA_nuläge,antal_anlöp_nuläge_JA),"") -> 
D59: =IFERROR(INDEX(Indata!$B$71:$B$77,MATCH(A59,Indata!$A$71:$A$77,0))*C59,"") ->  | I59: =IFERROR((INDIRECT("Kalkyldata!F"&MATCH(A59,Kalkyldata!A:A,0))*LN($C59)+INDIRECT("Kalkyldata!$G"&MATCH(A59,Kalkyldata!A:A,0)))*1.825,"") ->  | K59: =IFERROR(INDEX($B$43:$B$49,MATCH(A59,$A$43:$A$49,0))/SUMPRODUCT(--(JA_Fartygstyp=A59),lastkapacitet_JA_nuläge,antal_anlöp_nuläge_JA),"") -> 
D60: =IFERROR(INDEX(Indata!$B$71:$B$77,MATCH(A60,Indata!$A$71:$A$77,0))*C60,"") ->  | I60: =IFERROR((INDIRECT("Kalkyldata!F"&MATCH(A60,Kalkyldata!A:A,0))*LN($C60)+INDIRECT("Kalkyldata!$G"&MATCH(A60,Kalkyldata!A:A,0)))*1.825,"") ->  | K60: =IFERROR(INDEX($B$43:$B$49,MATCH(A60,$A$43:$A$49,0))/SUMPRODUCT(--(JA_Fartygstyp=A60),lastkapacitet_JA_nuläge,antal_anlöp_nuläge_JA),"") -> 
D61: =IFERROR(INDEX(Indata!$B$71:$B$77,MATCH(A61,Indata!$A$71:$A$77,0))*C61,"") ->  | I61: =IFERROR((INDIRECT("Kalkyldata!F"&MATCH(A61,Kalkyldata!A:A,0))*LN($C61)+INDIRECT("Kalkyldata!$G"&MATCH(A61,Kalkyldata!A:A,0)))*1.825,"") ->  | K61: =IFERROR(INDEX($B$43:$B$49,MATCH(A61,$A$43:$A$49,0))/SUMPRODUCT(--(JA_Fartygstyp=A61),lastkapacitet_JA_nuläge,antal_anlöp_nuläge_JA),"") -> 
D62: =IFERROR(INDEX(Indata!$B$71:$B$77,MATCH(A62,Indata!$A$71:$A$77,0))*C62,"") ->  | I62: =IFERROR((INDIRECT("Kalkyldata!F"&MATCH(A62,Kalkyldata!A:A,0))*LN($C62)+INDIRECT("Kalkyldata!$G"&MATCH(A62,Kalkyldata!A:A,0)))*1.825,"") ->  | K62: =IFERROR(INDEX($B$43:$B$49,MATCH(A62,$A$43:$A$49,0))/SUMPRODUCT(--(JA_Fartygstyp=A62),lastkapacitet_JA_nuläge,antal_anlöp_nuläge_JA),"") -> 
D63: =IFERROR(INDEX(Indata!$B$71:$B$77,MATCH(A63,Indata!$A$71:$A$77,0))*C63,"") ->  | I63: =IFERROR((INDIRECT("Kalkyldata!F"&MATCH(A63,Kalkyldata!A:A,0))*LN($C63)+INDIRECT("Kalkyldata!$G"&MATCH(A63,Kalkyldata!A:A,0)))*1.825,"") ->  | K63: =IFERROR(INDEX($B$43:$B$49,MATCH(A63,$A$43:$A$49,0))/SUMPRODUCT(--(JA_Fartygstyp=A63),lastkapacitet_JA_nuläge,antal_anlöp_nuläge_JA),"") -> 
D64: =IFERROR(INDEX(Indata!$B$71:$B$77,MATCH(A64,Indata!$A$71:$A$77,0))*C64,"") ->  | I64: =IFERROR((INDIRECT("Kalkyldata!F"&MATCH(A64,Kalkyldata!A:A,0))*LN($C64)+INDIRECT("Kalkyldata!$G"&MATCH(A64,Kalkyldata!A:A,0)))*1.825,"") ->  | K64: =IFERROR(INDEX($B$43:$B$49,MATCH(A64,$A$43:$A$49,0))/SUMPRODUCT(--(JA_Fartygstyp=A64),lastkapacitet_JA_nuläge,antal_anlöp_nuläge_JA),"") -> 
D65: =IFERROR(INDEX(Indata!$B$71:$B$77,MATCH(A65,Indata!$A$71:$A$77,0))*C65,"") ->  | I65: =IFERROR((INDIRECT("Kalkyldata!F"&MATCH(A65,Kalkyldata!A:A,0))*LN($C65)+INDIRECT("Kalkyldata!$G"&MATCH(A65,Kalkyldata!A:A,0)))*1.825,"") ->  | K65: =IFERROR(INDEX($B$43:$B$49,MATCH(A65,$A$43:$A$49,0))/SUMPRODUCT(--(JA_Fartygstyp=A65),lastkapacitet_JA_nuläge,antal_anlöp_nuläge_JA),"") -> 
D66: =IFERROR(INDEX(Indata!$B$71:$B$77,MATCH(A66,Indata!$A$71:$A$77,0))*C66,"") ->  | I66: =IFERROR((INDIRECT("Kalkyldata!F"&MATCH(A66,Kalkyldata!A:A,0))*LN($C66)+INDIRECT("Kalkyldata!$G"&MATCH(A66,Kalkyldata!A:A,0)))*1.825,"") ->  | K66: =IFERROR(INDEX($B$43:$B$49,MATCH(A66,$A$43:$A$49,0))/SUMPRODUCT(--(JA_Fartygstyp=A66),lastkapacitet_JA_nuläge,antal_anlöp_nuläge_JA),"") -> 
D67: =IFERROR(INDEX(Indata!$B$71:$B$77,MATCH(A67,Indata!$A$71:$A$77,0))*C67,"") ->  | I67: =IFERROR((INDIRECT("Kalkyldata!F"&MATCH(A67,Kalkyldata!A:A,0))*LN($C67)+INDIRECT("Kalkyldata!$G"&MATCH(A67,Kalkyldata!A:A,0)))*1.825,"") ->  | K67: =IFERROR(INDEX($B$43:$B$49,MATCH(A67,$A$43:$A$49,0))/SUMPRODUCT(--(JA_Fartygstyp=A67),lastkapacitet_JA_nuläge,antal_anlöp_nuläge_JA),"") -> 
D68: =IFERROR(INDEX(Indata!$B$71:$B$77,MATCH(A68,Indata!$A$71:$A$77,0))*C68,"") ->  | I68: =IFERROR((INDIRECT("Kalkyldata!F"&MATCH(A68,Kalkyldata!A:A,0))*LN($C68)+INDIRECT("Kalkyldata!$G"&MATCH(A68,Kalkyldata!A:A,0)))*1.825,"") ->  | K68: =IFERROR(INDEX($B$43:$B$49,MATCH(A68,$A$43:$A$49,0))/SUMPRODUCT(--(JA_Fartygstyp=A68),lastkapacitet_JA_nuläge,antal_anlöp_nuläge_JA),"") -> 
D69: =IFERROR(INDEX(Indata!$B$71:$B$77,MATCH(A69,Indata!$A$71:$A$77,0))*C69,"") ->  | I69: =IFERROR((INDIRECT("Kalkyldata!F"&MATCH(A69,Kalkyldata!A:A,0))*LN($C69)+INDIRECT("Kalkyldata!$G"&MATCH(A69,Kalkyldata!A:A,0)))*1.825,"") ->  | K69: =IFERROR(INDEX($B$43:$B$49,MATCH(A69,$A$43:$A$49,0))/SUMPRODUCT(--(JA_Fartygstyp=A69),lastkapacitet_JA_nuläge,antal_anlöp_nuläge_JA),"") -> 
D70: =IFERROR(INDEX(Indata!$B$71:$B$77,MATCH(A70,Indata!$A$71:$A$77,0))*C70,"") ->  | I70: =IFERROR((INDIRECT("Kalkyldata!F"&MATCH(A70,Kalkyldata!A:A,0))*LN($C70)+INDIRECT("Kalkyldata!$G"&MATCH(A70,Kalkyldata!A:A,0)))*1.825,"") ->  | K70: =IFERROR(INDEX($B$43:$B$49,MATCH(A70,$A$43:$A$49,0))/SUMPRODUCT(--(JA_Fartygstyp=A70),lastkapacitet_JA_nuläge,antal_anlöp_nuläge_JA),"") -> 
D71: =IFERROR(INDEX(Indata!$B$71:$B$77,MATCH(A71,Indata!$A$71:$A$77,0))*C71,"") ->  | I71: =IFERROR((INDIRECT("Kalkyldata!F"&MATCH(A71,Kalkyldata!A:A,0))*LN($C71)+INDIRECT("Kalkyldata!$G"&MATCH(A71,Kalkyldata!A:A,0)))*1.825,"") ->  | K71: =IFERROR(INDEX($B$43:$B$49,MATCH(A71,$A$43:$A$49,0))/SUMPRODUCT(--(JA_Fartygstyp=A71),lastkapacitet_JA_nuläge,antal_anlöp_nuläge_JA),"") -> 
D72: =IFERROR(INDEX(Indata!$B$71:$B$77,MATCH(A72,Indata!$A$71:$A$77,0))*C72,"") ->  | I72: =IFERROR((INDIRECT("Kalkyldata!F"&MATCH(A72,Kalkyldata!A:A,0))*LN($C72)+INDIRECT("Kalkyldata!$G"&MATCH(A72,Kalkyldata!A:A,0)))*1.825,"") ->  | K72: =IFERROR(INDEX($B$43:$B$49,MATCH(A72,$A$43:$A$49,0))/SUMPRODUCT(--(JA_Fartygstyp=A72),lastkapacitet_JA_nuläge,antal_anlöp_nuläge_JA),"") -> 
D73: =IFERROR(INDEX(Indata!$B$71:$B$77,MATCH(A73,Indata!$A$71:$A$77,0))*C73,"") ->  | I73: =IFERROR((INDIRECT("Kalkyldata!F"&MATCH(A73,Kalkyldata!A:A,0))*LN($C73)+INDIRECT("Kalkyldata!$G"&MATCH(A73,Kalkyldata!A:A,0)))*1.825,"") ->  | K73: =IFERROR(INDEX($B$43:$B$49,MATCH(A73,$A$43:$A$49,0))/SUMPRODUCT(--(JA_Fartygstyp=A73),lastkapacitet_JA_nuläge,antal_anlöp_nuläge_JA),"") -> 
D74: =IFERROR(INDEX(Indata!$B$71:$B$77,MATCH(A74,Indata!$A$71:$A$77,0))*C74,"") ->  | I74: =IFERROR((INDIRECT("Kalkyldata!F"&MATCH(A74,Kalkyldata!A:A,0))*LN($C74)+INDIRECT("Kalkyldata!$G"&MATCH(A74,Kalkyldata!A:A,0)))*1.825,"") ->  | K74: =IFERROR(INDEX($B$43:$B$49,MATCH(A74,$A$43:$A$49,0))/SUMPRODUCT(--(JA_Fartygstyp=A74),lastkapacitet_JA_nuläge,antal_anlöp_nuläge_JA),"") -> 
D75: =IFERROR(INDEX(Indata!$B$71:$B$77,MATCH(A75,Indata!$A$71:$A$77,0))*C75,"") ->  | I75: =IFERROR((INDIRECT("Kalkyldata!F"&MATCH(A75,Kalkyldata!A:A,0))*LN($C75)+INDIRECT("Kalkyldata!$G"&MATCH(A75,Kalkyldata!A:A,0)))*1.825,"") ->  | K75: =IFERROR(INDEX($B$43:$B$49,MATCH(A75,$A$43:$A$49,0))/SUMPRODUCT(--(JA_Fartygstyp=A75),lastkapacitet_JA_nuläge,antal_anlöp_nuläge_JA),"") -> 
D76: =IFERROR(INDEX(Indata!$B$71:$B$77,MATCH(A76,Indata!$A$71:$A$77,0))*C76,"") ->  | I76: =IFERROR((INDIRECT("Kalkyldata!F"&MATCH(A76,Kalkyldata!A:A,0))*LN($C76)+INDIRECT("Kalkyldata!$G"&MATCH(A76,Kalkyldata!A:A,0)))*1.825,"") ->  | K76: =IFERROR(INDEX($B$43:$B$49,MATCH(A76,$A$43:$A$49,0))/SUMPRODUCT(--(JA_Fartygstyp=A76),lastkapacitet_JA_nuläge,antal_anlöp_nuläge_JA),"") -> 
D77: =IFERROR(INDEX(Indata!$B$71:$B$77,MATCH(A77,Indata!$A$71:$A$77,0))*C77,"") ->  | I77: =IFERROR((INDIRECT("Kalkyldata!F"&MATCH(A77,Kalkyldata!A:A,0))*LN($C77)+INDIRECT("Kalkyldata!$G"&MATCH(A77,Kalkyldata!A:A,0)))*1.825,"") ->  | K77: =IFERROR(INDEX($B$43:$B$49,MATCH(A77,$A$43:$A$49,0))/SUMPRODUCT(--(JA_Fartygstyp=A77),lastkapacitet_JA_nuläge,antal_anlöp_nuläge_JA),"") -> 
D78: =IFERROR(INDEX(Indata!$B$71:$B$77,MATCH(A78,Indata!$A$71:$A$77,0))*C78,"") ->  | I78: =IFERROR((INDIRECT("Kalkyldata!F"&MATCH(A78,Kalkyldata!A:A,0))*LN($C78)+INDIRECT("Kalkyldata!$G"&MATCH(A78,Kalkyldata!A:A,0)))*1.825,"") ->  | K78: =IFERROR(INDEX($B$43:$B$49,MATCH(A78,$A$43:$A$49,0))/SUMPRODUCT(--(JA_Fartygstyp=A78),lastkapacitet_JA_nuläge,antal_anlöp_nuläge_JA),"") -> 
D79: =IFERROR(INDEX(Indata!$B$71:$B$77,MATCH(A79,Indata!$A$71:$A$77,0))*C79,"") ->  | I79: =IFERROR((INDIRECT("Kalkyldata!F"&MATCH(A79,Kalkyldata!A:A,0))*LN($C79)+INDIRECT("Kalkyldata!$G"&MATCH(A79,Kalkyldata!A:A,0)))*1.825,"") ->  | K79: =IFERROR(INDEX($B$43:$B$49,MATCH(A79,$A$43:$A$49,0))/SUMPRODUCT(--(JA_Fartygstyp=A79),lastkapacitet_JA_nuläge,antal_anlöp_nuläge_JA),"") -> 
L80: =SUM(L55:L79) -> 0
C81: =C52 -> 2017 | Q81: =Q52 -> 2025 | AD81: =AD52 -> 2040 | AQ81: =AQ52 -> 2065 | BD81: =BD52 -> 2084
A82: UA | N82: Lotstid | AA82: Lotstid | AN82: Lotstid | BA82: Lotstid | BN82: Lotstid
A83: Fartygstyp | B83: Kommentar | C83: Fartygs-storlek (Dwt) | D83: Last-kapacitet (ton) | E83: Antal anlöp UA (per år) | F83: Destination | G83: Avstånd (sjömil) | H83: Avstånd (km) | I83: Operativ hastighet (km/h) | J83: Transport-tid (h) | K83: Fyllnads-grad | L83: Gods-volymer (ton på år) | M83: Inrikestrafik = 1 Utrikestrafik = 0,5 | N83: Lotstids (h) Avgångs-hamn | O83: Lotstid (h) Destinations-hamn | Q83: Fartygs-storlek (Dwt) | R83: Last-kapacitet (ton) | S83: Gods-volymer (ton på år) | T83: Fyllnads-grad | U83: Antal anlöp UA | V83: Destination | W83: Avstånd (km) | X83: Operativ hastighet (km/h) | Y83: Transport-tid (h) | Z83: Inrikestrafik = 1 Utrikestrafik = 0,5 | AA83: Lotstids (h) Avgångs-hamn | AB83: Lotstid (h) Destinations-hamn | AD83: Fartygs-storlek (Dwt) | AE83: Last-kapacitet (ton) | AF83: Gods-volymer (ton på år) | AG83: Fyllnads-grad | AH83: Antal anlöp UA | AI83: Destination | AJ83: Avstånd (km) | AK83: Operativ hastighet (km/h) | AL83: Transport-tid (h) | AM83: Inrikestrafik = 1 Utrikestrafik = 0,5 | AN83: Lotstids (h) Avgångs-hamn | AO83: Lotstid (h) Destinations-hamn | AQ83: Fartygs-storlek (Dwt) | AR83: Last-kapacitet (ton) | AS83: Gods-volymer (ton på år) | AT83: Fyllnads-grad | AU83: Antal anlöp UA | AV83: Destination | AW83: Avstånd (km) | AX83: Operativ hastighet (km/h) | AY83: Transport-tid (h) | AZ83: Inrikestrafik = 1 Utrikestrafik = 0,5 | BA83: Lotstids (h) Avgångs-hamn | BB83: Lotstid (h) Destinations-hamn | BD83: Fartygs-storlek (Dwt) | BE83: Last-kapacitet (ton) | BF83: Gods-volymer (ton på år) | BG83: Fyllnads-grad | BH83: Antal anlöp UA | BI83: Destination | BJ83: Avstånd (km) | BK83: Operativ hastighet (km/h) | BL83: Transport-tid (h) | BM83: Inrikestrafik = 1 Utrikestrafik = 0,5 | BN83: Lotstids (h) Avgångs-hamn | BO83: Lotstid (h) Destinations-hamn
A84: =A55 -> 0 | C84: =C55 -> 0 | D84: =IFERROR(INDEX(Indata!$B$71:$B$77,MATCH(A84,Indata!$A$71:$A$77,0))*C84,"") ->  | E84: =IF(AND(C84=C55,E55>1),E55,0) -> 0 | F84: =IF(F55>1,F55,"") ->  | G84: =G55 -> 0 | H84: =IF(G84>1,G84*1.852,"") ->  | I84: =IFERROR((INDIRECT("Kalkyldata!F"&MATCH(A84,Kalkyldata!A:A,0))*LN($C84)+INDIRECT("Kalkyldata!$G"&MATCH(A84,Kalkyldata!A:A,0)))*1.825,"") ->  | J84: =IFERROR(H84/I84,"") ->  | K84: =IFERROR(INDEX($B$43:$B$49,MATCH(A84,$A$43:$A$49,0))/SUMPRODUCT(--(UA_Fartygstyp=A84),lastkapacitet_UA_nuläge,antal_anlöp_nuläge_UA),"") ->  | L84: =IF(C84>1,D84*E84*K84,"") ->  | M84: =IF(M55>0.1,M55,0) -> 0 | N84: =IF(N55>0.1,N55,0) -> 0 | O84: =IF(O55>0.1,O55,0) -> 0 | Q84: =IF(C84>1,C84,"") ->  | R84: =IF(D84>1,D84,"") ->  | S84: =IFERROR(L84*INDEX($G$43:$G$49,MATCH($A84,$A$43:$A$49,0)),"") ->  | T84: =IF(K84>0.001,K84,"") ->  | U84: =IFERROR(S84/(R84*T84),"") ->  | V84: =IF(F84>1,F84,"") ->  | W84: =IF(H84>1,H84,"") ->  | X84: =IF(I84>1,I84,"") ->  | Y84: =IF(J84>1,J84,"") ->  | Z84: =IF(M84>0.1,M84,"") ->  | AA84: =IF(N84>0.1,N84,"") ->  | AB84: =IF(Z84=1,O84,"") ->  | AD84: =IF(Q84>1,Q84,"") ->  | AE84: =IF(R84>1,R84,"") ->  | AF84: =IFERROR(L84*INDEX($H$43:$H$49,MATCH($A84,$A$43:$A$49,0)),"") ->  | AG84: =IF(T84>0.001,T84,"") ->  | AH84: =IFERROR(AF84/(AE84*AG84),"") ->  | AI84: =IF(ISBLANK(V84),"",V84) ->  | AJ84: =IF(W84>1,W84,"") ->  | AK84: =IF(X84>1,X84,"") ->  | AL84: =IF(Y84>1,Y84,"") ->  | AM84: =IF(Z84>0.1,Z84,"") ->  | AN84: =IF(AA84>0.1,AA84,"") ->  | AO84: =IF(AB84>0.1,AB84,"") ->  | AQ84: =IF(AD84>1,AD84,"") ->  | AR84: =IF(AE84>1,AE84,"") ->  | AS84: =IFERROR(L84*INDEX($I$43:$I$49,MATCH($A84,$A$43:$A$49,0)),"") ->  | AT84: =IF(AG84>0.001,AG84,"") ->  | AU84: =IFERROR(AS84/(AR84*AT84),"") ->  | AV84: =IF(ISBLANK(AI84),"",AI84) ->  | AW84: =IF(AJ84>1,AJ84,"") ->  | AX84: =IF(AK84>1,AK84,"") ->  | AY84: =IF(AL84>1,AL84,"") ->  | AZ84: =IF(AM84>0.1,AM84,"") ->  | BA84: =IF(AN84>0.1,AN84,"") ->  | BB84: =IF(AO84>0.1,AO84,"") ->  | BD84: =IF(AQ84>1,AQ84,"") ->  | BE84: =IF(AR84>1,AR84,"") ->  | BF84: =IFERROR(L84*INDEX($J$43:$J$49,MATCH($A84,$A$43:$A$49,0)),"") ->  | BG84: =IF(AT84>0.001,AT84,"") ->  | BH84: =IFERROR(BF84/(BE84*BG84),"") ->  | BI84: =IF(ISBLANK(AV84),"",AV84) ->  | BJ84: =IF(AW84>1,AW84,"") ->  | BK84: =IF(AX84>1,AX84,"") ->  | BL84: =IF(AY84>1,AY84,"") ->  | BM84: =IF(AZ84>0.1,AZ84,"") ->  | BN84: =IF(BA84>0.1,BA84,"") ->  | BO84: =IF(BB84>0.1,BB84,"") -> 
A85: =A56 -> 0 | C85: 0 | D85: =IFERROR(INDEX(Indata!$B$71:$B$77,MATCH(A85,Indata!$A$71:$A$77,0))*C85,"") ->  | E85: =IF(AND(C85=C56,E56>1),E56,0) -> 0 | F85: =IF(F56>1,F56,"") ->  | G85: =G56 -> 0 | H85: =IF(G85>1,G85*1.852,"") ->  | I85: =IFERROR((INDIRECT("Kalkyldata!F"&MATCH(A85,Kalkyldata!A:A,0))*LN($C85)+INDIRECT("Kalkyldata!$G"&MATCH(A85,Kalkyldata!A:A,0)))*1.825,"") ->  | J85: =IFERROR(H85/I85,"") ->  | K85: =IFERROR(INDEX($B$43:$B$49,MATCH(A85,$A$43:$A$49,0))/SUMPRODUCT(--(UA_Fartygstyp=A85),lastkapacitet_UA_nuläge,antal_anlöp_nuläge_UA),"") ->  | L85: =IF(C85>1,D85*E85*K85,"") ->  | M85: =IF(M56>0.1,M56,0) -> 0 | N85: =IF(N56>0.1,N56,0) -> 0 | O85: 0 | T85: =IF(K85>0.001,K85,"") ->  | U85: =IFERROR(S85/(R85*T85),"") ->  | AH85: =IFERROR(AF85/(AE85*AG85),"") ->  | AT85: =IF(AG85>0.001,AG85,"") ->  | AU85: =IFERROR(AS85/(AR85*AT85),"") ->  | BG85: =IF(AT85>0.001,AT85,"") ->  | BH85: =IFERROR(BF85/(BE85*BG85),"") ->  | BM85: =IF(AZ85>0.1,AZ85,"") ->  | BN85: =IF(BA85>0.1,BA85,"") ->  | BO85: =IF(BB85>0.1,BB85,"") -> 
A86: 0 | C86: 0 | D86: =IFERROR(INDEX(Indata!$B$71:$B$77,MATCH(A86,Indata!$A$71:$A$77,0))*C86,"") ->  | E86: 0 | G86: =G57 -> 0 | I86: =IFERROR((INDIRECT("Kalkyldata!F"&MATCH(A86,Kalkyldata!A:A,0))*LN($C86)+INDIRECT("Kalkyldata!$G"&MATCH(A86,Kalkyldata!A:A,0)))*1.825,"") ->  | K86: =IFERROR(INDEX($B$43:$B$49,MATCH(A86,$A$43:$A$49,0))/SUMPRODUCT(--(UA_Fartygstyp=A86),lastkapacitet_UA_nuläge,antal_anlöp_nuläge_UA),"") ->  | M86: 0 | N86: =IF(N57>0.1,N57,0) -> 0 | O86: 0
A87: 0 | C87: 0 | D87: =IFERROR(INDEX(Indata!$B$71:$B$77,MATCH(A87,Indata!$A$71:$A$77,0))*C87,"") ->  | E87: 0 | G87: =G58 -> 0 | I87: =IFERROR((INDIRECT("Kalkyldata!F"&MATCH(A87,Kalkyldata!A:A,0))*LN($C87)+INDIRECT("Kalkyldata!$G"&MATCH(A87,Kalkyldata!A:A,0)))*1.825,"") ->  | K87: =IFERROR(INDEX($B$43:$B$49,MATCH(A87,$A$43:$A$49,0))/SUMPRODUCT(--(UA_Fartygstyp=A87),lastkapacitet_UA_nuläge,antal_anlöp_nuläge_UA),"") ->  | M87: 0 | N87: =IF(N58>0.1,N58,0) -> 0 | O87: 0
A88: 0 | C88: 0 | D88: =IFERROR(INDEX(Indata!$B$71:$B$77,MATCH(A88,Indata!$A$71:$A$77,0))*C88,"") ->  | E88: 0 | G88: =G59 -> 0 | I88: =IFERROR((INDIRECT("Kalkyldata!F"&MATCH(A88,Kalkyldata!A:A,0))*LN($C88)+INDIRECT("Kalkyldata!$G"&MATCH(A88,Kalkyldata!A:A,0)))*1.825,"") ->  | K88: =IFERROR(INDEX($B$43:$B$49,MATCH(A88,$A$43:$A$49,0))/SUMPRODUCT(--(UA_Fartygstyp=A88),lastkapacitet_UA_nuläge,antal_anlöp_nuläge_UA),"") ->  | M88: 0 | N88: =IF(N59>0.1,N59,0) -> 0 | O88: 0
A89: 0 | C89: 0 | D89: =IFERROR(INDEX(Indata!$B$71:$B$77,MATCH(A89,Indata!$A$71:$A$77,0))*C89,"") ->  | E89: 0 | G89: =G60 -> 0 | I89: =IFERROR((INDIRECT("Kalkyldata!F"&MATCH(A89,Kalkyldata!A:A,0))*LN($C89)+INDIRECT("Kalkyldata!$G"&MATCH(A89,Kalkyldata!A:A,0)))*1.825,"") ->  | K89: =IFERROR(INDEX($B$43:$B$49,MATCH(A89,$A$43:$A$49,0))/SUMPRODUCT(--(UA_Fartygstyp=A89),lastkapacitet_UA_nuläge,antal_anlöp_nuläge_UA),"") ->  | M89: 0 | N89: =IF(N60>0.1,N60,0) -> 0 | O89: 0
A90: 0 | C90: 0 | D90: =IFERROR(INDEX(Indata!$B$71:$B$77,MATCH(A90,Indata!$A$71:$A$77,0))*C90,"") ->  | E90: 0 | G90: =G61 -> 0 | I90: =IFERROR((INDIRECT("Kalkyldata!F"&MATCH(A90,Kalkyldata!A:A,0))*LN($C90)+INDIRECT("Kalkyldata!$G"&MATCH(A90,Kalkyldata!A:A,0)))*1.825,"") ->  | K90: =IFERROR(INDEX($B$43:$B$49,MATCH(A90,$A$43:$A$49,0))/SUMPRODUCT(--(UA_Fartygstyp=A90),lastkapacitet_UA_nuläge,antal_anlöp_nuläge_UA),"") ->  | M90: 0 | N90: =IF(N61>0.1,N61,0) -> 0 | O90: 0
A91: 0 | C91: 0 | D91: =IFERROR(INDEX(Indata!$B$71:$B$77,MATCH(A91,Indata!$A$71:$A$77,0))*C91,"") ->  | E91: 0 | G91: =G62 -> 0 | I91: =IFERROR((INDIRECT("Kalkyldata!F"&MATCH(A91,Kalkyldata!A:A,0))*LN($C91)+INDIRECT("Kalkyldata!$G"&MATCH(A91,Kalkyldata!A:A,0)))*1.825,"") ->  | K91: =IFERROR(INDEX($B$43:$B$49,MATCH(A91,$A$43:$A$49,0))/SUMPRODUCT(--(UA_Fartygstyp=A91),lastkapacitet_UA_nuläge,antal_anlöp_nuläge_UA),"") ->  | M91: 0 | N91: =IF(N62>0.1,N62,0) -> 0 | O91: 0
A92: 0 | C92: 0 | D92: =IFERROR(INDEX(Indata!$B$71:$B$77,MATCH(A92,Indata!$A$71:$A$77,0))*C92,"") ->  | E92: 0 | G92: =G63 -> 0 | I92: =IFERROR((INDIRECT("Kalkyldata!F"&MATCH(A92,Kalkyldata!A:A,0))*LN($C92)+INDIRECT("Kalkyldata!$G"&MATCH(A92,Kalkyldata!A:A,0)))*1.825,"") ->  | K92: =IFERROR(INDEX($B$43:$B$49,MATCH(A92,$A$43:$A$49,0))/SUMPRODUCT(--(UA_Fartygstyp=A92),lastkapacitet_UA_nuläge,antal_anlöp_nuläge_UA),"") ->  | M92: 0 | N92: =IF(N63>0.1,N63,0) -> 0 | O92: 0
A93: 0 | C93: 0 | D93: =IFERROR(INDEX(Indata!$B$71:$B$77,MATCH(A93,Indata!$A$71:$A$77,0))*C93,"") ->  | E93: 0 | G93: =G64 -> 0 | I93: =IFERROR((INDIRECT("Kalkyldata!F"&MATCH(A93,Kalkyldata!A:A,0))*LN($C93)+INDIRECT("Kalkyldata!$G"&MATCH(A93,Kalkyldata!A:A,0)))*1.825,"") ->  | K93: =IFERROR(INDEX($B$43:$B$49,MATCH(A93,$A$43:$A$49,0))/SUMPRODUCT(--(UA_Fartygstyp=A93),lastkapacitet_UA_nuläge,antal_anlöp_nuläge_UA),"") ->  | M93: 0 | N93: =IF(N64>0.1,N64,0) -> 0 | O93: 0
A94: 0 | C94: 0 | D94: =IFERROR(INDEX(Indata!$B$71:$B$77,MATCH(A94,Indata!$A$71:$A$77,0))*C94,"") ->  | E94: 0 | G94: =G65 -> 0 | I94: =IFERROR((INDIRECT("Kalkyldata!F"&MATCH(A94,Kalkyldata!A:A,0))*LN($C94)+INDIRECT("Kalkyldata!$G"&MATCH(A94,Kalkyldata!A:A,0)))*1.825,"") ->  | K94: =IFERROR(INDEX($B$43:$B$49,MATCH(A94,$A$43:$A$49,0))/SUMPRODUCT(--(UA_Fartygstyp=A94),lastkapacitet_UA_nuläge,antal_anlöp_nuläge_UA),"") ->  | M94: 0 | N94: =IF(N65>0.1,N65,0) -> 0 | O94: 0
A95: 0 | C95: 0 | D95: =IFERROR(INDEX(Indata!$B$71:$B$77,MATCH(A95,Indata!$A$71:$A$77,0))*C95,"") ->  | E95: 0 | G95: =G66 -> 0 | I95: =IFERROR((INDIRECT("Kalkyldata!F"&MATCH(A95,Kalkyldata!A:A,0))*LN($C95)+INDIRECT("Kalkyldata!$G"&MATCH(A95,Kalkyldata!A:A,0)))*1.825,"") ->  | K95: =IFERROR(INDEX($B$43:$B$49,MATCH(A95,$A$43:$A$49,0))/SUMPRODUCT(--(UA_Fartygstyp=A95),lastkapacitet_UA_nuläge,antal_anlöp_nuläge_UA),"") ->  | M95: 0 | N95: =IF(N66>0.1,N66,0) -> 0 | O95: 0
A96: 0 | C96: 0 | D96: =IFERROR(INDEX(Indata!$B$71:$B$77,MATCH(A96,Indata!$A$71:$A$77,0))*C96,"") ->  | E96: 0 | G96: =G67 -> 0 | I96: =IFERROR((INDIRECT("Kalkyldata!F"&MATCH(A96,Kalkyldata!A:A,0))*LN($C96)+INDIRECT("Kalkyldata!$G"&MATCH(A96,Kalkyldata!A:A,0)))*1.825,"") ->  | K96: =IFERROR(INDEX($B$43:$B$49,MATCH(A96,$A$43:$A$49,0))/SUMPRODUCT(--(UA_Fartygstyp=A96),lastkapacitet_UA_nuläge,antal_anlöp_nuläge_UA),"") ->  | M96: 0 | N96: =IF(N67>0.1,N67,0) -> 0 | O96: 0
A97: 0 | C97: 0 | D97: =IFERROR(INDEX(Indata!$B$71:$B$77,MATCH(A97,Indata!$A$71:$A$77,0))*C97,"") ->  | E97: 0 | G97: =G68 -> 0 | I97: =IFERROR((INDIRECT("Kalkyldata!F"&MATCH(A97,Kalkyldata!A:A,0))*LN($C97)+INDIRECT("Kalkyldata!$G"&MATCH(A97,Kalkyldata!A:A,0)))*1.825,"") ->  | K97: =IFERROR(INDEX($B$43:$B$49,MATCH(A97,$A$43:$A$49,0))/SUMPRODUCT(--(UA_Fartygstyp=A97),lastkapacitet_UA_nuläge,antal_anlöp_nuläge_UA),"") ->  | M97: 0 | N97: =IF(N68>0.1,N68,0) -> 0 | O97: 0
A98: 0 | C98: 0 | D98: =IFERROR(INDEX(Indata!$B$71:$B$77,MATCH(A98,Indata!$A$71:$A$77,0))*C98,"") ->  | E98: 0 | G98: =G69 -> 0 | I98: =IFERROR((INDIRECT("Kalkyldata!F"&MATCH(A98,Kalkyldata!A:A,0))*LN($C98)+INDIRECT("Kalkyldata!$G"&MATCH(A98,Kalkyldata!A:A,0)))*1.825,"") ->  | K98: =IFERROR(INDEX($B$43:$B$49,MATCH(A98,$A$43:$A$49,0))/SUMPRODUCT(--(UA_Fartygstyp=A98),lastkapacitet_UA_nuläge,antal_anlöp_nuläge_UA),"") ->  | M98: 0 | N98: =IF(N69>0.1,N69,0) -> 0 | O98: 0
A99: 0 | C99: 0 | D99: =IFERROR(INDEX(Indata!$B$71:$B$77,MATCH(A99,Indata!$A$71:$A$77,0))*C99,"") ->  | E99: 0 | G99: =G70 -> 0 | I99: =IFERROR((INDIRECT("Kalkyldata!F"&MATCH(A99,Kalkyldata!A:A,0))*LN($C99)+INDIRECT("Kalkyldata!$G"&MATCH(A99,Kalkyldata!A:A,0)))*1.825,"") ->  | K99: =IFERROR(INDEX($B$43:$B$49,MATCH(A99,$A$43:$A$49,0))/SUMPRODUCT(--(UA_Fartygstyp=A99),lastkapacitet_UA_nuläge,antal_anlöp_nuläge_UA),"") ->  | M99: 0 | N99: =IF(N70>0.1,N70,0) -> 0 | O99: 0
A100: 0 | C100: 0 | D100: =IFERROR(INDEX(Indata!$B$71:$B$77,MATCH(A100,Indata!$A$71:$A$77,0))*C100,"") ->  | E100: 0 | G100: =G71 -> 0 | I100: =IFERROR((INDIRECT("Kalkyldata!F"&MATCH(A100,Kalkyldata!A:A,0))*LN($C100)+INDIRECT("Kalkyldata!$G"&MATCH(A100,Kalkyldata!A:A,0)))*1.825,"") ->  | K100: =IFERROR(INDEX($B$43:$B$49,MATCH(A100,$A$43:$A$49,0))/SUMPRODUCT(--(UA_Fartygstyp=A100),lastkapacitet_UA_nuläge,antal_anlöp_nuläge_UA),"") ->  | M100: 0 | N100: =IF(N71>0.1,N71,0) -> 0 | O100: 0
A101: 0 | C101: 0 | D101: =IFERROR(INDEX(Indata!$B$71:$B$77,MATCH(A101,Indata!$A$71:$A$77,0))*C101,"") ->  | E101: 0 | G101: =G72 -> 0 | I101: =IFERROR((INDIRECT("Kalkyldata!F"&MATCH(A101,Kalkyldata!A:A,0))*LN($C101)+INDIRECT("Kalkyldata!$G"&MATCH(A101,Kalkyldata!A:A,0)))*1.825,"") ->  | K101: =IFERROR(INDEX($B$43:$B$49,MATCH(A101,$A$43:$A$49,0))/SUMPRODUCT(--(UA_Fartygstyp=A101),lastkapacitet_UA_nuläge,antal_anlöp_nuläge_UA),"") ->  | M101: 0 | N101: =IF(N72>0.1,N72,0) -> 0 | O101: 0
A102: 0 | C102: 0 | D102: =IFERROR(INDEX(Indata!$B$71:$B$77,MATCH(A102,Indata!$A$71:$A$77,0))*C102,"") ->  | E102: 0 | G102: =G73 -> 0 | I102: =IFERROR((INDIRECT("Kalkyldata!F"&MATCH(A102,Kalkyldata!A:A,0))*LN($C102)+INDIRECT("Kalkyldata!$G"&MATCH(A102,Kalkyldata!A:A,0)))*1.825,"") ->  | K102: =IFERROR(INDEX($B$43:$B$49,MATCH(A102,$A$43:$A$49,0))/SUMPRODUCT(--(UA_Fartygstyp=A102),lastkapacitet_UA_nuläge,antal_anlöp_nuläge_UA),"") ->  | M102: 0 | N102: =IF(N73>0.1,N73,0) -> 0 | O102: 0
A103: 0 | C103: 0 | D103: =IFERROR(INDEX(Indata!$B$71:$B$77,MATCH(A103,Indata!$A$71:$A$77,0))*C103,"") ->  | E103: 0 | G103: =G74 -> 0 | I103: =IFERROR((INDIRECT("Kalkyldata!F"&MATCH(A103,Kalkyldata!A:A,0))*LN($C103)+INDIRECT("Kalkyldata!$G"&MATCH(A103,Kalkyldata!A:A,0)))*1.825,"") ->  | K103: =IFERROR(INDEX($B$43:$B$49,MATCH(A103,$A$43:$A$49,0))/SUMPRODUCT(--(UA_Fartygstyp=A103),lastkapacitet_UA_nuläge,antal_anlöp_nuläge_UA),"") ->  | M103: 0 | N103: =IF(N74>0.1,N74,0) -> 0 | O103: 0
A104: 0 | C104: 0 | D104: =IFERROR(INDEX(Indata!$B$71:$B$77,MATCH(A104,Indata!$A$71:$A$77,0))*C104,"") ->  | E104: 0 | G104: =G75 -> 0 | I104: =IFERROR((INDIRECT("Kalkyldata!F"&MATCH(A104,Kalkyldata!A:A,0))*LN($C104)+INDIRECT("Kalkyldata!$G"&MATCH(A104,Kalkyldata!A:A,0)))*1.825,"") ->  | K104: =IFERROR(INDEX($B$43:$B$49,MATCH(A104,$A$43:$A$49,0))/SUMPRODUCT(--(UA_Fartygstyp=A104),lastkapacitet_UA_nuläge,antal_anlöp_nuläge_UA),"") ->  | M104: 0 | N104: =IF(N75>0.1,N75,0) -> 0 | O104: 0
A105: 0 | C105: 0 | D105: =IFERROR(INDEX(Indata!$B$71:$B$77,MATCH(A105,Indata!$A$71:$A$77,0))*C105,"") ->  | E105: 0 | G105: =G76 -> 0 | I105: =IFERROR((INDIRECT("Kalkyldata!F"&MATCH(A105,Kalkyldata!A:A,0))*LN($C105)+INDIRECT("Kalkyldata!$G"&MATCH(A105,Kalkyldata!A:A,0)))*1.825,"") ->  | K105: =IFERROR(INDEX($B$43:$B$49,MATCH(A105,$A$43:$A$49,0))/SUMPRODUCT(--(UA_Fartygstyp=A105),lastkapacitet_UA_nuläge,antal_anlöp_nuläge_UA),"") ->  | M105: 0 | N105: =IF(N76>0.1,N76,0) -> 0 | O105: 0
A106: 0 | C106: 0 | D106: =IFERROR(INDEX(Indata!$B$71:$B$77,MATCH(A106,Indata!$A$71:$A$77,0))*C106,"") ->  | E106: 0 | G106: =G77 -> 0 | I106: =IFERROR((INDIRECT("Kalkyldata!F"&MATCH(A106,Kalkyldata!A:A,0))*LN($C106)+INDIRECT("Kalkyldata!$G"&MATCH(A106,Kalkyldata!A:A,0)))*1.825,"") ->  | K106: =IFERROR(INDEX($B$43:$B$49,MATCH(A106,$A$43:$A$49,0))/SUMPRODUCT(--(UA_Fartygstyp=A106),lastkapacitet_UA_nuläge,antal_anlöp_nuläge_UA),"") ->  | M106: 0 | N106: =IF(N77>0.1,N77,0) -> 0 | O106: 0
A107: 0 | C107: 0 | D107: =IFERROR(INDEX(Indata!$B$71:$B$77,MATCH(A107,Indata!$A$71:$A$77,0))*C107,"") ->  | E107: 0 | G107: =G78 -> 0 | I107: =IFERROR((INDIRECT("Kalkyldata!F"&MATCH(A107,Kalkyldata!A:A,0))*LN($C107)+INDIRECT("Kalkyldata!$G"&MATCH(A107,Kalkyldata!A:A,0)))*1.825,"") ->  | K107: =IFERROR(INDEX($B$43:$B$49,MATCH(A107,$A$43:$A$49,0))/SUMPRODUCT(--(UA_Fartygstyp=A107),lastkapacitet_UA_nuläge,antal_anlöp_nuläge_UA),"") ->  | M107: 0 | N107: =IF(N78>0.1,N78,0) -> 0 | O107: 0
A108: 0 | C108: 0 | D108: =IFERROR(INDEX(Indata!$B$71:$B$77,MATCH(A108,Indata!$A$71:$A$77,0))*C108,"") ->  | E108: 0 | G108: =G79 -> 0 | I108: =IFERROR((INDIRECT("Kalkyldata!F"&MATCH(A108,Kalkyldata!A:A,0))*LN($C108)+INDIRECT("Kalkyldata!$G"&MATCH(A108,Kalkyldata!A:A,0)))*1.825,"") ->  | K108: =IFERROR(INDEX($B$43:$B$49,MATCH(A108,$A$43:$A$49,0))/SUMPRODUCT(--(UA_Fartygstyp=A108),lastkapacitet_UA_nuläge,antal_anlöp_nuläge_UA),"") ->  | M108: 0 | N108: =IF(N79>0.1,N79,0) -> 0 | O108: 0
L109: =SUM(L84:L108) -> 0

Sheet Grunduppgifter
A1: GRUNDUPPGIFTER
A5: TUR | C5: Fartygs-storlek | D5: Last-kapacitet | E5: Gods-volymer | F5: Antal avgångar per år (basåret) | H5: Transportsträcka, enkel väg (km) | J5: Transporttid, enkel väg (timmar) | L5: Lotstid, avgång (timmar) | N5: Fyllnadsgrad (%) | P5: Lastning (timmar) | R5: Inrikestrafik = 1 Utrikestrafik = 0,5
A6: Fartygstyp | B6: Fartygsklass | C6: DWT | D6: Ton | E6: Ton/år | F6: JA | G6: UA | H6: JA | I6: UA | J6: JA | K6: UA | L6: JA | M6: UA | N6: JA | O6: UA | P6: JA | Q6: UA | R6: JA | S6: UA
A7: =Prognoser!A55 -> 0 | B7: =A7&" "&C7 -> 0 0 | C7: =Prognoser!C55 -> 0 | D7: =Prognoser!D55 ->  | E7: =IF(Prognoser!L55>1,Prognoser!L55,Prognoser!L84) ->  | F7: =Prognoser!E55 -> 0 | G7: =Prognoser!E84 -> 0 | H7: =Prognoser!H55 ->  | I7: =Prognoser!H84 ->  | J7: =Prognoser!J55 ->  | K7: =Prognoser!J84 ->  | L7: =Prognoser!N55 -> 0 | M7: =Prognoser!N84 -> 0 | N7: =Prognoser!K55 ->  | O7: =Prognoser!K84 ->  | P7: =INDEX('Lastning & Lossning och SFC'!$E:$E,MATCH($C7,INDIRECT("'Lastning & Lossning och SFC'!$B$"&MATCH($A7,'Lastning & Lossning och SFC'!$A:$A,0)&":$B$"&MATCH($A7,'Lastning & Lossning och SFC'!$A:$A,0)+COUNTIF('Lastning & Lossning och SFC'!$A:$A,$A7)-1))+MATCH($A7,'Lastning & Lossning och SFC'!$A:$A,0)-1) ->  | Q7: =INDEX('Lastning & Lossning och SFC'!$E:$E,MATCH($C7,INDIRECT("'Lastning & Lossning och SFC'!$B$"&MATCH($A7,'Lastning & Lossning och SFC'!$A:$A,0)&":$B$"&MATCH($A7,'Lastning & Lossning och SFC'!$A:$A,0)+COUNTIF('Lastning & Lossning och SFC'!$A:$A,$A7)-1))+MATCH($A7,'Lastning & Lossning och SFC'!$A:$A,0)-1) ->  | R7: =Prognoser!M55 -> 0 | S7: =Prognoser!M84 -> 0
A8: =Prognoser!A56 -> 0 | B8: 0 0 | C8: =Prognoser!C56 -> 0 | D8: =Prognoser!D56 ->  | E8: =IF(Prognoser!L56>1,Prognoser!L56,Prognoser!L85) ->  | F8: =Prognoser!E56 -> 0 | G8: =Prognoser!E85 -> 0 | H8: =Prognoser!H56 ->  | I8: =Prognoser!H85 ->  | J8: =Prognoser!J56 ->  | K8: =Prognoser!J85 ->  | L8: =Prognoser!N56 -> 0 | M8: =Prognoser!N85 -> 0 | N8: =Prognoser!K56 ->  | O8: =Prognoser!K85 ->  | P8: =INDEX('Lastning & Lossning och SFC'!$E:$E,MATCH($C8,INDIRECT("'Lastning & Lossning och SFC'!$B$"&MATCH($A8,'Lastning & Lossning och SFC'!$A:$A,0)&":$B$"&MATCH($A8,'Lastning & Lossning och SFC'!$A:$A,0)+COUNTIF('Lastning & Lossning och SFC'!$A:$A,$A8)-1))+MATCH($A8,'Lastning & Lossning och SFC'!$A:$A,0)-1) ->  | Q8: =INDEX('Lastning & Lossning och SFC'!$E:$E,MATCH($C8,INDIRECT("'Lastning & Lossning och SFC'!$B$"&MATCH($A8,'Lastning & Lossning och SFC'!$A:$A,0)&":$B$"&MATCH($A8,'Lastning & Lossning och SFC'!$A:$A,0)+COUNTIF('Lastning & Lossning och SFC'!$A:$A,$A8)-1))+MATCH($A8,'Lastning & Lossning och SFC'!$A:$A,0)-1) ->  | R8: =Prognoser!M56 -> 0 | S8: =Prognoser!M85 -> 0
A9: =Prognoser!A57 -> 0 | B9: 0 0 | C9: =Prognoser!C57 -> 0 | D9: =Prognoser!D57 ->  | E9: =IF(Prognoser!L57>1,Prognoser!L57,Prognoser!L86) ->  | F9: =Prognoser!E57 -> 0 | G9: =Prognoser!E86 -> 0 | H9: =Prognoser!H57 ->  | I9: =Prognoser!H86 ->  | J9: =Prognoser!J57 ->  | K9: =Prognoser!J86 ->  | L9: =Prognoser!N57 -> 0 | M9: =Prognoser!N86 -> 0 | N9: =Prognoser!K57 ->  | O9: =Prognoser!K86 ->  | P9: =INDEX('Lastning & Lossning och SFC'!$E:$E,MATCH($C9,INDIRECT("'Lastning & Lossning och SFC'!$B$"&MATCH($A9,'Lastning & Lossning och SFC'!$A:$A,0)&":$B$"&MATCH($A9,'Lastning & Lossning och SFC'!$A:$A,0)+COUNTIF('Lastning & Lossning och SFC'!$A:$A,$A9)-1))+MATCH($A9,'Lastning & Lossning och SFC'!$A:$A,0)-1) ->  | Q9: =INDEX('Lastning & Lossning och SFC'!$E:$E,MATCH($C9,INDIRECT("'Lastning & Lossning och SFC'!$B$"&MATCH($A9,'Lastning & Lossning och SFC'!$A:$A,0)&":$B$"&MATCH($A9,'Lastning & Lossning och SFC'!$A:$A,0)+COUNTIF('Lastning & Lossning och SFC'!$A:$A,$A9)-1))+MATCH($A9,'Lastning & Lossning och SFC'!$A:$A,0)-1) ->  | R9: =Prognoser!M57 -> 0 | S9: =Prognoser!M86 -> 0
A10: =Prognoser!A58 -> 0 | B10: 0 0 | C10: =Prognoser!C58 -> 0 | D10: =Prognoser!D58 ->  | E10: =IF(Prognoser!L58>1,Prognoser!L58,Prognoser!L87) ->  | F10: =Prognoser!E58 -> 0 | G10: =Prognoser!E87 -> 0 | H10: =Prognoser!H58 ->  | I10: =Prognoser!H87 ->  | J10: =Prognoser!J58 ->  | K10: =Prognoser!J87 ->  | L10: =Prognoser!N58 -> 0 | M10: =Prognoser!N87 -> 0 | N10: =Prognoser!K58 ->  | O10: =Prognoser!K87 ->  | P10: =INDEX('Lastning & Lossning och SFC'!$E:$E,MATCH($C10,INDIRECT("'Lastning & Lossning och SFC'!$B$"&MATCH($A10,'Lastning & Lossning och SFC'!$A:$A,0)&":$B$"&MATCH($A10,'Lastning & Lossning och SFC'!$A:$A,0)+COUNTIF('Lastning & Lossning och SFC'!$A:$A,$A10)-1))+MATCH($A10,'Lastning & Lossning och SFC'!$A:$A,0)-1) ->  | Q10: =INDEX('Lastning & Lossning och SFC'!$E:$E,MATCH($C10,INDIRECT("'Lastning & Lossning och SFC'!$B$"&MATCH($A10,'Lastning & Lossning och SFC'!$A:$A,0)&":$B$"&MATCH($A10,'Lastning & Lossning och SFC'!$A:$A,0)+COUNTIF('Lastning & Lossning och SFC'!$A:$A,$A10)-1))+MATCH($A10,'Lastning & Lossning och SFC'!$A:$A,0)-1) ->  | R10: =Prognoser!M58 -> 0 | S10: =Prognoser!M87 -> 0
A11: =Prognoser!A59 -> 0 | B11: 0 0 | C11: =Prognoser!C59 -> 0 | D11: =Prognoser!D59 ->  | E11: =IF(Prognoser!L59>1,Prognoser!L59,Prognoser!L88) ->  | F11: =Prognoser!E59 -> 0 | G11: =Prognoser!E88 -> 0 | H11: =Prognoser!H59 ->  | I11: =Prognoser!H88 ->  | J11: =Prognoser!J59 ->  | K11: =Prognoser!J88 ->  | L11: =Prognoser!N59 -> 0 | M11: =Prognoser!N88 -> 0 | N11: =Prognoser!K59 ->  | O11: =Prognoser!K88 ->  | P11: =INDEX('Lastning & Lossning och SFC'!$E:$E,MATCH($C11,INDIRECT("'Lastning & Lossning och SFC'!$B$"&MATCH($A11,'Lastning & Lossning och SFC'!$A:$A,0)&":$B$"&MATCH($A11,'Lastning & Lossning och SFC'!$A:$A,0)+COUNTIF('Lastning & Lossning och SFC'!$A:$A,$A11)-1))+MATCH($A11,'Lastning & Lossning och SFC'!$A:$A,0)-1) ->  | Q11: =INDEX('Lastning & Lossning och SFC'!$E:$E,MATCH($C11,INDIRECT("'Lastning & Lossning och SFC'!$B$"&MATCH($A11,'Lastning & Lossning och SFC'!$A:$A,0)&":$B$"&MATCH($A11,'Lastning & Lossning och SFC'!$A:$A,0)+COUNTIF('Lastning & Lossning och SFC'!$A:$A,$A11)-1))+MATCH($A11,'Lastning & Lossning och SFC'!$A:$A,0)-1) ->  | R11: =Prognoser!M59 -> 0 | S11: =Prognoser!M88 -> 0
A12: =Prognoser!A60 -> 0 | B12: 0 0 | C12: =Prognoser!C60 -> 0 | D12: =Prognoser!D60 ->  | E12: =IF(Prognoser!L60>1,Prognoser!L60,Prognoser!L89) ->  | F12: =Prognoser!E60 -> 0 | G12: =Prognoser!E89 -> 0 | H12: =Prognoser!H60 ->  | I12: =Prognoser!H89 ->  | J12: =Prognoser!J60 ->  | K12: =Prognoser!J89 ->  | L12: =Prognoser!N60 -> 0 | M12: =Prognoser!N89 -> 0 | N12: =Prognoser!K60 ->  | O12: =Prognoser!K89 ->  | P12: =INDEX('Lastning & Lossning och SFC'!$E:$E,MATCH($C12,INDIRECT("'Lastning & Lossning och SFC'!$B$"&MATCH($A12,'Lastning & Lossning och SFC'!$A:$A,0)&":$B$"&MATCH($A12,'Lastning & Lossning och SFC'!$A:$A,0)+COUNTIF('Lastning & Lossning och SFC'!$A:$A,$A12)-1))+MATCH($A12,'Lastning & Lossning och SFC'!$A:$A,0)-1) ->  | Q12: =INDEX('Lastning & Lossning och SFC'!$E:$E,MATCH($C12,INDIRECT("'Lastning & Lossning och SFC'!$B$"&MATCH($A12,'Lastning & Lossning och SFC'!$A:$A,0)&":$B$"&MATCH($A12,'Lastning & Lossning och SFC'!$A:$A,0)+COUNTIF('Lastning & Lossning och SFC'!$A:$A,$A12)-1))+MATCH($A12,'Lastning & Lossning och SFC'!$A:$A,0)-1) ->  | R12: =Prognoser!M60 -> 0 | S12: =Prognoser!M89 -> 0
A13: =Prognoser!A61 -> 0 | B13: 0 0 | C13: =Prognoser!C61 -> 0 | D13: =Prognoser!D61 ->  | E13: =IF(Prognoser!L61>1,Prognoser!L61,Prognoser!L90) ->  | F13: =Prognoser!E61 -> 0 | G13: =Prognoser!E90 -> 0 | H13: =Prognoser!H61 ->  | I13: =Prognoser!H90 ->  | J13: =Prognoser!J61 ->  | K13: =Prognoser!J90 ->  | L13: =Prognoser!N61 -> 0 | M13: =Prognoser!N90 -> 0 | N13: =Prognoser!K61 ->  | O13: =Prognoser!K90 ->  | P13: =INDEX('Lastning & Lossning och SFC'!$E:$E,MATCH($C13,INDIRECT("'Lastning & Lossning och SFC'!$B$"&MATCH($A13,'Lastning & Lossning och SFC'!$A:$A,0)&":$B$"&MATCH($A13,'Lastning & Lossning och SFC'!$A:$A,0)+COUNTIF('Lastning & Lossning och SFC'!$A:$A,$A13)-1))+MATCH($A13,'Lastning & Lossning och SFC'!$A:$A,0)-1) ->  | Q13: =INDEX('Lastning & Lossning och SFC'!$E:$E,MATCH($C13,INDIRECT("'Lastning & Lossning och SFC'!$B$"&MATCH($A13,'Lastning & Lossning och SFC'!$A:$A,0)&":$B$"&MATCH($A13,'Lastning & Lossning och SFC'!$A:$A,0)+COUNTIF('Lastning & Lossning och SFC'!$A:$A,$A13)-1))+MATCH($A13,'Lastning & Lossning och SFC'!$A:$A,0)-1) ->  | R13: =Prognoser!M61 -> 0 | S13: =Prognoser!M90 -> 0
A14: =Prognoser!A62 -> 0 | B14: 0 0 | C14: =Prognoser!C62 -> 0 | D14: =Prognoser!D62 ->  | E14: =IF(Prognoser!L62>1,Prognoser!L62,Prognoser!L91) ->  | F14: =Prognoser!E62 -> 0 | G14: =Prognoser!E91 -> 0 | H14: =Prognoser!H62 ->  | I14: =Prognoser!H91 ->  | J14: =Prognoser!J62 ->  | K14: =Prognoser!J91 ->  | L14: =Prognoser!N62 -> 0 | M14: =Prognoser!N91 -> 0 | N14: =Prognoser!K62 ->  | O14: =Prognoser!K91 ->  | P14: =INDEX('Lastning & Lossning och SFC'!$E:$E,MATCH($C14,INDIRECT("'Lastning & Lossning och SFC'!$B$"&MATCH($A14,'Lastning & Lossning och SFC'!$A:$A,0)&":$B$"&MATCH($A14,'Lastning & Lossning och SFC'!$A:$A,0)+COUNTIF('Lastning & Lossning och SFC'!$A:$A,$A14)-1))+MATCH($A14,'Lastning & Lossning och SFC'!$A:$A,0)-1) ->  | Q14: =INDEX('Lastning & Lossning och SFC'!$E:$E,MATCH($C14,INDIRECT("'Lastning & Lossning och SFC'!$B$"&MATCH($A14,'Lastning & Lossning och SFC'!$A:$A,0)&":$B$"&MATCH($A14,'Lastning & Lossning och SFC'!$A:$A,0)+COUNTIF('Lastning & Lossning och SFC'!$A:$A,$A14)-1))+MATCH($A14,'Lastning & Lossning och SFC'!$A:$A,0)-1) ->  | R14: =Prognoser!M62 -> 0 | S14: =Prognoser!M91 -> 0
A15: =Prognoser!A63 -> 0 | B15: 0 0 | C15: =Prognoser!C63 -> 0 | D15: =Prognoser!D63 ->  | E15: =IF(Prognoser!L63>1,Prognoser!L63,Prognoser!L92) ->  | F15: =Prognoser!E63 -> 0 | G15: =Prognoser!E92 -> 0 | H15: =Prognoser!H63 ->  | I15: =Prognoser!H92 ->  | J15: =Prognoser!J63 ->  | K15: =Prognoser!J92 ->  | L15: =Prognoser!N63 -> 0 | M15: =Prognoser!N92 -> 0 | N15: =Prognoser!K63 ->  | O15: =Prognoser!K92 ->  | P15: =INDEX('Lastning & Lossning och SFC'!$E:$E,MATCH($C15,INDIRECT("'Lastning & Lossning och SFC'!$B$"&MATCH($A15,'Lastning & Lossning och SFC'!$A:$A,0)&":$B$"&MATCH($A15,'Lastning & Lossning och SFC'!$A:$A,0)+COUNTIF('Lastning & Lossning och SFC'!$A:$A,$A15)-1))+MATCH($A15,'Lastning & Lossning och SFC'!$A:$A,0)-1) ->  | Q15: =INDEX('Lastning & Lossning och SFC'!$E:$E,MATCH($C15,INDIRECT("'Lastning & Lossning och SFC'!$B$"&MATCH($A15,'Lastning & Lossning och SFC'!$A:$A,0)&":$B$"&MATCH($A15,'Lastning & Lossning och SFC'!$A:$A,0)+COUNTIF('Lastning & Lossning och SFC'!$A:$A,$A15)-1))+MATCH($A15,'Lastning & Lossning och SFC'!$A:$A,0)-1) ->  | R15: =Prognoser!M63 -> 0 | S15: =Prognoser!M92 -> 0
A16: =Prognoser!A64 -> 0 | B16: 0 0 | C16: =Prognoser!C64 -> 0 | D16: =Prognoser!D64 ->  | E16: =IF(Prognoser!L64>1,Prognoser!L64,Prognoser!L93) ->  | F16: =Prognoser!E64 -> 0 | G16: =Prognoser!E93 -> 0 | H16: =Prognoser!H64 ->  | I16: =Prognoser!H93 ->  | J16: =Prognoser!J64 ->  | K16: =Prognoser!J93 ->  | L16: =Prognoser!N64 -> 0 | M16: =Prognoser!N93 -> 0 | N16: =Prognoser!K64 ->  | O16: =Prognoser!K93 ->  | P16: =INDEX('Lastning & Lossning och SFC'!$E:$E,MATCH($C16,INDIRECT("'Lastning & Lossning och SFC'!$B$"&MATCH($A16,'Lastning & Lossning och SFC'!$A:$A,0)&":$B$"&MATCH($A16,'Lastning & Lossning och SFC'!$A:$A,0)+COUNTIF('Lastning & Lossning och SFC'!$A:$A,$A16)-1))+MATCH($A16,'Lastning & Lossning och SFC'!$A:$A,0)-1) ->  | Q16: =INDEX('Lastning & Lossning och SFC'!$E:$E,MATCH($C16,INDIRECT("'Lastning & Lossning och SFC'!$B$"&MATCH($A16,'Lastning & Lossning och SFC'!$A:$A,0)&":$B$"&MATCH($A16,'Lastning & Lossning och SFC'!$A:$A,0)+COUNTIF('Lastning & Lossning och SFC'!$A:$A,$A16)-1))+MATCH($A16,'Lastning & Lossning och SFC'!$A:$A,0)-1) ->  | R16: =Prognoser!M64 -> 0 | S16: =Prognoser!M93 -> 0
A17: =Prognoser!A65 -> 0 | B17: 0 0 | C17: =Prognoser!C65 -> 0 | D17: =Prognoser!D65 ->  | E17: =IF(Prognoser!L65>1,Prognoser!L65,Prognoser!L94) ->  | F17: =Prognoser!E65 -> 0 | G17: =Prognoser!E94 -> 0 | H17: =Prognoser!H65 ->  | I17: =Prognoser!H94 ->  | J17: =Prognoser!J65 ->  | K17: =Prognoser!J94 ->  | L17: =Prognoser!N65 -> 0 | M17: =Prognoser!N94 -> 0 | N17: =Prognoser!K65 ->  | O17: =Prognoser!K94 ->  | P17: =INDEX('Lastning & Lossning och SFC'!$E:$E,MATCH($C17,INDIRECT("'Lastning & Lossning och SFC'!$B$"&MATCH($A17,'Lastning & Lossning och SFC'!$A:$A,0)&":$B$"&MATCH($A17,'Lastning & Lossning och SFC'!$A:$A,0)+COUNTIF('Lastning & Lossning och SFC'!$A:$A,$A17)-1))+MATCH($A17,'Lastning & Lossning och SFC'!$A:$A,0)-1) ->  | Q17: =INDEX('Lastning & Lossning och SFC'!$E:$E,MATCH($C17,INDIRECT("'Lastning & Lossning och SFC'!$B$"&MATCH($A17,'Lastning & Lossning och SFC'!$A:$A,0)&":$B$"&MATCH($A17,'Lastning & Lossning och SFC'!$A:$A,0)+COUNTIF('Lastning & Lossning och SFC'!$A:$A,$A17)-1))+MATCH($A17,'Lastning & Lossning och SFC'!$A:$A,0)-1) ->  | R17: =Prognoser!M65 -> 0 | S17: =Prognoser!M94 -> 0
A18: =Prognoser!A66 -> 0 | B18: 0 0 | C18: =Prognoser!C66 -> 0 | D18: =Prognoser!D66 ->  | E18: =IF(Prognoser!L66>1,Prognoser!L66,Prognoser!L95) ->  | F18: =Prognoser!E66 -> 0 | G18: =Prognoser!E95 -> 0 | H18: =Prognoser!H66 ->  | I18: =Prognoser!H95 ->  | J18: =Prognoser!J66 ->  | K18: =Prognoser!J95 ->  | L18: =Prognoser!N66 -> 0 | M18: =Prognoser!N95 -> 0 | N18: =Prognoser!K66 ->  | O18: =Prognoser!K95 ->  | P18: =INDEX('Lastning & Lossning och SFC'!$E:$E,MATCH($C18,INDIRECT("'Lastning & Lossning och SFC'!$B$"&MATCH($A18,'Lastning & Lossning och SFC'!$A:$A,0)&":$B$"&MATCH($A18,'Lastning & Lossning och SFC'!$A:$A,0)+COUNTIF('Lastning & Lossning och SFC'!$A:$A,$A18)-1))+MATCH($A18,'Lastning & Lossning och SFC'!$A:$A,0)-1) ->  | Q18: =INDEX('Lastning & Lossning och SFC'!$E:$E,MATCH($C18,INDIRECT("'Lastning & Lossning och SFC'!$B$"&MATCH($A18,'Lastning & Lossning och SFC'!$A:$A,0)&":$B$"&MATCH($A18,'Lastning & Lossning och SFC'!$A:$A,0)+COUNTIF('Lastning & Lossning och SFC'!$A:$A,$A18)-1))+MATCH($A18,'Lastning & Lossning och SFC'!$A:$A,0)-1) ->  | R18: =Prognoser!M66 -> 0 | S18: =Prognoser!M95 -> 0
A19: =Prognoser!A67 -> 0 | B19: 0 0 | C19: =Prognoser!C67 -> 0 | D19: =Prognoser!D67 ->  | E19: =IF(Prognoser!L67>1,Prognoser!L67,Prognoser!L96) ->  | F19: =Prognoser!E67 -> 0 | G19: =Prognoser!E96 -> 0 | H19: =Prognoser!H67 ->  | I19: =Prognoser!H96 ->  | J19: =Prognoser!J67 ->  | K19: =Prognoser!J96 ->  | L19: =Prognoser!N67 -> 0 | M19: =Prognoser!N96 -> 0 | N19: =Prognoser!K67 ->  | O19: =Prognoser!K96 ->  | P19: =INDEX('Lastning & Lossning och SFC'!$E:$E,MATCH($C19,INDIRECT("'Lastning & Lossning och SFC'!$B$"&MATCH($A19,'Lastning & Lossning och SFC'!$A:$A,0)&":$B$"&MATCH($A19,'Lastning & Lossning och SFC'!$A:$A,0)+COUNTIF('Lastning & Lossning och SFC'!$A:$A,$A19)-1))+MATCH($A19,'Lastning & Lossning och SFC'!$A:$A,0)-1) ->  | Q19: =INDEX('Lastning & Lossning och SFC'!$E:$E,MATCH($C19,INDIRECT("'Lastning & Lossning och SFC'!$B$"&MATCH($A19,'Lastning & Lossning och SFC'!$A:$A,0)&":$B$"&MATCH($A19,'Lastning & Lossning och SFC'!$A:$A,0)+COUNTIF('Lastning & Lossning och SFC'!$A:$A,$A19)-1))+MATCH($A19,'Lastning & Lossning och SFC'!$A:$A,0)-1) ->  | R19: =Prognoser!M67 -> 0 | S19: =Prognoser!M96 -> 0
A20: =Prognoser!A68 -> 0 | B20: 0 0 | C20: =Prognoser!C68 -> 0 | D20: =Prognoser!D68 ->  | E20: =IF(Prognoser!L68>1,Prognoser!L68,Prognoser!L97) ->  | F20: =Prognoser!E68 -> 0 | G20: =Prognoser!E97 -> 0 | H20: =Prognoser!H68 ->  | I20: =Prognoser!H97 ->  | J20: =Prognoser!J68 ->  | K20: =Prognoser!J97 ->  | L20: =Prognoser!N68 -> 0 | M20: =Prognoser!N97 -> 0 | N20: =Prognoser!K68 ->  | O20: =Prognoser!K97 ->  | P20: =INDEX('Lastning & Lossning och SFC'!$E:$E,MATCH($C20,INDIRECT("'Lastning & Lossning och SFC'!$B$"&MATCH($A20,'Lastning & Lossning och SFC'!$A:$A,0)&":$B$"&MATCH($A20,'Lastning & Lossning och SFC'!$A:$A,0)+COUNTIF('Lastning & Lossning och SFC'!$A:$A,$A20)-1))+MATCH($A20,'Lastning & Lossning och SFC'!$A:$A,0)-1) ->  | Q20: =INDEX('Lastning & Lossning och SFC'!$E:$E,MATCH($C20,INDIRECT("'Lastning & Lossning och SFC'!$B$"&MATCH($A20,'Lastning & Lossning och SFC'!$A:$A,0)&":$B$"&MATCH($A20,'Lastning & Lossning och SFC'!$A:$A,0)+COUNTIF('Lastning & Lossning och SFC'!$A:$A,$A20)-1))+MATCH($A20,'Lastning & Lossning och SFC'!$A:$A,0)-1) ->  | R20: =Prognoser!M68 -> 0 | S20: =Prognoser!M97 -> 0
A21: =Prognoser!A69 -> 0 | B21: 0 0 | C21: =Prognoser!C69 -> 0 | D21: =Prognoser!D69 ->  | E21: =IF(Prognoser!L69>1,Prognoser!L69,Prognoser!L98) ->  | F21: =Prognoser!E69 -> 0 | G21: =Prognoser!E98 -> 0 | H21: =Prognoser!H69 ->  | I21: =Prognoser!H98 ->  | J21: =Prognoser!J69 ->  | K21: =Prognoser!J98 ->  | L21: =Prognoser!N69 -> 0 | M21: =Prognoser!N98 -> 0 | N21: =Prognoser!K69 ->  | O21: =Prognoser!K98 ->  | P21: =INDEX('Lastning & Lossning och SFC'!$E:$E,MATCH($C21,INDIRECT("'Lastning & Lossning och SFC'!$B$"&MATCH($A21,'Lastning & Lossning och SFC'!$A:$A,0)&":$B$"&MATCH($A21,'Lastning & Lossning och SFC'!$A:$A,0)+COUNTIF('Lastning & Lossning och SFC'!$A:$A,$A21)-1))+MATCH($A21,'Lastning & Lossning och SFC'!$A:$A,0)-1) ->  | Q21: =INDEX('Lastning & Lossning och SFC'!$E:$E,MATCH($C21,INDIRECT("'Lastning & Lossning och SFC'!$B$"&MATCH($A21,'Lastning & Lossning och SFC'!$A:$A,0)&":$B$"&MATCH($A21,'Lastning & Lossning och SFC'!$A:$A,0)+COUNTIF('Lastning & Lossning och SFC'!$A:$A,$A21)-1))+MATCH($A21,'Lastning & Lossning och SFC'!$A:$A,0)-1) ->  | R21: =Prognoser!M69 -> 0 | S21: =Prognoser!M98 -> 0
A22: =Prognoser!A70 -> 0 | B22: 0 0 | C22: =Prognoser!C70 -> 0 | D22: =Prognoser!D70 ->  | E22: =IF(Prognoser!L70>1,Prognoser!L70,Prognoser!L99) ->  | F22: =Prognoser!E70 -> 0 | G22: =Prognoser!E99 -> 0 | H22: =Prognoser!H70 ->  | I22: =Prognoser!H99 ->  | J22: =Prognoser!J70 ->  | K22: =Prognoser!J99 ->  | L22: =Prognoser!N70 -> 0 | M22: =Prognoser!N99 -> 0 | N22: =Prognoser!K70 ->  | O22: =Prognoser!K99 ->  | P22: =INDEX('Lastning & Lossning och SFC'!$E:$E,MATCH($C22,INDIRECT("'Lastning & Lossning och SFC'!$B$"&MATCH($A22,'Lastning & Lossning och SFC'!$A:$A,0)&":$B$"&MATCH($A22,'Lastning & Lossning och SFC'!$A:$A,0)+COUNTIF('Lastning & Lossning och SFC'!$A:$A,$A22)-1))+MATCH($A22,'Lastning & Lossning och SFC'!$A:$A,0)-1) ->  | Q22: =INDEX('Lastning & Lossning och SFC'!$E:$E,MATCH($C22,INDIRECT("'Lastning & Lossning och SFC'!$B$"&MATCH($A22,'Lastning & Lossning och SFC'!$A:$A,0)&":$B$"&MATCH($A22,'Lastning & Lossning och SFC'!$A:$A,0)+COUNTIF('Lastning & Lossning och SFC'!$A:$A,$A22)-1))+MATCH($A22,'Lastning & Lossning och SFC'!$A:$A,0)-1) ->  | R22: =Prognoser!M70 -> 0 | S22: =Prognoser!M99 -> 0
A23: =Prognoser!A71 -> 0 | B23: 0 0 | C23: =Prognoser!C71 -> 0 | D23: =Prognoser!D71 ->  | E23: =IF(Prognoser!L71>1,Prognoser!L71,Prognoser!L100) ->  | F23: =Prognoser!E71 -> 0 | G23: =Prognoser!E100 -> 0 | H23: =Prognoser!H71 ->  | I23: =Prognoser!H100 ->  | J23: =Prognoser!J71 ->  | K23: =Prognoser!J100 ->  | L23: =Prognoser!N71 -> 0 | M23: =Prognoser!N100 -> 0 | N23: =Prognoser!K71 ->  | O23: =Prognoser!K100 ->  | P23: =INDEX('Lastning & Lossning och SFC'!$E:$E,MATCH($C23,INDIRECT("'Lastning & Lossning och SFC'!$B$"&MATCH($A23,'Lastning & Lossning och SFC'!$A:$A,0)&":$B$"&MATCH($A23,'Lastning & Lossning och SFC'!$A:$A,0)+COUNTIF('Lastning & Lossning och SFC'!$A:$A,$A23)-1))+MATCH($A23,'Lastning & Lossning och SFC'!$A:$A,0)-1) ->  | Q23: =INDEX('Lastning & Lossning och SFC'!$E:$E,MATCH($C23,INDIRECT("'Lastning & Lossning och SFC'!$B$"&MATCH($A23,'Lastning & Lossning och SFC'!$A:$A,0)&":$B$"&MATCH($A23,'Lastning & Lossning och SFC'!$A:$A,0)+COUNTIF('Lastning & Lossning och SFC'!$A:$A,$A23)-1))+MATCH($A23,'Lastning & Lossning och SFC'!$A:$A,0)-1) ->  | R23: =Prognoser!M71 -> 0 | S23: =Prognoser!M100 -> 0
A24: =Prognoser!A72 -> 0 | B24: 0 0 | C24: =Prognoser!C72 -> 0 | D24: =Prognoser!D72 ->  | E24: =IF(Prognoser!L72>1,Prognoser!L72,Prognoser!L101) ->  | F24: =Prognoser!E72 -> 0 | G24: =Prognoser!E101 -> 0 | H24: =Prognoser!H72 ->  | I24: =Prognoser!H101 ->  | J24: =Prognoser!J72 ->  | K24: =Prognoser!J101 ->  | L24: =Prognoser!N72 -> 0 | M24: =Prognoser!N101 -> 0 | N24: =Prognoser!K72 ->  | O24: =Prognoser!K101 ->  | P24: =INDEX('Lastning & Lossning och SFC'!$E:$E,MATCH($C24,INDIRECT("'Lastning & Lossning och SFC'!$B$"&MATCH($A24,'Lastning & Lossning och SFC'!$A:$A,0)&":$B$"&MATCH($A24,'Lastning & Lossning och SFC'!$A:$A,0)+COUNTIF('Lastning & Lossning och SFC'!$A:$A,$A24)-1))+MATCH($A24,'Lastning & Lossning och SFC'!$A:$A,0)-1) ->  | Q24: =INDEX('Lastning & Lossning och SFC'!$E:$E,MATCH($C24,INDIRECT("'Lastning & Lossning och SFC'!$B$"&MATCH($A24,'Lastning & Lossning och SFC'!$A:$A,0)&":$B$"&MATCH($A24,'Lastning & Lossning och SFC'!$A:$A,0)+COUNTIF('Lastning & Lossning och SFC'!$A:$A,$A24)-1))+MATCH($A24,'Lastning & Lossning och SFC'!$A:$A,0)-1) ->  | R24: =Prognoser!M72 -> 0 | S24: =Prognoser!M101 -> 0
A25: =Prognoser!A73 -> 0 | B25: 0 0 | C25: =Prognoser!C73 -> 0 | D25: =Prognoser!D73 ->  | E25: =IF(Prognoser!L73>1,Prognoser!L73,Prognoser!L102) ->  | F25: =Prognoser!E73 -> 0 | G25: =Prognoser!E102 -> 0 | H25: =Prognoser!H73 ->  | I25: =Prognoser!H102 ->  | J25: =Prognoser!J73 ->  | K25: =Prognoser!J102 ->  | L25: =Prognoser!N73 -> 0 | M25: =Prognoser!N102 -> 0 | N25: =Prognoser!K73 ->  | O25: =Prognoser!K102 ->  | P25: =INDEX('Lastning & Lossning och SFC'!$E:$E,MATCH($C25,INDIRECT("'Lastning & Lossning och SFC'!$B$"&MATCH($A25,'Lastning & Lossning och SFC'!$A:$A,0)&":$B$"&MATCH($A25,'Lastning & Lossning och SFC'!$A:$A,0)+COUNTIF('Lastning & Lossning och SFC'!$A:$A,$A25)-1))+MATCH($A25,'Lastning & Lossning och SFC'!$A:$A,0)-1) ->  | Q25: =INDEX('Lastning & Lossning och SFC'!$E:$E,MATCH($C25,INDIRECT("'Lastning & Lossning och SFC'!$B$"&MATCH($A25,'Lastning & Lossning och SFC'!$A:$A,0)&":$B$"&MATCH($A25,'Lastning & Lossning och SFC'!$A:$A,0)+COUNTIF('Lastning & Lossning och SFC'!$A:$A,$A25)-1))+MATCH($A25,'Lastning & Lossning och SFC'!$A:$A,0)-1) ->  | R25: =Prognoser!M73 -> 0 | S25: =Prognoser!M102 -> 0
A26: =Prognoser!A74 -> 0 | B26: 0 0 | C26: =Prognoser!C74 -> 0 | D26: =Prognoser!D74 ->  | E26: =IF(Prognoser!L74>1,Prognoser!L74,Prognoser!L103) ->  | F26: =Prognoser!E74 -> 0 | G26: =Prognoser!E103 -> 0 | H26: =Prognoser!H74 ->  | I26: =Prognoser!H103 ->  | J26: =Prognoser!J74 ->  | K26: =Prognoser!J103 ->  | L26: =Prognoser!N74 -> 0 | M26: =Prognoser!N103 -> 0 | N26: =Prognoser!K74 ->  | O26: =Prognoser!K103 ->  | P26: =INDEX('Lastning & Lossning och SFC'!$E:$E,MATCH($C26,INDIRECT("'Lastning & Lossning och SFC'!$B$"&MATCH($A26,'Lastning & Lossning och SFC'!$A:$A,0)&":$B$"&MATCH($A26,'Lastning & Lossning och SFC'!$A:$A,0)+COUNTIF('Lastning & Lossning och SFC'!$A:$A,$A26)-1))+MATCH($A26,'Lastning & Lossning och SFC'!$A:$A,0)-1) ->  | Q26: =INDEX('Lastning & Lossning och SFC'!$E:$E,MATCH($C26,INDIRECT("'Lastning & Lossning och SFC'!$B$"&MATCH($A26,'Lastning & Lossning och SFC'!$A:$A,0)&":$B$"&MATCH($A26,'Lastning & Lossning och SFC'!$A:$A,0)+COUNTIF('Lastning & Lossning och SFC'!$A:$A,$A26)-1))+MATCH($A26,'Lastning & Lossning och SFC'!$A:$A,0)-1) ->  | R26: =Prognoser!M74 -> 0 | S26: =Prognoser!M103 -> 0
A27: =Prognoser!A75 -> 0 | B27: 0 0 | C27: =Prognoser!C75 -> 0 | D27: =Prognoser!D75 ->  | E27: =IF(Prognoser!L75>1,Prognoser!L75,Prognoser!L104) ->  | F27: =Prognoser!E75 -> 0 | G27: =Prognoser!E104 -> 0 | H27: =Prognoser!H75 ->  | I27: =Prognoser!H104 ->  | J27: =Prognoser!J75 ->  | K27: =Prognoser!J104 ->  | L27: =Prognoser!N75 -> 0 | M27: =Prognoser!N104 -> 0 | N27: =Prognoser!K75 ->  | O27: =Prognoser!K104 ->  | P27: =INDEX('Lastning & Lossning och SFC'!$E:$E,MATCH($C27,INDIRECT("'Lastning & Lossning och SFC'!$B$"&MATCH($A27,'Lastning & Lossning och SFC'!$A:$A,0)&":$B$"&MATCH($A27,'Lastning & Lossning och SFC'!$A:$A,0)+COUNTIF('Lastning & Lossning och SFC'!$A:$A,$A27)-1))+MATCH($A27,'Lastning & Lossning och SFC'!$A:$A,0)-1) ->  | Q27: =INDEX('Lastning & Lossning och SFC'!$E:$E,MATCH($C27,INDIRECT("'Lastning & Lossning och SFC'!$B$"&MATCH($A27,'Lastning & Lossning och SFC'!$A:$A,0)&":$B$"&MATCH($A27,'Lastning & Lossning och SFC'!$A:$A,0)+COUNTIF('Lastning & Lossning och SFC'!$A:$A,$A27)-1))+MATCH($A27,'Lastning & Lossning och SFC'!$A:$A,0)-1) ->  | R27: =Prognoser!M75 -> 0 | S27: =Prognoser!M104 -> 0
A28: =Prognoser!A76 -> 0 | B28: 0 0 | C28: =Prognoser!C76 -> 0 | D28: =Prognoser!D76 ->  | E28: =IF(Prognoser!L76>1,Prognoser!L76,Prognoser!L105) ->  | F28: =Prognoser!E76 -> 0 | G28: =Prognoser!E105 -> 0 | H28: =Prognoser!H76 ->  | I28: =Prognoser!H105 ->  | J28: =Prognoser!J76 ->  | K28: =Prognoser!J105 ->  | L28: =Prognoser!N76 -> 0 | M28: =Prognoser!N105 -> 0 | N28: =Prognoser!K76 ->  | O28: =Prognoser!K105 ->  | P28: =INDEX('Lastning & Lossning och SFC'!$E:$E,MATCH($C28,INDIRECT("'Lastning & Lossning och SFC'!$B$"&MATCH($A28,'Lastning & Lossning och SFC'!$A:$A,0)&":$B$"&MATCH($A28,'Lastning & Lossning och SFC'!$A:$A,0)+COUNTIF('Lastning & Lossning och SFC'!$A:$A,$A28)-1))+MATCH($A28,'Lastning & Lossning och SFC'!$A:$A,0)-1) ->  | Q28: =INDEX('Lastning & Lossning och SFC'!$E:$E,MATCH($C28,INDIRECT("'Lastning & Lossning och SFC'!$B$"&MATCH($A28,'Lastning & Lossning och SFC'!$A:$A,0)&":$B$"&MATCH($A28,'Lastning & Lossning och SFC'!$A:$A,0)+COUNTIF('Lastning & Lossning och SFC'!$A:$A,$A28)-1))+MATCH($A28,'Lastning & Lossning och SFC'!$A:$A,0)-1) ->  | R28: =Prognoser!M76 -> 0 | S28: =Prognoser!M105 -> 0
A29: =Prognoser!A77 -> 0 | B29: 0 0 | C29: =Prognoser!C77 -> 0 | D29: =Prognoser!D77 ->  | E29: =IF(Prognoser!L77>1,Prognoser!L77,Prognoser!L106) ->  | F29: =Prognoser!E77 -> 0 | G29: =Prognoser!E106 -> 0 | H29: =Prognoser!H77 ->  | I29: =Prognoser!H106 ->  | J29: =Prognoser!J77 ->  | K29: =Prognoser!J106 ->  | L29: =Prognoser!N77 -> 0 | M29: =Prognoser!N106 -> 0 | N29: =Prognoser!K77 ->  | O29: =Prognoser!K106 ->  | P29: =INDEX('Lastning & Lossning och SFC'!$E:$E,MATCH($C29,INDIRECT("'Lastning & Lossning och SFC'!$B$"&MATCH($A29,'Lastning & Lossning och SFC'!$A:$A,0)&":$B$"&MATCH($A29,'Lastning & Lossning och SFC'!$A:$A,0)+COUNTIF('Lastning & Lossning och SFC'!$A:$A,$A29)-1))+MATCH($A29,'Lastning & Lossning och SFC'!$A:$A,0)-1) ->  | Q29: =INDEX('Lastning & Lossning och SFC'!$E:$E,MATCH($C29,INDIRECT("'Lastning & Lossning och SFC'!$B$"&MATCH($A29,'Lastning & Lossning och SFC'!$A:$A,0)&":$B$"&MATCH($A29,'Lastning & Lossning och SFC'!$A:$A,0)+COUNTIF('Lastning & Lossning och SFC'!$A:$A,$A29)-1))+MATCH($A29,'Lastning & Lossning och SFC'!$A:$A,0)-1) ->  | R29: =Prognoser!M77 -> 0 | S29: =Prognoser!M106 -> 0
A30: =Prognoser!A78 -> 0 | B30: 0 0 | C30: =Prognoser!C78 -> 0 | D30: =Prognoser!D78 ->  | E30: =IF(Prognoser!L78>1,Prognoser!L78,Prognoser!L107) ->  | F30: =Prognoser!E78 -> 0 | G30: =Prognoser!E107 -> 0 | H30: =Prognoser!H78 ->  | I30: =Prognoser!H107 ->  | J30: =Prognoser!J78 ->  | K30: =Prognoser!J107 ->  | L30: =Prognoser!N78 -> 0 | M30: =Prognoser!N107 -> 0 | N30: =Prognoser!K78 ->  | O30: =Prognoser!K107 ->  | P30: =INDEX('Lastning & Lossning och SFC'!$E:$E,MATCH($C30,INDIRECT("'Lastning & Lossning och SFC'!$B$"&MATCH($A30,'Lastning & Lossning och SFC'!$A:$A,0)&":$B$"&MATCH($A30,'Lastning & Lossning och SFC'!$A:$A,0)+COUNTIF('Lastning & Lossning och SFC'!$A:$A,$A30)-1))+MATCH($A30,'Lastning & Lossning och SFC'!$A:$A,0)-1) ->  | Q30: =INDEX('Lastning & Lossning och SFC'!$E:$E,MATCH($C30,INDIRECT("'Lastning & Lossning och SFC'!$B$"&MATCH($A30,'Lastning & Lossning och SFC'!$A:$A,0)&":$B$"&MATCH($A30,'Lastning & Lossning och SFC'!$A:$A,0)+COUNTIF('Lastning & Lossning och SFC'!$A:$A,$A30)-1))+MATCH($A30,'Lastning & Lossning och SFC'!$A:$A,0)-1) ->  | R30: =Prognoser!M78 -> 0 | S30: =Prognoser!M107 -> 0
A31: =Prognoser!A79 -> 0 | B31: 0 0 | C31: =Prognoser!C79 -> 0 | D31: =Prognoser!D79 ->  | E31: =IF(Prognoser!L79>1,Prognoser!L79,Prognoser!L108) ->  | F31: =Prognoser!E79 -> 0 | G31: =Prognoser!E108 -> 0 | H31: =Prognoser!H79 ->  | I31: =Prognoser!H108 ->  | J31: =Prognoser!J79 ->  | K31: =Prognoser!J108 ->  | L31: =Prognoser!N79 -> 0 | M31: =Prognoser!N108 -> 0 | N31: =Prognoser!K79 ->  | O31: =Prognoser!K108 ->  | P31: =INDEX('Lastning & Lossning och SFC'!$E:$E,MATCH($C31,INDIRECT("'Lastning & Lossning och SFC'!$B$"&MATCH($A31,'Lastning & Lossning och SFC'!$A:$A,0)&":$B$"&MATCH($A31,'Lastning & Lossning och SFC'!$A:$A,0)+COUNTIF('Lastning & Lossning och SFC'!$A:$A,$A31)-1))+MATCH($A31,'Lastning & Lossning och SFC'!$A:$A,0)-1) ->  | Q31: =INDEX('Lastning & Lossning och SFC'!$E:$E,MATCH($C31,INDIRECT("'Lastning & Lossning och SFC'!$B$"&MATCH($A31,'Lastning & Lossning och SFC'!$A:$A,0)&":$B$"&MATCH($A31,'Lastning & Lossning och SFC'!$A:$A,0)+COUNTIF('Lastning & Lossning och SFC'!$A:$A,$A31)-1))+MATCH($A31,'Lastning & Lossning och SFC'!$A:$A,0)-1) ->  | R31: =Prognoser!M79 -> 0 | S31: =Prognoser!M108 -> 0
A35: RETUR | C35: Fartygs-storlek | D35: Last-kapacitet | E35: Gods-volymer | F35: Antal anlöp per år (prognosår) | H35: =H5 -> Transportsträcka, enkel väg (km) | J35: =J5 -> Transporttid, enkel väg (timmar) | L35: Lotstid, anlöp (timmar) | N35: =N5 -> Fyllnadsgrad (%) | P35: Lossning (timmar) | R35: Andel utrikes effekter
A36: Fartyg | B36: Fartygsklass | C36: DWT | D36: Ton | E36: Ton/år | F36: JA | G36: UA | H36: JA | I36: UA | J36: JA | K36: UA | L36: JA | M36: UA | N36: JA | O36: UA | P36: JA | Q36: UA | R36: JA | S36: UA
A37: =A7 -> 0 | B37: 0 0 | C37: =C7 -> 0 | F37: 0 | G37: 0 | L37: 0 | M37: 0 | P37: =INDEX('Lastning & Lossning och SFC'!$E:$E,MATCH($C37,INDIRECT("'Lastning & Lossning och SFC'!$B$"&MATCH($A37,'Lastning & Lossning och SFC'!$A:$A,0)&":$B$"&MATCH($A37,'Lastning & Lossning och SFC'!$A:$A,0)+COUNTIF('Lastning & Lossning och SFC'!$A:$A,$A37)-1))+MATCH($A37,'Lastning & Lossning och SFC'!$A:$A,0)-1) ->  | Q37: =INDEX('Lastning & Lossning och SFC'!$E:$E,MATCH($C37,INDIRECT("'Lastning & Lossning och SFC'!$B$"&MATCH($A37,'Lastning & Lossning och SFC'!$A:$A,0)&":$B$"&MATCH($A37,'Lastning & Lossning och SFC'!$A:$A,0)+COUNTIF('Lastning & Lossning och SFC'!$A:$A,$A37)-1))+MATCH($A37,'Lastning & Lossning och SFC'!$A:$A,0)-1) ->  | R37: 0 | S37: 0
A38: 0 | B38: 0 0 | C38: 0 | F38: 0 | G38: 0 | L38: 0 | M38: 0 | P38: =INDEX('Lastning & Lossning och SFC'!$E:$E,MATCH($C38,INDIRECT("'Lastning & Lossning och SFC'!$B$"&MATCH($A38,'Lastning & Lossning och SFC'!$A:$A,0)&":$B$"&MATCH($A38,'Lastning & Lossning och SFC'!$A:$A,0)+COUNTIF('Lastning & Lossning och SFC'!$A:$A,$A38)-1))+MATCH($A38,'Lastning & Lossning och SFC'!$A:$A,0)-1) ->  | Q38: =INDEX('Lastning & Lossning och SFC'!$E:$E,MATCH($C38,INDIRECT("'Lastning & Lossning och SFC'!$B$"&MATCH($A38,'Lastning & Lossning och SFC'!$A:$A,0)&":$B$"&MATCH($A38,'Lastning & Lossning och SFC'!$A:$A,0)+COUNTIF('Lastning & Lossning och SFC'!$A:$A,$A38)-1))+MATCH($A38,'Lastning & Lossning och SFC'!$A:$A,0)-1) ->  | R38: 0 | S38: 0
A39: =A9 -> 0 | B39: 0 0 | C39: 0 | F39: 0 | G39: 0 | L39: 0 | M39: 0 | P39: =INDEX('Lastning & Lossning och SFC'!$E:$E,MATCH($C39,INDIRECT("'Lastning & Lossning och SFC'!$B$"&MATCH($A39,'Lastning & Lossning och SFC'!$A:$A,0)&":$B$"&MATCH($A39,'Lastning & Lossning och SFC'!$A:$A,0)+COUNTIF('Lastning & Lossning och SFC'!$A:$A,$A39)-1))+MATCH($A39,'Lastning & Lossning och SFC'!$A:$A,0)-1) ->  | Q39: =INDEX('Lastning & Lossning och SFC'!$E:$E,MATCH($C39,INDIRECT("'Lastning & Lossning och SFC'!$B$"&MATCH($A39,'Lastning & Lossning och SFC'!$A:$A,0)&":$B$"&MATCH($A39,'Lastning & Lossning och SFC'!$A:$A,0)+COUNTIF('Lastning & Lossning och SFC'!$A:$A,$A39)-1))+MATCH($A39,'Lastning & Lossning och SFC'!$A:$A,0)-1) ->  | R39: 0 | S39: 0
A40: =A10 -> 0 | B40: 0 0 | C40: 0 | F40: 0 | G40: 0 | L40: 0 | M40: 0 | P40: =INDEX('Lastning & Lossning och SFC'!$E:$E,MATCH($C40,INDIRECT("'Lastning & Lossning och SFC'!$B$"&MATCH($A40,'Lastning & Lossning och SFC'!$A:$A,0)&":$B$"&MATCH($A40,'Lastning & Lossning och SFC'!$A:$A,0)+COUNTIF('Lastning & Lossning och SFC'!$A:$A,$A40)-1))+MATCH($A40,'Lastning & Lossning och SFC'!$A:$A,0)-1) ->  | Q40: =INDEX('Lastning & Lossning och SFC'!$E:$E,MATCH($C40,INDIRECT("'Lastning & Lossning och SFC'!$B$"&MATCH($A40,'Lastning & Lossning och SFC'!$A:$A,0)&":$B$"&MATCH($A40,'Lastning & Lossning och SFC'!$A:$A,0)+COUNTIF('Lastning & Lossning och SFC'!$A:$A,$A40)-1))+MATCH($A40,'Lastning & Lossning och SFC'!$A:$A,0)-1) ->  | R40: 0 | S40: 0
A41: =A11 -> 0 | B41: 0 0 | C41: 0 | F41: 0 | G41: 0 | L41: 0 | M41: 0 | P41: =INDEX('Lastning & Lossning och SFC'!$E:$E,MATCH($C41,INDIRECT("'Lastning & Lossning och SFC'!$B$"&MATCH($A41,'Lastning & Lossning och SFC'!$A:$A,0)&":$B$"&MATCH($A41,'Lastning & Lossning och SFC'!$A:$A,0)+COUNTIF('Lastning & Lossning och SFC'!$A:$A,$A41)-1))+MATCH($A41,'Lastning & Lossning och SFC'!$A:$A,0)-1) ->  | Q41: =INDEX('Lastning & Lossning och SFC'!$E:$E,MATCH($C41,INDIRECT("'Lastning & Lossning och SFC'!$B$"&MATCH($A41,'Lastning & Lossning och SFC'!$A:$A,0)&":$B$"&MATCH($A41,'Lastning & Lossning och SFC'!$A:$A,0)+COUNTIF('Lastning & Lossning och SFC'!$A:$A,$A41)-1))+MATCH($A41,'Lastning & Lossning och SFC'!$A:$A,0)-1) ->  | R41: 0 | S41: 0
A42: =A12 -> 0 | B42: 0 0 | C42: 0 | F42: 0 | G42: 0 | L42: 0 | M42: 0 | P42: =INDEX('Lastning & Lossning och SFC'!$E:$E,MATCH($C42,INDIRECT("'Lastning & Lossning och SFC'!$B$"&MATCH($A42,'Lastning & Lossning och SFC'!$A:$A,0)&":$B$"&MATCH($A42,'Lastning & Lossning och SFC'!$A:$A,0)+COUNTIF('Lastning & Lossning och SFC'!$A:$A,$A42)-1))+MATCH($A42,'Lastning & Lossning och SFC'!$A:$A,0)-1) ->  | Q42: =INDEX('Lastning & Lossning och SFC'!$E:$E,MATCH($C42,INDIRECT("'Lastning & Lossning och SFC'!$B$"&MATCH($A42,'Lastning & Lossning och SFC'!$A:$A,0)&":$B$"&MATCH($A42,'Lastning & Lossning och SFC'!$A:$A,0)+COUNTIF('Lastning & Lossning och SFC'!$A:$A,$A42)-1))+MATCH($A42,'Lastning & Lossning och SFC'!$A:$A,0)-1) ->  | R42: 0 | S42: 0
A43: =A13 -> 0 | B43: 0 0 | C43: 0 | F43: 0 | G43: 0 | L43: 0 | M43: 0 | P43: =INDEX('Lastning & Lossning och SFC'!$E:$E,MATCH($C43,INDIRECT("'Lastning & Lossning och SFC'!$B$"&MATCH($A43,'Lastning & Lossning och SFC'!$A:$A,0)&":$B$"&MATCH($A43,'Lastning & Lossning och SFC'!$A:$A,0)+COUNTIF('Lastning & Lossning och SFC'!$A:$A,$A43)-1))+MATCH($A43,'Lastning & Lossning och SFC'!$A:$A,0)-1) ->  | Q43: =INDEX('Lastning & Lossning och SFC'!$E:$E,MATCH($C43,INDIRECT("'Lastning & Lossning och SFC'!$B$"&MATCH($A43,'Lastning & Lossning och SFC'!$A:$A,0)&":$B$"&MATCH($A43,'Lastning & Lossning och SFC'!$A:$A,0)+COUNTIF('Lastning & Lossning och SFC'!$A:$A,$A43)-1))+MATCH($A43,'Lastning & Lossning och SFC'!$A:$A,0)-1) ->  | R43: 0 | S43: 0
A44: =A14 -> 0 | B44: 0 0 | C44: 0 | F44: 0 | G44: 0 | L44: 0 | M44: 0 | P44: =INDEX('Lastning & Lossning och SFC'!$E:$E,MATCH($C44,INDIRECT("'Lastning & Lossning och SFC'!$B$"&MATCH($A44,'Lastning & Lossning och SFC'!$A:$A,0)&":$B$"&MATCH($A44,'Lastning & Lossning och SFC'!$A:$A,0)+COUNTIF('Lastning & Lossning och SFC'!$A:$A,$A44)-1))+MATCH($A44,'Lastning & Lossning och SFC'!$A:$A,0)-1) ->  | Q44: =INDEX('Lastning & Lossning och SFC'!$E:$E,MATCH($C44,INDIRECT("'Lastning & Lossning och SFC'!$B$"&MATCH($A44,'Lastning & Lossning och SFC'!$A:$A,0)&":$B$"&MATCH($A44,'Lastning & Lossning och SFC'!$A:$A,0)+COUNTIF('Lastning & Lossning och SFC'!$A:$A,$A44)-1))+MATCH($A44,'Lastning & Lossning och SFC'!$A:$A,0)-1) ->  | R44: 0 | S44: 0
A45: =A15 -> 0 | B45: 0 0 | C45: 0 | F45: 0 | G45: 0 | L45: 0 | M45: 0 | P45: =INDEX('Lastning & Lossning och SFC'!$E:$E,MATCH($C45,INDIRECT("'Lastning & Lossning och SFC'!$B$"&MATCH($A45,'Lastning & Lossning och SFC'!$A:$A,0)&":$B$"&MATCH($A45,'Lastning & Lossning och SFC'!$A:$A,0)+COUNTIF('Lastning & Lossning och SFC'!$A:$A,$A45)-1))+MATCH($A45,'Lastning & Lossning och SFC'!$A:$A,0)-1) ->  | Q45: =INDEX('Lastning & Lossning och SFC'!$E:$E,MATCH($C45,INDIRECT("'Lastning & Lossning och SFC'!$B$"&MATCH($A45,'Lastning & Lossning och SFC'!$A:$A,0)&":$B$"&MATCH($A45,'Lastning & Lossning och SFC'!$A:$A,0)+COUNTIF('Lastning & Lossning och SFC'!$A:$A,$A45)-1))+MATCH($A45,'Lastning & Lossning och SFC'!$A:$A,0)-1) ->  | R45: 0 | S45: 0
A46: =A16 -> 0 | B46: 0 0 | C46: 0 | F46: 0 | G46: 0 | L46: 0 | M46: 0 | P46: =INDEX('Lastning & Lossning och SFC'!$E:$E,MATCH($C46,INDIRECT("'Lastning & Lossning och SFC'!$B$"&MATCH($A46,'Lastning & Lossning och SFC'!$A:$A,0)&":$B$"&MATCH($A46,'Lastning & Lossning och SFC'!$A:$A,0)+COUNTIF('Lastning & Lossning och SFC'!$A:$A,$A46)-1))+MATCH($A46,'Lastning & Lossning och SFC'!$A:$A,0)-1) ->  | Q46: =INDEX('Lastning & Lossning och SFC'!$E:$E,MATCH($C46,INDIRECT("'Lastning & Lossning och SFC'!$B$"&MATCH($A46,'Lastning & Lossning och SFC'!$A:$A,0)&":$B$"&MATCH($A46,'Lastning & Lossning och SFC'!$A:$A,0)+COUNTIF('Lastning & Lossning och SFC'!$A:$A,$A46)-1))+MATCH($A46,'Lastning & Lossning och SFC'!$A:$A,0)-1) ->  | R46: 0 | S46: 0
A47: =A17 -> 0 | B47: 0 0 | C47: 0 | F47: 0 | G47: 0 | L47: 0 | M47: 0 | P47: =INDEX('Lastning & Lossning och SFC'!$E:$E,MATCH($C47,INDIRECT("'Lastning & Lossning och SFC'!$B$"&MATCH($A47,'Lastning & Lossning och SFC'!$A:$A,0)&":$B$"&MATCH($A47,'Lastning & Lossning och SFC'!$A:$A,0)+COUNTIF('Lastning & Lossning och SFC'!$A:$A,$A47)-1))+MATCH($A47,'Lastning & Lossning och SFC'!$A:$A,0)-1) ->  | Q47: =INDEX('Lastning & Lossning och SFC'!$E:$E,MATCH($C47,INDIRECT("'Lastning & Lossning och SFC'!$B$"&MATCH($A47,'Lastning & Lossning och SFC'!$A:$A,0)&":$B$"&MATCH($A47,'Lastning & Lossning och SFC'!$A:$A,0)+COUNTIF('Lastning & Lossning och SFC'!$A:$A,$A47)-1))+MATCH($A47,'Lastning & Lossning och SFC'!$A:$A,0)-1) ->  | R47: 0 | S47: 0
A48: =A18 -> 0 | B48: 0 0 | C48: 0 | F48: 0 | G48: 0 | L48: 0 | M48: 0 | P48: =INDEX('Lastning & Lossning och SFC'!$E:$E,MATCH($C48,INDIRECT("'Lastning & Lossning och SFC'!$B$"&MATCH($A48,'Lastning & Lossning och SFC'!$A:$A,0)&":$B$"&MATCH($A48,'Lastning & Lossning och SFC'!$A:$A,0)+COUNTIF('Lastning & Lossning och SFC'!$A:$A,$A48)-1))+MATCH($A48,'Lastning & Lossning och SFC'!$A:$A,0)-1) ->  | Q48: =INDEX('Lastning & Lossning och SFC'!$E:$E,MATCH($C48,INDIRECT("'Lastning & Lossning och SFC'!$B$"&MATCH($A48,'Lastning & Lossning och SFC'!$A:$A,0)&":$B$"&MATCH($A48,'Lastning & Lossning och SFC'!$A:$A,0)+COUNTIF('Lastning & Lossning och SFC'!$A:$A,$A48)-1))+MATCH($A48,'Lastning & Lossning och SFC'!$A:$A,0)-1) ->  | R48: 0 | S48: 0
A49: =A19 -> 0 | B49: 0 0 | C49: 0 | F49: 0 | G49: 0 | L49: 0 | M49: 0 | P49: =INDEX('Lastning & Lossning och SFC'!$E:$E,MATCH($C49,INDIRECT("'Lastning & Lossning och SFC'!$B$"&MATCH($A49,'Lastning & Lossning och SFC'!$A:$A,0)&":$B$"&MATCH($A49,'Lastning & Lossning och SFC'!$A:$A,0)+COUNTIF('Lastning & Lossning och SFC'!$A:$A,$A49)-1))+MATCH($A49,'Lastning & Lossning och SFC'!$A:$A,0)-1) ->  | Q49: =INDEX('Lastning & Lossning och SFC'!$E:$E,MATCH($C49,INDIRECT("'Lastning & Lossning och SFC'!$B$"&MATCH($A49,'Lastning & Lossning och SFC'!$A:$A,0)&":$B$"&MATCH($A49,'Lastning & Lossning och SFC'!$A:$A,0)+COUNTIF('Lastning & Lossning och SFC'!$A:$A,$A49)-1))+MATCH($A49,'Lastning & Lossning och SFC'!$A:$A,0)-1) ->  | R49: 0 | S49: 0
A50: =A20 -> 0 | B50: 0 0 | C50: 0 | F50: 0 | G50: 0 | L50: 0 | M50: 0 | P50: =INDEX('Lastning & Lossning och SFC'!$E:$E,MATCH($C50,INDIRECT("'Lastning & Lossning och SFC'!$B$"&MATCH($A50,'Lastning & Lossning och SFC'!$A:$A,0)&":$B$"&MATCH($A50,'Lastning & Lossning och SFC'!$A:$A,0)+COUNTIF('Lastning & Lossning och SFC'!$A:$A,$A50)-1))+MATCH($A50,'Lastning & Lossning och SFC'!$A:$A,0)-1) ->  | Q50: =INDEX('Lastning & Lossning och SFC'!$E:$E,MATCH($C50,INDIRECT("'Lastning & Lossning och SFC'!$B$"&MATCH($A50,'Lastning & Lossning och SFC'!$A:$A,0)&":$B$"&MATCH($A50,'Lastning & Lossning och SFC'!$A:$A,0)+COUNTIF('Lastning & Lossning och SFC'!$A:$A,$A50)-1))+MATCH($A50,'Lastning & Lossning och SFC'!$A:$A,0)-1) ->  | R50: 0 | S50: 0
A51: =A21 -> 0 | B51: 0 0 | C51: 0 | F51: 0 | G51: 0 | L51: 0 | M51: 0 | P51: =INDEX('Lastning & Lossning och SFC'!$E:$E,MATCH($C51,INDIRECT("'Lastning & Lossning och SFC'!$B$"&MATCH($A51,'Lastning & Lossning och SFC'!$A:$A,0)&":$B$"&MATCH($A51,'Lastning & Lossning och SFC'!$A:$A,0)+COUNTIF('Lastning & Lossning och SFC'!$A:$A,$A51)-1))+MATCH($A51,'Lastning & Lossning och SFC'!$A:$A,0)-1) ->  | Q51: =INDEX('Lastning & Lossning och SFC'!$E:$E,MATCH($C51,INDIRECT("'Lastning & Lossning och SFC'!$B$"&MATCH($A51,'Lastning & Lossning och SFC'!$A:$A,0)&":$B$"&MATCH($A51,'Lastning & Lossning och SFC'!$A:$A,0)+COUNTIF('Lastning & Lossning och SFC'!$A:$A,$A51)-1))+MATCH($A51,'Lastning & Lossning och SFC'!$A:$A,0)-1) ->  | R51: 0 | S51: 0
A52: =A22 -> 0 | B52: 0 0 | C52: 0 | F52: 0 | G52: 0 | L52: 0 | M52: 0 | P52: =INDEX('Lastning & Lossning och SFC'!$E:$E,MATCH($C52,INDIRECT("'Lastning & Lossning och SFC'!$B$"&MATCH($A52,'Lastning & Lossning och SFC'!$A:$A,0)&":$B$"&MATCH($A52,'Lastning & Lossning och SFC'!$A:$A,0)+COUNTIF('Lastning & Lossning och SFC'!$A:$A,$A52)-1))+MATCH($A52,'Lastning & Lossning och SFC'!$A:$A,0)-1) ->  | Q52: =INDEX('Lastning & Lossning och SFC'!$E:$E,MATCH($C52,INDIRECT("'Lastning & Lossning och SFC'!$B$"&MATCH($A52,'Lastning & Lossning och SFC'!$A:$A,0)&":$B$"&MATCH($A52,'Lastning & Lossning och SFC'!$A:$A,0)+COUNTIF('Lastning & Lossning och SFC'!$A:$A,$A52)-1))+MATCH($A52,'Lastning & Lossning och SFC'!$A:$A,0)-1) ->  | R52: 0 | S52: 0
A53: =A23 -> 0 | B53: 0 0 | C53: 0 | F53: 0 | G53: 0 | L53: 0 | M53: 0 | P53: =INDEX('Lastning & Lossning och SFC'!$E:$E,MATCH($C53,INDIRECT("'Lastning & Lossning och SFC'!$B$"&MATCH($A53,'Lastning & Lossning och SFC'!$A:$A,0)&":$B$"&MATCH($A53,'Lastning & Lossning och SFC'!$A:$A,0)+COUNTIF('Lastning & Lossning och SFC'!$A:$A,$A53)-1))+MATCH($A53,'Lastning & Lossning och SFC'!$A:$A,0)-1) ->  | Q53: =INDEX('Lastning & Lossning och SFC'!$E:$E,MATCH($C53,INDIRECT("'Lastning & Lossning och SFC'!$B$"&MATCH($A53,'Lastning & Lossning och SFC'!$A:$A,0)&":$B$"&MATCH($A53,'Lastning & Lossning och SFC'!$A:$A,0)+COUNTIF('Lastning & Lossning och SFC'!$A:$A,$A53)-1))+MATCH($A53,'Lastning & Lossning och SFC'!$A:$A,0)-1) ->  | R53: 0 | S53: 0
A54: =A24 -> 0 | B54: 0 0 | C54: 0 | F54: 0 | G54: 0 | L54: 0 | M54: 0 | P54: =INDEX('Lastning & Lossning och SFC'!$E:$E,MATCH($C54,INDIRECT("'Lastning & Lossning och SFC'!$B$"&MATCH($A54,'Lastning & Lossning och SFC'!$A:$A,0)&":$B$"&MATCH($A54,'Lastning & Lossning och SFC'!$A:$A,0)+COUNTIF('Lastning & Lossning och SFC'!$A:$A,$A54)-1))+MATCH($A54,'Lastning & Lossning och SFC'!$A:$A,0)-1) ->  | Q54: =INDEX('Lastning & Lossning och SFC'!$E:$E,MATCH($C54,INDIRECT("'Lastning & Lossning och SFC'!$B$"&MATCH($A54,'Lastning & Lossning och SFC'!$A:$A,0)&":$B$"&MATCH($A54,'Lastning & Lossning och SFC'!$A:$A,0)+COUNTIF('Lastning & Lossning och SFC'!$A:$A,$A54)-1))+MATCH($A54,'Lastning & Lossning och SFC'!$A:$A,0)-1) ->  | R54: 0 | S54: 0
A55: =A25 -> 0 | B55: 0 0 | C55: 0 | F55: 0 | G55: 0 | L55: 0 | M55: 0 | P55: =INDEX('Lastning & Lossning och SFC'!$E:$E,MATCH($C55,INDIRECT("'Lastning & Lossning och SFC'!$B$"&MATCH($A55,'Lastning & Lossning och SFC'!$A:$A,0)&":$B$"&MATCH($A55,'Lastning & Lossning och SFC'!$A:$A,0)+COUNTIF('Lastning & Lossning och SFC'!$A:$A,$A55)-1))+MATCH($A55,'Lastning & Lossning och SFC'!$A:$A,0)-1) ->  | Q55: =INDEX('Lastning & Lossning och SFC'!$E:$E,MATCH($C55,INDIRECT("'Lastning & Lossning och SFC'!$B$"&MATCH($A55,'Lastning & Lossning och SFC'!$A:$A,0)&":$B$"&MATCH($A55,'Lastning & Lossning och SFC'!$A:$A,0)+COUNTIF('Lastning & Lossning och SFC'!$A:$A,$A55)-1))+MATCH($A55,'Lastning & Lossning och SFC'!$A:$A,0)-1) ->  | R55: 0 | S55: 0
A56: =A26 -> 0 | B56: 0 0 | C56: 0 | F56: 0 | G56: 0 | L56: 0 | M56: 0 | P56: =INDEX('Lastning & Lossning och SFC'!$E:$E,MATCH($C56,INDIRECT("'Lastning & Lossning och SFC'!$B$"&MATCH($A56,'Lastning & Lossning och SFC'!$A:$A,0)&":$B$"&MATCH($A56,'Lastning & Lossning och SFC'!$A:$A,0)+COUNTIF('Lastning & Lossning och SFC'!$A:$A,$A56)-1))+MATCH($A56,'Lastning & Lossning och SFC'!$A:$A,0)-1) ->  | Q56: =INDEX('Lastning & Lossning och SFC'!$E:$E,MATCH($C56,INDIRECT("'Lastning & Lossning och SFC'!$B$"&MATCH($A56,'Lastning & Lossning och SFC'!$A:$A,0)&":$B$"&MATCH($A56,'Lastning & Lossning och SFC'!$A:$A,0)+COUNTIF('Lastning & Lossning och SFC'!$A:$A,$A56)-1))+MATCH($A56,'Lastning & Lossning och SFC'!$A:$A,0)-1) ->  | R56: 0 | S56: 0
A57: =A27 -> 0 | B57: 0 0 | C57: 0 | F57: 0 | G57: 0 | L57: 0 | M57: 0 | P57: =INDEX('Lastning & Lossning och SFC'!$E:$E,MATCH($C57,INDIRECT("'Lastning & Lossning och SFC'!$B$"&MATCH($A57,'Lastning & Lossning och SFC'!$A:$A,0)&":$B$"&MATCH($A57,'Lastning & Lossning och SFC'!$A:$A,0)+COUNTIF('Lastning & Lossning och SFC'!$A:$A,$A57)-1))+MATCH($A57,'Lastning & Lossning och SFC'!$A:$A,0)-1) ->  | Q57: =INDEX('Lastning & Lossning och SFC'!$E:$E,MATCH($C57,INDIRECT("'Lastning & Lossning och SFC'!$B$"&MATCH($A57,'Lastning & Lossning och SFC'!$A:$A,0)&":$B$"&MATCH($A57,'Lastning & Lossning och SFC'!$A:$A,0)+COUNTIF('Lastning & Lossning och SFC'!$A:$A,$A57)-1))+MATCH($A57,'Lastning & Lossning och SFC'!$A:$A,0)-1) ->  | R57: 0 | S57: 0
A58: =A28 -> 0 | B58: 0 0 | C58: 0 | F58: 0 | G58: 0 | L58: 0 | M58: 0 | P58: =INDEX('Lastning & Lossning och SFC'!$E:$E,MATCH($C58,INDIRECT("'Lastning & Lossning och SFC'!$B$"&MATCH($A58,'Lastning & Lossning och SFC'!$A:$A,0)&":$B$"&MATCH($A58,'Lastning & Lossning och SFC'!$A:$A,0)+COUNTIF('Lastning & Lossning och SFC'!$A:$A,$A58)-1))+MATCH($A58,'Lastning & Lossning och SFC'!$A:$A,0)-1) ->  | Q58: =INDEX('Lastning & Lossning och SFC'!$E:$E,MATCH($C58,INDIRECT("'Lastning & Lossning och SFC'!$B$"&MATCH($A58,'Lastning & Lossning och SFC'!$A:$A,0)&":$B$"&MATCH($A58,'Lastning & Lossning och SFC'!$A:$A,0)+COUNTIF('Lastning & Lossning och SFC'!$A:$A,$A58)-1))+MATCH($A58,'Lastning & Lossning och SFC'!$A:$A,0)-1) ->  | R58: 0 | S58: 0
A59: =A29 -> 0 | B59: 0 0 | C59: 0 | F59: 0 | G59: 0 | L59: 0 | M59: 0 | P59: =INDEX('Lastning & Lossning och SFC'!$E:$E,MATCH($C59,INDIRECT("'Lastning & Lossning och SFC'!$B$"&MATCH($A59,'Lastning & Lossning och SFC'!$A:$A,0)&":$B$"&MATCH($A59,'Lastning & Lossning och SFC'!$A:$A,0)+COUNTIF('Lastning & Lossning och SFC'!$A:$A,$A59)-1))+MATCH($A59,'Lastning & Lossning och SFC'!$A:$A,0)-1) ->  | Q59: =INDEX('Lastning & Lossning och SFC'!$E:$E,MATCH($C59,INDIRECT("'Lastning & Lossning och SFC'!$B$"&MATCH($A59,'Lastning & Lossning och SFC'!$A:$A,0)&":$B$"&MATCH($A59,'Lastning & Lossning och SFC'!$A:$A,0)+COUNTIF('Lastning & Lossning och SFC'!$A:$A,$A59)-1))+MATCH($A59,'Lastning & Lossning och SFC'!$A:$A,0)-1) ->  | R59: 0 | S59: 0
A60: =A30 -> 0 | B60: 0 0 | C60: 0 | F60: 0 | G60: 0 | L60: 0 | M60: 0 | P60: =INDEX('Lastning & Lossning och SFC'!$E:$E,MATCH($C60,INDIRECT("'Lastning & Lossning och SFC'!$B$"&MATCH($A60,'Lastning & Lossning och SFC'!$A:$A,0)&":$B$"&MATCH($A60,'Lastning & Lossning och SFC'!$A:$A,0)+COUNTIF('Lastning & Lossning och SFC'!$A:$A,$A60)-1))+MATCH($A60,'Lastning & Lossning och SFC'!$A:$A,0)-1) ->  | Q60: =INDEX('Lastning & Lossning och SFC'!$E:$E,MATCH($C60,INDIRECT("'Lastning & Lossning och SFC'!$B$"&MATCH($A60,'Lastning & Lossning och SFC'!$A:$A,0)&":$B$"&MATCH($A60,'Lastning & Lossning och SFC'!$A:$A,0)+COUNTIF('Lastning & Lossning och SFC'!$A:$A,$A60)-1))+MATCH($A60,'Lastning & Lossning och SFC'!$A:$A,0)-1) ->  | R60: 0 | S60: 0
A61: =A31 -> 0 | B61: 0 0 | C61: 0 | F61: 0 | G61: 0 | L61: 0 | M61: 0 | P61: =INDEX('Lastning & Lossning och SFC'!$E:$E,MATCH($C61,INDIRECT("'Lastning & Lossning och SFC'!$B$"&MATCH($A61,'Lastning & Lossning och SFC'!$A:$A,0)&":$B$"&MATCH($A61,'Lastning & Lossning och SFC'!$A:$A,0)+COUNTIF('Lastning & Lossning och SFC'!$A:$A,$A61)-1))+MATCH($A61,'Lastning & Lossning och SFC'!$A:$A,0)-1) ->  | Q61: =INDEX('Lastning & Lossning och SFC'!$E:$E,MATCH($C61,INDIRECT("'Lastning & Lossning och SFC'!$B$"&MATCH($A61,'Lastning & Lossning och SFC'!$A:$A,0)&":$B$"&MATCH($A61,'Lastning & Lossning och SFC'!$A:$A,0)+COUNTIF('Lastning & Lossning och SFC'!$A:$A,$A61)-1))+MATCH($A61,'Lastning & Lossning och SFC'!$A:$A,0)-1) ->  | R61: 0 | S61: 0

Sheet Kontroll (hidden)
A2: Kontrollark | C2: Operativa kostnader | D2: Kapitalkostnader | E2: Drift av hjälQmaskiner | F2: Torrdockning (TEU) | G2: jämförelse | M2: "Universella parametrar"
A3: Container | B3: Mats | C3: =JA!J7 -> 0 | D3: =JA!N7 -> 0 | E3: =JA!P7 -> 0 | F3: =JA!T7 -> 0 | G3: =SUM(C3:F3)-SUM(C4:F4) -> -4219.910243 | M3: Dollarkurs | N3: 7.61
A4: 16000 | B4: Henrik | C4: 1814.864491 | D4: 1592.71585 | E4: 649.9845049 | F4: 162.345397 | M4: Driftdagar | N4: 345
A5: Dry_Bulk | B5: Mats | C5: =JA!J8 -> 0 | D5: =JA!N8 -> 0 | E5: =JA!P8 -> 0 | F5: =JA!T8 -> 0 | G5: =SUM(C5:F5)-SUM(C6:F6) -> -4092.738984 | M5: Drift, tim/dygn | N5: 24
A6: 40000 | B6: Henrik | C6: 1832.24112 | D6: 1614.6652 | E6: 426.2106393 | F6: 219.6220242 | M6: Drifttimmar per år | N6: 8280
A7: Liquid_Bulk | B7: Mats | C7: =JA!J9 -> 0 | D7: =JA!N9 -> 0 | E7: =JA!P9 -> 0 | F7: =JA!T9 -> 0 | G7: =SUM(C7:F7)-SUM(C8:F8) -> -2117.730942 | M7: Låneränta, (ASEK) | N7: 0.05
A8: 1000 | B8: Henrik | C8: 1588.735494 | D8: 255.2000025 | E8: 126.0530837 | F8: 147.7423618 | M8: Ränta eget kapital | N8: 0.1
A9: General_Cargo | B9: Mats | C9: =JA!J10 -> 0 | D9: =JA!N10 -> 0 | E9: =JA!P10 -> 0 | F9: =JA!T10 -> 0 | G9: =SUM(C9:F9)-SUM(C10:F10) -> -2587.272388 | M9: Andel eget kapital | N9: 0.1
A10: 10000 | B10: Henrik | C10: 1390.834429 | D10: 802.9340989 | E10: 253.515125 | F10: 139.9887352 | M10: Snittränta | N10: 0.055
A11: RoRo | B11: Mats | C11: =JA!J11 -> 0 | D11: =JA!N11 -> 0 | E11: =JA!P11 -> 0 | F11: =JA!T11 -> 0 | G11: =SUM(C11:F11)-SUM(C12:F12) -> -3199.709957 | M11: Fartygets avskrivningstid | N11: 25
A12: 6300 | B12: Henrik | C12: 1295.312982 | D12: 1376.184344 | E12: 407.7346549 | F12: 120.4779761 | M12: Restvärde procent | N12: 0.1
A13: Road_Ferry | B13: Mats | C13: =JA!J12 -> 0 | D13: =JA!N12 -> 0 | E13: =JA!P12 -> 0 | F13: =JA!T12 -> 0 | G13: =SUM(C13:F13)-SUM(C14:F14) -> -4695.526757 | M13: Utnyttjande av aux eng andel | N13: 0.245
A14: 2500 | B14: Henrik | C14: 2262.123947 | D14: 1865.875706 | E14: 477.1253112 | F14: 90.40179242 | M14: Bränslepris aux engines $/ton | N14: 630
A15: Rail_Ferry | B15: Mats | C15: =JA!J13 -> 0 | D15: =JA!N13 -> 0 | E15: =JA!P13 -> 0 | F15: =JA!T13 -> 0 | G15: =SUM(C15:F15)-SUM(C16:F16) -> -4695.526757 | M15: DWT/TEU | N15: 11.26
A16: 2500 | B16: Henrik | C16: 2262.123947 | D16: 1865.875706 | E16: 477.1253112 | F16: 90.40179242 | M16: MGO USD/MT | N16: =630/1000 -> 0.63
A28: Detta klistras in i grunduppgifter för att kolla att Tidsberoende kostnader stämmer med Henriks saker
A29: Container | B29: 16000 | C29: 51 | D29: 78 | E29: 5 | F29: 5 | G29: 1 | H29: 3 | I29: 6 | J29: 1 | K29: 1 | L29: 1
A30: Dry_Bulk | B30: 40000 | C30: 0 | D30: =L30/B30 -> 2.5e-05 | E30: 5 | F30: 5 | G30: 1 | H30: 3 | I30: 6 | J30: 1 | K30: 1 | L30: 1
A31: Liquid_Bulk | B31: 1000 | C31: 51 | D31: 78 | E31: 5 | F31: 5 | G31: 1 | H31: 3 | I31: 6 | J31: 1 | K31: 1 | L31: 1
A32: General_Cargo | B32: 10000 | C32: 51 | D32: 78 | E32: 5 | F32: 5 | G32: 1 | H32: 3 | I32: 6 | J32: 1 | K32: 1 | L32: 1
A33: RoRo | B33: 6300 | C33: 51 | D33: 78 | E33: 5 | F33: 5 | G33: 1 | H33: 3 | I33: 6 | J33: 1 | K33: 1 | L33: 1
A34: Road_Ferry | B34: =10000/4.83 -> 2070.393375 | C34: 51 | D34: 78 | E34: 5 | F34: 5 | G34: 1 | H34: 3 | I34: 6 | J34: 1 | K34: 1 | L34: 1
A35: Rail_Ferry | B35: 2500 | C35: 51 | D35: 78 | E35: 5 | F35: 5 | G35: 1 | H35: 3 | I35: 6 | J35: 1 | K35: 1 | L35: 1

Sheet JA
B4: GRUNDUPPGIFTER | L4: DISTANSBEROENDE KOSTNADER | P4: TIDSBEROENDE KOSTNADER | AA4: LASTNING & LOSSNINGSKOSTNADER | AD4: LOTSKOSTNADER | AF4: EMISSIONER
P5: Operativ kostnad | R5: Kapitalkostnad | U5: Kostnad hjälpmaskiner | W5: Torrdockningskostnad
A6: Fartygsklass | B6: DWT per fartygsklass | C6: Last-kapacitet (ton) | D6: Gods-volymer (ton per år) | E6: Antal fartygsanlöp per år | F6: Transport-sträcka (km) | G6: Transporttid (h) | H6: Lotstid (h) | I6: Fyllnadsgrad (%) | J6: Lastnings- & lossningstid (h) | K6: Utrikes = 0,5 Inrikes = 1 | L6: Bränsle-förbrukning (kg/km) | M6: Årlig bränsle-förbrukning (ton) | N6: Distansberoende kostnad (kr/km) | O6: Total distansberoende kostnad (kr/år) | P6: Operativ kostnad (kr/år) | Q6: Operativ kostnad (kr/h) | R6: Skattat inköpspris fartyg (dollar) | S6: Kapital-kostnad (kr/år) | T6: Kapital-kostnad (kr/h) | U6: Kostnad hjälpmaskiner (kr/år) | V6: Kostnad hjälpmaskiner (kr/h) | W6: Torrdocknings-kostnad (kr/år) | X6: Torrdocknings-kostnad (kr/h) | Y6: Tidsberoende kostnad (kr/h) | Z6: Total tidsberoende kostnad (kr/år) | AA6: Lastning- & lossningskostnad (kr/ton) | AB6: Total lastning- & lossningskostnad (kr/år) | AC6: Tidsberoende kostnader avseende lastning & lossning (kr/år) | AD6: Lotskostnader (kr/fartyg och lotsning) | AE6: Totala lotskostnader (kr/år) | AF6: Årliga utsläpp CO2 (ton) | AG6: Årliga utsläpp NOx (ton) | AH6: Årliga utsläpp VOC (ton) | AI6: Årliga utsläpp SO2 (ton) | AJ6: Årliga utsläpp NH3 (ton) | AK6: Årliga utsläpp PM (ton) | AL6: Total årlig kostnad CO2 (kr/år) | AM6: Total årlig kostnad NOx (kr/år) | AN6: Total årlig kostnad VOC (kr/år) | AO6: Total årlig kostnad SO2 (kr/år) | AP6: Total årlig kostnad NH3 (kr/år) | AQ6: Total årlig kostnad PM (kr/år)
B34: GRUNDUPPGIFTER | L34: DISTANSBEROENDE KOSTNADER | P34: TIDSBEROENDE KOSTNADER | AA34: LASTNING & LOSSNINGSKOSTNADER | AD34: LOTSKOSTNADER | AF34: EMISSIONER
P35: Operativ kostnad | R35: Kapitalkostnad | U35: Kostnad hjälpmaskiner | W35: Torrdockningskostnad
A36: Fartygsklass | B36: DWT per fartygsklass | C36: Last-kapacitet (ton) | D36: Gods-volymer (ton per år) | E36: Antal fartygsanlöp per år | F36: Transport-sträcka (km) | G36: Transporttid (h) | H36: Lotstid (h) | I36: Fyllnadsgrad (%) | J36: Lastnings- & lossningstid (h) | K36: Utrikes = 0,5 Inrikes = 1 | L36: Bränsle-förbrukning (kg/km) | M36: Årlig bränsle-förbrukning (ton) | N36: Distansberoende kostnad (kr/km) | O36: Total distansberoende kostnad (kr/år) | P36: Operativ kostnad (kr/år) | Q36: Operativ kostnad (kr/h) | R36: Skattat inköpspris fartyg (dollar) | S36: Kapital-kostnad (kr/år) | T36: Kapital-kostnad (kr/h) | U36: Kostnad hjälpmaskiner (kr/år) | V36: Kostnad hjälpmaskiner (kr/h) | W36: Torrdocknings-kostnad (kr/år) | X36: Torrdocknings-kostnad (kr/h) | Y36: Tidsberoende kostnad (kr/h) | Z36: Total tidsberoende kostnad (kr/år) | AA36: Lastning- & lossningskostnad (kr/ton) | AB36: Total lastning- & lossningskostnad (kr/år) | AC36: Tidsberoende kostnader avseende lastning & lossning (kr/år) | AD36: Lotskostnader (kr/fartyg och lotsning) | AE36: Totala lotskostnader (kr/år) | AF36: Årliga utsläpp CO2 (ton) | AG36: Årliga utsläpp NOx (ton) | AH36: Årliga utsläpp VOC (ton) | AI36: Årliga utsläpp SO2 (ton) | AJ36: Årliga utsläpp NH3 (ton) | AK36: Årliga utsläpp PM (ton) | AL36: Total årlig kostnad CO2 (kr/år) | AM36: Total årlig kostnad NOx (kr/år) | AN36: Total årlig kostnad VOC (kr/år) | AO36: Total årlig kostnad SO2 (kr/år) | AP36: Total årlig kostnad NH3 (kr/år) | AQ36: Total årlig kostnad PM (kr/år)

Sheet UA
B4: GRUNDUPPGIFTER | L4: DISTANSBEROENDE KOSTNADER | P4: TIDSBEROENDE KOSTNADER | AA4: LASTNING & LOSSNINGSKOSTNADER | AD4: LOTSKOSTNADER | AF4: EMISSIONER
P5: Operativ kostnad | R5: Kapitalkostnad | U5: Kostnad hjälpmaskiner | W5: Torrdockningskostnad
A6: Fartygsklass | B6: DWT per fartygsklass | C6: Last-kapacitet (ton) | D6: Gods-volymer (ton per år) | E6: Antal fartygsanlöp per år | F6: Transport-sträcka (km) | G6: Transporttid (h) | H6: Lotstid (h) | I6: Fyllnadsgrad (%) | J6: Lastnings- & lossningstid (h) | K6: Utrikes = 0,5 Inrikes = 1 | L6: Bränsle-förbrukning (kg/km) | M6: Årlig bränsle-förbrukning (ton) | N6: Distansberoende kostnad (kr/km) | O6: Total distansberoende kostnad (kr/år) | P6: Operativ kostnad (kr/år) | Q6: Operativ kostnad (kr/h) | R6: Skattat inköpspris fartyg (dollar) | S6: Kapital-kostnad (kr/år) | T6: Kapital-kostnad (kr/h) | U6: Kostnad hjälpmaskiner (kr/år) | V6: Kostnad hjälpmaskiner (kr/h) | W6: Torrdocknings-kostnad (kr/år) | X6: Torrdocknings-kostnad (kr/h) | Y6: Tidsberoende kostnad (kr/h) | Z6: Total tidsberoende kostnad (kr/år) | AA6: Lastning- & lossningskostnad (kr/ton) | AB6: Total lastning- & lossningskostnad (kr/år) | AC6: Tidsberoende kostnader avseende lastning & lossning (kr/år) | AD6: Lotskostnader (kr/fartyg och lotsning) | AE6: Totala lotskostnader (kr/år) | AF6: Årliga utsläpp CO2 (ton) | AG6: Årliga utsläpp NOx (ton) | AH6: Årliga utsläpp VOC (ton) | AI6: Årliga utsläpp SO2 (ton) | AJ6: Årliga utsläpp NH3 (ton) | AK6: Årliga utsläpp PM (ton) | AL6: Total årlig kostnad CO2 (kr/år) | AM6: Total årlig kostnad NOx (kr/år) | AN6: Total årlig kostnad VOC (kr/år) | AO6: Total årlig kostnad SO2 (kr/år) | AP6: Total årlig kostnad NH3 (kr/år) | AQ6: Total årlig kostnad PM (kr/år)
B34: GRUNDUPPGIFTER | L34: DISTANSBEROENDE KOSTNADER | P34: TIDSBEROENDE KOSTNADER | AA34: LASTNING & LOSSNINGSKOSTNADER | AD34: LOTSKOSTNADER | AF34: EMISSIONER
P35: Operativ kostnad | R35: Kapitalkostnad | U35: Kostnad hjälpmaskiner | W35: Torrdockningskostnad
A36: Fartygsklass | B36: DWT per fartygsklass | C36: Last-kapacitet (ton) | D36: Gods-volymer (ton per år) | E36: Antal fartygsanlöp per år | F36: Transport-sträcka (km) | G36: Transporttid (h) | H36: Lotstid (h) | I36: Fyllnadsgrad (%) | J36: Lastnings- & lossningstid (h) | K36: Utrikes = 0,5 Inrikes = 1 | L36: Bränsle-förbrukning (kg/km) | M36: Årlig bränsle-förbrukning (ton) | N36: Distansberoende kostnad (kr/km) | O36: Total distansberoende kostnad (kr/år) | P36: Operativ kostnad (kr/år) | Q36: Operativ kostnad (kr/h) | R36: Skattat inköpspris fartyg (dollar) | S36: Kapital-kostnad (kr/år) | T36: Kapital-kostnad (kr/h) | U36: Kostnad hjälpmaskiner (kr/år) | V36: Kostnad hjälpmaskiner (kr/h) | W36: Torrdocknings-kostnad (kr/år) | X36: Torrdocknings-kostnad (kr/h) | Y36: Tidsberoende kostnad (kr/h) | Z36: Total tidsberoende kostnad (kr/år) | AA36: Lastning- & lossningskostnad (kr/ton) | AB36: Total lastning- & lossningskostnad (kr/år) | AC36: Tidsberoende kostnader avseende lastning & lossning (kr/år) | AD36: Lotskostnader (kr/fartyg och lotsning) | AE36: Totala lotskostnader (kr/år) | AF36: Årliga utsläpp CO2 (ton) | AG36: Årliga utsläpp NOx (ton) | AH36: Årliga utsläpp VOC (ton) | AI36: Årliga utsläpp SO2 (ton) | AJ36: Årliga utsläpp NH3 (ton) | AK36: Årliga utsläpp PM (ton) | AL36: Total årlig kostnad CO2 (kr/år) | AM36: Total årlig kostnad NOx (kr/år) | AN36: Total årlig kostnad VOC (kr/år) | AO36: Total årlig kostnad SO2 (kr/år) | AP36: Total årlig kostnad NH3 (kr/år) | AQ36: Total årlig kostnad PM (kr/år)

Sheet Effektberäkningar HA
A1: RESULTAT EFFEKTBERÄKNINGAR
A4: =Indata!A3 -> Vald ASEK-version: | B4: =Indata!B3 -> ASEK 7.1 | D4: radnr i flik "Indata" | E4: =E16 -> 2017 | F4: =F16 -> 2018 | G4: 2019 | H4: 2020 | I4: 2021 | J4: 2022 | K4: 2023 | L4: 2024 | M4: 2025 | N4: 2026 | O4: 2027 | P4: 2028 | Q4: 2029 | R4: 2030 | S4: 2031 | T4: 2032 | U4: 2033 | V4: 2034 | W4: 2035 | X4: 2036 | Y4: 2037 | Z4: 2038 | AA4: 2039 | AB4: 2040 | AC4: 2041 | AD4: 2042 | AE4: 2043 | AF4: 2044 | AG4: 2045 | AH4: 2046 | AI4: 2047 | AJ4: 2048 | AK4: 2049 | AL4: 2050 | AM4: 2051 | AN4: 2052 | AO4: 2053 | AP4: 2054 | AQ4: 2055 | AR4: 2056 | AS4: 2057 | AT4: 2058 | AU4: 2059 | AV4: 2060 | AW4: 2061 | AX4: 2062 | AY4: 2063 | AZ4: 2064 | BA4: 2065 | BB4: 2066 | BC4: 2067 | BD4: 2068 | BE4: 2069 | BF4: 2070 | BG4: 2071 | BH4: 2072 | BI4: 2073 | BJ4: 2074 | BK4: 2075 | BL4: 2076 | BM4: 2077 | BN4: 2078 | BO4: 2079 | BP4: 2080 | BQ4: 2081 | BR4: =BR16 -> 2082 | BS4: 2083 | BT4: 2084 | BU4: 2085 | BV4: 2086 | BW4: 2087 | BX4: 2088 | BY4: 2089 | BZ4: 2090 | CA4: 2091 | CB4: 2092 | CC4: 2093 | CD4: 2094 | CE4: 2095 | CF4: 2096 | CG4: 2097 | CH4: 2098 | CI4: 2099 | CJ4: 2100 | CK4: 2101 | CL4: 2102 | CM4: 2103 | CN4: 2104 | CO4: 2105 | CP4: 2106 | CQ4: 2107 | CR4: 2108 | CS4: 2109 | CT4: 2110
A5: Basår | B5: =Indata!B13 -> 2017 | C5: Uppräkning bränslepris | D5: =MATCH("Bprisupp1",Indata!F:F,0) -> 23 | E5: =IF(E$4>$B$10,D5,IF(E$4<$B$9,INDEX(Indata!$B:$B,$D5),INDEX(Indata!$B:$B,$D5+1))^(E$4-$B$5)) -> 1 | F5: =IF(F$4>$B$10,E5,IF(F$4<$B$9,INDEX(Indata!$B:$B,$D5),INDEX(Indata!$B:$B,$D5+1))^(F$4-$B$5)) -> 1.013 | G5: =IF(G$4>$B$10,F5,IF(G$4<$B$9,INDEX(Indata!$B:$B,$D5),INDEX(Indata!$B:$B,$D5+1))^(G$4-$B$5)) -> 1.026169 | H5: =IF(H$4>$B$10,G5,IF(H$4<$B$9,INDEX(Indata!$B:$B,$D5),INDEX(Indata!$B:$B,$D5+1))^(H$4-$B$5)) -> 1.039509197 | I5: =IF(I$4>$B$10,H5,IF(I$4<$B$9,INDEX(Indata!$B:$B,$D5),INDEX(Indata!$B:$B,$D5+1))^(I$4-$B$5)) -> 1.053022817 | J5: =IF(J$4>$B$10,I5,IF(J$4<$B$9,INDEX(Indata!$B:$B,$D5),INDEX(Indata!$B:$B,$D5+1))^(J$4-$B$5)) -> 1.066712113 | K5: =IF(K$4>$B$10,J5,IF(K$4<$B$9,INDEX(Indata!$B:$B,$D5),INDEX(Indata!$B:$B,$D5+1))^(K$4-$B$5)) -> 1.080579371 | L5: =IF(L$4>$B$10,K5,IF(L$4<$B$9,INDEX(Indata!$B:$B,$D5),INDEX(Indata!$B:$B,$D5+1))^(L$4-$B$5)) -> 1.094626902 | M5: =IF(M$4>$B$10,L5,IF(M$4<$B$9,INDEX(Indata!$B:$B,$D5),INDEX(Indata!$B:$B,$D5+1))^(M$4-$B$5)) -> 1.108857052 | N5: =IF(N$4>$B$10,M5,IF(N$4<$B$9,INDEX(Indata!$B:$B,$D5),INDEX(Indata!$B:$B,$D5+1))^(N$4-$B$5)) -> 1.123272194 | O5: =IF(O$4>$B$10,N5,IF(O$4<$B$9,INDEX(Indata!$B:$B,$D5),INDEX(Indata!$B:$B,$D5+1))^(O$4-$B$5)) -> 1.137874732 | P5: =IF(P$4>$B$10,O5,IF(P$4<$B$9,INDEX(Indata!$B:$B,$D5),INDEX(Indata!$B:$B,$D5+1))^(P$4-$B$5)) -> 1.152667104 | Q5: =IF(Q$4>$B$10,P5,IF(Q$4<$B$9,INDEX(Indata!$B:$B,$D5),INDEX(Indata!$B:$B,$D5+1))^(Q$4-$B$5)) -> 1.167651776 | R5: =IF(R$4>$B$10,Q5,IF(R$4<$B$9,INDEX(Indata!$B:$B,$D5),INDEX(Indata!$B:$B,$D5+1))^(R$4-$B$5)) -> 1.182831249 | S5: =IF(S$4>$B$10,R5,IF(S$4<$B$9,INDEX(Indata!$B:$B,$D5),INDEX(Indata!$B:$B,$D5+1))^(S$4-$B$5)) -> 1.198208056 | T5: =IF(T$4>$B$10,S5,IF(T$4<$B$9,INDEX(Indata!$B:$B,$D5),INDEX(Indata!$B:$B,$D5+1))^(T$4-$B$5)) -> 1.21378476 | U5: =IF(U$4>$B$10,T5,IF(U$4<$B$9,INDEX(Indata!$B:$B,$D5),INDEX(Indata!$B:$B,$D5+1))^(U$4-$B$5)) -> 1.229563962 | V5: =IF(V$4>$B$10,U5,IF(V$4<$B$9,INDEX(Indata!$B:$B,$D5),INDEX(Indata!$B:$B,$D5+1))^(V$4-$B$5)) -> 1.245548294 | W5: =IF(W$4>$B$10,V5,IF(W$4<$B$9,INDEX(Indata!$B:$B,$D5),INDEX(Indata!$B:$B,$D5+1))^(W$4-$B$5)) -> 1.261740422 | X5: =IF(X$4>$B$10,W5,IF(X$4<$B$9,INDEX(Indata!$B:$B,$D5),INDEX(Indata!$B:$B,$D5+1))^(X$4-$B$5)) -> 1.278143047 | Y5: =IF(Y$4>$B$10,X5,IF(Y$4<$B$9,INDEX(Indata!$B:$B,$D5),INDEX(Indata!$B:$B,$D5+1))^(Y$4-$B$5)) -> 1.294758907 | Z5: =IF(Z$4>$B$10,Y5,IF(Z$4<$B$9,INDEX(Indata!$B:$B,$D5),INDEX(Indata!$B:$B,$D5+1))^(Z$4-$B$5)) -> 1.311590772 | AA5: =IF(AA$4>$B$10,Z5,IF(AA$4<$B$9,INDEX(Indata!$B:$B,$D5),INDEX(Indata!$B:$B,$D5+1))^(AA$4-$B$5)) -> 1.328641452 | AB5: =IF(AB$4>$B$10,AA5,IF(AB$4<$B$9,INDEX(Indata!$B:$B,$D5),INDEX(Indata!$B:$B,$D5+1))^(AB$4-$B$5)) -> 1.047026311 | AC5: =IF(AC$4>$B$10,AB5,IF(AC$4<$B$9,INDEX(Indata!$B:$B,$D5),INDEX(Indata!$B:$B,$D5+1))^(AC$4-$B$5)) -> 1.049120363 | AD5: =IF(AD$4>$B$10,AC5,IF(AD$4<$B$9,INDEX(Indata!$B:$B,$D5),INDEX(Indata!$B:$B,$D5+1))^(AD$4-$B$5)) -> 1.051218604 | AE5: =IF(AE$4>$B$10,AD5,IF(AE$4<$B$9,INDEX(Indata!$B:$B,$D5),INDEX(Indata!$B:$B,$D5+1))^(AE$4-$B$5)) -> 1.053321041 | AF5: =IF(AF$4>$B$10,AE5,IF(AF$4<$B$9,INDEX(Indata!$B:$B,$D5),INDEX(Indata!$B:$B,$D5+1))^(AF$4-$B$5)) -> 1.055427683 | AG5: =IF(AG$4>$B$10,AF5,IF(AG$4<$B$9,INDEX(Indata!$B:$B,$D5),INDEX(Indata!$B:$B,$D5+1))^(AG$4-$B$5)) -> 1.057538539 | AH5: =IF(AH$4>$B$10,AG5,IF(AH$4<$B$9,INDEX(Indata!$B:$B,$D5),INDEX(Indata!$B:$B,$D5+1))^(AH$4-$B$5)) -> 1.059653616 | AI5: =IF(AI$4>$B$10,AH5,IF(AI$4<$B$9,INDEX(Indata!$B:$B,$D5),INDEX(Indata!$B:$B,$D5+1))^(AI$4-$B$5)) -> 1.061772923 | AJ5: =IF(AJ$4>$B$10,AI5,IF(AJ$4<$B$9,INDEX(Indata!$B:$B,$D5),INDEX(Indata!$B:$B,$D5+1))^(AJ$4-$B$5)) -> 1.063896469 | AK5: =IF(AK$4>$B$10,AJ5,IF(AK$4<$B$9,INDEX(Indata!$B:$B,$D5),INDEX(Indata!$B:$B,$D5+1))^(AK$4-$B$5)) -> 1.066024262 | AL5: =IF(AL$4>$B$10,AK5,IF(AL$4<$B$9,INDEX(Indata!$B:$B,$D5),INDEX(Indata!$B:$B,$D5+1))^(AL$4-$B$5)) -> 1.06815631 | AM5: =IF(AM$4>$B$10,AL5,IF(AM$4<$B$9,INDEX(Indata!$B:$B,$D5),INDEX(Indata!$B:$B,$D5+1))^(AM$4-$B$5)) -> 1.070292623 | AN5: =IF(AN$4>$B$10,AM5,IF(AN$4<$B$9,INDEX(Indata!$B:$B,$D5),INDEX(Indata!$B:$B,$D5+1))^(AN$4-$B$5)) -> 1.072433208 | AO5: =IF(AO$4>$B$10,AN5,IF(AO$4<$B$9,INDEX(Indata!$B:$B,$D5),INDEX(Indata!$B:$B,$D5+1))^(AO$4-$B$5)) -> 1.074578075 | AP5: =IF(AP$4>$B$10,AO5,IF(AP$4<$B$9,INDEX(Indata!$B:$B,$D5),INDEX(Indata!$B:$B,$D5+1))^(AP$4-$B$5)) -> 1.076727231 | AQ5: =IF(AQ$4>$B$10,AP5,IF(AQ$4<$B$9,INDEX(Indata!$B:$B,$D5),INDEX(Indata!$B:$B,$D5+1))^(AQ$4-$B$5)) -> 1.078880685 | AR5: =IF(AR$4>$B$10,AQ5,IF(AR$4<$B$9,INDEX(Indata!$B:$B,$D5),INDEX(Indata!$B:$B,$D5+1))^(AR$4-$B$5)) -> 1.081038447 | AS5: =IF(AS$4>$B$10,AR5,IF(AS$4<$B$9,INDEX(Indata!$B:$B,$D5),INDEX(Indata!$B:$B,$D5+1))^(AS$4-$B$5)) -> 1.083200524 | AT5: =IF(AT$4>$B$10,AS5,IF(AT$4<$B$9,INDEX(Indata!$B:$B,$D5),INDEX(Indata!$B:$B,$D5+1))^(AT$4-$B$5)) -> 1.085366925 | AU5: =IF(AU$4>$B$10,AT5,IF(AU$4<$B$9,INDEX(Indata!$B:$B,$D5),INDEX(Indata!$B:$B,$D5+1))^(AU$4-$B$5)) -> 1.087537658 | AV5: =IF(AV$4>$B$10,AU5,IF(AV$4<$B$9,INDEX(Indata!$B:$B,$D5),INDEX(Indata!$B:$B,$D5+1))^(AV$4-$B$5)) -> 1.089712734 | AW5: =IF(AW$4>$B$10,AV5,IF(AW$4<$B$9,INDEX(Indata!$B:$B,$D5),INDEX(Indata!$B:$B,$D5+1))^(AW$4-$B$5)) -> 1.091892159 | AX5: =IF(AX$4>$B$10,AW5,IF(AX$4<$B$9,INDEX(Indata!$B:$B,$D5),INDEX(Indata!$B:$B,$D5+1))^(AX$4-$B$5)) -> 1.094075944 | AY5: =IF(AY$4>$B$10,AX5,IF(AY$4<$B$9,INDEX(Indata!$B:$B,$D5),INDEX(Indata!$B:$B,$D5+1))^(AY$4-$B$5)) -> 1.096264095 | AZ5: =IF(AZ$4>$B$10,AY5,IF(AZ$4<$B$9,INDEX(Indata!$B:$B,$D5),INDEX(Indata!$B:$B,$D5+1))^(AZ$4-$B$5)) -> 1.098456624 | BA5: =IF(BA$4>$B$10,AZ5,IF(BA$4<$B$9,INDEX(Indata!$B:$B,$D5),INDEX(Indata!$B:$B,$D5+1))^(BA$4-$B$5)) -> 1.100653537 | BB5: =IF(BB$4>$B$10,BA5,IF(BB$4<$B$9,INDEX(Indata!$B:$B,$D5),INDEX(Indata!$B:$B,$D5+1))^(BB$4-$B$5)) -> 1.100653537 | BC5: =IF(BC$4>$B$10,BB5,IF(BC$4<$B$9,INDEX(Indata!$B:$B,$D5),INDEX(Indata!$B:$B,$D5+1))^(BC$4-$B$5)) -> 1.100653537 | BD5: =IF(BD$4>$B$10,BC5,IF(BD$4<$B$9,INDEX(Indata!$B:$B,$D5),INDEX(Indata!$B:$B,$D5+1))^(BD$4-$B$5)) -> 1.100653537 | BE5: =IF(BE$4>$B$10,BD5,IF(BE$4<$B$9,INDEX(Indata!$B:$B,$D5),INDEX(Indata!$B:$B,$D5+1))^(BE$4-$B$5)) -> 1.100653537 | BF5: =IF(BF$4>$B$10,BE5,IF(BF$4<$B$9,INDEX(Indata!$B:$B,$D5),INDEX(Indata!$B:$B,$D5+1))^(BF$4-$B$5)) -> 1.100653537 | BG5: =IF(BG$4>$B$10,BF5,IF(BG$4<$B$9,INDEX(Indata!$B:$B,$D5),INDEX(Indata!$B:$B,$D5+1))^(BG$4-$B$5)) -> 1.100653537 | BH5: =IF(BH$4>$B$10,BG5,IF(BH$4<$B$9,INDEX(Indata!$B:$B,$D5),INDEX(Indata!$B:$B,$D5+1))^(BH$4-$B$5)) -> 1.100653537 | BI5: =IF(BI$4>$B$10,BH5,IF(BI$4<$B$9,INDEX(Indata!$B:$B,$D5),INDEX(Indata!$B:$B,$D5+1))^(BI$4-$B$5)) -> 1.100653537 | BJ5: =IF(BJ$4>$B$10,BI5,IF(BJ$4<$B$9,INDEX(Indata!$B:$B,$D5),INDEX(Indata!$B:$B,$D5+1))^(BJ$4-$B$5)) -> 1.100653537 | BK5: =IF(BK$4>$B$10,BJ5,IF(BK$4<$B$9,INDEX(Indata!$B:$B,$D5),INDEX(Indata!$B:$B,$D5+1))^(BK$4-$B$5)) -> 1.100653537 | BL5: =IF(BL$4>$B$10,BK5,IF(BL$4<$B$9,INDEX(Indata!$B:$B,$D5),INDEX(Indata!$B:$B,$D5+1))^(BL$4-$B$5)) -> 1.100653537 | BM5: =IF(BM$4>$B$10,BL5,IF(BM$4<$B$9,INDEX(Indata!$B:$B,$D5),INDEX(Indata!$B:$B,$D5+1))^(BM$4-$B$5)) -> 1.100653537 | BN5: =IF(BN$4>$B$10,BM5,IF(BN$4<$B$9,INDEX(Indata!$B:$B,$D5),INDEX(Indata!$B:$B,$D5+1))^(BN$4-$B$5)) -> 1.100653537 | BO5: =IF(BO$4>$B$10,BN5,IF(BO$4<$B$9,INDEX(Indata!$B:$B,$D5),INDEX(Indata!$B:$B,$D5+1))^(BO$4-$B$5)) -> 1.100653537 | BP5: =IF(BP$4>$B$10,BO5,IF(BP$4<$B$9,INDEX(Indata!$B:$B,$D5),INDEX(Indata!$B:$B,$D5+1))^(BP$4-$B$5)) -> 1.100653537 | BQ5: =IF(BQ$4>$B$10,BP5,IF(BQ$4<$B$9,INDEX(Indata!$B:$B,$D5),INDEX(Indata!$B:$B,$D5+1))^(BQ$4-$B$5)) -> 1.100653537 | BR5: =IF(BR$4>$B$10,BQ5,IF(BR$4<$B$9,INDEX(Indata!$B:$B,$D5),INDEX(Indata!$B:$B,$D5+1))^(BR$4-$B$5)) -> 1.100653537 | BS5: =IF(BS$4>$B$10,BR5,IF(BS$4<$B$9,INDEX(Indata!$B:$B,$D5),INDEX(Indata!$B:$B,$D5+1))^(BS$4-$B$5)) -> 1.100653537 | BT5: =IF(BT$4>$B$10,BS5,IF(BT$4<$B$9,INDEX(Indata!$B:$B,$D5),INDEX(Indata!$B:$B,$D5+1))^(BT$4-$B$5)) -> 1.100653537 | BU5: =IF(BU$4>$B$10,BT5,IF(BU$4<$B$9,INDEX(Indata!$B:$B,$D5),INDEX(Indata!$B:$B,$D5+1))^(BU$4-$B$5)) -> 1.100653537 | BV5: =IF(BV$4>$B$10,BU5,IF(BV$4<$B$9,INDEX(Indata!$B:$B,$D5),INDEX(Indata!$B:$B,$D5+1))^(BV$4-$B$5)) -> 1.100653537 | BW5: =IF(BW$4>$B$10,BV5,IF(BW$4<$B$9,INDEX(Indata!$B:$B,$D5),INDEX(Indata!$B:$B,$D5+1))^(BW$4-$B$5)) -> 1.100653537 | BX5: =IF(BX$4>$B$10,BW5,IF(BX$4<$B$9,INDEX(Indata!$B:$B,$D5),INDEX(Indata!$B:$B,$D5+1))^(BX$4-$B$5)) -> 1.100653537 | BY5: =IF(BY$4>$B$10,BX5,IF(BY$4<$B$9,INDEX(Indata!$B:$B,$D5),INDEX(Indata!$B:$B,$D5+1))^(BY$4-$B$5)) -> 1.100653537 | BZ5: =IF(BZ$4>$B$10,BY5,IF(BZ$4<$B$9,INDEX(Indata!$B:$B,$D5),INDEX(Indata!$B:$B,$D5+1))^(BZ$4-$B$5)) -> 1.100653537 | CA5: =IF(CA$4>$B$10,BZ5,IF(CA$4<$B$9,INDEX(Indata!$B:$B,$D5),INDEX(Indata!$B:$B,$D5+1))^(CA$4-$B$5)) -> 1.100653537 | CB5: =IF(CB$4>$B$10,CA5,IF(CB$4<$B$9,INDEX(Indata!$B:$B,$D5),INDEX(Indata!$B:$B,$D5+1))^(CB$4-$B$5)) -> 1.100653537 | CC5: =IF(CC$4>$B$10,CB5,IF(CC$4<$B$9,INDEX(Indata!$B:$B,$D5),INDEX(Indata!$B:$B,$D5+1))^(CC$4-$B$5)) -> 1.100653537 | CD5: =IF(CD$4>$B$10,CC5,IF(CD$4<$B$9,INDEX(Indata!$B:$B,$D5),INDEX(Indata!$B:$B,$D5+1))^(CD$4-$B$5)) -> 1.100653537 | CE5: =IF(CE$4>$B$10,CD5,IF(CE$4<$B$9,INDEX(Indata!$B:$B,$D5),INDEX(Indata!$B:$B,$D5+1))^(CE$4-$B$5)) -> 1.100653537 | CF5: =IF(CF$4>$B$10,CE5,IF(CF$4<$B$9,INDEX(Indata!$B:$B,$D5),INDEX(Indata!$B:$B,$D5+1))^(CF$4-$B$5)) -> 1.100653537 | CG5: =IF(CG$4>$B$10,CF5,IF(CG$4<$B$9,INDEX(Indata!$B:$B,$D5),INDEX(Indata!$B:$B,$D5+1))^(CG$4-$B$5)) -> 1.100653537 | CH5: =IF(CH$4>$B$10,CG5,IF(CH$4<$B$9,INDEX(Indata!$B:$B,$D5),INDEX(Indata!$B:$B,$D5+1))^(CH$4-$B$5)) -> 1.100653537 | CI5: =IF(CI$4>$B$10,CH5,IF(CI$4<$B$9,INDEX(Indata!$B:$B,$D5),INDEX(Indata!$B:$B,$D5+1))^(CI$4-$B$5)) -> 1.100653537 | CJ5: =IF(CJ$4>$B$10,CI5,IF(CJ$4<$B$9,INDEX(Indata!$B:$B,$D5),INDEX(Indata!$B:$B,$D5+1))^(CJ$4-$B$5)) -> 1.100653537 | CK5: =IF(CK$4>$B$10,CJ5,IF(CK$4<$B$9,INDEX(Indata!$B:$B,$D5),INDEX(Indata!$B:$B,$D5+1))^(CK$4-$B$5)) -> 1.100653537 | CL5: =IF(CL$4>$B$10,CK5,IF(CL$4<$B$9,INDEX(Indata!$B:$B,$D5),INDEX(Indata!$B:$B,$D5+1))^(CL$4-$B$5)) -> 1.100653537 | CM5: =IF(CM$4>$B$10,CL5,IF(CM$4<$B$9,INDEX(Indata!$B:$B,$D5),INDEX(Indata!$B:$B,$D5+1))^(CM$4-$B$5)) -> 1.100653537 | CN5: =IF(CN$4>$B$10,CM5,IF(CN$4<$B$9,INDEX(Indata!$B:$B,$D5),INDEX(Indata!$B:$B,$D5+1))^(CN$4-$B$5)) -> 1.100653537 | CO5: =IF(CO$4>$B$10,CN5,IF(CO$4<$B$9,INDEX(Indata!$B:$B,$D5),INDEX(Indata!$B:$B,$D5+1))^(CO$4-$B$5)) -> 1.100653537 | CP5: =IF(CP$4>$B$10,CO5,IF(CP$4<$B$9,INDEX(Indata!$B:$B,$D5),INDEX(Indata!$B:$B,$D5+1))^(CP$4-$B$5)) -> 1.100653537 | CQ5: =IF(CQ$4>$B$10,CP5,IF(CQ$4<$B$9,INDEX(Indata!$B:$B,$D5),INDEX(Indata!$B:$B,$D5+1))^(CQ$4-$B$5)) -> 1.100653537 | CR5: =IF(CR$4>$B$10,CQ5,IF(CR$4<$B$9,INDEX(Indata!$B:$B,$D5),INDEX(Indata!$B:$B,$D5+1))^(CR$4-$B$5)) -> 1.100653537 | CS5: =IF(CS$4>$B$10,CR5,IF(CS$4<$B$9,INDEX(Indata!$B:$B,$D5),INDEX(Indata!$B:$B,$D5+1))^(CS$4-$B$5)) -> 1.100653537 | CT5: =IF(CT$4>$B$10,CS5,IF(CT$4<$B$9,INDEX(Indata!$B:$B,$D5),INDEX(Indata!$B:$B,$D5+1))^(CT$4-$B$5)) -> 1.100653537
A6: Diskonteringsår | B6: =Indata!B14 -> 2025 | C6: Uppräkning CO2 | D6: =MATCH("CO2upp1",Indata!F:F,0) -> 31 | E6: =IF(E$4>$B$10,D6,IF(E$4<$B$9,INDEX(Indata!$B:$B,$D6),INDEX(Indata!$B:$B,$D6+1))^(E$4-$B$5)) -> 1 | F6: =IF(F$4>$B$10,E6,IF(F$4<$B$9,INDEX(Indata!$B:$B,$D6),INDEX(Indata!$B:$B,$D6+1))^(F$4-$B$5)) -> 1 | G6: =IF(G$4>$B$10,F6,IF(G$4<$B$9,INDEX(Indata!$B:$B,$D6),INDEX(Indata!$B:$B,$D6+1))^(G$4-$B$5)) -> 1 | H6: =IF(H$4>$B$10,G6,IF(H$4<$B$9,INDEX(Indata!$B:$B,$D6),INDEX(Indata!$B:$B,$D6+1))^(H$4-$B$5)) -> 1 | I6: =IF(I$4>$B$10,H6,IF(I$4<$B$9,INDEX(Indata!$B:$B,$D6),INDEX(Indata!$B:$B,$D6+1))^(I$4-$B$5)) -> 1 | J6: =IF(J$4>$B$10,I6,IF(J$4<$B$9,INDEX(Indata!$B:$B,$D6),INDEX(Indata!$B:$B,$D6+1))^(J$4-$B$5)) -> 1 | K6: =IF(K$4>$B$10,J6,IF(K$4<$B$9,INDEX(Indata!$B:$B,$D6),INDEX(Indata!$B:$B,$D6+1))^(K$4-$B$5)) -> 1 | L6: =IF(L$4>$B$10,K6,IF(L$4<$B$9,INDEX(Indata!$B:$B,$D6),INDEX(Indata!$B:$B,$D6+1))^(L$4-$B$5)) -> 1 | M6: =IF(M$4>$B$10,L6,IF(M$4<$B$9,INDEX(Indata!$B:$B,$D6),INDEX(Indata!$B:$B,$D6+1))^(M$4-$B$5)) -> 1 | N6: =IF(N$4>$B$10,M6,IF(N$4<$B$9,INDEX(Indata!$B:$B,$D6),INDEX(Indata!$B:$B,$D6+1))^(N$4-$B$5)) -> 1 | O6: =IF(O$4>$B$10,N6,IF(O$4<$B$9,INDEX(Indata!$B:$B,$D6),INDEX(Indata!$B:$B,$D6+1))^(O$4-$B$5)) -> 1 | P6: =IF(P$4>$B$10,O6,IF(P$4<$B$9,INDEX(Indata!$B:$B,$D6),INDEX(Indata!$B:$B,$D6+1))^(P$4-$B$5)) -> 1 | Q6: =IF(Q$4>$B$10,P6,IF(Q$4<$B$9,INDEX(Indata!$B:$B,$D6),INDEX(Indata!$B:$B,$D6+1))^(Q$4-$B$5)) -> 1 | R6: =IF(R$4>$B$10,Q6,IF(R$4<$B$9,INDEX(Indata!$B:$B,$D6),INDEX(Indata!$B:$B,$D6+1))^(R$4-$B$5)) -> 1 | S6: =IF(S$4>$B$10,R6,IF(S$4<$B$9,INDEX(Indata!$B:$B,$D6),INDEX(Indata!$B:$B,$D6+1))^(S$4-$B$5)) -> 1 | T6: =IF(T$4>$B$10,S6,IF(T$4<$B$9,INDEX(Indata!$B:$B,$D6),INDEX(Indata!$B:$B,$D6+1))^(T$4-$B$5)) -> 1 | U6: =IF(U$4>$B$10,T6,IF(U$4<$B$9,INDEX(Indata!$B:$B,$D6),INDEX(Indata!$B:$B,$D6+1))^(U$4-$B$5)) -> 1 | V6: =IF(V$4>$B$10,U6,IF(V$4<$B$9,INDEX(Indata!$B:$B,$D6),INDEX(Indata!$B:$B,$D6+1))^(V$4-$B$5)) -> 1 | W6: =IF(W$4>$B$10,V6,IF(W$4<$B$9,INDEX(Indata!$B:$B,$D6),INDEX(Indata!$B:$B,$D6+1))^(W$4-$B$5)) -> 1 | X6: =IF(X$4>$B$10,W6,IF(X$4<$B$9,INDEX(Indata!$B:$B,$D6),INDEX(Indata!$B:$B,$D6+1))^(X$4-$B$5)) -> 1 | Y6: =IF(Y$4>$B$10,X6,IF(Y$4<$B$9,INDEX(Indata!$B:$B,$D6),INDEX(Indata!$B:$B,$D6+1))^(Y$4-$B$5)) -> 1 | Z6: =IF(Z$4>$B$10,Y6,IF(Z$4<$B$9,INDEX(Indata!$B:$B,$D6),INDEX(Indata!$B:$B,$D6+1))^(Z$4-$B$5)) -> 1 | AA6: =IF(AA$4>$B$10,Z6,IF(AA$4<$B$9,INDEX(Indata!$B:$B,$D6),INDEX(Indata!$B:$B,$D6+1))^(AA$4-$B$5)) -> 1 | AB6: =IF(AB$4>$B$10,AA6,IF(AB$4<$B$9,INDEX(Indata!$B:$B,$D6),INDEX(Indata!$B:$B,$D6+1))^(AB$4-$B$5)) -> 1 | AC6: =IF(AC$4>$B$10,AB6,IF(AC$4<$B$9,INDEX(Indata!$B:$B,$D6),INDEX(Indata!$B:$B,$D6+1))^(AC$4-$B$5)) -> 1 | AD6: =IF(AD$4>$B$10,AC6,IF(AD$4<$B$9,INDEX(Indata!$B:$B,$D6),INDEX(Indata!$B:$B,$D6+1))^(AD$4-$B$5)) -> 1 | AE6: =IF(AE$4>$B$10,AD6,IF(AE$4<$B$9,INDEX(Indata!$B:$B,$D6),INDEX(Indata!$B:$B,$D6+1))^(AE$4-$B$5)) -> 1 | AF6: =IF(AF$4>$B$10,AE6,IF(AF$4<$B$9,INDEX(Indata!$B:$B,$D6),INDEX(Indata!$B:$B,$D6+1))^(AF$4-$B$5)) -> 1 | AG6: =IF(AG$4>$B$10,AF6,IF(AG$4<$B$9,INDEX(Indata!$B:$B,$D6),INDEX(Indata!$B:$B,$D6+1))^(AG$4-$B$5)) -> 1 | AH6: =IF(AH$4>$B$10,AG6,IF(AH$4<$B$9,INDEX(Indata!$B:$B,$D6),INDEX(Indata!$B:$B,$D6+1))^(AH$4-$B$5)) -> 1 | AI6: =IF(AI$4>$B$10,AH6,IF(AI$4<$B$9,INDEX(Indata!$B:$B,$D6),INDEX(Indata!$B:$B,$D6+1))^(AI$4-$B$5)) -> 1 | AJ6: =IF(AJ$4>$B$10,AI6,IF(AJ$4<$B$9,INDEX(Indata!$B:$B,$D6),INDEX(Indata!$B:$B,$D6+1))^(AJ$4-$B$5)) -> 1 | AK6: =IF(AK$4>$B$10,AJ6,IF(AK$4<$B$9,INDEX(Indata!$B:$B,$D6),INDEX(Indata!$B:$B,$D6+1))^(AK$4-$B$5)) -> 1 | AL6: =IF(AL$4>$B$10,AK6,IF(AL$4<$B$9,INDEX(Indata!$B:$B,$D6),INDEX(Indata!$B:$B,$D6+1))^(AL$4-$B$5)) -> 1 | AM6: =IF(AM$4>$B$10,AL6,IF(AM$4<$B$9,INDEX(Indata!$B:$B,$D6),INDEX(Indata!$B:$B,$D6+1))^(AM$4-$B$5)) -> 1 | AN6: =IF(AN$4>$B$10,AM6,IF(AN$4<$B$9,INDEX(Indata!$B:$B,$D6),INDEX(Indata!$B:$B,$D6+1))^(AN$4-$B$5)) -> 1 | AO6: =IF(AO$4>$B$10,AN6,IF(AO$4<$B$9,INDEX(Indata!$B:$B,$D6),INDEX(Indata!$B:$B,$D6+1))^(AO$4-$B$5)) -> 1 | AP6: =IF(AP$4>$B$10,AO6,IF(AP$4<$B$9,INDEX(Indata!$B:$B,$D6),INDEX(Indata!$B:$B,$D6+1))^(AP$4-$B$5)) -> 1 | AQ6: =IF(AQ$4>$B$10,AP6,IF(AQ$4<$B$9,INDEX(Indata!$B:$B,$D6),INDEX(Indata!$B:$B,$D6+1))^(AQ$4-$B$5)) -> 1 | AR6: =IF(AR$4>$B$10,AQ6,IF(AR$4<$B$9,INDEX(Indata!$B:$B,$D6),INDEX(Indata!$B:$B,$D6+1))^(AR$4-$B$5)) -> 1 | AS6: =IF(AS$4>$B$10,AR6,IF(AS$4<$B$9,INDEX(Indata!$B:$B,$D6),INDEX(Indata!$B:$B,$D6+1))^(AS$4-$B$5)) -> 1 | AT6: =IF(AT$4>$B$10,AS6,IF(AT$4<$B$9,INDEX(Indata!$B:$B,$D6),INDEX(Indata!$B:$B,$D6+1))^(AT$4-$B$5)) -> 1 | AU6: =IF(AU$4>$B$10,AT6,IF(AU$4<$B$9,INDEX(Indata!$B:$B,$D6),INDEX(Indata!$B:$B,$D6+1))^(AU$4-$B$5)) -> 1 | AV6: =IF(AV$4>$B$10,AU6,IF(AV$4<$B$9,INDEX(Indata!$B:$B,$D6),INDEX(Indata!$B:$B,$D6+1))^(AV$4-$B$5)) -> 1 | AW6: =IF(AW$4>$B$10,AV6,IF(AW$4<$B$9,INDEX(Indata!$B:$B,$D6),INDEX(Indata!$B:$B,$D6+1))^(AW$4-$B$5)) -> 1 | AX6: =IF(AX$4>$B$10,AW6,IF(AX$4<$B$9,INDEX(Indata!$B:$B,$D6),INDEX(Indata!$B:$B,$D6+1))^(AX$4-$B$5)) -> 1 | AY6: =IF(AY$4>$B$10,AX6,IF(AY$4<$B$9,INDEX(Indata!$B:$B,$D6),INDEX(Indata!$B:$B,$D6+1))^(AY$4-$B$5)) -> 1 | AZ6: =IF(AZ$4>$B$10,AY6,IF(AZ$4<$B$9,INDEX(Indata!$B:$B,$D6),INDEX(Indata!$B:$B,$D6+1))^(AZ$4-$B$5)) -> 1 | BA6: =IF(BA$4>$B$10,AZ6,IF(BA$4<$B$9,INDEX(Indata!$B:$B,$D6),INDEX(Indata!$B:$B,$D6+1))^(BA$4-$B$5)) -> 1 | BB6: =IF(BB$4>$B$10,BA6,IF(BB$4<$B$9,INDEX(Indata!$B:$B,$D6),INDEX(Indata!$B:$B,$D6+1))^(BB$4-$B$5)) -> 1 | BC6: =IF(BC$4>$B$10,BB6,IF(BC$4<$B$9,INDEX(Indata!$B:$B,$D6),INDEX(Indata!$B:$B,$D6+1))^(BC$4-$B$5)) -> 1 | BD6: =IF(BD$4>$B$10,BC6,IF(BD$4<$B$9,INDEX(Indata!$B:$B,$D6),INDEX(Indata!$B:$B,$D6+1))^(BD$4-$B$5)) -> 1 | BE6: =IF(BE$4>$B$10,BD6,IF(BE$4<$B$9,INDEX(Indata!$B:$B,$D6),INDEX(Indata!$B:$B,$D6+1))^(BE$4-$B$5)) -> 1 | BF6: =IF(BF$4>$B$10,BE6,IF(BF$4<$B$9,INDEX(Indata!$B:$B,$D6),INDEX(Indata!$B:$B,$D6+1))^(BF$4-$B$5)) -> 1 | BG6: =IF(BG$4>$B$10,BF6,IF(BG$4<$B$9,INDEX(Indata!$B:$B,$D6),INDEX(Indata!$B:$B,$D6+1))^(BG$4-$B$5)) -> 1 | BH6: =IF(BH$4>$B$10,BG6,IF(BH$4<$B$9,INDEX(Indata!$B:$B,$D6),INDEX(Indata!$B:$B,$D6+1))^(BH$4-$B$5)) -> 1 | BI6: =IF(BI$4>$B$10,BH6,IF(BI$4<$B$9,INDEX(Indata!$B:$B,$D6),INDEX(Indata!$B:$B,$D6+1))^(BI$4-$B$5)) -> 1 | BJ6: =IF(BJ$4>$B$10,BI6,IF(BJ$4<$B$9,INDEX(Indata!$B:$B,$D6),INDEX(Indata!$B:$B,$D6+1))^(BJ$4-$B$5)) -> 1 | BK6: =IF(BK$4>$B$10,BJ6,IF(BK$4<$B$9,INDEX(Indata!$B:$B,$D6),INDEX(Indata!$B:$B,$D6+1))^(BK$4-$B$5)) -> 1 | BL6: =IF(BL$4>$B$10,BK6,IF(BL$4<$B$9,INDEX(Indata!$B:$B,$D6),INDEX(Indata!$B:$B,$D6+1))^(BL$4-$B$5)) -> 1 | BM6: =IF(BM$4>$B$10,BL6,IF(BM$4<$B$9,INDEX(Indata!$B:$B,$D6),INDEX(Indata!$B:$B,$D6+1))^(BM$4-$B$5)) -> 1 | BN6: =IF(BN$4>$B$10,BM6,IF(BN$4<$B$9,INDEX(Indata!$B:$B,$D6),INDEX(Indata!$B:$B,$D6+1))^(BN$4-$B$5)) -> 1 | BO6: =IF(BO$4>$B$10,BN6,IF(BO$4<$B$9,INDEX(Indata!$B:$B,$D6),INDEX(Indata!$B:$B,$D6+1))^(BO$4-$B$5)) -> 1 | BP6: =IF(BP$4>$B$10,BO6,IF(BP$4<$B$9,INDEX(Indata!$B:$B,$D6),INDEX(Indata!$B:$B,$D6+1))^(BP$4-$B$5)) -> 1 | BQ6: =IF(BQ$4>$B$10,BP6,IF(BQ$4<$B$9,INDEX(Indata!$B:$B,$D6),INDEX(Indata!$B:$B,$D6+1))^(BQ$4-$B$5)) -> 1 | BR6: =IF(BR$4>$B$10,BQ6,IF(BR$4<$B$9,INDEX(Indata!$B:$B,$D6),INDEX(Indata!$B:$B,$D6+1))^(BR$4-$B$5)) -> 1 | BS6: =IF(BS$4>$B$10,BR6,IF(BS$4<$B$9,INDEX(Indata!$B:$B,$D6),INDEX(Indata!$B:$B,$D6+1))^(BS$4-$B$5)) -> 1 | BT6: =IF(BT$4>$B$10,BS6,IF(BT$4<$B$9,INDEX(Indata!$B:$B,$D6),INDEX(Indata!$B:$B,$D6+1))^(BT$4-$B$5)) -> 1 | BU6: =IF(BU$4>$B$10,BT6,IF(BU$4<$B$9,INDEX(Indata!$B:$B,$D6),INDEX(Indata!$B:$B,$D6+1))^(BU$4-$B$5)) -> 1 | BV6: =IF(BV$4>$B$10,BU6,IF(BV$4<$B$9,INDEX(Indata!$B:$B,$D6),INDEX(Indata!$B:$B,$D6+1))^(BV$4-$B$5)) -> 1 | BW6: =IF(BW$4>$B$10,BV6,IF(BW$4<$B$9,INDEX(Indata!$B:$B,$D6),INDEX(Indata!$B:$B,$D6+1))^(BW$4-$B$5)) -> 1 | BX6: =IF(BX$4>$B$10,BW6,IF(BX$4<$B$9,INDEX(Indata!$B:$B,$D6),INDEX(Indata!$B:$B,$D6+1))^(BX$4-$B$5)) -> 1 | BY6: =IF(BY$4>$B$10,BX6,IF(BY$4<$B$9,INDEX(Indata!$B:$B,$D6),INDEX(Indata!$B:$B,$D6+1))^(BY$4-$B$5)) -> 1 | BZ6: =IF(BZ$4>$B$10,BY6,IF(BZ$4<$B$9,INDEX(Indata!$B:$B,$D6),INDEX(Indata!$B:$B,$D6+1))^(BZ$4-$B$5)) -> 1 | CA6: =IF(CA$4>$B$10,BZ6,IF(CA$4<$B$9,INDEX(Indata!$B:$B,$D6),INDEX(Indata!$B:$B,$D6+1))^(CA$4-$B$5)) -> 1 | CB6: =IF(CB$4>$B$10,CA6,IF(CB$4<$B$9,INDEX(Indata!$B:$B,$D6),INDEX(Indata!$B:$B,$D6+1))^(CB$4-$B$5)) -> 1 | CC6: =IF(CC$4>$B$10,CB6,IF(CC$4<$B$9,INDEX(Indata!$B:$B,$D6),INDEX(Indata!$B:$B,$D6+1))^(CC$4-$B$5)) -> 1 | CD6: =IF(CD$4>$B$10,CC6,IF(CD$4<$B$9,INDEX(Indata!$B:$B,$D6),INDEX(Indata!$B:$B,$D6+1))^(CD$4-$B$5)) -> 1 | CE6: =IF(CE$4>$B$10,CD6,IF(CE$4<$B$9,INDEX(Indata!$B:$B,$D6),INDEX(Indata!$B:$B,$D6+1))^(CE$4-$B$5)) -> 1 | CF6: =IF(CF$4>$B$10,CE6,IF(CF$4<$B$9,INDEX(Indata!$B:$B,$D6),INDEX(Indata!$B:$B,$D6+1))^(CF$4-$B$5)) -> 1 | CG6: =IF(CG$4>$B$10,CF6,IF(CG$4<$B$9,INDEX(Indata!$B:$B,$D6),INDEX(Indata!$B:$B,$D6+1))^(CG$4-$B$5)) -> 1 | CH6: =IF(CH$4>$B$10,CG6,IF(CH$4<$B$9,INDEX(Indata!$B:$B,$D6),INDEX(Indata!$B:$B,$D6+1))^(CH$4-$B$5)) -> 1 | CI6: =IF(CI$4>$B$10,CH6,IF(CI$4<$B$9,INDEX(Indata!$B:$B,$D6),INDEX(Indata!$B:$B,$D6+1))^(CI$4-$B$5)) -> 1 | CJ6: =IF(CJ$4>$B$10,CI6,IF(CJ$4<$B$9,INDEX(Indata!$B:$B,$D6),INDEX(Indata!$B:$B,$D6+1))^(CJ$4-$B$5)) -> 1 | CK6: =IF(CK$4>$B$10,CJ6,IF(CK$4<$B$9,INDEX(Indata!$B:$B,$D6),INDEX(Indata!$B:$B,$D6+1))^(CK$4-$B$5)) -> 1 | CL6: =IF(CL$4>$B$10,CK6,IF(CL$4<$B$9,INDEX(Indata!$B:$B,$D6),INDEX(Indata!$B:$B,$D6+1))^(CL$4-$B$5)) -> 1 | CM6: =IF(CM$4>$B$10,CL6,IF(CM$4<$B$9,INDEX(Indata!$B:$B,$D6),INDEX(Indata!$B:$B,$D6+1))^(CM$4-$B$5)) -> 1 | CN6: =IF(CN$4>$B$10,CM6,IF(CN$4<$B$9,INDEX(Indata!$B:$B,$D6),INDEX(Indata!$B:$B,$D6+1))^(CN$4-$B$5)) -> 1 | CO6: =IF(CO$4>$B$10,CN6,IF(CO$4<$B$9,INDEX(Indata!$B:$B,$D6),INDEX(Indata!$B:$B,$D6+1))^(CO$4-$B$5)) -> 1 | CP6: =IF(CP$4>$B$10,CO6,IF(CP$4<$B$9,INDEX(Indata!$B:$B,$D6),INDEX(Indata!$B:$B,$D6+1))^(CP$4-$B$5)) -> 1 | CQ6: =IF(CQ$4>$B$10,CP6,IF(CQ$4<$B$9,INDEX(Indata!$B:$B,$D6),INDEX(Indata!$B:$B,$D6+1))^(CQ$4-$B$5)) -> 1 | CR6: =IF(CR$4>$B$10,CQ6,IF(CR$4<$B$9,INDEX(Indata!$B:$B,$D6),INDEX(Indata!$B:$B,$D6+1))^(CR$4-$B$5)) -> 1 | CS6: =IF(CS$4>$B$10,CR6,IF(CS$4<$B$9,INDEX(Indata!$B:$B,$D6),INDEX(Indata!$B:$B,$D6+1))^(CS$4-$B$5)) -> 1 | CT6: =IF(CT$4>$B$10,CS6,IF(CT$4<$B$9,INDEX(Indata!$B:$B,$D6),INDEX(Indata!$B:$B,$D6+1))^(CT$4-$B$5)) -> 1
A7: Byggstartsår | B7: =Indata!B15 -> 2025 | C7: Uppräkning NOx | D7: =MATCH("NOxupp1",Indata!F:F,0) -> 33 | E7: =IF(E$4>$B$10,D7,IF(E$4<$B$9,INDEX(Indata!$B:$B,$D7),INDEX(Indata!$B:$B,$D7+1))^(E$4-$B$5)) -> 1 | F7: =IF(F$4>$B$10,E7,IF(F$4<$B$9,INDEX(Indata!$B:$B,$D7),INDEX(Indata!$B:$B,$D7+1))^(F$4-$B$5)) -> 1.015 | G7: =IF(G$4>$B$10,F7,IF(G$4<$B$9,INDEX(Indata!$B:$B,$D7),INDEX(Indata!$B:$B,$D7+1))^(G$4-$B$5)) -> 1.030225 | H7: =IF(H$4>$B$10,G7,IF(H$4<$B$9,INDEX(Indata!$B:$B,$D7),INDEX(Indata!$B:$B,$D7+1))^(H$4-$B$5)) -> 1.045678375 | I7: =IF(I$4>$B$10,H7,IF(I$4<$B$9,INDEX(Indata!$B:$B,$D7),INDEX(Indata!$B:$B,$D7+1))^(I$4-$B$5)) -> 1.061363551 | J7: =IF(J$4>$B$10,I7,IF(J$4<$B$9,INDEX(Indata!$B:$B,$D7),INDEX(Indata!$B:$B,$D7+1))^(J$4-$B$5)) -> 1.077284004 | K7: =IF(K$4>$B$10,J7,IF(K$4<$B$9,INDEX(Indata!$B:$B,$D7),INDEX(Indata!$B:$B,$D7+1))^(K$4-$B$5)) -> 1.093443264 | L7: =IF(L$4>$B$10,K7,IF(L$4<$B$9,INDEX(Indata!$B:$B,$D7),INDEX(Indata!$B:$B,$D7+1))^(L$4-$B$5)) -> 1.109844913 | M7: =IF(M$4>$B$10,L7,IF(M$4<$B$9,INDEX(Indata!$B:$B,$D7),INDEX(Indata!$B:$B,$D7+1))^(M$4-$B$5)) -> 1.126492587 | N7: =IF(N$4>$B$10,M7,IF(N$4<$B$9,INDEX(Indata!$B:$B,$D7),INDEX(Indata!$B:$B,$D7+1))^(N$4-$B$5)) -> 1.143389975 | O7: =IF(O$4>$B$10,N7,IF(O$4<$B$9,INDEX(Indata!$B:$B,$D7),INDEX(Indata!$B:$B,$D7+1))^(O$4-$B$5)) -> 1.160540825 | P7: =IF(P$4>$B$10,O7,IF(P$4<$B$9,INDEX(Indata!$B:$B,$D7),INDEX(Indata!$B:$B,$D7+1))^(P$4-$B$5)) -> 1.177948937 | Q7: =IF(Q$4>$B$10,P7,IF(Q$4<$B$9,INDEX(Indata!$B:$B,$D7),INDEX(Indata!$B:$B,$D7+1))^(Q$4-$B$5)) -> 1.195618171 | R7: =IF(R$4>$B$10,Q7,IF(R$4<$B$9,INDEX(Indata!$B:$B,$D7),INDEX(Indata!$B:$B,$D7+1))^(R$4-$B$5)) -> 1.213552444 | S7: =IF(S$4>$B$10,R7,IF(S$4<$B$9,INDEX(Indata!$B:$B,$D7),INDEX(Indata!$B:$B,$D7+1))^(S$4-$B$5)) -> 1.231755731 | T7: =IF(T$4>$B$10,S7,IF(T$4<$B$9,INDEX(Indata!$B:$B,$D7),INDEX(Indata!$B:$B,$D7+1))^(T$4-$B$5)) -> 1.250232067 | U7: =IF(U$4>$B$10,T7,IF(U$4<$B$9,INDEX(Indata!$B:$B,$D7),INDEX(Indata!$B:$B,$D7+1))^(U$4-$B$5)) -> 1.268985548 | V7: =IF(V$4>$B$10,U7,IF(V$4<$B$9,INDEX(Indata!$B:$B,$D7),INDEX(Indata!$B:$B,$D7+1))^(V$4-$B$5)) -> 1.288020331 | W7: =IF(W$4>$B$10,V7,IF(W$4<$B$9,INDEX(Indata!$B:$B,$D7),INDEX(Indata!$B:$B,$D7+1))^(W$4-$B$5)) -> 1.307340636 | X7: =IF(X$4>$B$10,W7,IF(X$4<$B$9,INDEX(Indata!$B:$B,$D7),INDEX(Indata!$B:$B,$D7+1))^(X$4-$B$5)) -> 1.326950745 | Y7: =IF(Y$4>$B$10,X7,IF(Y$4<$B$9,INDEX(Indata!$B:$B,$D7),INDEX(Indata!$B:$B,$D7+1))^(Y$4-$B$5)) -> 1.346855007 | Z7: =IF(Z$4>$B$10,Y7,IF(Z$4<$B$9,INDEX(Indata!$B:$B,$D7),INDEX(Indata!$B:$B,$D7+1))^(Z$4-$B$5)) -> 1.367057832 | AA7: =IF(AA$4>$B$10,Z7,IF(AA$4<$B$9,INDEX(Indata!$B:$B,$D7),INDEX(Indata!$B:$B,$D7+1))^(AA$4-$B$5)) -> 1.387563699 | AB7: =IF(AB$4>$B$10,AA7,IF(AB$4<$B$9,INDEX(Indata!$B:$B,$D7),INDEX(Indata!$B:$B,$D7+1))^(AB$4-$B$5)) -> 1.408377155 | AC7: =IF(AC$4>$B$10,AB7,IF(AC$4<$B$9,INDEX(Indata!$B:$B,$D7),INDEX(Indata!$B:$B,$D7+1))^(AC$4-$B$5)) -> 1.429502812 | AD7: =IF(AD$4>$B$10,AC7,IF(AD$4<$B$9,INDEX(Indata!$B:$B,$D7),INDEX(Indata!$B:$B,$D7+1))^(AD$4-$B$5)) -> 1.450945354 | AE7: =IF(AE$4>$B$10,AD7,IF(AE$4<$B$9,INDEX(Indata!$B:$B,$D7),INDEX(Indata!$B:$B,$D7+1))^(AE$4-$B$5)) -> 1.472709534 | AF7: =IF(AF$4>$B$10,AE7,IF(AF$4<$B$9,INDEX(Indata!$B:$B,$D7),INDEX(Indata!$B:$B,$D7+1))^(AF$4-$B$5)) -> 1.494800177 | AG7: =IF(AG$4>$B$10,AF7,IF(AG$4<$B$9,INDEX(Indata!$B:$B,$D7),INDEX(Indata!$B:$B,$D7+1))^(AG$4-$B$5)) -> 1.51722218 | AH7: =IF(AH$4>$B$10,AG7,IF(AH$4<$B$9,INDEX(Indata!$B:$B,$D7),INDEX(Indata!$B:$B,$D7+1))^(AH$4-$B$5)) -> 1.539980513 | AI7: =IF(AI$4>$B$10,AH7,IF(AI$4<$B$9,INDEX(Indata!$B:$B,$D7),INDEX(Indata!$B:$B,$D7+1))^(AI$4-$B$5)) -> 1.56308022 | AJ7: =IF(AJ$4>$B$10,AI7,IF(AJ$4<$B$9,INDEX(Indata!$B:$B,$D7),INDEX(Indata!$B:$B,$D7+1))^(AJ$4-$B$5)) -> 1.586526424 | AK7: =IF(AK$4>$B$10,AJ7,IF(AK$4<$B$9,INDEX(Indata!$B:$B,$D7),INDEX(Indata!$B:$B,$D7+1))^(AK$4-$B$5)) -> 1.61032432 | AL7: =IF(AL$4>$B$10,AK7,IF(AL$4<$B$9,INDEX(Indata!$B:$B,$D7),INDEX(Indata!$B:$B,$D7+1))^(AL$4-$B$5)) -> 1.634479185 | AM7: =IF(AM$4>$B$10,AL7,IF(AM$4<$B$9,INDEX(Indata!$B:$B,$D7),INDEX(Indata!$B:$B,$D7+1))^(AM$4-$B$5)) -> 1.658996373 | AN7: =IF(AN$4>$B$10,AM7,IF(AN$4<$B$9,INDEX(Indata!$B:$B,$D7),INDEX(Indata!$B:$B,$D7+1))^(AN$4-$B$5)) -> 1.683881318 | AO7: =IF(AO$4>$B$10,AN7,IF(AO$4<$B$9,INDEX(Indata!$B:$B,$D7),INDEX(Indata!$B:$B,$D7+1))^(AO$4-$B$5)) -> 1.709139538 | AP7: =IF(AP$4>$B$10,AO7,IF(AP$4<$B$9,INDEX(Indata!$B:$B,$D7),INDEX(Indata!$B:$B,$D7+1))^(AP$4-$B$5)) -> 1.734776631 | AQ7: =IF(AQ$4>$B$10,AP7,IF(AQ$4<$B$9,INDEX(Indata!$B:$B,$D7),INDEX(Indata!$B:$B,$D7+1))^(AQ$4-$B$5)) -> 1.760798281 | AR7: =IF(AR$4>$B$10,AQ7,IF(AR$4<$B$9,INDEX(Indata!$B:$B,$D7),INDEX(Indata!$B:$B,$D7+1))^(AR$4-$B$5)) -> 1.787210255 | AS7: =IF(AS$4>$B$10,AR7,IF(AS$4<$B$9,INDEX(Indata!$B:$B,$D7),INDEX(Indata!$B:$B,$D7+1))^(AS$4-$B$5)) -> 1.814018409 | AT7: =IF(AT$4>$B$10,AS7,IF(AT$4<$B$9,INDEX(Indata!$B:$B,$D7),INDEX(Indata!$B:$B,$D7+1))^(AT$4-$B$5)) -> 1.841228685 | AU7: =IF(AU$4>$B$10,AT7,IF(AU$4<$B$9,INDEX(Indata!$B:$B,$D7),INDEX(Indata!$B:$B,$D7+1))^(AU$4-$B$5)) -> 1.868847115 | AV7: =IF(AV$4>$B$10,AU7,IF(AV$4<$B$9,INDEX(Indata!$B:$B,$D7),INDEX(Indata!$B:$B,$D7+1))^(AV$4-$B$5)) -> 1.896879822 | AW7: =IF(AW$4>$B$10,AV7,IF(AW$4<$B$9,INDEX(Indata!$B:$B,$D7),INDEX(Indata!$B:$B,$D7+1))^(AW$4-$B$5)) -> 1.925333019 | AX7: =IF(AX$4>$B$10,AW7,IF(AX$4<$B$9,INDEX(Indata!$B:$B,$D7),INDEX(Indata!$B:$B,$D7+1))^(AX$4-$B$5)) -> 1.954213014 | AY7: =IF(AY$4>$B$10,AX7,IF(AY$4<$B$9,INDEX(Indata!$B:$B,$D7),INDEX(Indata!$B:$B,$D7+1))^(AY$4-$B$5)) -> 1.98352621 | AZ7: =IF(AZ$4>$B$10,AY7,IF(AZ$4<$B$9,INDEX(Indata!$B:$B,$D7),INDEX(Indata!$B:$B,$D7+1))^(AZ$4-$B$5)) -> 2.013279103 | BA7: =IF(BA$4>$B$10,AZ7,IF(BA$4<$B$9,INDEX(Indata!$B:$B,$D7),INDEX(Indata!$B:$B,$D7+1))^(BA$4-$B$5)) -> 2.043478289 | BB7: =IF(BB$4>$B$10,BA7,IF(BB$4<$B$9,INDEX(Indata!$B:$B,$D7),INDEX(Indata!$B:$B,$D7+1))^(BB$4-$B$5)) -> 2.043478289 | BC7: =IF(BC$4>$B$10,BB7,IF(BC$4<$B$9,INDEX(Indata!$B:$B,$D7),INDEX(Indata!$B:$B,$D7+1))^(BC$4-$B$5)) -> 2.043478289 | BD7: =IF(BD$4>$B$10,BC7,IF(BD$4<$B$9,INDEX(Indata!$B:$B,$D7),INDEX(Indata!$B:$B,$D7+1))^(BD$4-$B$5)) -> 2.043478289 | BE7: =IF(BE$4>$B$10,BD7,IF(BE$4<$B$9,INDEX(Indata!$B:$B,$D7),INDEX(Indata!$B:$B,$D7+1))^(BE$4-$B$5)) -> 2.043478289 | BF7: =IF(BF$4>$B$10,BE7,IF(BF$4<$B$9,INDEX(Indata!$B:$B,$D7),INDEX(Indata!$B:$B,$D7+1))^(BF$4-$B$5)) -> 2.043478289 | BG7: =IF(BG$4>$B$10,BF7,IF(BG$4<$B$9,INDEX(Indata!$B:$B,$D7),INDEX(Indata!$B:$B,$D7+1))^(BG$4-$B$5)) -> 2.043478289 | BH7: =IF(BH$4>$B$10,BG7,IF(BH$4<$B$9,INDEX(Indata!$B:$B,$D7),INDEX(Indata!$B:$B,$D7+1))^(BH$4-$B$5)) -> 2.043478289 | BI7: =IF(BI$4>$B$10,BH7,IF(BI$4<$B$9,INDEX(Indata!$B:$B,$D7),INDEX(Indata!$B:$B,$D7+1))^(BI$4-$B$5)) -> 2.043478289 | BJ7: =IF(BJ$4>$B$10,BI7,IF(BJ$4<$B$9,INDEX(Indata!$B:$B,$D7),INDEX(Indata!$B:$B,$D7+1))^(BJ$4-$B$5)) -> 2.043478289 | BK7: =IF(BK$4>$B$10,BJ7,IF(BK$4<$B$9,INDEX(Indata!$B:$B,$D7),INDEX(Indata!$B:$B,$D7+1))^(BK$4-$B$5)) -> 2.043478289 | BL7: =IF(BL$4>$B$10,BK7,IF(BL$4<$B$9,INDEX(Indata!$B:$B,$D7),INDEX(Indata!$B:$B,$D7+1))^(BL$4-$B$5)) -> 2.043478289 | BM7: =IF(BM$4>$B$10,BL7,IF(BM$4<$B$9,INDEX(Indata!$B:$B,$D7),INDEX(Indata!$B:$B,$D7+1))^(BM$4-$B$5)) -> 2.043478289 | BN7: =IF(BN$4>$B$10,BM7,IF(BN$4<$B$9,INDEX(Indata!$B:$B,$D7),INDEX(Indata!$B:$B,$D7+1))^(BN$4-$B$5)) -> 2.043478289 | BO7: =IF(BO$4>$B$10,BN7,IF(BO$4<$B$9,INDEX(Indata!$B:$B,$D7),INDEX(Indata!$B:$B,$D7+1))^(BO$4-$B$5)) -> 2.043478289 | BP7: =IF(BP$4>$B$10,BO7,IF(BP$4<$B$9,INDEX(Indata!$B:$B,$D7),INDEX(Indata!$B:$B,$D7+1))^(BP$4-$B$5)) -> 2.043478289 | BQ7: =IF(BQ$4>$B$10,BP7,IF(BQ$4<$B$9,INDEX(Indata!$B:$B,$D7),INDEX(Indata!$B:$B,$D7+1))^(BQ$4-$B$5)) -> 2.043478289 | BR7: =IF(BR$4>$B$10,BQ7,IF(BR$4<$B$9,INDEX(Indata!$B:$B,$D7),INDEX(Indata!$B:$B,$D7+1))^(BR$4-$B$5)) -> 2.043478289 | BS7: =IF(BS$4>$B$10,BR7,IF(BS$4<$B$9,INDEX(Indata!$B:$B,$D7),INDEX(Indata!$B:$B,$D7+1))^(BS$4-$B$5)) -> 2.043478289 | BT7: =IF(BT$4>$B$10,BS7,IF(BT$4<$B$9,INDEX(Indata!$B:$B,$D7),INDEX(Indata!$B:$B,$D7+1))^(BT$4-$B$5)) -> 2.043478289 | BU7: =IF(BU$4>$B$10,BT7,IF(BU$4<$B$9,INDEX(Indata!$B:$B,$D7),INDEX(Indata!$B:$B,$D7+1))^(BU$4-$B$5)) -> 2.043478289 | BV7: =IF(BV$4>$B$10,BU7,IF(BV$4<$B$9,INDEX(Indata!$B:$B,$D7),INDEX(Indata!$B:$B,$D7+1))^(BV$4-$B$5)) -> 2.043478289 | BW7: =IF(BW$4>$B$10,BV7,IF(BW$4<$B$9,INDEX(Indata!$B:$B,$D7),INDEX(Indata!$B:$B,$D7+1))^(BW$4-$B$5)) -> 2.043478289 | BX7: =IF(BX$4>$B$10,BW7,IF(BX$4<$B$9,INDEX(Indata!$B:$B,$D7),INDEX(Indata!$B:$B,$D7+1))^(BX$4-$B$5)) -> 2.043478289 | BY7: =IF(BY$4>$B$10,BX7,IF(BY$4<$B$9,INDEX(Indata!$B:$B,$D7),INDEX(Indata!$B:$B,$D7+1))^(BY$4-$B$5)) -> 2.043478289 | BZ7: =IF(BZ$4>$B$10,BY7,IF(BZ$4<$B$9,INDEX(Indata!$B:$B,$D7),INDEX(Indata!$B:$B,$D7+1))^(BZ$4-$B$5)) -> 2.043478289 | CA7: =IF(CA$4>$B$10,BZ7,IF(CA$4<$B$9,INDEX(Indata!$B:$B,$D7),INDEX(Indata!$B:$B,$D7+1))^(CA$4-$B$5)) -> 2.043478289 | CB7: =IF(CB$4>$B$10,CA7,IF(CB$4<$B$9,INDEX(Indata!$B:$B,$D7),INDEX(Indata!$B:$B,$D7+1))^(CB$4-$B$5)) -> 2.043478289 | CC7: =IF(CC$4>$B$10,CB7,IF(CC$4<$B$9,INDEX(Indata!$B:$B,$D7),INDEX(Indata!$B:$B,$D7+1))^(CC$4-$B$5)) -> 2.043478289 | CD7: =IF(CD$4>$B$10,CC7,IF(CD$4<$B$9,INDEX(Indata!$B:$B,$D7),INDEX(Indata!$B:$B,$D7+1))^(CD$4-$B$5)) -> 2.043478289 | CE7: =IF(CE$4>$B$10,CD7,IF(CE$4<$B$9,INDEX(Indata!$B:$B,$D7),INDEX(Indata!$B:$B,$D7+1))^(CE$4-$B$5)) -> 2.043478289 | CF7: =IF(CF$4>$B$10,CE7,IF(CF$4<$B$9,INDEX(Indata!$B:$B,$D7),INDEX(Indata!$B:$B,$D7+1))^(CF$4-$B$5)) -> 2.043478289 | CG7: =IF(CG$4>$B$10,CF7,IF(CG$4<$B$9,INDEX(Indata!$B:$B,$D7),INDEX(Indata!$B:$B,$D7+1))^(CG$4-$B$5)) -> 2.043478289 | CH7: =IF(CH$4>$B$10,CG7,IF(CH$4<$B$9,INDEX(Indata!$B:$B,$D7),INDEX(Indata!$B:$B,$D7+1))^(CH$4-$B$5)) -> 2.043478289 | CI7: =IF(CI$4>$B$10,CH7,IF(CI$4<$B$9,INDEX(Indata!$B:$B,$D7),INDEX(Indata!$B:$B,$D7+1))^(CI$4-$B$5)) -> 2.043478289 | CJ7: =IF(CJ$4>$B$10,CI7,IF(CJ$4<$B$9,INDEX(Indata!$B:$B,$D7),INDEX(Indata!$B:$B,$D7+1))^(CJ$4-$B$5)) -> 2.043478289 | CK7: =IF(CK$4>$B$10,CJ7,IF(CK$4<$B$9,INDEX(Indata!$B:$B,$D7),INDEX(Indata!$B:$B,$D7+1))^(CK$4-$B$5)) -> 2.043478289 | CL7: =IF(CL$4>$B$10,CK7,IF(CL$4<$B$9,INDEX(Indata!$B:$B,$D7),INDEX(Indata!$B:$B,$D7+1))^(CL$4-$B$5)) -> 2.043478289 | CM7: =IF(CM$4>$B$10,CL7,IF(CM$4<$B$9,INDEX(Indata!$B:$B,$D7),INDEX(Indata!$B:$B,$D7+1))^(CM$4-$B$5)) -> 2.043478289 | CN7: =IF(CN$4>$B$10,CM7,IF(CN$4<$B$9,INDEX(Indata!$B:$B,$D7),INDEX(Indata!$B:$B,$D7+1))^(CN$4-$B$5)) -> 2.043478289 | CO7: =IF(CO$4>$B$10,CN7,IF(CO$4<$B$9,INDEX(Indata!$B:$B,$D7),INDEX(Indata!$B:$B,$D7+1))^(CO$4-$B$5)) -> 2.043478289 | CP7: =IF(CP$4>$B$10,CO7,IF(CP$4<$B$9,INDEX(Indata!$B:$B,$D7),INDEX(Indata!$B:$B,$D7+1))^(CP$4-$B$5)) -> 2.043478289 | CQ7: =IF(CQ$4>$B$10,CP7,IF(CQ$4<$B$9,INDEX(Indata!$B:$B,$D7),INDEX(Indata!$B:$B,$D7+1))^(CQ$4-$B$5)) -> 2.043478289 | CR7: =IF(CR$4>$B$10,CQ7,IF(CR$4<$B$9,INDEX(Indata!$B:$B,$D7),INDEX(Indata!$B:$B,$D7+1))^(CR$4-$B$5)) -> 2.043478289 | CS7: =IF(CS$4>$B$10,CR7,IF(CS$4<$B$9,INDEX(Indata!$B:$B,$D7),INDEX(Indata!$B:$B,$D7+1))^(CS$4-$B$5)) -> 2.043478289 | CT7: =IF(CT$4>$B$10,CS7,IF(CT$4<$B$9,INDEX(Indata!$B:$B,$D7),INDEX(Indata!$B:$B,$D7+1))^(CT$4-$B$5)) -> 2.043478289
A8: Trafikstartsår | B8: =Indata!B16 -> 2025 | C8: Uppräkning VOC | D8: =MATCH("VOCupp1",Indata!F:F,0) -> 35 | E8: =IF(E$4>$B$10,D8,IF(E$4<$B$9,INDEX(Indata!$B:$B,$D8),INDEX(Indata!$B:$B,$D8+1))^(E$4-$B$5)) -> 1 | F8: =IF(F$4>$B$10,E8,IF(F$4<$B$9,INDEX(Indata!$B:$B,$D8),INDEX(Indata!$B:$B,$D8+1))^(F$4-$B$5)) -> 1.015 | G8: =IF(G$4>$B$10,F8,IF(G$4<$B$9,INDEX(Indata!$B:$B,$D8),INDEX(Indata!$B:$B,$D8+1))^(G$4-$B$5)) -> 1.030225 | H8: =IF(H$4>$B$10,G8,IF(H$4<$B$9,INDEX(Indata!$B:$B,$D8),INDEX(Indata!$B:$B,$D8+1))^(H$4-$B$5)) -> 1.045678375 | I8: =IF(I$4>$B$10,H8,IF(I$4<$B$9,INDEX(Indata!$B:$B,$D8),INDEX(Indata!$B:$B,$D8+1))^(I$4-$B$5)) -> 1.061363551 | J8: =IF(J$4>$B$10,I8,IF(J$4<$B$9,INDEX(Indata!$B:$B,$D8),INDEX(Indata!$B:$B,$D8+1))^(J$4-$B$5)) -> 1.077284004 | K8: =IF(K$4>$B$10,J8,IF(K$4<$B$9,INDEX(Indata!$B:$B,$D8),INDEX(Indata!$B:$B,$D8+1))^(K$4-$B$5)) -> 1.093443264 | L8: =IF(L$4>$B$10,K8,IF(L$4<$B$9,INDEX(Indata!$B:$B,$D8),INDEX(Indata!$B:$B,$D8+1))^(L$4-$B$5)) -> 1.109844913 | M8: =IF(M$4>$B$10,L8,IF(M$4<$B$9,INDEX(Indata!$B:$B,$D8),INDEX(Indata!$B:$B,$D8+1))^(M$4-$B$5)) -> 1.126492587 | N8: =IF(N$4>$B$10,M8,IF(N$4<$B$9,INDEX(Indata!$B:$B,$D8),INDEX(Indata!$B:$B,$D8+1))^(N$4-$B$5)) -> 1.143389975 | O8: =IF(O$4>$B$10,N8,IF(O$4<$B$9,INDEX(Indata!$B:$B,$D8),INDEX(Indata!$B:$B,$D8+1))^(O$4-$B$5)) -> 1.160540825 | P8: =IF(P$4>$B$10,O8,IF(P$4<$B$9,INDEX(Indata!$B:$B,$D8),INDEX(Indata!$B:$B,$D8+1))^(P$4-$B$5)) -> 1.177948937 | Q8: =IF(Q$4>$B$10,P8,IF(Q$4<$B$9,INDEX(Indata!$B:$B,$D8),INDEX(Indata!$B:$B,$D8+1))^(Q$4-$B$5)) -> 1.195618171 | R8: =IF(R$4>$B$10,Q8,IF(R$4<$B$9,INDEX(Indata!$B:$B,$D8),INDEX(Indata!$B:$B,$D8+1))^(R$4-$B$5)) -> 1.213552444 | S8: =IF(S$4>$B$10,R8,IF(S$4<$B$9,INDEX(Indata!$B:$B,$D8),INDEX(Indata!$B:$B,$D8+1))^(S$4-$B$5)) -> 1.231755731 | T8: =IF(T$4>$B$10,S8,IF(T$4<$B$9,INDEX(Indata!$B:$B,$D8),INDEX(Indata!$B:$B,$D8+1))^(T$4-$B$5)) -> 1.250232067 | U8: =IF(U$4>$B$10,T8,IF(U$4<$B$9,INDEX(Indata!$B:$B,$D8),INDEX(Indata!$B:$B,$D8+1))^(U$4-$B$5)) -> 1.268985548 | V8: =IF(V$4>$B$10,U8,IF(V$4<$B$9,INDEX(Indata!$B:$B,$D8),INDEX(Indata!$B:$B,$D8+1))^(V$4-$B$5)) -> 1.288020331 | W8: =IF(W$4>$B$10,V8,IF(W$4<$B$9,INDEX(Indata!$B:$B,$D8),INDEX(Indata!$B:$B,$D8+1))^(W$4-$B$5)) -> 1.307340636 | X8: =IF(X$4>$B$10,W8,IF(X$4<$B$9,INDEX(Indata!$B:$B,$D8),INDEX(Indata!$B:$B,$D8+1))^(X$4-$B$5)) -> 1.326950745 | Y8: =IF(Y$4>$B$10,X8,IF(Y$4<$B$9,INDEX(Indata!$B:$B,$D8),INDEX(Indata!$B:$B,$D8+1))^(Y$4-$B$5)) -> 1.346855007 | Z8: =IF(Z$4>$B$10,Y8,IF(Z$4<$B$9,INDEX(Indata!$B:$B,$D8),INDEX(Indata!$B:$B,$D8+1))^(Z$4-$B$5)) -> 1.367057832 | AA8: =IF(AA$4>$B$10,Z8,IF(AA$4<$B$9,INDEX(Indata!$B:$B,$D8),INDEX(Indata!$B:$B,$D8+1))^(AA$4-$B$5)) -> 1.387563699 | AB8: =IF(AB$4>$B$10,AA8,IF(AB$4<$B$9,INDEX(Indata!$B:$B,$D8),INDEX(Indata!$B:$B,$D8+1))^(AB$4-$B$5)) -> 1.408377155 | AC8: =IF(AC$4>$B$10,AB8,IF(AC$4<$B$9,INDEX(Indata!$B:$B,$D8),INDEX(Indata!$B:$B,$D8+1))^(AC$4-$B$5)) -> 1.429502812 | AD8: =IF(AD$4>$B$10,AC8,IF(AD$4<$B$9,INDEX(Indata!$B:$B,$D8),INDEX(Indata!$B:$B,$D8+1))^(AD$4-$B$5)) -> 1.450945354 | AE8: =IF(AE$4>$B$10,AD8,IF(AE$4<$B$9,INDEX(Indata!$B:$B,$D8),INDEX(Indata!$B:$B,$D8+1))^(AE$4-$B$5)) -> 1.472709534 | AF8: =IF(AF$4>$B$10,AE8,IF(AF$4<$B$9,INDEX(Indata!$B:$B,$D8),INDEX(Indata!$B:$B,$D8+1))^(AF$4-$B$5)) -> 1.494800177 | AG8: =IF(AG$4>$B$10,AF8,IF(AG$4<$B$9,INDEX(Indata!$B:$B,$D8),INDEX(Indata!$B:$B,$D8+1))^(AG$4-$B$5)) -> 1.51722218 | AH8: =IF(AH$4>$B$10,AG8,IF(AH$4<$B$9,INDEX(Indata!$B:$B,$D8),INDEX(Indata!$B:$B,$D8+1))^(AH$4-$B$5)) -> 1.539980513 | AI8: =IF(AI$4>$B$10,AH8,IF(AI$4<$B$9,INDEX(Indata!$B:$B,$D8),INDEX(Indata!$B:$B,$D8+1))^(AI$4-$B$5)) -> 1.56308022 | AJ8: =IF(AJ$4>$B$10,AI8,IF(AJ$4<$B$9,INDEX(Indata!$B:$B,$D8),INDEX(Indata!$B:$B,$D8+1))^(AJ$4-$B$5)) -> 1.586526424 | AK8: =IF(AK$4>$B$10,AJ8,IF(AK$4<$B$9,INDEX(Indata!$B:$B,$D8),INDEX(Indata!$B:$B,$D8+1))^(AK$4-$B$5)) -> 1.61032432 | AL8: =IF(AL$4>$B$10,AK8,IF(AL$4<$B$9,INDEX(Indata!$B:$B,$D8),INDEX(Indata!$B:$B,$D8+1))^(AL$4-$B$5)) -> 1.634479185 | AM8: =IF(AM$4>$B$10,AL8,IF(AM$4<$B$9,INDEX(Indata!$B:$B,$D8),INDEX(Indata!$B:$B,$D8+1))^(AM$4-$B$5)) -> 1.658996373 | AN8: =IF(AN$4>$B$10,AM8,IF(AN$4<$B$9,INDEX(Indata!$B:$B,$D8),INDEX(Indata!$B:$B,$D8+1))^(AN$4-$B$5)) -> 1.683881318 | AO8: =IF(AO$4>$B$10,AN8,IF(AO$4<$B$9,INDEX(Indata!$B:$B,$D8),INDEX(Indata!$B:$B,$D8+1))^(AO$4-$B$5)) -> 1.709139538 | AP8: =IF(AP$4>$B$10,AO8,IF(AP$4<$B$9,INDEX(Indata!$B:$B,$D8),INDEX(Indata!$B:$B,$D8+1))^(AP$4-$B$5)) -> 1.734776631 | AQ8: =IF(AQ$4>$B$10,AP8,IF(AQ$4<$B$9,INDEX(Indata!$B:$B,$D8),INDEX(Indata!$B:$B,$D8+1))^(AQ$4-$B$5)) -> 1.760798281 | AR8: =IF(AR$4>$B$10,AQ8,IF(AR$4<$B$9,INDEX(Indata!$B:$B,$D8),INDEX(Indata!$B:$B,$D8+1))^(AR$4-$B$5)) -> 1.787210255 | AS8: =IF(AS$4>$B$10,AR8,IF(AS$4<$B$9,INDEX(Indata!$B:$B,$D8),INDEX(Indata!$B:$B,$D8+1))^(AS$4-$B$5)) -> 1.814018409 | AT8: =IF(AT$4>$B$10,AS8,IF(AT$4<$B$9,INDEX(Indata!$B:$B,$D8),INDEX(Indata!$B:$B,$D8+1))^(AT$4-$B$5)) -> 1.841228685 | AU8: =IF(AU$4>$B$10,AT8,IF(AU$4<$B$9,INDEX(Indata!$B:$B,$D8),INDEX(Indata!$B:$B,$D8+1))^(AU$4-$B$5)) -> 1.868847115 | AV8: =IF(AV$4>$B$10,AU8,IF(AV$4<$B$9,INDEX(Indata!$B:$B,$D8),INDEX(Indata!$B:$B,$D8+1))^(AV$4-$B$5)) -> 1.896879822 | AW8: =IF(AW$4>$B$10,AV8,IF(AW$4<$B$9,INDEX(Indata!$B:$B,$D8),INDEX(Indata!$B:$B,$D8+1))^(AW$4-$B$5)) -> 1.925333019 | AX8: =IF(AX$4>$B$10,AW8,IF(AX$4<$B$9,INDEX(Indata!$B:$B,$D8),INDEX(Indata!$B:$B,$D8+1))^(AX$4-$B$5)) -> 1.954213014 | AY8: =IF(AY$4>$B$10,AX8,IF(AY$4<$B$9,INDEX(Indata!$B:$B,$D8),INDEX(Indata!$B:$B,$D8+1))^(AY$4-$B$5)) -> 1.98352621 | AZ8: =IF(AZ$4>$B$10,AY8,IF(AZ$4<$B$9,INDEX(Indata!$B:$B,$D8),INDEX(Indata!$B:$B,$D8+1))^(AZ$4-$B$5)) -> 2.013279103 | BA8: =IF(BA$4>$B$10,AZ8,IF(BA$4<$B$9,INDEX(Indata!$B:$B,$D8),INDEX(Indata!$B:$B,$D8+1))^(BA$4-$B$5)) -> 2.043478289 | BB8: =IF(BB$4>$B$10,BA8,IF(BB$4<$B$9,INDEX(Indata!$B:$B,$D8),INDEX(Indata!$B:$B,$D8+1))^(BB$4-$B$5)) -> 2.043478289 | BC8: =IF(BC$4>$B$10,BB8,IF(BC$4<$B$9,INDEX(Indata!$B:$B,$D8),INDEX(Indata!$B:$B,$D8+1))^(BC$4-$B$5)) -> 2.043478289 | BD8: =IF(BD$4>$B$10,BC8,IF(BD$4<$B$9,INDEX(Indata!$B:$B,$D8),INDEX(Indata!$B:$B,$D8+1))^(BD$4-$B$5)) -> 2.043478289 | BE8: =IF(BE$4>$B$10,BD8,IF(BE$4<$B$9,INDEX(Indata!$B:$B,$D8),INDEX(Indata!$B:$B,$D8+1))^(BE$4-$B$5)) -> 2.043478289 | BF8: =IF(BF$4>$B$10,BE8,IF(BF$4<$B$9,INDEX(Indata!$B:$B,$D8),INDEX(Indata!$B:$B,$D8+1))^(BF$4-$B$5)) -> 2.043478289 | BG8: =IF(BG$4>$B$10,BF8,IF(BG$4<$B$9,INDEX(Indata!$B:$B,$D8),INDEX(Indata!$B:$B,$D8+1))^(BG$4-$B$5)) -> 2.043478289 | BH8: =IF(BH$4>$B$10,BG8,IF(BH$4<$B$9,INDEX(Indata!$B:$B,$D8),INDEX(Indata!$B:$B,$D8+1))^(BH$4-$B$5)) -> 2.043478289 | BI8: =IF(BI$4>$B$10,BH8,IF(BI$4<$B$9,INDEX(Indata!$B:$B,$D8),INDEX(Indata!$B:$B,$D8+1))^(BI$4-$B$5)) -> 2.043478289 | BJ8: =IF(BJ$4>$B$10,BI8,IF(BJ$4<$B$9,INDEX(Indata!$B:$B,$D8),INDEX(Indata!$B:$B,$D8+1))^(BJ$4-$B$5)) -> 2.043478289 | BK8: =IF(BK$4>$B$10,BJ8,IF(BK$4<$B$9,INDEX(Indata!$B:$B,$D8),INDEX(Indata!$B:$B,$D8+1))^(BK$4-$B$5)) -> 2.043478289 | BL8: =IF(BL$4>$B$10,BK8,IF(BL$4<$B$9,INDEX(Indata!$B:$B,$D8),INDEX(Indata!$B:$B,$D8+1))^(BL$4-$B$5)) -> 2.043478289 | BM8: =IF(BM$4>$B$10,BL8,IF(BM$4<$B$9,INDEX(Indata!$B:$B,$D8),INDEX(Indata!$B:$B,$D8+1))^(BM$4-$B$5)) -> 2.043478289 | BN8: =IF(BN$4>$B$10,BM8,IF(BN$4<$B$9,INDEX(Indata!$B:$B,$D8),INDEX(Indata!$B:$B,$D8+1))^(BN$4-$B$5)) -> 2.043478289 | BO8: =IF(BO$4>$B$10,BN8,IF(BO$4<$B$9,INDEX(Indata!$B:$B,$D8),INDEX(Indata!$B:$B,$D8+1))^(BO$4-$B$5)) -> 2.043478289 | BP8: =IF(BP$4>$B$10,BO8,IF(BP$4<$B$9,INDEX(Indata!$B:$B,$D8),INDEX(Indata!$B:$B,$D8+1))^(BP$4-$B$5)) -> 2.043478289 | BQ8: =IF(BQ$4>$B$10,BP8,IF(BQ$4<$B$9,INDEX(Indata!$B:$B,$D8),INDEX(Indata!$B:$B,$D8+1))^(BQ$4-$B$5)) -> 2.043478289 | BR8: =IF(BR$4>$B$10,BQ8,IF(BR$4<$B$9,INDEX(Indata!$B:$B,$D8),INDEX(Indata!$B:$B,$D8+1))^(BR$4-$B$5)) -> 2.043478289 | BS8: =IF(BS$4>$B$10,BR8,IF(BS$4<$B$9,INDEX(Indata!$B:$B,$D8),INDEX(Indata!$B:$B,$D8+1))^(BS$4-$B$5)) -> 2.043478289 | BT8: =IF(BT$4>$B$10,BS8,IF(BT$4<$B$9,INDEX(Indata!$B:$B,$D8),INDEX(Indata!$B:$B,$D8+1))^(BT$4-$B$5)) -> 2.043478289 | BU8: =IF(BU$4>$B$10,BT8,IF(BU$4<$B$9,INDEX(Indata!$B:$B,$D8),INDEX(Indata!$B:$B,$D8+1))^(BU$4-$B$5)) -> 2.043478289 | BV8: =IF(BV$4>$B$10,BU8,IF(BV$4<$B$9,INDEX(Indata!$B:$B,$D8),INDEX(Indata!$B:$B,$D8+1))^(BV$4-$B$5)) -> 2.043478289 | BW8: =IF(BW$4>$B$10,BV8,IF(BW$4<$B$9,INDEX(Indata!$B:$B,$D8),INDEX(Indata!$B:$B,$D8+1))^(BW$4-$B$5)) -> 2.043478289 | BX8: =IF(BX$4>$B$10,BW8,IF(BX$4<$B$9,INDEX(Indata!$B:$B,$D8),INDEX(Indata!$B:$B,$D8+1))^(BX$4-$B$5)) -> 2.043478289 | BY8: =IF(BY$4>$B$10,BX8,IF(BY$4<$B$9,INDEX(Indata!$B:$B,$D8),INDEX(Indata!$B:$B,$D8+1))^(BY$4-$B$5)) -> 2.043478289 | BZ8: =IF(BZ$4>$B$10,BY8,IF(BZ$4<$B$9,INDEX(Indata!$B:$B,$D8),INDEX(Indata!$B:$B,$D8+1))^(BZ$4-$B$5)) -> 2.043478289 | CA8: =IF(CA$4>$B$10,BZ8,IF(CA$4<$B$9,INDEX(Indata!$B:$B,$D8),INDEX(Indata!$B:$B,$D8+1))^(CA$4-$B$5)) -> 2.043478289 | CB8: =IF(CB$4>$B$10,CA8,IF(CB$4<$B$9,INDEX(Indata!$B:$B,$D8),INDEX(Indata!$B:$B,$D8+1))^(CB$4-$B$5)) -> 2.043478289 | CC8: =IF(CC$4>$B$10,CB8,IF(CC$4<$B$9,INDEX(Indata!$B:$B,$D8),INDEX(Indata!$B:$B,$D8+1))^(CC$4-$B$5)) -> 2.043478289 | CD8: =IF(CD$4>$B$10,CC8,IF(CD$4<$B$9,INDEX(Indata!$B:$B,$D8),INDEX(Indata!$B:$B,$D8+1))^(CD$4-$B$5)) -> 2.043478289 | CE8: =IF(CE$4>$B$10,CD8,IF(CE$4<$B$9,INDEX(Indata!$B:$B,$D8),INDEX(Indata!$B:$B,$D8+1))^(CE$4-$B$5)) -> 2.043478289 | CF8: =IF(CF$4>$B$10,CE8,IF(CF$4<$B$9,INDEX(Indata!$B:$B,$D8),INDEX(Indata!$B:$B,$D8+1))^(CF$4-$B$5)) -> 2.043478289 | CG8: =IF(CG$4>$B$10,CF8,IF(CG$4<$B$9,INDEX(Indata!$B:$B,$D8),INDEX(Indata!$B:$B,$D8+1))^(CG$4-$B$5)) -> 2.043478289 | CH8: =IF(CH$4>$B$10,CG8,IF(CH$4<$B$9,INDEX(Indata!$B:$B,$D8),INDEX(Indata!$B:$B,$D8+1))^(CH$4-$B$5)) -> 2.043478289 | CI8: =IF(CI$4>$B$10,CH8,IF(CI$4<$B$9,INDEX(Indata!$B:$B,$D8),INDEX(Indata!$B:$B,$D8+1))^(CI$4-$B$5)) -> 2.043478289 | CJ8: =IF(CJ$4>$B$10,CI8,IF(CJ$4<$B$9,INDEX(Indata!$B:$B,$D8),INDEX(Indata!$B:$B,$D8+1))^(CJ$4-$B$5)) -> 2.043478289 | CK8: =IF(CK$4>$B$10,CJ8,IF(CK$4<$B$9,INDEX(Indata!$B:$B,$D8),INDEX(Indata!$B:$B,$D8+1))^(CK$4-$B$5)) -> 2.043478289 | CL8: =IF(CL$4>$B$10,CK8,IF(CL$4<$B$9,INDEX(Indata!$B:$B,$D8),INDEX(Indata!$B:$B,$D8+1))^(CL$4-$B$5)) -> 2.043478289 | CM8: =IF(CM$4>$B$10,CL8,IF(CM$4<$B$9,INDEX(Indata!$B:$B,$D8),INDEX(Indata!$B:$B,$D8+1))^(CM$4-$B$5)) -> 2.043478289 | CN8: =IF(CN$4>$B$10,CM8,IF(CN$4<$B$9,INDEX(Indata!$B:$B,$D8),INDEX(Indata!$B:$B,$D8+1))^(CN$4-$B$5)) -> 2.043478289 | CO8: =IF(CO$4>$B$10,CN8,IF(CO$4<$B$9,INDEX(Indata!$B:$B,$D8),INDEX(Indata!$B:$B,$D8+1))^(CO$4-$B$5)) -> 2.043478289 | CP8: =IF(CP$4>$B$10,CO8,IF(CP$4<$B$9,INDEX(Indata!$B:$B,$D8),INDEX(Indata!$B:$B,$D8+1))^(CP$4-$B$5)) -> 2.043478289 | CQ8: =IF(CQ$4>$B$10,CP8,IF(CQ$4<$B$9,INDEX(Indata!$B:$B,$D8),INDEX(Indata!$B:$B,$D8+1))^(CQ$4-$B$5)) -> 2.043478289 | CR8: =IF(CR$4>$B$10,CQ8,IF(CR$4<$B$9,INDEX(Indata!$B:$B,$D8),INDEX(Indata!$B:$B,$D8+1))^(CR$4-$B$5)) -> 2.043478289 | CS8: =IF(CS$4>$B$10,CR8,IF(CS$4<$B$9,INDEX(Indata!$B:$B,$D8),INDEX(Indata!$B:$B,$D8+1))^(CS$4-$B$5)) -> 2.043478289 | CT8: =IF(CT$4>$B$10,CS8,IF(CT$4<$B$9,INDEX(Indata!$B:$B,$D8),INDEX(Indata!$B:$B,$D8+1))^(CT$4-$B$5)) -> 2.043478289
A9: Prognosår 1 | B9: =Indata!B17 -> 2040 | C9: Uppräkning SO2 | D9: =MATCH("SO2upp1",Indata!F:F,0) -> 37 | E9: =IF(E$4>$B$10,D9,IF(E$4<$B$9,INDEX(Indata!$B:$B,$D9),INDEX(Indata!$B:$B,$D9+1))^(E$4-$B$5)) -> 1 | F9: =IF(F$4>$B$10,E9,IF(F$4<$B$9,INDEX(Indata!$B:$B,$D9),INDEX(Indata!$B:$B,$D9+1))^(F$4-$B$5)) -> 1.015 | G9: =IF(G$4>$B$10,F9,IF(G$4<$B$9,INDEX(Indata!$B:$B,$D9),INDEX(Indata!$B:$B,$D9+1))^(G$4-$B$5)) -> 1.030225 | H9: =IF(H$4>$B$10,G9,IF(H$4<$B$9,INDEX(Indata!$B:$B,$D9),INDEX(Indata!$B:$B,$D9+1))^(H$4-$B$5)) -> 1.045678375 | I9: =IF(I$4>$B$10,H9,IF(I$4<$B$9,INDEX(Indata!$B:$B,$D9),INDEX(Indata!$B:$B,$D9+1))^(I$4-$B$5)) -> 1.061363551 | J9: =IF(J$4>$B$10,I9,IF(J$4<$B$9,INDEX(Indata!$B:$B,$D9),INDEX(Indata!$B:$B,$D9+1))^(J$4-$B$5)) -> 1.077284004 | K9: =IF(K$4>$B$10,J9,IF(K$4<$B$9,INDEX(Indata!$B:$B,$D9),INDEX(Indata!$B:$B,$D9+1))^(K$4-$B$5)) -> 1.093443264 | L9: =IF(L$4>$B$10,K9,IF(L$4<$B$9,INDEX(Indata!$B:$B,$D9),INDEX(Indata!$B:$B,$D9+1))^(L$4-$B$5)) -> 1.109844913 | M9: =IF(M$4>$B$10,L9,IF(M$4<$B$9,INDEX(Indata!$B:$B,$D9),INDEX(Indata!$B:$B,$D9+1))^(M$4-$B$5)) -> 1.126492587 | N9: =IF(N$4>$B$10,M9,IF(N$4<$B$9,INDEX(Indata!$B:$B,$D9),INDEX(Indata!$B:$B,$D9+1))^(N$4-$B$5)) -> 1.143389975 | O9: =IF(O$4>$B$10,N9,IF(O$4<$B$9,INDEX(Indata!$B:$B,$D9),INDEX(Indata!$B:$B,$D9+1))^(O$4-$B$5)) -> 1.160540825 | P9: =IF(P$4>$B$10,O9,IF(P$4<$B$9,INDEX(Indata!$B:$B,$D9),INDEX(Indata!$B:$B,$D9+1))^(P$4-$B$5)) -> 1.177948937 | Q9: =IF(Q$4>$B$10,P9,IF(Q$4<$B$9,INDEX(Indata!$B:$B,$D9),INDEX(Indata!$B:$B,$D9+1))^(Q$4-$B$5)) -> 1.195618171 | R9: =IF(R$4>$B$10,Q9,IF(R$4<$B$9,INDEX(Indata!$B:$B,$D9),INDEX(Indata!$B:$B,$D9+1))^(R$4-$B$5)) -> 1.213552444 | S9: =IF(S$4>$B$10,R9,IF(S$4<$B$9,INDEX(Indata!$B:$B,$D9),INDEX(Indata!$B:$B,$D9+1))^(S$4-$B$5)) -> 1.231755731 | T9: =IF(T$4>$B$10,S9,IF(T$4<$B$9,INDEX(Indata!$B:$B,$D9),INDEX(Indata!$B:$B,$D9+1))^(T$4-$B$5)) -> 1.250232067 | U9: =IF(U$4>$B$10,T9,IF(U$4<$B$9,INDEX(Indata!$B:$B,$D9),INDEX(Indata!$B:$B,$D9+1))^(U$4-$B$5)) -> 1.268985548 | V9: =IF(V$4>$B$10,U9,IF(V$4<$B$9,INDEX(Indata!$B:$B,$D9),INDEX(Indata!$B:$B,$D9+1))^(V$4-$B$5)) -> 1.288020331 | W9: =IF(W$4>$B$10,V9,IF(W$4<$B$9,INDEX(Indata!$B:$B,$D9),INDEX(Indata!$B:$B,$D9+1))^(W$4-$B$5)) -> 1.307340636 | X9: =IF(X$4>$B$10,W9,IF(X$4<$B$9,INDEX(Indata!$B:$B,$D9),INDEX(Indata!$B:$B,$D9+1))^(X$4-$B$5)) -> 1.326950745 | Y9: =IF(Y$4>$B$10,X9,IF(Y$4<$B$9,INDEX(Indata!$B:$B,$D9),INDEX(Indata!$B:$B,$D9+1))^(Y$4-$B$5)) -> 1.346855007 | Z9: =IF(Z$4>$B$10,Y9,IF(Z$4<$B$9,INDEX(Indata!$B:$B,$D9),INDEX(Indata!$B:$B,$D9+1))^(Z$4-$B$5)) -> 1.367057832 | AA9: =IF(AA$4>$B$10,Z9,IF(AA$4<$B$9,INDEX(Indata!$B:$B,$D9),INDEX(Indata!$B:$B,$D9+1))^(AA$4-$B$5)) -> 1.387563699 | AB9: =IF(AB$4>$B$10,AA9,IF(AB$4<$B$9,INDEX(Indata!$B:$B,$D9),INDEX(Indata!$B:$B,$D9+1))^(AB$4-$B$5)) -> 1.408377155 | AC9: =IF(AC$4>$B$10,AB9,IF(AC$4<$B$9,INDEX(Indata!$B:$B,$D9),INDEX(Indata!$B:$B,$D9+1))^(AC$4-$B$5)) -> 1.429502812 | AD9: =IF(AD$4>$B$10,AC9,IF(AD$4<$B$9,INDEX(Indata!$B:$B,$D9),INDEX(Indata!$B:$B,$D9+1))^(AD$4-$B$5)) -> 1.450945354 | AE9: =IF(AE$4>$B$10,AD9,IF(AE$4<$B$9,INDEX(Indata!$B:$B,$D9),INDEX(Indata!$B:$B,$D9+1))^(AE$4-$B$5)) -> 1.472709534 | AF9: =IF(AF$4>$B$10,AE9,IF(AF$4<$B$9,INDEX(Indata!$B:$B,$D9),INDEX(Indata!$B:$B,$D9+1))^(AF$4-$B$5)) -> 1.494800177 | AG9: =IF(AG$4>$B$10,AF9,IF(AG$4<$B$9,INDEX(Indata!$B:$B,$D9),INDEX(Indata!$B:$B,$D9+1))^(AG$4-$B$5)) -> 1.51722218 | AH9: =IF(AH$4>$B$10,AG9,IF(AH$4<$B$9,INDEX(Indata!$B:$B,$D9),INDEX(Indata!$B:$B,$D9+1))^(AH$4-$B$5)) -> 1.539980513 | AI9: =IF(AI$4>$B$10,AH9,IF(AI$4<$B$9,INDEX(Indata!$B:$B,$D9),INDEX(Indata!$B:$B,$D9+1))^(AI$4-$B$5)) -> 1.56308022 | AJ9: =IF(AJ$4>$B$10,AI9,IF(AJ$4<$B$9,INDEX(Indata!$B:$B,$D9),INDEX(Indata!$B:$B,$D9+1))^(AJ$4-$B$5)) -> 1.586526424 | AK9: =IF(AK$4>$B$10,AJ9,IF(AK$4<$B$9,INDEX(Indata!$B:$B,$D9),INDEX(Indata!$B:$B,$D9+1))^(AK$4-$B$5)) -> 1.61032432 | AL9: =IF(AL$4>$B$10,AK9,IF(AL$4<$B$9,INDEX(Indata!$B:$B,$D9),INDEX(Indata!$B:$B,$D9+1))^(AL$4-$B$5)) -> 1.634479185 | AM9: =IF(AM$4>$B$10,AL9,IF(AM$4<$B$9,INDEX(Indata!$B:$B,$D9),INDEX(Indata!$B:$B,$D9+1))^(AM$4-$B$5)) -> 1.658996373 | AN9: =IF(AN$4>$B$10,AM9,IF(AN$4<$B$9,INDEX(Indata!$B:$B,$D9),INDEX(Indata!$B:$B,$D9+1))^(AN$4-$B$5)) -> 1.683881318 | AO9: =IF(AO$4>$B$10,AN9,IF(AO$4<$B$9,INDEX(Indata!$B:$B,$D9),INDEX(Indata!$B:$B,$D9+1))^(AO$4-$B$5)) -> 1.709139538 | AP9: =IF(AP$4>$B$10,AO9,IF(AP$4<$B$9,INDEX(Indata!$B:$B,$D9),INDEX(Indata!$B:$B,$D9+1))^(AP$4-$B$5)) -> 1.734776631 | AQ9: =IF(AQ$4>$B$10,AP9,IF(AQ$4<$B$9,INDEX(Indata!$B:$B,$D9),INDEX(Indata!$B:$B,$D9+1))^(AQ$4-$B$5)) -> 1.760798281 | AR9: =IF(AR$4>$B$10,AQ9,IF(AR$4<$B$9,INDEX(Indata!$B:$B,$D9),INDEX(Indata!$B:$B,$D9+1))^(AR$4-$B$5)) -> 1.787210255 | AS9: =IF(AS$4>$B$10,AR9,IF(AS$4<$B$9,INDEX(Indata!$B:$B,$D9),INDEX(Indata!$B:$B,$D9+1))^(AS$4-$B$5)) -> 1.814018409 | AT9: =IF(AT$4>$B$10,AS9,IF(AT$4<$B$9,INDEX(Indata!$B:$B,$D9),INDEX(Indata!$B:$B,$D9+1))^(AT$4-$B$5)) -> 1.841228685 | AU9: =IF(AU$4>$B$10,AT9,IF(AU$4<$B$9,INDEX(Indata!$B:$B,$D9),INDEX(Indata!$B:$B,$D9+1))^(AU$4-$B$5)) -> 1.868847115 | AV9: =IF(AV$4>$B$10,AU9,IF(AV$4<$B$9,INDEX(Indata!$B:$B,$D9),INDEX(Indata!$B:$B,$D9+1))^(AV$4-$B$5)) -> 1.896879822 | AW9: =IF(AW$4>$B$10,AV9,IF(AW$4<$B$9,INDEX(Indata!$B:$B,$D9),INDEX(Indata!$B:$B,$D9+1))^(AW$4-$B$5)) -> 1.925333019 | AX9: =IF(AX$4>$B$10,AW9,IF(AX$4<$B$9,INDEX(Indata!$B:$B,$D9),INDEX(Indata!$B:$B,$D9+1))^(AX$4-$B$5)) -> 1.954213014 | AY9: =IF(AY$4>$B$10,AX9,IF(AY$4<$B$9,INDEX(Indata!$B:$B,$D9),INDEX(Indata!$B:$B,$D9+1))^(AY$4-$B$5)) -> 1.98352621 | AZ9: =IF(AZ$4>$B$10,AY9,IF(AZ$4<$B$9,INDEX(Indata!$B:$B,$D9),INDEX(Indata!$B:$B,$D9+1))^(AZ$4-$B$5)) -> 2.013279103 | BA9: =IF(BA$4>$B$10,AZ9,IF(BA$4<$B$9,INDEX(Indata!$B:$B,$D9),INDEX(Indata!$B:$B,$D9+1))^(BA$4-$B$5)) -> 2.043478289 | BB9: =IF(BB$4>$B$10,BA9,IF(BB$4<$B$9,INDEX(Indata!$B:$B,$D9),INDEX(Indata!$B:$B,$D9+1))^(BB$4-$B$5)) -> 2.043478289 | BC9: =IF(BC$4>$B$10,BB9,IF(BC$4<$B$9,INDEX(Indata!$B:$B,$D9),INDEX(Indata!$B:$B,$D9+1))^(BC$4-$B$5)) -> 2.043478289 | BD9: =IF(BD$4>$B$10,BC9,IF(BD$4<$B$9,INDEX(Indata!$B:$B,$D9),INDEX(Indata!$B:$B,$D9+1))^(BD$4-$B$5)) -> 2.043478289 | BE9: =IF(BE$4>$B$10,BD9,IF(BE$4<$B$9,INDEX(Indata!$B:$B,$D9),INDEX(Indata!$B:$B,$D9+1))^(BE$4-$B$5)) -> 2.043478289 | BF9: =IF(BF$4>$B$10,BE9,IF(BF$4<$B$9,INDEX(Indata!$B:$B,$D9),INDEX(Indata!$B:$B,$D9+1))^(BF$4-$B$5)) -> 2.043478289 | BG9: =IF(BG$4>$B$10,BF9,IF(BG$4<$B$9,INDEX(Indata!$B:$B,$D9),INDEX(Indata!$B:$B,$D9+1))^(BG$4-$B$5)) -> 2.043478289 | BH9: =IF(BH$4>$B$10,BG9,IF(BH$4<$B$9,INDEX(Indata!$B:$B,$D9),INDEX(Indata!$B:$B,$D9+1))^(BH$4-$B$5)) -> 2.043478289 | BI9: =IF(BI$4>$B$10,BH9,IF(BI$4<$B$9,INDEX(Indata!$B:$B,$D9),INDEX(Indata!$B:$B,$D9+1))^(BI$4-$B$5)) -> 2.043478289 | BJ9: =IF(BJ$4>$B$10,BI9,IF(BJ$4<$B$9,INDEX(Indata!$B:$B,$D9),INDEX(Indata!$B:$B,$D9+1))^(BJ$4-$B$5)) -> 2.043478289 | BK9: =IF(BK$4>$B$10,BJ9,IF(BK$4<$B$9,INDEX(Indata!$B:$B,$D9),INDEX(Indata!$B:$B,$D9+1))^(BK$4-$B$5)) -> 2.043478289 | BL9: =IF(BL$4>$B$10,BK9,IF(BL$4<$B$9,INDEX(Indata!$B:$B,$D9),INDEX(Indata!$B:$B,$D9+1))^(BL$4-$B$5)) -> 2.043478289 | BM9: =IF(BM$4>$B$10,BL9,IF(BM$4<$B$9,INDEX(Indata!$B:$B,$D9),INDEX(Indata!$B:$B,$D9+1))^(BM$4-$B$5)) -> 2.043478289 | BN9: =IF(BN$4>$B$10,BM9,IF(BN$4<$B$9,INDEX(Indata!$B:$B,$D9),INDEX(Indata!$B:$B,$D9+1))^(BN$4-$B$5)) -> 2.043478289 | BO9: =IF(BO$4>$B$10,BN9,IF(BO$4<$B$9,INDEX(Indata!$B:$B,$D9),INDEX(Indata!$B:$B,$D9+1))^(BO$4-$B$5)) -> 2.043478289 | BP9: =IF(BP$4>$B$10,BO9,IF(BP$4<$B$9,INDEX(Indata!$B:$B,$D9),INDEX(Indata!$B:$B,$D9+1))^(BP$4-$B$5)) -> 2.043478289 | BQ9: =IF(BQ$4>$B$10,BP9,IF(BQ$4<$B$9,INDEX(Indata!$B:$B,$D9),INDEX(Indata!$B:$B,$D9+1))^(BQ$4-$B$5)) -> 2.043478289 | BR9: =IF(BR$4>$B$10,BQ9,IF(BR$4<$B$9,INDEX(Indata!$B:$B,$D9),INDEX(Indata!$B:$B,$D9+1))^(BR$4-$B$5)) -> 2.043478289 | BS9: =IF(BS$4>$B$10,BR9,IF(BS$4<$B$9,INDEX(Indata!$B:$B,$D9),INDEX(Indata!$B:$B,$D9+1))^(BS$4-$B$5)) -> 2.043478289 | BT9: =IF(BT$4>$B$10,BS9,IF(BT$4<$B$9,INDEX(Indata!$B:$B,$D9),INDEX(Indata!$B:$B,$D9+1))^(BT$4-$B$5)) -> 2.043478289 | BU9: =IF(BU$4>$B$10,BT9,IF(BU$4<$B$9,INDEX(Indata!$B:$B,$D9),INDEX(Indata!$B:$B,$D9+1))^(BU$4-$B$5)) -> 2.043478289 | BV9: =IF(BV$4>$B$10,BU9,IF(BV$4<$B$9,INDEX(Indata!$B:$B,$D9),INDEX(Indata!$B:$B,$D9+1))^(BV$4-$B$5)) -> 2.043478289 | BW9: =IF(BW$4>$B$10,BV9,IF(BW$4<$B$9,INDEX(Indata!$B:$B,$D9),INDEX(Indata!$B:$B,$D9+1))^(BW$4-$B$5)) -> 2.043478289 | BX9: =IF(BX$4>$B$10,BW9,IF(BX$4<$B$9,INDEX(Indata!$B:$B,$D9),INDEX(Indata!$B:$B,$D9+1))^(BX$4-$B$5)) -> 2.043478289 | BY9: =IF(BY$4>$B$10,BX9,IF(BY$4<$B$9,INDEX(Indata!$B:$B,$D9),INDEX(Indata!$B:$B,$D9+1))^(BY$4-$B$5)) -> 2.043478289 | BZ9: =IF(BZ$4>$B$10,BY9,IF(BZ$4<$B$9,INDEX(Indata!$B:$B,$D9),INDEX(Indata!$B:$B,$D9+1))^(BZ$4-$B$5)) -> 2.043478289 | CA9: =IF(CA$4>$B$10,BZ9,IF(CA$4<$B$9,INDEX(Indata!$B:$B,$D9),INDEX(Indata!$B:$B,$D9+1))^(CA$4-$B$5)) -> 2.043478289 | CB9: =IF(CB$4>$B$10,CA9,IF(CB$4<$B$9,INDEX(Indata!$B:$B,$D9),INDEX(Indata!$B:$B,$D9+1))^(CB$4-$B$5)) -> 2.043478289 | CC9: =IF(CC$4>$B$10,CB9,IF(CC$4<$B$9,INDEX(Indata!$B:$B,$D9),INDEX(Indata!$B:$B,$D9+1))^(CC$4-$B$5)) -> 2.043478289 | CD9: =IF(CD$4>$B$10,CC9,IF(CD$4<$B$9,INDEX(Indata!$B:$B,$D9),INDEX(Indata!$B:$B,$D9+1))^(CD$4-$B$5)) -> 2.043478289 | CE9: =IF(CE$4>$B$10,CD9,IF(CE$4<$B$9,INDEX(Indata!$B:$B,$D9),INDEX(Indata!$B:$B,$D9+1))^(CE$4-$B$5)) -> 2.043478289 | CF9: =IF(CF$4>$B$10,CE9,IF(CF$4<$B$9,INDEX(Indata!$B:$B,$D9),INDEX(Indata!$B:$B,$D9+1))^(CF$4-$B$5)) -> 2.043478289 | CG9: =IF(CG$4>$B$10,CF9,IF(CG$4<$B$9,INDEX(Indata!$B:$B,$D9),INDEX(Indata!$B:$B,$D9+1))^(CG$4-$B$5)) -> 2.043478289 | CH9: =IF(CH$4>$B$10,CG9,IF(CH$4<$B$9,INDEX(Indata!$B:$B,$D9),INDEX(Indata!$B:$B,$D9+1))^(CH$4-$B$5)) -> 2.043478289 | CI9: =IF(CI$4>$B$10,CH9,IF(CI$4<$B$9,INDEX(Indata!$B:$B,$D9),INDEX(Indata!$B:$B,$D9+1))^(CI$4-$B$5)) -> 2.043478289 | CJ9: =IF(CJ$4>$B$10,CI9,IF(CJ$4<$B$9,INDEX(Indata!$B:$B,$D9),INDEX(Indata!$B:$B,$D9+1))^(CJ$4-$B$5)) -> 2.043478289 | CK9: =IF(CK$4>$B$10,CJ9,IF(CK$4<$B$9,INDEX(Indata!$B:$B,$D9),INDEX(Indata!$B:$B,$D9+1))^(CK$4-$B$5)) -> 2.043478289 | CL9: =IF(CL$4>$B$10,CK9,IF(CL$4<$B$9,INDEX(Indata!$B:$B,$D9),INDEX(Indata!$B:$B,$D9+1))^(CL$4-$B$5)) -> 2.043478289 | CM9: =IF(CM$4>$B$10,CL9,IF(CM$4<$B$9,INDEX(Indata!$B:$B,$D9),INDEX(Indata!$B:$B,$D9+1))^(CM$4-$B$5)) -> 2.043478289 | CN9: =IF(CN$4>$B$10,CM9,IF(CN$4<$B$9,INDEX(Indata!$B:$B,$D9),INDEX(Indata!$B:$B,$D9+1))^(CN$4-$B$5)) -> 2.043478289 | CO9: =IF(CO$4>$B$10,CN9,IF(CO$4<$B$9,INDEX(Indata!$B:$B,$D9),INDEX(Indata!$B:$B,$D9+1))^(CO$4-$B$5)) -> 2.043478289 | CP9: =IF(CP$4>$B$10,CO9,IF(CP$4<$B$9,INDEX(Indata!$B:$B,$D9),INDEX(Indata!$B:$B,$D9+1))^(CP$4-$B$5)) -> 2.043478289 | CQ9: =IF(CQ$4>$B$10,CP9,IF(CQ$4<$B$9,INDEX(Indata!$B:$B,$D9),INDEX(Indata!$B:$B,$D9+1))^(CQ$4-$B$5)) -> 2.043478289 | CR9: =IF(CR$4>$B$10,CQ9,IF(CR$4<$B$9,INDEX(Indata!$B:$B,$D9),INDEX(Indata!$B:$B,$D9+1))^(CR$4-$B$5)) -> 2.043478289 | CS9: =IF(CS$4>$B$10,CR9,IF(CS$4<$B$9,INDEX(Indata!$B:$B,$D9),INDEX(Indata!$B:$B,$D9+1))^(CS$4-$B$5)) -> 2.043478289 | CT9: =IF(CT$4>$B$10,CS9,IF(CT$4<$B$9,INDEX(Indata!$B:$B,$D9),INDEX(Indata!$B:$B,$D9+1))^(CT$4-$B$5)) -> 2.043478289
A10: Prognosår 2 | B10: =Indata!B18 -> 2065 | C10: Uppräkning NH3 | D10: =MATCH("NH3upp1",Indata!F:F,0) -> 39 | E10: =IF(E$4>$B$10,D10,IF(E$4<$B$9,INDEX(Indata!$B:$B,$D10),INDEX(Indata!$B:$B,$D10+1))^(E$4-$B$5)) -> 1 | F10: =IF(F$4>$B$10,E10,IF(F$4<$B$9,INDEX(Indata!$B:$B,$D10),INDEX(Indata!$B:$B,$D10+1))^(F$4-$B$5)) -> 1.015 | G10: =IF(G$4>$B$10,F10,IF(G$4<$B$9,INDEX(Indata!$B:$B,$D10),INDEX(Indata!$B:$B,$D10+1))^(G$4-$B$5)) -> 1.030225 | H10: =IF(H$4>$B$10,G10,IF(H$4<$B$9,INDEX(Indata!$B:$B,$D10),INDEX(Indata!$B:$B,$D10+1))^(H$4-$B$5)) -> 1.045678375 | I10: =IF(I$4>$B$10,H10,IF(I$4<$B$9,INDEX(Indata!$B:$B,$D10),INDEX(Indata!$B:$B,$D10+1))^(I$4-$B$5)) -> 1.061363551 | J10: =IF(J$4>$B$10,I10,IF(J$4<$B$9,INDEX(Indata!$B:$B,$D10),INDEX(Indata!$B:$B,$D10+1))^(J$4-$B$5)) -> 1.077284004 | K10: =IF(K$4>$B$10,J10,IF(K$4<$B$9,INDEX(Indata!$B:$B,$D10),INDEX(Indata!$B:$B,$D10+1))^(K$4-$B$5)) -> 1.093443264 | L10: =IF(L$4>$B$10,K10,IF(L$4<$B$9,INDEX(Indata!$B:$B,$D10),INDEX(Indata!$B:$B,$D10+1))^(L$4-$B$5)) -> 1.109844913 | M10: =IF(M$4>$B$10,L10,IF(M$4<$B$9,INDEX(Indata!$B:$B,$D10),INDEX(Indata!$B:$B,$D10+1))^(M$4-$B$5)) -> 1.126492587 | N10: =IF(N$4>$B$10,M10,IF(N$4<$B$9,INDEX(Indata!$B:$B,$D10),INDEX(Indata!$B:$B,$D10+1))^(N$4-$B$5)) -> 1.143389975 | O10: =IF(O$4>$B$10,N10,IF(O$4<$B$9,INDEX(Indata!$B:$B,$D10),INDEX(Indata!$B:$B,$D10+1))^(O$4-$B$5)) -> 1.160540825 | P10: =IF(P$4>$B$10,O10,IF(P$4<$B$9,INDEX(Indata!$B:$B,$D10),INDEX(Indata!$B:$B,$D10+1))^(P$4-$B$5)) -> 1.177948937 | Q10: =IF(Q$4>$B$10,P10,IF(Q$4<$B$9,INDEX(Indata!$B:$B,$D10),INDEX(Indata!$B:$B,$D10+1))^(Q$4-$B$5)) -> 1.195618171 | R10: =IF(R$4>$B$10,Q10,IF(R$4<$B$9,INDEX(Indata!$B:$B,$D10),INDEX(Indata!$B:$B,$D10+1))^(R$4-$B$5)) -> 1.213552444 | S10: =IF(S$4>$B$10,R10,IF(S$4<$B$9,INDEX(Indata!$B:$B,$D10),INDEX(Indata!$B:$B,$D10+1))^(S$4-$B$5)) -> 1.231755731 | T10: =IF(T$4>$B$10,S10,IF(T$4<$B$9,INDEX(Indata!$B:$B,$D10),INDEX(Indata!$B:$B,$D10+1))^(T$4-$B$5)) -> 1.250232067 | U10: =IF(U$4>$B$10,T10,IF(U$4<$B$9,INDEX(Indata!$B:$B,$D10),INDEX(Indata!$B:$B,$D10+1))^(U$4-$B$5)) -> 1.268985548 | V10: =IF(V$4>$B$10,U10,IF(V$4<$B$9,INDEX(Indata!$B:$B,$D10),INDEX(Indata!$B:$B,$D10+1))^(V$4-$B$5)) -> 1.288020331 | W10: =IF(W$4>$B$10,V10,IF(W$4<$B$9,INDEX(Indata!$B:$B,$D10),INDEX(Indata!$B:$B,$D10+1))^(W$4-$B$5)) -> 1.307340636 | X10: =IF(X$4>$B$10,W10,IF(X$4<$B$9,INDEX(Indata!$B:$B,$D10),INDEX(Indata!$B:$B,$D10+1))^(X$4-$B$5)) -> 1.326950745 | Y10: =IF(Y$4>$B$10,X10,IF(Y$4<$B$9,INDEX(Indata!$B:$B,$D10),INDEX(Indata!$B:$B,$D10+1))^(Y$4-$B$5)) -> 1.346855007 | Z10: =IF(Z$4>$B$10,Y10,IF(Z$4<$B$9,INDEX(Indata!$B:$B,$D10),INDEX(Indata!$B:$B,$D10+1))^(Z$4-$B$5)) -> 1.367057832 | AA10: =IF(AA$4>$B$10,Z10,IF(AA$4<$B$9,INDEX(Indata!$B:$B,$D10),INDEX(Indata!$B:$B,$D10+1))^(AA$4-$B$5)) -> 1.387563699 | AB10: =IF(AB$4>$B$10,AA10,IF(AB$4<$B$9,INDEX(Indata!$B:$B,$D10),INDEX(Indata!$B:$B,$D10+1))^(AB$4-$B$5)) -> 1.408377155 | AC10: =IF(AC$4>$B$10,AB10,IF(AC$4<$B$9,INDEX(Indata!$B:$B,$D10),INDEX(Indata!$B:$B,$D10+1))^(AC$4-$B$5)) -> 1.429502812 | AD10: =IF(AD$4>$B$10,AC10,IF(AD$4<$B$9,INDEX(Indata!$B:$B,$D10),INDEX(Indata!$B:$B,$D10+1))^(AD$4-$B$5)) -> 1.450945354 | AE10: =IF(AE$4>$B$10,AD10,IF(AE$4<$B$9,INDEX(Indata!$B:$B,$D10),INDEX(Indata!$B:$B,$D10+1))^(AE$4-$B$5)) -> 1.472709534 | AF10: =IF(AF$4>$B$10,AE10,IF(AF$4<$B$9,INDEX(Indata!$B:$B,$D10),INDEX(Indata!$B:$B,$D10+1))^(AF$4-$B$5)) -> 1.494800177 | AG10: =IF(AG$4>$B$10,AF10,IF(AG$4<$B$9,INDEX(Indata!$B:$B,$D10),INDEX(Indata!$B:$B,$D10+1))^(AG$4-$B$5)) -> 1.51722218 | AH10: =IF(AH$4>$B$10,AG10,IF(AH$4<$B$9,INDEX(Indata!$B:$B,$D10),INDEX(Indata!$B:$B,$D10+1))^(AH$4-$B$5)) -> 1.539980513 | AI10: =IF(AI$4>$B$10,AH10,IF(AI$4<$B$9,INDEX(Indata!$B:$B,$D10),INDEX(Indata!$B:$B,$D10+1))^(AI$4-$B$5)) -> 1.56308022 | AJ10: =IF(AJ$4>$B$10,AI10,IF(AJ$4<$B$9,INDEX(Indata!$B:$B,$D10),INDEX(Indata!$B:$B,$D10+1))^(AJ$4-$B$5)) -> 1.586526424 | AK10: =IF(AK$4>$B$10,AJ10,IF(AK$4<$B$9,INDEX(Indata!$B:$B,$D10),INDEX(Indata!$B:$B,$D10+1))^(AK$4-$B$5)) -> 1.61032432 | AL10: =IF(AL$4>$B$10,AK10,IF(AL$4<$B$9,INDEX(Indata!$B:$B,$D10),INDEX(Indata!$B:$B,$D10+1))^(AL$4-$B$5)) -> 1.634479185 | AM10: =IF(AM$4>$B$10,AL10,IF(AM$4<$B$9,INDEX(Indata!$B:$B,$D10),INDEX(Indata!$B:$B,$D10+1))^(AM$4-$B$5)) -> 1.658996373 | AN10: =IF(AN$4>$B$10,AM10,IF(AN$4<$B$9,INDEX(Indata!$B:$B,$D10),INDEX(Indata!$B:$B,$D10+1))^(AN$4-$B$5)) -> 1.683881318 | AO10: =IF(AO$4>$B$10,AN10,IF(AO$4<$B$9,INDEX(Indata!$B:$B,$D10),INDEX(Indata!$B:$B,$D10+1))^(AO$4-$B$5)) -> 1.709139538 | AP10: =IF(AP$4>$B$10,AO10,IF(AP$4<$B$9,INDEX(Indata!$B:$B,$D10),INDEX(Indata!$B:$B,$D10+1))^(AP$4-$B$5)) -> 1.734776631 | AQ10: =IF(AQ$4>$B$10,AP10,IF(AQ$4<$B$9,INDEX(Indata!$B:$B,$D10),INDEX(Indata!$B:$B,$D10+1))^(AQ$4-$B$5)) -> 1.760798281 | AR10: =IF(AR$4>$B$10,AQ10,IF(AR$4<$B$9,INDEX(Indata!$B:$B,$D10),INDEX(Indata!$B:$B,$D10+1))^(AR$4-$B$5)) -> 1.787210255 | AS10: =IF(AS$4>$B$10,AR10,IF(AS$4<$B$9,INDEX(Indata!$B:$B,$D10),INDEX(Indata!$B:$B,$D10+1))^(AS$4-$B$5)) -> 1.814018409 | AT10: =IF(AT$4>$B$10,AS10,IF(AT$4<$B$9,INDEX(Indata!$B:$B,$D10),INDEX(Indata!$B:$B,$D10+1))^(AT$4-$B$5)) -> 1.841228685 | AU10: =IF(AU$4>$B$10,AT10,IF(AU$4<$B$9,INDEX(Indata!$B:$B,$D10),INDEX(Indata!$B:$B,$D10+1))^(AU$4-$B$5)) -> 1.868847115 | AV10: =IF(AV$4>$B$10,AU10,IF(AV$4<$B$9,INDEX(Indata!$B:$B,$D10),INDEX(Indata!$B:$B,$D10+1))^(AV$4-$B$5)) -> 1.896879822 | AW10: =IF(AW$4>$B$10,AV10,IF(AW$4<$B$9,INDEX(Indata!$B:$B,$D10),INDEX(Indata!$B:$B,$D10+1))^(AW$4-$B$5)) -> 1.925333019 | AX10: =IF(AX$4>$B$10,AW10,IF(AX$4<$B$9,INDEX(Indata!$B:$B,$D10),INDEX(Indata!$B:$B,$D10+1))^(AX$4-$B$5)) -> 1.954213014 | AY10: =IF(AY$4>$B$10,AX10,IF(AY$4<$B$9,INDEX(Indata!$B:$B,$D10),INDEX(Indata!$B:$B,$D10+1))^(AY$4-$B$5)) -> 1.98352621 | AZ10: =IF(AZ$4>$B$10,AY10,IF(AZ$4<$B$9,INDEX(Indata!$B:$B,$D10),INDEX(Indata!$B:$B,$D10+1))^(AZ$4-$B$5)) -> 2.013279103 | BA10: =IF(BA$4>$B$10,AZ10,IF(BA$4<$B$9,INDEX(Indata!$B:$B,$D10),INDEX(Indata!$B:$B,$D10+1))^(BA$4-$B$5)) -> 2.043478289 | BB10: =IF(BB$4>$B$10,BA10,IF(BB$4<$B$9,INDEX(Indata!$B:$B,$D10),INDEX(Indata!$B:$B,$D10+1))^(BB$4-$B$5)) -> 2.043478289 | BC10: =IF(BC$4>$B$10,BB10,IF(BC$4<$B$9,INDEX(Indata!$B:$B,$D10),INDEX(Indata!$B:$B,$D10+1))^(BC$4-$B$5)) -> 2.043478289 | BD10: =IF(BD$4>$B$10,BC10,IF(BD$4<$B$9,INDEX(Indata!$B:$B,$D10),INDEX(Indata!$B:$B,$D10+1))^(BD$4-$B$5)) -> 2.043478289 | BE10: =IF(BE$4>$B$10,BD10,IF(BE$4<$B$9,INDEX(Indata!$B:$B,$D10),INDEX(Indata!$B:$B,$D10+1))^(BE$4-$B$5)) -> 2.043478289 | BF10: =IF(BF$4>$B$10,BE10,IF(BF$4<$B$9,INDEX(Indata!$B:$B,$D10),INDEX(Indata!$B:$B,$D10+1))^(BF$4-$B$5)) -> 2.043478289 | BG10: =IF(BG$4>$B$10,BF10,IF(BG$4<$B$9,INDEX(Indata!$B:$B,$D10),INDEX(Indata!$B:$B,$D10+1))^(BG$4-$B$5)) -> 2.043478289 | BH10: =IF(BH$4>$B$10,BG10,IF(BH$4<$B$9,INDEX(Indata!$B:$B,$D10),INDEX(Indata!$B:$B,$D10+1))^(BH$4-$B$5)) -> 2.043478289 | BI10: =IF(BI$4>$B$10,BH10,IF(BI$4<$B$9,INDEX(Indata!$B:$B,$D10),INDEX(Indata!$B:$B,$D10+1))^(BI$4-$B$5)) -> 2.043478289 | BJ10: =IF(BJ$4>$B$10,BI10,IF(BJ$4<$B$9,INDEX(Indata!$B:$B,$D10),INDEX(Indata!$B:$B,$D10+1))^(BJ$4-$B$5)) -> 2.043478289 | BK10: =IF(BK$4>$B$10,BJ10,IF(BK$4<$B$9,INDEX(Indata!$B:$B,$D10),INDEX(Indata!$B:$B,$D10+1))^(BK$4-$B$5)) -> 2.043478289 | BL10: =IF(BL$4>$B$10,BK10,IF(BL$4<$B$9,INDEX(Indata!$B:$B,$D10),INDEX(Indata!$B:$B,$D10+1))^(BL$4-$B$5)) -> 2.043478289 | BM10: =IF(BM$4>$B$10,BL10,IF(BM$4<$B$9,INDEX(Indata!$B:$B,$D10),INDEX(Indata!$B:$B,$D10+1))^(BM$4-$B$5)) -> 2.043478289 | BN10: =IF(BN$4>$B$10,BM10,IF(BN$4<$B$9,INDEX(Indata!$B:$B,$D10),INDEX(Indata!$B:$B,$D10+1))^(BN$4-$B$5)) -> 2.043478289 | BO10: =IF(BO$4>$B$10,BN10,IF(BO$4<$B$9,INDEX(Indata!$B:$B,$D10),INDEX(Indata!$B:$B,$D10+1))^(BO$4-$B$5)) -> 2.043478289 | BP10: =IF(BP$4>$B$10,BO10,IF(BP$4<$B$9,INDEX(Indata!$B:$B,$D10),INDEX(Indata!$B:$B,$D10+1))^(BP$4-$B$5)) -> 2.043478289 | BQ10: =IF(BQ$4>$B$10,BP10,IF(BQ$4<$B$9,INDEX(Indata!$B:$B,$D10),INDEX(Indata!$B:$B,$D10+1))^(BQ$4-$B$5)) -> 2.043478289 | BR10: =IF(BR$4>$B$10,BQ10,IF(BR$4<$B$9,INDEX(Indata!$B:$B,$D10),INDEX(Indata!$B:$B,$D10+1))^(BR$4-$B$5)) -> 2.043478289 | BS10: =IF(BS$4>$B$10,BR10,IF(BS$4<$B$9,INDEX(Indata!$B:$B,$D10),INDEX(Indata!$B:$B,$D10+1))^(BS$4-$B$5)) -> 2.043478289 | BT10: =IF(BT$4>$B$10,BS10,IF(BT$4<$B$9,INDEX(Indata!$B:$B,$D10),INDEX(Indata!$B:$B,$D10+1))^(BT$4-$B$5)) -> 2.043478289 | BU10: =IF(BU$4>$B$10,BT10,IF(BU$4<$B$9,INDEX(Indata!$B:$B,$D10),INDEX(Indata!$B:$B,$D10+1))^(BU$4-$B$5)) -> 2.043478289 | BV10: =IF(BV$4>$B$10,BU10,IF(BV$4<$B$9,INDEX(Indata!$B:$B,$D10),INDEX(Indata!$B:$B,$D10+1))^(BV$4-$B$5)) -> 2.043478289 | BW10: =IF(BW$4>$B$10,BV10,IF(BW$4<$B$9,INDEX(Indata!$B:$B,$D10),INDEX(Indata!$B:$B,$D10+1))^(BW$4-$B$5)) -> 2.043478289 | BX10: =IF(BX$4>$B$10,BW10,IF(BX$4<$B$9,INDEX(Indata!$B:$B,$D10),INDEX(Indata!$B:$B,$D10+1))^(BX$4-$B$5)) -> 2.043478289 | BY10: =IF(BY$4>$B$10,BX10,IF(BY$4<$B$9,INDEX(Indata!$B:$B,$D10),INDEX(Indata!$B:$B,$D10+1))^(BY$4-$B$5)) -> 2.043478289 | BZ10: =IF(BZ$4>$B$10,BY10,IF(BZ$4<$B$9,INDEX(Indata!$B:$B,$D10),INDEX(Indata!$B:$B,$D10+1))^(BZ$4-$B$5)) -> 2.043478289 | CA10: =IF(CA$4>$B$10,BZ10,IF(CA$4<$B$9,INDEX(Indata!$B:$B,$D10),INDEX(Indata!$B:$B,$D10+1))^(CA$4-$B$5)) -> 2.043478289 | CB10: =IF(CB$4>$B$10,CA10,IF(CB$4<$B$9,INDEX(Indata!$B:$B,$D10),INDEX(Indata!$B:$B,$D10+1))^(CB$4-$B$5)) -> 2.043478289 | CC10: =IF(CC$4>$B$10,CB10,IF(CC$4<$B$9,INDEX(Indata!$B:$B,$D10),INDEX(Indata!$B:$B,$D10+1))^(CC$4-$B$5)) -> 2.043478289 | CD10: =IF(CD$4>$B$10,CC10,IF(CD$4<$B$9,INDEX(Indata!$B:$B,$D10),INDEX(Indata!$B:$B,$D10+1))^(CD$4-$B$5)) -> 2.043478289 | CE10: =IF(CE$4>$B$10,CD10,IF(CE$4<$B$9,INDEX(Indata!$B:$B,$D10),INDEX(Indata!$B:$B,$D10+1))^(CE$4-$B$5)) -> 2.043478289 | CF10: =IF(CF$4>$B$10,CE10,IF(CF$4<$B$9,INDEX(Indata!$B:$B,$D10),INDEX(Indata!$B:$B,$D10+1))^(CF$4-$B$5)) -> 2.043478289 | CG10: =IF(CG$4>$B$10,CF10,IF(CG$4<$B$9,INDEX(Indata!$B:$B,$D10),INDEX(Indata!$B:$B,$D10+1))^(CG$4-$B$5)) -> 2.043478289 | CH10: =IF(CH$4>$B$10,CG10,IF(CH$4<$B$9,INDEX(Indata!$B:$B,$D10),INDEX(Indata!$B:$B,$D10+1))^(CH$4-$B$5)) -> 2.043478289 | CI10: =IF(CI$4>$B$10,CH10,IF(CI$4<$B$9,INDEX(Indata!$B:$B,$D10),INDEX(Indata!$B:$B,$D10+1))^(CI$4-$B$5)) -> 2.043478289 | CJ10: =IF(CJ$4>$B$10,CI10,IF(CJ$4<$B$9,INDEX(Indata!$B:$B,$D10),INDEX(Indata!$B:$B,$D10+1))^(CJ$4-$B$5)) -> 2.043478289 | CK10: =IF(CK$4>$B$10,CJ10,IF(CK$4<$B$9,INDEX(Indata!$B:$B,$D10),INDEX(Indata!$B:$B,$D10+1))^(CK$4-$B$5)) -> 2.043478289 | CL10: =IF(CL$4>$B$10,CK10,IF(CL$4<$B$9,INDEX(Indata!$B:$B,$D10),INDEX(Indata!$B:$B,$D10+1))^(CL$4-$B$5)) -> 2.043478289 | CM10: =IF(CM$4>$B$10,CL10,IF(CM$4<$B$9,INDEX(Indata!$B:$B,$D10),INDEX(Indata!$B:$B,$D10+1))^(CM$4-$B$5)) -> 2.043478289 | CN10: =IF(CN$4>$B$10,CM10,IF(CN$4<$B$9,INDEX(Indata!$B:$B,$D10),INDEX(Indata!$B:$B,$D10+1))^(CN$4-$B$5)) -> 2.043478289 | CO10: =IF(CO$4>$B$10,CN10,IF(CO$4<$B$9,INDEX(Indata!$B:$B,$D10),INDEX(Indata!$B:$B,$D10+1))^(CO$4-$B$5)) -> 2.043478289 | CP10: =IF(CP$4>$B$10,CO10,IF(CP$4<$B$9,INDEX(Indata!$B:$B,$D10),INDEX(Indata!$B:$B,$D10+1))^(CP$4-$B$5)) -> 2.043478289 | CQ10: =IF(CQ$4>$B$10,CP10,IF(CQ$4<$B$9,INDEX(Indata!$B:$B,$D10),INDEX(Indata!$B:$B,$D10+1))^(CQ$4-$B$5)) -> 2.043478289 | CR10: =IF(CR$4>$B$10,CQ10,IF(CR$4<$B$9,INDEX(Indata!$B:$B,$D10),INDEX(Indata!$B:$B,$D10+1))^(CR$4-$B$5)) -> 2.043478289 | CS10: =IF(CS$4>$B$10,CR10,IF(CS$4<$B$9,INDEX(Indata!$B:$B,$D10),INDEX(Indata!$B:$B,$D10+1))^(CS$4-$B$5)) -> 2.043478289 | CT10: =IF(CT$4>$B$10,CS10,IF(CT$4<$B$9,INDEX(Indata!$B:$B,$D10),INDEX(Indata!$B:$B,$D10+1))^(CT$4-$B$5)) -> 2.043478289
A11: Slutår | B11: =Indata!B19 -> 2084 | C11: Uppräkning PM | D11: =MATCH("PMupp1",Indata!F:F,0) -> 41 | E11: =IF(E$4>$B$10,D11,IF(E$4<$B$9,INDEX(Indata!$B:$B,$D11),INDEX(Indata!$B:$B,$D11+1))^(E$4-$B$5)) -> 1 | F11: =IF(F$4>$B$10,E11,IF(F$4<$B$9,INDEX(Indata!$B:$B,$D11),INDEX(Indata!$B:$B,$D11+1))^(F$4-$B$5)) -> 1.015 | G11: =IF(G$4>$B$10,F11,IF(G$4<$B$9,INDEX(Indata!$B:$B,$D11),INDEX(Indata!$B:$B,$D11+1))^(G$4-$B$5)) -> 1.030225 | H11: =IF(H$4>$B$10,G11,IF(H$4<$B$9,INDEX(Indata!$B:$B,$D11),INDEX(Indata!$B:$B,$D11+1))^(H$4-$B$5)) -> 1.045678375 | I11: =IF(I$4>$B$10,H11,IF(I$4<$B$9,INDEX(Indata!$B:$B,$D11),INDEX(Indata!$B:$B,$D11+1))^(I$4-$B$5)) -> 1.061363551 | J11: =IF(J$4>$B$10,I11,IF(J$4<$B$9,INDEX(Indata!$B:$B,$D11),INDEX(Indata!$B:$B,$D11+1))^(J$4-$B$5)) -> 1.077284004 | K11: =IF(K$4>$B$10,J11,IF(K$4<$B$9,INDEX(Indata!$B:$B,$D11),INDEX(Indata!$B:$B,$D11+1))^(K$4-$B$5)) -> 1.093443264 | L11: =IF(L$4>$B$10,K11,IF(L$4<$B$9,INDEX(Indata!$B:$B,$D11),INDEX(Indata!$B:$B,$D11+1))^(L$4-$B$5)) -> 1.109844913 | M11: =IF(M$4>$B$10,L11,IF(M$4<$B$9,INDEX(Indata!$B:$B,$D11),INDEX(Indata!$B:$B,$D11+1))^(M$4-$B$5)) -> 1.126492587 | N11: =IF(N$4>$B$10,M11,IF(N$4<$B$9,INDEX(Indata!$B:$B,$D11),INDEX(Indata!$B:$B,$D11+1))^(N$4-$B$5)) -> 1.143389975 | O11: =IF(O$4>$B$10,N11,IF(O$4<$B$9,INDEX(Indata!$B:$B,$D11),INDEX(Indata!$B:$B,$D11+1))^(O$4-$B$5)) -> 1.160540825 | P11: =IF(P$4>$B$10,O11,IF(P$4<$B$9,INDEX(Indata!$B:$B,$D11),INDEX(Indata!$B:$B,$D11+1))^(P$4-$B$5)) -> 1.177948937 | Q11: =IF(Q$4>$B$10,P11,IF(Q$4<$B$9,INDEX(Indata!$B:$B,$D11),INDEX(Indata!$B:$B,$D11+1))^(Q$4-$B$5)) -> 1.195618171 | R11: =IF(R$4>$B$10,Q11,IF(R$4<$B$9,INDEX(Indata!$B:$B,$D11),INDEX(Indata!$B:$B,$D11+1))^(R$4-$B$5)) -> 1.213552444 | S11: =IF(S$4>$B$10,R11,IF(S$4<$B$9,INDEX(Indata!$B:$B,$D11),INDEX(Indata!$B:$B,$D11+1))^(S$4-$B$5)) -> 1.231755731 | T11: =IF(T$4>$B$10,S11,IF(T$4<$B$9,INDEX(Indata!$B:$B,$D11),INDEX(Indata!$B:$B,$D11+1))^(T$4-$B$5)) -> 1.250232067 | U11: =IF(U$4>$B$10,T11,IF(U$4<$B$9,INDEX(Indata!$B:$B,$D11),INDEX(Indata!$B:$B,$D11+1))^(U$4-$B$5)) -> 1.268985548 | V11: =IF(V$4>$B$10,U11,IF(V$4<$B$9,INDEX(Indata!$B:$B,$D11),INDEX(Indata!$B:$B,$D11+1))^(V$4-$B$5)) -> 1.288020331 | W11: =IF(W$4>$B$10,V11,IF(W$4<$B$9,INDEX(Indata!$B:$B,$D11),INDEX(Indata!$B:$B,$D11+1))^(W$4-$B$5)) -> 1.307340636 | X11: =IF(X$4>$B$10,W11,IF(X$4<$B$9,INDEX(Indata!$B:$B,$D11),INDEX(Indata!$B:$B,$D11+1))^(X$4-$B$5)) -> 1.326950745 | Y11: =IF(Y$4>$B$10,X11,IF(Y$4<$B$9,INDEX(Indata!$B:$B,$D11),INDEX(Indata!$B:$B,$D11+1))^(Y$4-$B$5)) -> 1.346855007 | Z11: =IF(Z$4>$B$10,Y11,IF(Z$4<$B$9,INDEX(Indata!$B:$B,$D11),INDEX(Indata!$B:$B,$D11+1))^(Z$4-$B$5)) -> 1.367057832 | AA11: =IF(AA$4>$B$10,Z11,IF(AA$4<$B$9,INDEX(Indata!$B:$B,$D11),INDEX(Indata!$B:$B,$D11+1))^(AA$4-$B$5)) -> 1.387563699 | AB11: =IF(AB$4>$B$10,AA11,IF(AB$4<$B$9,INDEX(Indata!$B:$B,$D11),INDEX(Indata!$B:$B,$D11+1))^(AB$4-$B$5)) -> 1.408377155 | AC11: =IF(AC$4>$B$10,AB11,IF(AC$4<$B$9,INDEX(Indata!$B:$B,$D11),INDEX(Indata!$B:$B,$D11+1))^(AC$4-$B$5)) -> 1.429502812 | AD11: =IF(AD$4>$B$10,AC11,IF(AD$4<$B$9,INDEX(Indata!$B:$B,$D11),INDEX(Indata!$B:$B,$D11+1))^(AD$4-$B$5)) -> 1.450945354 | AE11: =IF(AE$4>$B$10,AD11,IF(AE$4<$B$9,INDEX(Indata!$B:$B,$D11),INDEX(Indata!$B:$B,$D11+1))^(AE$4-$B$5)) -> 1.472709534 | AF11: =IF(AF$4>$B$10,AE11,IF(AF$4<$B$9,INDEX(Indata!$B:$B,$D11),INDEX(Indata!$B:$B,$D11+1))^(AF$4-$B$5)) -> 1.494800177 | AG11: =IF(AG$4>$B$10,AF11,IF(AG$4<$B$9,INDEX(Indata!$B:$B,$D11),INDEX(Indata!$B:$B,$D11+1))^(AG$4-$B$5)) -> 1.51722218 | AH11: =IF(AH$4>$B$10,AG11,IF(AH$4<$B$9,INDEX(Indata!$B:$B,$D11),INDEX(Indata!$B:$B,$D11+1))^(AH$4-$B$5)) -> 1.539980513 | AI11: =IF(AI$4>$B$10,AH11,IF(AI$4<$B$9,INDEX(Indata!$B:$B,$D11),INDEX(Indata!$B:$B,$D11+1))^(AI$4-$B$5)) -> 1.56308022 | AJ11: =IF(AJ$4>$B$10,AI11,IF(AJ$4<$B$9,INDEX(Indata!$B:$B,$D11),INDEX(Indata!$B:$B,$D11+1))^(AJ$4-$B$5)) -> 1.586526424 | AK11: =IF(AK$4>$B$10,AJ11,IF(AK$4<$B$9,INDEX(Indata!$B:$B,$D11),INDEX(Indata!$B:$B,$D11+1))^(AK$4-$B$5)) -> 1.61032432 | AL11: =IF(AL$4>$B$10,AK11,IF(AL$4<$B$9,INDEX(Indata!$B:$B,$D11),INDEX(Indata!$B:$B,$D11+1))^(AL$4-$B$5)) -> 1.634479185 | AM11: =IF(AM$4>$B$10,AL11,IF(AM$4<$B$9,INDEX(Indata!$B:$B,$D11),INDEX(Indata!$B:$B,$D11+1))^(AM$4-$B$5)) -> 1.658996373 | AN11: =IF(AN$4>$B$10,AM11,IF(AN$4<$B$9,INDEX(Indata!$B:$B,$D11),INDEX(Indata!$B:$B,$D11+1))^(AN$4-$B$5)) -> 1.683881318 | AO11: =IF(AO$4>$B$10,AN11,IF(AO$4<$B$9,INDEX(Indata!$B:$B,$D11),INDEX(Indata!$B:$B,$D11+1))^(AO$4-$B$5)) -> 1.709139538 | AP11: =IF(AP$4>$B$10,AO11,IF(AP$4<$B$9,INDEX(Indata!$B:$B,$D11),INDEX(Indata!$B:$B,$D11+1))^(AP$4-$B$5)) -> 1.734776631 | AQ11: =IF(AQ$4>$B$10,AP11,IF(AQ$4<$B$9,INDEX(Indata!$B:$B,$D11),INDEX(Indata!$B:$B,$D11+1))^(AQ$4-$B$5)) -> 1.760798281 | AR11: =IF(AR$4>$B$10,AQ11,IF(AR$4<$B$9,INDEX(Indata!$B:$B,$D11),INDEX(Indata!$B:$B,$D11+1))^(AR$4-$B$5)) -> 1.787210255 | AS11: =IF(AS$4>$B$10,AR11,IF(AS$4<$B$9,INDEX(Indata!$B:$B,$D11),INDEX(Indata!$B:$B,$D11+1))^(AS$4-$B$5)) -> 1.814018409 | AT11: =IF(AT$4>$B$10,AS11,IF(AT$4<$B$9,INDEX(Indata!$B:$B,$D11),INDEX(Indata!$B:$B,$D11+1))^(AT$4-$B$5)) -> 1.841228685 | AU11: =IF(AU$4>$B$10,AT11,IF(AU$4<$B$9,INDEX(Indata!$B:$B,$D11),INDEX(Indata!$B:$B,$D11+1))^(AU$4-$B$5)) -> 1.868847115 | AV11: =IF(AV$4>$B$10,AU11,IF(AV$4<$B$9,INDEX(Indata!$B:$B,$D11),INDEX(Indata!$B:$B,$D11+1))^(AV$4-$B$5)) -> 1.896879822 | AW11: =IF(AW$4>$B$10,AV11,IF(AW$4<$B$9,INDEX(Indata!$B:$B,$D11),INDEX(Indata!$B:$B,$D11+1))^(AW$4-$B$5)) -> 1.925333019 | AX11: =IF(AX$4>$B$10,AW11,IF(AX$4<$B$9,INDEX(Indata!$B:$B,$D11),INDEX(Indata!$B:$B,$D11+1))^(AX$4-$B$5)) -> 1.954213014 | AY11: =IF(AY$4>$B$10,AX11,IF(AY$4<$B$9,INDEX(Indata!$B:$B,$D11),INDEX(Indata!$B:$B,$D11+1))^(AY$4-$B$5)) -> 1.98352621 | AZ11: =IF(AZ$4>$B$10,AY11,IF(AZ$4<$B$9,INDEX(Indata!$B:$B,$D11),INDEX(Indata!$B:$B,$D11+1))^(AZ$4-$B$5)) -> 2.013279103 | BA11: =IF(BA$4>$B$10,AZ11,IF(BA$4<$B$9,INDEX(Indata!$B:$B,$D11),INDEX(Indata!$B:$B,$D11+1))^(BA$4-$B$5)) -> 2.043478289 | BB11: =IF(BB$4>$B$10,BA11,IF(BB$4<$B$9,INDEX(Indata!$B:$B,$D11),INDEX(Indata!$B:$B,$D11+1))^(BB$4-$B$5)) -> 2.043478289 | BC11: =IF(BC$4>$B$10,BB11,IF(BC$4<$B$9,INDEX(Indata!$B:$B,$D11),INDEX(Indata!$B:$B,$D11+1))^(BC$4-$B$5)) -> 2.043478289 | BD11: =IF(BD$4>$B$10,BC11,IF(BD$4<$B$9,INDEX(Indata!$B:$B,$D11),INDEX(Indata!$B:$B,$D11+1))^(BD$4-$B$5)) -> 2.043478289 | BE11: =IF(BE$4>$B$10,BD11,IF(BE$4<$B$9,INDEX(Indata!$B:$B,$D11),INDEX(Indata!$B:$B,$D11+1))^(BE$4-$B$5)) -> 2.043478289 | BF11: =IF(BF$4>$B$10,BE11,IF(BF$4<$B$9,INDEX(Indata!$B:$B,$D11),INDEX(Indata!$B:$B,$D11+1))^(BF$4-$B$5)) -> 2.043478289 | BG11: =IF(BG$4>$B$10,BF11,IF(BG$4<$B$9,INDEX(Indata!$B:$B,$D11),INDEX(Indata!$B:$B,$D11+1))^(BG$4-$B$5)) -> 2.043478289 | BH11: =IF(BH$4>$B$10,BG11,IF(BH$4<$B$9,INDEX(Indata!$B:$B,$D11),INDEX(Indata!$B:$B,$D11+1))^(BH$4-$B$5)) -> 2.043478289 | BI11: =IF(BI$4>$B$10,BH11,IF(BI$4<$B$9,INDEX(Indata!$B:$B,$D11),INDEX(Indata!$B:$B,$D11+1))^(BI$4-$B$5)) -> 2.043478289 | BJ11: =IF(BJ$4>$B$10,BI11,IF(BJ$4<$B$9,INDEX(Indata!$B:$B,$D11),INDEX(Indata!$B:$B,$D11+1))^(BJ$4-$B$5)) -> 2.043478289 | BK11: =IF(BK$4>$B$10,BJ11,IF(BK$4<$B$9,INDEX(Indata!$B:$B,$D11),INDEX(Indata!$B:$B,$D11+1))^(BK$4-$B$5)) -> 2.043478289 | BL11: =IF(BL$4>$B$10,BK11,IF(BL$4<$B$9,INDEX(Indata!$B:$B,$D11),INDEX(Indata!$B:$B,$D11+1))^(BL$4-$B$5)) -> 2.043478289 | BM11: =IF(BM$4>$B$10,BL11,IF(BM$4<$B$9,INDEX(Indata!$B:$B,$D11),INDEX(Indata!$B:$B,$D11+1))^(BM$4-$B$5)) -> 2.043478289 | BN11: =IF(BN$4>$B$10,BM11,IF(BN$4<$B$9,INDEX(Indata!$B:$B,$D11),INDEX(Indata!$B:$B,$D11+1))^(BN$4-$B$5)) -> 2.043478289 | BO11: =IF(BO$4>$B$10,BN11,IF(BO$4<$B$9,INDEX(Indata!$B:$B,$D11),INDEX(Indata!$B:$B,$D11+1))^(BO$4-$B$5)) -> 2.043478289 | BP11: =IF(BP$4>$B$10,BO11,IF(BP$4<$B$9,INDEX(Indata!$B:$B,$D11),INDEX(Indata!$B:$B,$D11+1))^(BP$4-$B$5)) -> 2.043478289 | BQ11: =IF(BQ$4>$B$10,BP11,IF(BQ$4<$B$9,INDEX(Indata!$B:$B,$D11),INDEX(Indata!$B:$B,$D11+1))^(BQ$4-$B$5)) -> 2.043478289 | BR11: =IF(BR$4>$B$10,BQ11,IF(BR$4<$B$9,INDEX(Indata!$B:$B,$D11),INDEX(Indata!$B:$B,$D11+1))^(BR$4-$B$5)) -> 2.043478289 | BS11: =IF(BS$4>$B$10,BR11,IF(BS$4<$B$9,INDEX(Indata!$B:$B,$D11),INDEX(Indata!$B:$B,$D11+1))^(BS$4-$B$5)) -> 2.043478289 | BT11: =IF(BT$4>$B$10,BS11,IF(BT$4<$B$9,INDEX(Indata!$B:$B,$D11),INDEX(Indata!$B:$B,$D11+1))^(BT$4-$B$5)) -> 2.043478289 | BU11: =IF(BU$4>$B$10,BT11,IF(BU$4<$B$9,INDEX(Indata!$B:$B,$D11),INDEX(Indata!$B:$B,$D11+1))^(BU$4-$B$5)) -> 2.043478289 | BV11: =IF(BV$4>$B$10,BU11,IF(BV$4<$B$9,INDEX(Indata!$B:$B,$D11),INDEX(Indata!$B:$B,$D11+1))^(BV$4-$B$5)) -> 2.043478289 | BW11: =IF(BW$4>$B$10,BV11,IF(BW$4<$B$9,INDEX(Indata!$B:$B,$D11),INDEX(Indata!$B:$B,$D11+1))^(BW$4-$B$5)) -> 2.043478289 | BX11: =IF(BX$4>$B$10,BW11,IF(BX$4<$B$9,INDEX(Indata!$B:$B,$D11),INDEX(Indata!$B:$B,$D11+1))^(BX$4-$B$5)) -> 2.043478289 | BY11: =IF(BY$4>$B$10,BX11,IF(BY$4<$B$9,INDEX(Indata!$B:$B,$D11),INDEX(Indata!$B:$B,$D11+1))^(BY$4-$B$5)) -> 2.043478289 | BZ11: =IF(BZ$4>$B$10,BY11,IF(BZ$4<$B$9,INDEX(Indata!$B:$B,$D11),INDEX(Indata!$B:$B,$D11+1))^(BZ$4-$B$5)) -> 2.043478289 | CA11: =IF(CA$4>$B$10,BZ11,IF(CA$4<$B$9,INDEX(Indata!$B:$B,$D11),INDEX(Indata!$B:$B,$D11+1))^(CA$4-$B$5)) -> 2.043478289 | CB11: =IF(CB$4>$B$10,CA11,IF(CB$4<$B$9,INDEX(Indata!$B:$B,$D11),INDEX(Indata!$B:$B,$D11+1))^(CB$4-$B$5)) -> 2.043478289 | CC11: =IF(CC$4>$B$10,CB11,IF(CC$4<$B$9,INDEX(Indata!$B:$B,$D11),INDEX(Indata!$B:$B,$D11+1))^(CC$4-$B$5)) -> 2.043478289 | CD11: =IF(CD$4>$B$10,CC11,IF(CD$4<$B$9,INDEX(Indata!$B:$B,$D11),INDEX(Indata!$B:$B,$D11+1))^(CD$4-$B$5)) -> 2.043478289 | CE11: =IF(CE$4>$B$10,CD11,IF(CE$4<$B$9,INDEX(Indata!$B:$B,$D11),INDEX(Indata!$B:$B,$D11+1))^(CE$4-$B$5)) -> 2.043478289 | CF11: =IF(CF$4>$B$10,CE11,IF(CF$4<$B$9,INDEX(Indata!$B:$B,$D11),INDEX(Indata!$B:$B,$D11+1))^(CF$4-$B$5)) -> 2.043478289 | CG11: =IF(CG$4>$B$10,CF11,IF(CG$4<$B$9,INDEX(Indata!$B:$B,$D11),INDEX(Indata!$B:$B,$D11+1))^(CG$4-$B$5)) -> 2.043478289 | CH11: =IF(CH$4>$B$10,CG11,IF(CH$4<$B$9,INDEX(Indata!$B:$B,$D11),INDEX(Indata!$B:$B,$D11+1))^(CH$4-$B$5)) -> 2.043478289 | CI11: =IF(CI$4>$B$10,CH11,IF(CI$4<$B$9,INDEX(Indata!$B:$B,$D11),INDEX(Indata!$B:$B,$D11+1))^(CI$4-$B$5)) -> 2.043478289 | CJ11: =IF(CJ$4>$B$10,CI11,IF(CJ$4<$B$9,INDEX(Indata!$B:$B,$D11),INDEX(Indata!$B:$B,$D11+1))^(CJ$4-$B$5)) -> 2.043478289 | CK11: =IF(CK$4>$B$10,CJ11,IF(CK$4<$B$9,INDEX(Indata!$B:$B,$D11),INDEX(Indata!$B:$B,$D11+1))^(CK$4-$B$5)) -> 2.043478289 | CL11: =IF(CL$4>$B$10,CK11,IF(CL$4<$B$9,INDEX(Indata!$B:$B,$D11),INDEX(Indata!$B:$B,$D11+1))^(CL$4-$B$5)) -> 2.043478289 | CM11: =IF(CM$4>$B$10,CL11,IF(CM$4<$B$9,INDEX(Indata!$B:$B,$D11),INDEX(Indata!$B:$B,$D11+1))^(CM$4-$B$5)) -> 2.043478289 | CN11: =IF(CN$4>$B$10,CM11,IF(CN$4<$B$9,INDEX(Indata!$B:$B,$D11),INDEX(Indata!$B:$B,$D11+1))^(CN$4-$B$5)) -> 2.043478289 | CO11: =IF(CO$4>$B$10,CN11,IF(CO$4<$B$9,INDEX(Indata!$B:$B,$D11),INDEX(Indata!$B:$B,$D11+1))^(CO$4-$B$5)) -> 2.043478289 | CP11: =IF(CP$4>$B$10,CO11,IF(CP$4<$B$9,INDEX(Indata!$B:$B,$D11),INDEX(Indata!$B:$B,$D11+1))^(CP$4-$B$5)) -> 2.043478289 | CQ11: =IF(CQ$4>$B$10,CP11,IF(CQ$4<$B$9,INDEX(Indata!$B:$B,$D11),INDEX(Indata!$B:$B,$D11+1))^(CQ$4-$B$5)) -> 2.043478289 | CR11: =IF(CR$4>$B$10,CQ11,IF(CR$4<$B$9,INDEX(Indata!$B:$B,$D11),INDEX(Indata!$B:$B,$D11+1))^(CR$4-$B$5)) -> 2.043478289 | CS11: =IF(CS$4>$B$10,CR11,IF(CS$4<$B$9,INDEX(Indata!$B:$B,$D11),INDEX(Indata!$B:$B,$D11+1))^(CS$4-$B$5)) -> 2.043478289 | CT11: =IF(CT$4>$B$10,CS11,IF(CT$4<$B$9,INDEX(Indata!$B:$B,$D11),INDEX(Indata!$B:$B,$D11+1))^(CT$4-$B$5)) -> 2.043478289
A15: JA
B16: ="Öppningsår, "&"år "&B8 -> Öppningsår, år 2025 | C16: ="Prognosår 1, "&"år "&B9 -> Prognosår 1, år 2040 | D16: År | E16: =B5 -> 2017 | F16: =E16+1 -> 2018 | G16: =F16+1 -> 2019 | H16: 2020 | I16: 2021 | J16: 2022 | K16: 2023 | L16: 2024 | M16: 2025 | N16: 2026 | O16: 2027 | P16: 2028 | Q16: 2029 | R16: 2030 | S16: 2031 | T16: 2032 | U16: 2033 | V16: 2034 | W16: 2035 | X16: 2036 | Y16: 2037 | Z16: 2038 | AA16: 2039 | AB16: 2040 | AC16: 2041 | AD16: 2042 | AE16: 2043 | AF16: 2044 | AG16: 2045 | AH16: 2046 | AI16: 2047 | AJ16: 2048 | AK16: 2049 | AL16: 2050 | AM16: 2051 | AN16: 2052 | AO16: 2053 | AP16: 2054 | AQ16: 2055 | AR16: 2056 | AS16: 2057 | AT16: 2058 | AU16: 2059 | AV16: 2060 | AW16: 2061 | AX16: 2062 | AY16: 2063 | AZ16: 2064 | BA16: 2065 | BB16: 2066 | BC16: 2067 | BD16: 2068 | BE16: 2069 | BF16: 2070 | BG16: 2071 | BH16: 2072 | BI16: 2073 | BJ16: 2074 | BK16: 2075 | BL16: =BK16+1 -> 2076 | BM16: 2077 | BN16: 2078 | BO16: 2079 | BP16: 2080 | BQ16: 2081 | BR16: 2082 | BS16: 2083 | BT16: 2084 | BU16: 2085 | BV16: =BU16+1 -> 2086 | BW16: =BV16+1 -> 2087 | BX16: =BW16+1 -> 2088 | BY16: =BX16+1 -> 2089 | BZ16: =BY16+1 -> 2090 | CA16: =BZ16+1 -> 2091 | CB16: =CA16+1 -> 2092 | CC16: =CB16+1 -> 2093 | CD16: =CC16+1 -> 2094 | CE16: =CD16+1 -> 2095 | CF16: =CE16+1 -> 2096 | CG16: =CF16+1 -> 2097 | CH16: =CG16+1 -> 2098 | CI16: =CH16+1 -> 2099 | CJ16: =CI16+1 -> 2100 | CK16: =CJ16+1 -> 2101 | CL16: =CK16+1 -> 2102 | CM16: =CL16+1 -> 2103 | CN16: =CM16+1 -> 2104 | CO16: =CN16+1 -> 2105 | CP16: =CO16+1 -> 2106 | CQ16: =CP16+1 -> 2107 | CR16: =CQ16+1 -> 2108 | CS16: =CR16+1 -> 2109 | CT16: =CS16+1 -> 2110
A17: Årlig bränsleförbrukning ton | B17: =HLOOKUP($B$8,$E$16:$CT$34,2) -> 0 | C17: =HLOOKUP($B$9,$E$16:$CT$34,2) -> 0 | E17: ='Bränsleförbr. & Utsläpp NOx'!D43 -> 0 | F17: ='Bränsleförbr. & Utsläpp NOx'!E43 -> 0 | G17: ='Bränsleförbr. & Utsläpp NOx'!F43 -> 0 | H17: ='Bränsleförbr. & Utsläpp NOx'!G43 -> 0 | I17: ='Bränsleförbr. & Utsläpp NOx'!H43 -> 0 | J17: ='Bränsleförbr. & Utsläpp NOx'!I43 -> 0 | K17: ='Bränsleförbr. & Utsläpp NOx'!J43 -> 0 | L17: ='Bränsleförbr. & Utsläpp NOx'!K43 -> 0 | M17: ='Bränsleförbr. & Utsläpp NOx'!L43 -> 0 | N17: ='Bränsleförbr. & Utsläpp NOx'!M43 -> 0 | O17: ='Bränsleförbr. & Utsläpp NOx'!N43 -> 0 | P17: ='Bränsleförbr. & Utsläpp NOx'!O43 -> 0 | Q17: ='Bränsleförbr. & Utsläpp NOx'!P43 -> 0 | R17: ='Bränsleförbr. & Utsläpp NOx'!Q43 -> 0 | S17: ='Bränsleförbr. & Utsläpp NOx'!R43 -> 0 | T17: ='Bränsleförbr. & Utsläpp NOx'!S43 -> 0 | U17: ='Bränsleförbr. & Utsläpp NOx'!T43 -> 0 | V17: ='Bränsleförbr. & Utsläpp NOx'!U43 -> 0 | W17: ='Bränsleförbr. & Utsläpp NOx'!V43 -> 0 | X17: ='Bränsleförbr. & Utsläpp NOx'!W43 -> 0 | Y17: ='Bränsleförbr. & Utsläpp NOx'!X43 -> 0 | Z17: ='Bränsleförbr. & Utsläpp NOx'!Y43 -> 0 | AA17: ='Bränsleförbr. & Utsläpp NOx'!Z43 -> 0 | AB17: ='Bränsleförbr. & Utsläpp NOx'!AA43 -> 0 | AC17: ='Bränsleförbr. & Utsläpp NOx'!AB43 -> 0 | AD17: ='Bränsleförbr. & Utsläpp NOx'!AC43 -> 0 | AE17: ='Bränsleförbr. & Utsläpp NOx'!AD43 -> 0 | AF17: ='Bränsleförbr. & Utsläpp NOx'!AE43 -> 0 | AG17: ='Bränsleförbr. & Utsläpp NOx'!AF43 -> 0 | AH17: ='Bränsleförbr. & Utsläpp NOx'!AG43 -> 0 | AI17: ='Bränsleförbr. & Utsläpp NOx'!AH43 -> 0 | AJ17: ='Bränsleförbr. & Utsläpp NOx'!AI43 -> 0 | AK17: ='Bränsleförbr. & Utsläpp NOx'!AJ43 -> 0 | AL17: ='Bränsleförbr. & Utsläpp NOx'!AK43 -> 0 | AM17: ='Bränsleförbr. & Utsläpp NOx'!AL43 -> 0 | AN17: ='Bränsleförbr. & Utsläpp NOx'!AM43 -> 0 | AO17: ='Bränsleförbr. & Utsläpp NOx'!AN43 -> 0 | AP17: ='Bränsleförbr. & Utsläpp NOx'!AO43 -> 0 | AQ17: ='Bränsleförbr. & Utsläpp NOx'!AP43 -> 0 | AR17: ='Bränsleförbr. & Utsläpp NOx'!AQ43 -> 0 | AS17: ='Bränsleförbr. & Utsläpp NOx'!AR43 -> 0 | AT17: ='Bränsleförbr. & Utsläpp NOx'!AS43 -> 0 | AU17: ='Bränsleförbr. & Utsläpp NOx'!AT43 -> 0 | AV17: ='Bränsleförbr. & Utsläpp NOx'!AU43 -> 0 | AW17: ='Bränsleförbr. & Utsläpp NOx'!AV43 -> 0 | AX17: ='Bränsleförbr. & Utsläpp NOx'!AW43 -> 0 | AY17: ='Bränsleförbr. & Utsläpp NOx'!AX43 -> 0 | AZ17: ='Bränsleförbr. & Utsläpp NOx'!AY43 -> 0 | BA17: ='Bränsleförbr. & Utsläpp NOx'!AZ43 -> 0 | BB17: ='Bränsleförbr. & Utsläpp NOx'!BA43 -> 0 | BC17: ='Bränsleförbr. & Utsläpp NOx'!BB43 -> 0 | BD17: ='Bränsleförbr. & Utsläpp NOx'!BC43 -> 0 | BE17: ='Bränsleförbr. & Utsläpp NOx'!BD43 -> 0 | BF17: ='Bränsleförbr. & Utsläpp NOx'!BE43 -> 0 | BG17: ='Bränsleförbr. & Utsläpp NOx'!BF43 -> 0 | BH17: ='Bränsleförbr. & Utsläpp NOx'!BG43 -> 0 | BI17: ='Bränsleförbr. & Utsläpp NOx'!BH43 -> 0 | BJ17: ='Bränsleförbr. & Utsläpp NOx'!BI43 -> 0 | BK17: ='Bränsleförbr. & Utsläpp NOx'!BJ43 -> 0 | BL17: ='Bränsleförbr. & Utsläpp NOx'!BK43 -> 0 | BM17: ='Bränsleförbr. & Utsläpp NOx'!BL43 -> 0 | BN17: ='Bränsleförbr. & Utsläpp NOx'!BM43 -> 0 | BO17: ='Bränsleförbr. & Utsläpp NOx'!BN43 -> 0 | BP17: ='Bränsleförbr. & Utsläpp NOx'!BO43 -> 0 | BQ17: ='Bränsleförbr. & Utsläpp NOx'!BP43 -> 0 | BR17: ='Bränsleförbr. & Utsläpp NOx'!BQ43 -> 0 | BS17: ='Bränsleförbr. & Utsläpp NOx'!BR43 -> 0 | BT17: ='Bränsleförbr. & Utsläpp NOx'!BS43 -> 0 | BU17: ='Bränsleförbr. & Utsläpp NOx'!BT43 -> 0 | BV17: ='Bränsleförbr. & Utsläpp NOx'!BU43 -> 0 | BW17: ='Bränsleförbr. & Utsläpp NOx'!BV43 -> 0 | BX17: ='Bränsleförbr. & Utsläpp NOx'!BW43 -> 0 | BY17: ='Bränsleförbr. & Utsläpp NOx'!BX43 -> 0 | BZ17: ='Bränsleförbr. & Utsläpp NOx'!BY43 -> 0 | CA17: ='Bränsleförbr. & Utsläpp NOx'!BZ43 -> 0 | CB17: ='Bränsleförbr. & Utsläpp NOx'!CA43 -> 0 | CC17: ='Bränsleförbr. & Utsläpp NOx'!CB43 -> 0 | CD17: ='Bränsleförbr. & Utsläpp NOx'!CC43 -> 0 | CE17: ='Bränsleförbr. & Utsläpp NOx'!CD43 -> 0 | CF17: ='Bränsleförbr. & Utsläpp NOx'!CE43 -> 0 | CG17: ='Bränsleförbr. & Utsläpp NOx'!CF43 -> 0 | CH17: ='Bränsleförbr. & Utsläpp NOx'!CG43 -> 0 | CI17: ='Bränsleförbr. & Utsläpp NOx'!CH43 -> 0 | CJ17: ='Bränsleförbr. & Utsläpp NOx'!CI43 -> 0 | CK17: ='Bränsleförbr. & Utsläpp NOx'!CJ43 -> 0 | CL17: ='Bränsleförbr. & Utsläpp NOx'!CK43 -> 0 | CM17: ='Bränsleförbr. & Utsläpp NOx'!CL43 -> 0 | CN17: ='Bränsleförbr. & Utsläpp NOx'!CM43 -> 0 | CO17: ='Bränsleförbr. & Utsläpp NOx'!CN43 -> 0 | CP17: ='Bränsleförbr. & Utsläpp NOx'!CO43 -> 0 | CQ17: ='Bränsleförbr. & Utsläpp NOx'!CP43 -> 0 | CR17: ='Bränsleförbr. & Utsläpp NOx'!CQ43 -> 0 | CS17: ='Bränsleförbr. & Utsläpp NOx'!CR43 -> 0 | CT17: ='Bränsleförbr. & Utsläpp NOx'!CS43 -> 0
A18: Totalt årligt utsläpp av CO2 ton | B18: =HLOOKUP($B$8,$E$16:$CT$34,3) -> 0 | C18: =HLOOKUP($B$9,$E$16:$CT$34,3) -> 0 | E18: =E17*Indata!$B$51 -> 0 | F18: =F17*Indata!$B$51 -> 0 | G18: =G17*Indata!$B$51 -> 0 | H18: =H17*Indata!$B$51 -> 0 | I18: =I17*Indata!$B$51 -> 0 | J18: =J17*Indata!$B$51 -> 0 | K18: =K17*Indata!$B$51 -> 0 | L18: =L17*Indata!$B$51 -> 0 | M18: =M17*Indata!$B$51 -> 0 | N18: =N17*Indata!$B$51 -> 0 | O18: =O17*Indata!$B$51 -> 0 | P18: =P17*Indata!$B$51 -> 0 | Q18: =Q17*Indata!$B$51 -> 0 | R18: =R17*Indata!$B$51 -> 0 | S18: =S17*Indata!$B$51 -> 0 | T18: =T17*Indata!$B$51 -> 0 | U18: =U17*Indata!$B$51 -> 0 | V18: =V17*Indata!$B$51 -> 0 | W18: =W17*Indata!$B$51 -> 0 | X18: =X17*Indata!$B$51 -> 0 | Y18: =Y17*Indata!$B$51 -> 0 | Z18: =Z17*Indata!$B$51 -> 0 | AA18: =AA17*Indata!$B$51 -> 0 | AB18: =AB17*Indata!$B$51 -> 0 | AC18: =AC17*Indata!$B$51 -> 0 | AD18: =AD17*Indata!$B$51 -> 0 | AE18: =AE17*Indata!$B$51 -> 0 | AF18: =AF17*Indata!$B$51 -> 0 | AG18: =AG17*Indata!$B$51 -> 0 | AH18: =AH17*Indata!$B$51 -> 0 | AI18: =AI17*Indata!$B$51 -> 0 | AJ18: =AJ17*Indata!$B$51 -> 0 | AK18: =AK17*Indata!$B$51 -> 0 | AL18: =AL17*Indata!$B$51 -> 0 | AM18: =AM17*Indata!$B$51 -> 0 | AN18: =AN17*Indata!$B$51 -> 0 | AO18: =AO17*Indata!$B$51 -> 0 | AP18: =AP17*Indata!$B$51 -> 0 | AQ18: =AQ17*Indata!$B$51 -> 0 | AR18: =AR17*Indata!$B$51 -> 0 | AS18: =AS17*Indata!$B$51 -> 0 | AT18: =AT17*Indata!$B$51 -> 0 | AU18: =AU17*Indata!$B$51 -> 0 | AV18: =AV17*Indata!$B$51 -> 0 | AW18: =AW17*Indata!$B$51 -> 0 | AX18: =AX17*Indata!$B$51 -> 0 | AY18: =AY17*Indata!$B$51 -> 0 | AZ18: =AZ17*Indata!$B$51 -> 0 | BA18: =BA17*Indata!$B$51 -> 0 | BB18: =BB17*Indata!$B$51 -> 0 | BC18: =BC17*Indata!$B$51 -> 0 | BD18: =BD17*Indata!$B$51 -> 0 | BE18: =BE17*Indata!$B$51 -> 0 | BF18: =BF17*Indata!$B$51 -> 0 | BG18: =BG17*Indata!$B$51 -> 0 | BH18: =BH17*Indata!$B$51 -> 0 | BI18: =BI17*Indata!$B$51 -> 0 | BJ18: =BJ17*Indata!$B$51 -> 0 | BK18: =BK17*Indata!$B$51 -> 0 | BL18: =BL17*Indata!$B$51 -> 0 | BM18: =BM17*Indata!$B$51 -> 0 | BN18: =BN17*Indata!$B$51 -> 0 | BO18: =BO17*Indata!$B$51 -> 0 | BP18: =BP17*Indata!$B$51 -> 0 | BQ18: =BQ17*Indata!$B$51 -> 0 | BR18: =BR17*Indata!$B$51 -> 0 | BS18: =BS17*Indata!$B$51 -> 0 | BT18: =BT17*Indata!$B$51 -> 0 | BU18: =BU17*Indata!$B$51 -> 0 | BV18: =BV17*Indata!$B$51 -> 0 | BW18: =BW17*Indata!$B$51 -> 0 | BX18: =BX17*Indata!$B$51 -> 0 | BY18: =BY17*Indata!$B$51 -> 0 | BZ18: =BZ17*Indata!$B$51 -> 0 | CA18: =CA17*Indata!$B$51 -> 0 | CB18: =CB17*Indata!$B$51 -> 0 | CC18: =CC17*Indata!$B$51 -> 0 | CD18: =CD17*Indata!$B$51 -> 0 | CE18: =CE17*Indata!$B$51 -> 0 | CF18: =CF17*Indata!$B$51 -> 0 | CG18: =CG17*Indata!$B$51 -> 0 | CH18: =CH17*Indata!$B$51 -> 0 | CI18: =CI17*Indata!$B$51 -> 0 | CJ18: =CJ17*Indata!$B$51 -> 0 | CK18: =CK17*Indata!$B$51 -> 0 | CL18: =CL17*Indata!$B$51 -> 0 | CM18: =CM17*Indata!$B$51 -> 0 | CN18: =CN17*Indata!$B$51 -> 0 | CO18: =CO17*Indata!$B$51 -> 0 | CP18: =CP17*Indata!$B$51 -> 0 | CQ18: =CQ17*Indata!$B$51 -> 0 | CR18: =CR17*Indata!$B$51 -> 0 | CS18: =CS17*Indata!$B$51 -> 0 | CT18: =CT17*Indata!$B$51 -> 0
A19: Totalt årligt utsläpp av NOx ton | B19: =HLOOKUP($B$8,$E$16:$CT$34,4) -> 0 | C19: =HLOOKUP($B$9,$E$16:$CT$34,4) -> 0 | E19: ='Bränsleförbr. & Utsläpp NOx'!D104 -> 0 | F19: ='Bränsleförbr. & Utsläpp NOx'!E104 -> 0 | G19: ='Bränsleförbr. & Utsläpp NOx'!F104 -> 0 | H19: ='Bränsleförbr. & Utsläpp NOx'!G104 -> 0 | I19: ='Bränsleförbr. & Utsläpp NOx'!H104 -> 0 | J19: ='Bränsleförbr. & Utsläpp NOx'!I104 -> 0 | K19: ='Bränsleförbr. & Utsläpp NOx'!J104 -> 0 | L19: ='Bränsleförbr. & Utsläpp NOx'!K104 -> 0 | M19: ='Bränsleförbr. & Utsläpp NOx'!L104 -> 0 | N19: ='Bränsleförbr. & Utsläpp NOx'!M104 -> 0 | O19: ='Bränsleförbr. & Utsläpp NOx'!N104 -> 0 | P19: ='Bränsleförbr. & Utsläpp NOx'!O104 -> 0 | Q19: ='Bränsleförbr. & Utsläpp NOx'!P104 -> 0 | R19: ='Bränsleförbr. & Utsläpp NOx'!Q104 -> 0 | S19: ='Bränsleförbr. & Utsläpp NOx'!R104 -> 0 | T19: ='Bränsleförbr. & Utsläpp NOx'!S104 -> 0 | U19: ='Bränsleförbr. & Utsläpp NOx'!T104 -> 0 | V19: ='Bränsleförbr. & Utsläpp NOx'!U104 -> 0 | W19: ='Bränsleförbr. & Utsläpp NOx'!V104 -> 0 | X19: ='Bränsleförbr. & Utsläpp NOx'!W104 -> 0 | Y19: ='Bränsleförbr. & Utsläpp NOx'!X104 -> 0 | Z19: ='Bränsleförbr. & Utsläpp NOx'!Y104 -> 0 | AA19: ='Bränsleförbr. & Utsläpp NOx'!Z104 -> 0 | AB19: ='Bränsleförbr. & Utsläpp NOx'!AA104 -> 0 | AC19: ='Bränsleförbr. & Utsläpp NOx'!AB104 -> 0 | AD19: ='Bränsleförbr. & Utsläpp NOx'!AC104 -> 0 | AE19: ='Bränsleförbr. & Utsläpp NOx'!AD104 -> 0 | AF19: ='Bränsleförbr. & Utsläpp NOx'!AE104 -> 0 | AG19: ='Bränsleförbr. & Utsläpp NOx'!AF104 -> 0 | AH19: ='Bränsleförbr. & Utsläpp NOx'!AG104 -> 0 | AI19: ='Bränsleförbr. & Utsläpp NOx'!AH104 -> 0 | AJ19: ='Bränsleförbr. & Utsläpp NOx'!AI104 -> 0 | AK19: ='Bränsleförbr. & Utsläpp NOx'!AJ104 -> 0 | AL19: ='Bränsleförbr. & Utsläpp NOx'!AK104 -> 0 | AM19: ='Bränsleförbr. & Utsläpp NOx'!AL104 -> 0 | AN19: ='Bränsleförbr. & Utsläpp NOx'!AM104 -> 0 | AO19: ='Bränsleförbr. & Utsläpp NOx'!AN104 -> 0 | AP19: ='Bränsleförbr. & Utsläpp NOx'!AO104 -> 0 | AQ19: ='Bränsleförbr. & Utsläpp NOx'!AP104 -> 0 | AR19: ='Bränsleförbr. & Utsläpp NOx'!AQ104 -> 0 | AS19: ='Bränsleförbr. & Utsläpp NOx'!AR104 -> 0 | AT19: ='Bränsleförbr. & Utsläpp NOx'!AS104 -> 0 | AU19: ='Bränsleförbr. & Utsläpp NOx'!AT104 -> 0 | AV19: ='Bränsleförbr. & Utsläpp NOx'!AU104 -> 0 | AW19: ='Bränsleförbr. & Utsläpp NOx'!AV104 -> 0 | AX19: ='Bränsleförbr. & Utsläpp NOx'!AW104 -> 0 | AY19: ='Bränsleförbr. & Utsläpp NOx'!AX104 -> 0 | AZ19: ='Bränsleförbr. & Utsläpp NOx'!AY104 -> 0 | BA19: ='Bränsleförbr. & Utsläpp NOx'!AZ104 -> 0 | BB19: ='Bränsleförbr. & Utsläpp NOx'!BA104 -> 0 | BC19: ='Bränsleförbr. & Utsläpp NOx'!BB104 -> 0 | BD19: ='Bränsleförbr. & Utsläpp NOx'!BC104 -> 0 | BE19: ='Bränsleförbr. & Utsläpp NOx'!BD104 -> 0 | BF19: ='Bränsleförbr. & Utsläpp NOx'!BE104 -> 0 | BG19: ='Bränsleförbr. & Utsläpp NOx'!BF104 -> 0 | BH19: ='Bränsleförbr. & Utsläpp NOx'!BG104 -> 0 | BI19: ='Bränsleförbr. & Utsläpp NOx'!BH104 -> 0 | BJ19: ='Bränsleförbr. & Utsläpp NOx'!BI104 -> 0 | BK19: ='Bränsleförbr. & Utsläpp NOx'!BJ104 -> 0 | BL19: ='Bränsleförbr. & Utsläpp NOx'!BK104 -> 0 | BM19: ='Bränsleförbr. & Utsläpp NOx'!BL104 -> 0 | BN19: ='Bränsleförbr. & Utsläpp NOx'!BM104 -> 0 | BO19: ='Bränsleförbr. & Utsläpp NOx'!BN104 -> 0 | BP19: ='Bränsleförbr. & Utsläpp NOx'!BO104 -> 0 | BQ19: ='Bränsleförbr. & Utsläpp NOx'!BP104 -> 0 | BR19: ='Bränsleförbr. & Utsläpp NOx'!BQ104 -> 0 | BS19: ='Bränsleförbr. & Utsläpp NOx'!BR104 -> 0 | BT19: ='Bränsleförbr. & Utsläpp NOx'!BS104 -> 0 | BU19: ='Bränsleförbr. & Utsläpp NOx'!BT104 -> 0 | BV19: ='Bränsleförbr. & Utsläpp NOx'!BU104 -> 0 | BW19: ='Bränsleförbr. & Utsläpp NOx'!BV104 -> 0 | BX19: ='Bränsleförbr. & Utsläpp NOx'!BW104 -> 0 | BY19: ='Bränsleförbr. & Utsläpp NOx'!BX104 -> 0 | BZ19: ='Bränsleförbr. & Utsläpp NOx'!BY104 -> 0 | CA19: ='Bränsleförbr. & Utsläpp NOx'!BZ104 -> 0 | CB19: ='Bränsleförbr. & Utsläpp NOx'!CA104 -> 0 | CC19: ='Bränsleförbr. & Utsläpp NOx'!CB104 -> 0 | CD19: ='Bränsleförbr. & Utsläpp NOx'!CC104 -> 0 | CE19: ='Bränsleförbr. & Utsläpp NOx'!CD104 -> 0 | CF19: ='Bränsleförbr. & Utsläpp NOx'!CE104 -> 0 | CG19: ='Bränsleförbr. & Utsläpp NOx'!CF104 -> 0 | CH19: ='Bränsleförbr. & Utsläpp NOx'!CG104 -> 0 | CI19: ='Bränsleförbr. & Utsläpp NOx'!CH104 -> 0 | CJ19: ='Bränsleförbr. & Utsläpp NOx'!CI104 -> 0 | CK19: ='Bränsleförbr. & Utsläpp NOx'!CJ104 -> 0 | CL19: ='Bränsleförbr. & Utsläpp NOx'!CK104 -> 0 | CM19: ='Bränsleförbr. & Utsläpp NOx'!CL104 -> 0 | CN19: ='Bränsleförbr. & Utsläpp NOx'!CM104 -> 0 | CO19: ='Bränsleförbr. & Utsläpp NOx'!CN104 -> 0 | CP19: ='Bränsleförbr. & Utsläpp NOx'!CO104 -> 0 | CQ19: ='Bränsleförbr. & Utsläpp NOx'!CP104 -> 0 | CR19: ='Bränsleförbr. & Utsläpp NOx'!CQ104 -> 0 | CS19: ='Bränsleförbr. & Utsläpp NOx'!CR104 -> 0 | CT19: ='Bränsleförbr. & Utsläpp NOx'!CS104 -> 0
A20: Totalt årligt utsläpp av VOC ton | B20: =HLOOKUP($B$8,$E$16:$CT$34,5) -> 0 | C20: =HLOOKUP($B$9,$E$16:$CT$34,5) -> 0 | E20: =E17*Indata!$B$53 -> 0 | F20: =F17*Indata!$B$53 -> 0 | G20: =G17*Indata!$B$53 -> 0 | H20: =H17*Indata!$B$53 -> 0 | I20: =I17*Indata!$B$53 -> 0 | J20: =J17*Indata!$B$53 -> 0 | K20: =K17*Indata!$B$53 -> 0 | L20: =L17*Indata!$B$53 -> 0 | M20: =M17*Indata!$B$53 -> 0 | N20: =N17*Indata!$B$53 -> 0 | O20: =O17*Indata!$B$53 -> 0 | P20: =P17*Indata!$B$53 -> 0 | Q20: =Q17*Indata!$B$53 -> 0 | R20: =R17*Indata!$B$53 -> 0 | S20: =S17*Indata!$B$53 -> 0 | T20: =T17*Indata!$B$53 -> 0 | U20: =U17*Indata!$B$53 -> 0 | V20: =V17*Indata!$B$53 -> 0 | W20: =W17*Indata!$B$53 -> 0 | X20: =X17*Indata!$B$53 -> 0 | Y20: =Y17*Indata!$B$53 -> 0 | Z20: =Z17*Indata!$B$53 -> 0 | AA20: =AA17*Indata!$B$53 -> 0 | AB20: =AB17*Indata!$B$53 -> 0 | AC20: =AC17*Indata!$B$53 -> 0 | AD20: =AD17*Indata!$B$53 -> 0 | AE20: =AE17*Indata!$B$53 -> 0 | AF20: =AF17*Indata!$B$53 -> 0 | AG20: =AG17*Indata!$B$53 -> 0 | AH20: =AH17*Indata!$B$53 -> 0 | AI20: =AI17*Indata!$B$53 -> 0 | AJ20: =AJ17*Indata!$B$53 -> 0 | AK20: =AK17*Indata!$B$53 -> 0 | AL20: =AL17*Indata!$B$53 -> 0 | AM20: =AM17*Indata!$B$53 -> 0 | AN20: =AN17*Indata!$B$53 -> 0 | AO20: =AO17*Indata!$B$53 -> 0 | AP20: =AP17*Indata!$B$53 -> 0 | AQ20: =AQ17*Indata!$B$53 -> 0 | AR20: =AR17*Indata!$B$53 -> 0 | AS20: =AS17*Indata!$B$53 -> 0 | AT20: =AT17*Indata!$B$53 -> 0 | AU20: =AU17*Indata!$B$53 -> 0 | AV20: =AV17*Indata!$B$53 -> 0 | AW20: =AW17*Indata!$B$53 -> 0 | AX20: =AX17*Indata!$B$53 -> 0 | AY20: =AY17*Indata!$B$53 -> 0 | AZ20: =AZ17*Indata!$B$53 -> 0 | BA20: =BA17*Indata!$B$53 -> 0 | BB20: =BB17*Indata!$B$53 -> 0 | BC20: =BC17*Indata!$B$53 -> 0 | BD20: =BD17*Indata!$B$53 -> 0 | BE20: =BE17*Indata!$B$53 -> 0 | BF20: =BF17*Indata!$B$53 -> 0 | BG20: =BG17*Indata!$B$53 -> 0 | BH20: =BH17*Indata!$B$53 -> 0 | BI20: =BI17*Indata!$B$53 -> 0 | BJ20: =BJ17*Indata!$B$53 -> 0 | BK20: =BK17*Indata!$B$53 -> 0 | BL20: =BL17*Indata!$B$53 -> 0 | BM20: =BM17*Indata!$B$53 -> 0 | BN20: =BN17*Indata!$B$53 -> 0 | BO20: =BO17*Indata!$B$53 -> 0 | BP20: =BP17*Indata!$B$53 -> 0 | BQ20: =BQ17*Indata!$B$53 -> 0 | BR20: =BR17*Indata!$B$53 -> 0 | BS20: =BS17*Indata!$B$53 -> 0 | BT20: =BT17*Indata!$B$53 -> 0 | BU20: =BU17*Indata!$B$53 -> 0 | BV20: =BV17*Indata!$B$53 -> 0 | BW20: =BW17*Indata!$B$53 -> 0 | BX20: =BX17*Indata!$B$53 -> 0 | BY20: =BY17*Indata!$B$53 -> 0 | BZ20: =BZ17*Indata!$B$53 -> 0 | CA20: =CA17*Indata!$B$53 -> 0 | CB20: =CB17*Indata!$B$53 -> 0 | CC20: =CC17*Indata!$B$53 -> 0 | CD20: =CD17*Indata!$B$53 -> 0 | CE20: =CE17*Indata!$B$53 -> 0 | CF20: =CF17*Indata!$B$53 -> 0 | CG20: =CG17*Indata!$B$53 -> 0 | CH20: =CH17*Indata!$B$53 -> 0 | CI20: =CI17*Indata!$B$53 -> 0 | CJ20: =CJ17*Indata!$B$53 -> 0 | CK20: =CK17*Indata!$B$53 -> 0 | CL20: =CL17*Indata!$B$53 -> 0 | CM20: =CM17*Indata!$B$53 -> 0 | CN20: =CN17*Indata!$B$53 -> 0 | CO20: =CO17*Indata!$B$53 -> 0 | CP20: =CP17*Indata!$B$53 -> 0 | CQ20: =CQ17*Indata!$B$53 -> 0 | CR20: =CR17*Indata!$B$53 -> 0 | CS20: =CS17*Indata!$B$53 -> 0 | CT20: =CT17*Indata!$B$53 -> 0
A21: Totalt årligt utsläpp av SO2 ton | B21: =HLOOKUP($B$8,$E$16:$CT$34,6) -> 0 | C21: =HLOOKUP($B$9,$E$16:$CT$34,6) -> 0 | E21: =E17*Indata!$B$54 -> 0 | F21: =F17*Indata!$B$54 -> 0 | G21: =G17*Indata!$B$54 -> 0 | H21: =H17*Indata!$B$54 -> 0 | I21: =I17*Indata!$B$54 -> 0 | J21: =J17*Indata!$B$54 -> 0 | K21: =K17*Indata!$B$54 -> 0 | L21: =L17*Indata!$B$54 -> 0 | M21: =M17*Indata!$B$54 -> 0 | N21: =N17*Indata!$B$54 -> 0 | O21: =O17*Indata!$B$54 -> 0 | P21: =P17*Indata!$B$54 -> 0 | Q21: =Q17*Indata!$B$54 -> 0 | R21: =R17*Indata!$B$54 -> 0 | S21: =S17*Indata!$B$54 -> 0 | T21: =T17*Indata!$B$54 -> 0 | U21: =U17*Indata!$B$54 -> 0 | V21: =V17*Indata!$B$54 -> 0 | W21: =W17*Indata!$B$54 -> 0 | X21: =X17*Indata!$B$54 -> 0 | Y21: =Y17*Indata!$B$54 -> 0 | Z21: =Z17*Indata!$B$54 -> 0 | AA21: =AA17*Indata!$B$54 -> 0 | AB21: =AB17*Indata!$B$54 -> 0 | AC21: =AC17*Indata!$B$54 -> 0 | AD21: =AD17*Indata!$B$54 -> 0 | AE21: =AE17*Indata!$B$54 -> 0 | AF21: =AF17*Indata!$B$54 -> 0 | AG21: =AG17*Indata!$B$54 -> 0 | AH21: =AH17*Indata!$B$54 -> 0 | AI21: =AI17*Indata!$B$54 -> 0 | AJ21: =AJ17*Indata!$B$54 -> 0 | AK21: =AK17*Indata!$B$54 -> 0 | AL21: =AL17*Indata!$B$54 -> 0 | AM21: =AM17*Indata!$B$54 -> 0 | AN21: =AN17*Indata!$B$54 -> 0 | AO21: =AO17*Indata!$B$54 -> 0 | AP21: =AP17*Indata!$B$54 -> 0 | AQ21: =AQ17*Indata!$B$54 -> 0 | AR21: =AR17*Indata!$B$54 -> 0 | AS21: =AS17*Indata!$B$54 -> 0 | AT21: =AT17*Indata!$B$54 -> 0 | AU21: =AU17*Indata!$B$54 -> 0 | AV21: =AV17*Indata!$B$54 -> 0 | AW21: =AW17*Indata!$B$54 -> 0 | AX21: =AX17*Indata!$B$54 -> 0 | AY21: =AY17*Indata!$B$54 -> 0 | AZ21: =AZ17*Indata!$B$54 -> 0 | BA21: =BA17*Indata!$B$54 -> 0 | BB21: =BB17*Indata!$B$54 -> 0 | BC21: =BC17*Indata!$B$54 -> 0 | BD21: =BD17*Indata!$B$54 -> 0 | BE21: =BE17*Indata!$B$54 -> 0 | BF21: =BF17*Indata!$B$54 -> 0 | BG21: =BG17*Indata!$B$54 -> 0 | BH21: =BH17*Indata!$B$54 -> 0 | BI21: =BI17*Indata!$B$54 -> 0 | BJ21: =BJ17*Indata!$B$54 -> 0 | BK21: =BK17*Indata!$B$54 -> 0 | BL21: =BL17*Indata!$B$54 -> 0 | BM21: =BM17*Indata!$B$54 -> 0 | BN21: =BN17*Indata!$B$54 -> 0 | BO21: =BO17*Indata!$B$54 -> 0 | BP21: =BP17*Indata!$B$54 -> 0 | BQ21: =BQ17*Indata!$B$54 -> 0 | BR21: =BR17*Indata!$B$54 -> 0 | BS21: =BS17*Indata!$B$54 -> 0 | BT21: =BT17*Indata!$B$54 -> 0 | BU21: =BU17*Indata!$B$54 -> 0 | BV21: =BV17*Indata!$B$54 -> 0 | BW21: =BW17*Indata!$B$54 -> 0 | BX21: =BX17*Indata!$B$54 -> 0 | BY21: =BY17*Indata!$B$54 -> 0 | BZ21: =BZ17*Indata!$B$54 -> 0 | CA21: =CA17*Indata!$B$54 -> 0 | CB21: =CB17*Indata!$B$54 -> 0 | CC21: =CC17*Indata!$B$54 -> 0 | CD21: =CD17*Indata!$B$54 -> 0 | CE21: =CE17*Indata!$B$54 -> 0 | CF21: =CF17*Indata!$B$54 -> 0 | CG21: =CG17*Indata!$B$54 -> 0 | CH21: =CH17*Indata!$B$54 -> 0 | CI21: =CI17*Indata!$B$54 -> 0 | CJ21: =CJ17*Indata!$B$54 -> 0 | CK21: =CK17*Indata!$B$54 -> 0 | CL21: =CL17*Indata!$B$54 -> 0 | CM21: =CM17*Indata!$B$54 -> 0 | CN21: =CN17*Indata!$B$54 -> 0 | CO21: =CO17*Indata!$B$54 -> 0 | CP21: =CP17*Indata!$B$54 -> 0 | CQ21: =CQ17*Indata!$B$54 -> 0 | CR21: =CR17*Indata!$B$54 -> 0 | CS21: =CS17*Indata!$B$54 -> 0 | CT21: =CT17*Indata!$B$54 -> 0
A22: Totalt årligt utsläpp av NH3 ton | B22: =HLOOKUP($B$8,$E$16:$CT$34,7) -> 0 | C22: =HLOOKUP($B$9,$E$16:$CT$34,7) -> 0 | E22: =E17*Indata!$B$55 -> 0 | F22: =F17*Indata!$B$55 -> 0 | G22: =G17*Indata!$B$55 -> 0 | H22: =H17*Indata!$B$55 -> 0 | I22: =I17*Indata!$B$55 -> 0 | J22: =J17*Indata!$B$55 -> 0 | K22: =K17*Indata!$B$55 -> 0 | L22: =L17*Indata!$B$55 -> 0 | M22: =M17*Indata!$B$55 -> 0 | N22: =N17*Indata!$B$55 -> 0 | O22: =O17*Indata!$B$55 -> 0 | P22: =P17*Indata!$B$55 -> 0 | Q22: =Q17*Indata!$B$55 -> 0 | R22: =R17*Indata!$B$55 -> 0 | S22: =S17*Indata!$B$55 -> 0 | T22: =T17*Indata!$B$55 -> 0 | U22: =U17*Indata!$B$55 -> 0 | V22: =V17*Indata!$B$55 -> 0 | W22: =W17*Indata!$B$55 -> 0 | X22: =X17*Indata!$B$55 -> 0 | Y22: =Y17*Indata!$B$55 -> 0 | Z22: =Z17*Indata!$B$55 -> 0 | AA22: =AA17*Indata!$B$55 -> 0 | AB22: =AB17*Indata!$B$55 -> 0 | AC22: =AC17*Indata!$B$55 -> 0 | AD22: =AD17*Indata!$B$55 -> 0 | AE22: =AE17*Indata!$B$55 -> 0 | AF22: =AF17*Indata!$B$55 -> 0 | AG22: =AG17*Indata!$B$55 -> 0 | AH22: =AH17*Indata!$B$55 -> 0 | AI22: =AI17*Indata!$B$55 -> 0 | AJ22: =AJ17*Indata!$B$55 -> 0 | AK22: =AK17*Indata!$B$55 -> 0 | AL22: =AL17*Indata!$B$55 -> 0 | AM22: =AM17*Indata!$B$55 -> 0 | AN22: =AN17*Indata!$B$55 -> 0 | AO22: =AO17*Indata!$B$55 -> 0 | AP22: =AP17*Indata!$B$55 -> 0 | AQ22: =AQ17*Indata!$B$55 -> 0 | AR22: =AR17*Indata!$B$55 -> 0 | AS22: =AS17*Indata!$B$55 -> 0 | AT22: =AT17*Indata!$B$55 -> 0 | AU22: =AU17*Indata!$B$55 -> 0 | AV22: =AV17*Indata!$B$55 -> 0 | AW22: =AW17*Indata!$B$55 -> 0 | AX22: =AX17*Indata!$B$55 -> 0 | AY22: =AY17*Indata!$B$55 -> 0 | AZ22: =AZ17*Indata!$B$55 -> 0 | BA22: =BA17*Indata!$B$55 -> 0 | BB22: =BB17*Indata!$B$55 -> 0 | BC22: =BC17*Indata!$B$55 -> 0 | BD22: =BD17*Indata!$B$55 -> 0 | BE22: =BE17*Indata!$B$55 -> 0 | BF22: =BF17*Indata!$B$55 -> 0 | BG22: =BG17*Indata!$B$55 -> 0 | BH22: =BH17*Indata!$B$55 -> 0 | BI22: =BI17*Indata!$B$55 -> 0 | BJ22: =BJ17*Indata!$B$55 -> 0 | BK22: =BK17*Indata!$B$55 -> 0 | BL22: =BL17*Indata!$B$55 -> 0 | BM22: =BM17*Indata!$B$55 -> 0 | BN22: =BN17*Indata!$B$55 -> 0 | BO22: =BO17*Indata!$B$55 -> 0 | BP22: =BP17*Indata!$B$55 -> 0 | BQ22: =BQ17*Indata!$B$55 -> 0 | BR22: =BR17*Indata!$B$55 -> 0 | BS22: =BS17*Indata!$B$55 -> 0 | BT22: =BT17*Indata!$B$55 -> 0 | BU22: =BU17*Indata!$B$55 -> 0 | BV22: =BV17*Indata!$B$55 -> 0 | BW22: =BW17*Indata!$B$55 -> 0 | BX22: =BX17*Indata!$B$55 -> 0 | BY22: =BY17*Indata!$B$55 -> 0 | BZ22: =BZ17*Indata!$B$55 -> 0 | CA22: =CA17*Indata!$B$55 -> 0 | CB22: =CB17*Indata!$B$55 -> 0 | CC22: =CC17*Indata!$B$55 -> 0 | CD22: =CD17*Indata!$B$55 -> 0 | CE22: =CE17*Indata!$B$55 -> 0 | CF22: =CF17*Indata!$B$55 -> 0 | CG22: =CG17*Indata!$B$55 -> 0 | CH22: =CH17*Indata!$B$55 -> 0 | CI22: =CI17*Indata!$B$55 -> 0 | CJ22: =CJ17*Indata!$B$55 -> 0 | CK22: =CK17*Indata!$B$55 -> 0 | CL22: =CL17*Indata!$B$55 -> 0 | CM22: =CM17*Indata!$B$55 -> 0 | CN22: =CN17*Indata!$B$55 -> 0 | CO22: =CO17*Indata!$B$55 -> 0 | CP22: =CP17*Indata!$B$55 -> 0 | CQ22: =CQ17*Indata!$B$55 -> 0 | CR22: =CR17*Indata!$B$55 -> 0 | CS22: =CS17*Indata!$B$55 -> 0 | CT22: =CT17*Indata!$B$55 -> 0
A23: Totalt årligt utsläpp av PM ton | B23: =HLOOKUP($B$8,$E$16:$CT$34,8) -> 0 | C23: =HLOOKUP($B$9,$E$16:$CT$34,8) -> 0 | E23: =E17*Indata!$B$56 -> 0 | F23: =F17*Indata!$B$56 -> 0 | G23: =G17*Indata!$B$56 -> 0 | H23: =H17*Indata!$B$56 -> 0 | I23: =I17*Indata!$B$56 -> 0 | J23: =J17*Indata!$B$56 -> 0 | K23: =K17*Indata!$B$56 -> 0 | L23: =L17*Indata!$B$56 -> 0 | M23: =M17*Indata!$B$56 -> 0 | N23: =N17*Indata!$B$56 -> 0 | O23: =O17*Indata!$B$56 -> 0 | P23: =P17*Indata!$B$56 -> 0 | Q23: =Q17*Indata!$B$56 -> 0 | R23: =R17*Indata!$B$56 -> 0 | S23: =S17*Indata!$B$56 -> 0 | T23: =T17*Indata!$B$56 -> 0 | U23: =U17*Indata!$B$56 -> 0 | V23: =V17*Indata!$B$56 -> 0 | W23: =W17*Indata!$B$56 -> 0 | X23: =X17*Indata!$B$56 -> 0 | Y23: =Y17*Indata!$B$56 -> 0 | Z23: =Z17*Indata!$B$56 -> 0 | AA23: =AA17*Indata!$B$56 -> 0 | AB23: =AB17*Indata!$B$56 -> 0 | AC23: =AC17*Indata!$B$56 -> 0 | AD23: =AD17*Indata!$B$56 -> 0 | AE23: =AE17*Indata!$B$56 -> 0 | AF23: =AF17*Indata!$B$56 -> 0 | AG23: =AG17*Indata!$B$56 -> 0 | AH23: =AH17*Indata!$B$56 -> 0 | AI23: =AI17*Indata!$B$56 -> 0 | AJ23: =AJ17*Indata!$B$56 -> 0 | AK23: =AK17*Indata!$B$56 -> 0 | AL23: =AL17*Indata!$B$56 -> 0 | AM23: =AM17*Indata!$B$56 -> 0 | AN23: =AN17*Indata!$B$56 -> 0 | AO23: =AO17*Indata!$B$56 -> 0 | AP23: =AP17*Indata!$B$56 -> 0 | AQ23: =AQ17*Indata!$B$56 -> 0 | AR23: =AR17*Indata!$B$56 -> 0 | AS23: =AS17*Indata!$B$56 -> 0 | AT23: =AT17*Indata!$B$56 -> 0 | AU23: =AU17*Indata!$B$56 -> 0 | AV23: =AV17*Indata!$B$56 -> 0 | AW23: =AW17*Indata!$B$56 -> 0 | AX23: =AX17*Indata!$B$56 -> 0 | AY23: =AY17*Indata!$B$56 -> 0 | AZ23: =AZ17*Indata!$B$56 -> 0 | BA23: =BA17*Indata!$B$56 -> 0 | BB23: =BB17*Indata!$B$56 -> 0 | BC23: =BC17*Indata!$B$56 -> 0 | BD23: =BD17*Indata!$B$56 -> 0 | BE23: =BE17*Indata!$B$56 -> 0 | BF23: =BF17*Indata!$B$56 -> 0 | BG23: =BG17*Indata!$B$56 -> 0 | BH23: =BH17*Indata!$B$56 -> 0 | BI23: =BI17*Indata!$B$56 -> 0 | BJ23: =BJ17*Indata!$B$56 -> 0 | BK23: =BK17*Indata!$B$56 -> 0 | BL23: =BL17*Indata!$B$56 -> 0 | BM23: =BM17*Indata!$B$56 -> 0 | BN23: =BN17*Indata!$B$56 -> 0 | BO23: =BO17*Indata!$B$56 -> 0 | BP23: =BP17*Indata!$B$56 -> 0 | BQ23: =BQ17*Indata!$B$56 -> 0 | BR23: =BR17*Indata!$B$56 -> 0 | BS23: =BS17*Indata!$B$56 -> 0 | BT23: =BT17*Indata!$B$56 -> 0 | BU23: =BU17*Indata!$B$56 -> 0 | BV23: =BV17*Indata!$B$56 -> 0 | BW23: =BW17*Indata!$B$56 -> 0 | BX23: =BX17*Indata!$B$56 -> 0 | BY23: =BY17*Indata!$B$56 -> 0 | BZ23: =BZ17*Indata!$B$56 -> 0 | CA23: =CA17*Indata!$B$56 -> 0 | CB23: =CB17*Indata!$B$56 -> 0 | CC23: =CC17*Indata!$B$56 -> 0 | CD23: =CD17*Indata!$B$56 -> 0 | CE23: =CE17*Indata!$B$56 -> 0 | CF23: =CF17*Indata!$B$56 -> 0 | CG23: =CG17*Indata!$B$56 -> 0 | CH23: =CH17*Indata!$B$56 -> 0 | CI23: =CI17*Indata!$B$56 -> 0 | CJ23: =CJ17*Indata!$B$56 -> 0 | CK23: =CK17*Indata!$B$56 -> 0 | CL23: =CL17*Indata!$B$56 -> 0 | CM23: =CM17*Indata!$B$56 -> 0 | CN23: =CN17*Indata!$B$56 -> 0 | CO23: =CO17*Indata!$B$56 -> 0 | CP23: =CP17*Indata!$B$56 -> 0 | CQ23: =CQ17*Indata!$B$56 -> 0 | CR23: =CR17*Indata!$B$56 -> 0 | CS23: =CS17*Indata!$B$56 -> 0 | CT23: =CT17*Indata!$B$56 -> 0
A24: Total distansberoende kostnad per år | B24: =HLOOKUP($B$8,$E$16:$CT$34,9) -> 0 | C24: =HLOOKUP($B$9,$E$16:$CT$34,9) -> 0 | E24: =E17*Indata!$B$9*E5 -> 0 | F24: =F17*Indata!$B$9*F5 -> 0 | G24: =G17*Indata!$B$9*G5 -> 0 | H24: =H17*Indata!$B$9*H5 -> 0 | I24: =I17*Indata!$B$9*I5 -> 0 | J24: =J17*Indata!$B$9*J5 -> 0 | K24: =K17*Indata!$B$9*K5 -> 0 | L24: =L17*Indata!$B$9*L5 -> 0 | M24: =M17*Indata!$B$9*M5 -> 0 | N24: =N17*Indata!$B$9*N5 -> 0 | O24: =O17*Indata!$B$9*O5 -> 0 | P24: =P17*Indata!$B$9*P5 -> 0 | Q24: =Q17*Indata!$B$9*Q5 -> 0 | R24: =R17*Indata!$B$9*R5 -> 0 | S24: =S17*Indata!$B$9*S5 -> 0 | T24: =T17*Indata!$B$9*T5 -> 0 | U24: =U17*Indata!$B$9*U5 -> 0 | V24: =V17*Indata!$B$9*V5 -> 0 | W24: =W17*Indata!$B$9*W5 -> 0 | X24: =X17*Indata!$B$9*X5 -> 0 | Y24: =Y17*Indata!$B$9*Y5 -> 0 | Z24: =Z17*Indata!$B$9*Z5 -> 0 | AA24: =AA17*Indata!$B$9*AA5 -> 0 | AB24: =AB17*Indata!$B$9*AB5 -> 0 | AC24: =AC17*Indata!$B$9*AC5 -> 0 | AD24: =AD17*Indata!$B$9*AD5 -> 0 | AE24: =AE17*Indata!$B$9*AE5 -> 0 | AF24: =AF17*Indata!$B$9*AF5 -> 0 | AG24: =AG17*Indata!$B$9*AG5 -> 0 | AH24: =AH17*Indata!$B$9*AH5 -> 0 | AI24: =AI17*Indata!$B$9*AI5 -> 0 | AJ24: =AJ17*Indata!$B$9*AJ5 -> 0 | AK24: =AK17*Indata!$B$9*AK5 -> 0 | AL24: =AL17*Indata!$B$9*AL5 -> 0 | AM24: =AM17*Indata!$B$9*AM5 -> 0 | AN24: =AN17*Indata!$B$9*AN5 -> 0 | AO24: =AO17*Indata!$B$9*AO5 -> 0 | AP24: =AP17*Indata!$B$9*AP5 -> 0 | AQ24: =AQ17*Indata!$B$9*AQ5 -> 0 | AR24: =AR17*Indata!$B$9*AR5 -> 0 | AS24: =AS17*Indata!$B$9*AS5 -> 0 | AT24: =AT17*Indata!$B$9*AT5 -> 0 | AU24: =AU17*Indata!$B$9*AU5 -> 0 | AV24: =AV17*Indata!$B$9*AV5 -> 0 | AW24: =AW17*Indata!$B$9*AW5 -> 0 | AX24: =AX17*Indata!$B$9*AX5 -> 0 | AY24: =AY17*Indata!$B$9*AY5 -> 0 | AZ24: =AZ17*Indata!$B$9*AZ5 -> 0 | BA24: =BA17*Indata!$B$9*BA5 -> 0 | BB24: =BB17*Indata!$B$9*BB5 -> 0 | BC24: =BC17*Indata!$B$9*BC5 -> 0 | BD24: =BD17*Indata!$B$9*BD5 -> 0 | BE24: =BE17*Indata!$B$9*BE5 -> 0 | BF24: =BF17*Indata!$B$9*BF5 -> 0 | BG24: =BG17*Indata!$B$9*BG5 -> 0 | BH24: =BH17*Indata!$B$9*BH5 -> 0 | BI24: =BI17*Indata!$B$9*BI5 -> 0 | BJ24: =BJ17*Indata!$B$9*BJ5 -> 0 | BK24: =BK17*Indata!$B$9*BK5 -> 0 | BL24: =BL17*Indata!$B$9*BL5 -> 0 | BM24: =BM17*Indata!$B$9*BM5 -> 0 | BN24: =BN17*Indata!$B$9*BN5 -> 0 | BO24: =BO17*Indata!$B$9*BO5 -> 0 | BP24: =BP17*Indata!$B$9*BP5 -> 0 | BQ24: =BQ17*Indata!$B$9*BQ5 -> 0 | BR24: =BR17*Indata!$B$9*BR5 -> 0 | BS24: =BS17*Indata!$B$9*BS5 -> 0 | BT24: =BT17*Indata!$B$9*BT5 -> 0 | BU24: =BU17*Indata!$B$9*BU5 -> 0 | BV24: =BV17*Indata!$B$9*BV5 -> 0 | BW24: =BW17*Indata!$B$9*BW5 -> 0 | BX24: =BX17*Indata!$B$9*BX5 -> 0 | BY24: =BY17*Indata!$B$9*BY5 -> 0 | BZ24: =BZ17*Indata!$B$9*BZ5 -> 0 | CA24: =CA17*Indata!$B$9*CA5 -> 0 | CB24: =CB17*Indata!$B$9*CB5 -> 0 | CC24: =CC17*Indata!$B$9*CC5 -> 0 | CD24: =CD17*Indata!$B$9*CD5 -> 0 | CE24: =CE17*Indata!$B$9*CE5 -> 0 | CF24: =CF17*Indata!$B$9*CF5 -> 0 | CG24: =CG17*Indata!$B$9*CG5 -> 0 | CH24: =CH17*Indata!$B$9*CH5 -> 0 | CI24: =CI17*Indata!$B$9*CI5 -> 0 | CJ24: =CJ17*Indata!$B$9*CJ5 -> 0 | CK24: =CK17*Indata!$B$9*CK5 -> 0 | CL24: =CL17*Indata!$B$9*CL5 -> 0 | CM24: =CM17*Indata!$B$9*CM5 -> 0 | CN24: =CN17*Indata!$B$9*CN5 -> 0 | CO24: =CO17*Indata!$B$9*CO5 -> 0 | CP24: =CP17*Indata!$B$9*CP5 -> 0 | CQ24: =CQ17*Indata!$B$9*CQ5 -> 0 | CR24: =CR17*Indata!$B$9*CR5 -> 0 | CS24: =CS17*Indata!$B$9*CS5 -> 0 | CT24: =CT17*Indata!$B$9*CT5 -> 0
A25: Total tidsberoende kostnad per år | B25: =HLOOKUP($B$8,$E$16:$CT$34,10) -> 0 | C25: =HLOOKUP($B$9,$E$16:$CT$34,10) -> 0 | E25: =('Tidsberoende kostnader'!D44+'Tidsberoende kostnader'!D108) -> 0 | F25: =('Tidsberoende kostnader'!E44+'Tidsberoende kostnader'!E108) -> 0 | G25: =('Tidsberoende kostnader'!F44+'Tidsberoende kostnader'!F108) -> 0 | H25: =('Tidsberoende kostnader'!G44+'Tidsberoende kostnader'!G108) -> 0 | I25: =('Tidsberoende kostnader'!H44+'Tidsberoende kostnader'!H108) -> 0 | J25: =('Tidsberoende kostnader'!I44+'Tidsberoende kostnader'!I108) -> 0 | K25: =('Tidsberoende kostnader'!J44+'Tidsberoende kostnader'!J108) -> 0 | L25: =('Tidsberoende kostnader'!K44+'Tidsberoende kostnader'!K108) -> 0 | M25: =('Tidsberoende kostnader'!L44+'Tidsberoende kostnader'!L108) -> 0 | N25: =('Tidsberoende kostnader'!M44+'Tidsberoende kostnader'!M108) -> 0 | O25: =('Tidsberoende kostnader'!N44+'Tidsberoende kostnader'!N108) -> 0 | P25: =('Tidsberoende kostnader'!O44+'Tidsberoende kostnader'!O108) -> 0 | Q25: =('Tidsberoende kostnader'!P44+'Tidsberoende kostnader'!P108) -> 0 | R25: =('Tidsberoende kostnader'!Q44+'Tidsberoende kostnader'!Q108) -> 0 | S25: =('Tidsberoende kostnader'!R44+'Tidsberoende kostnader'!R108) -> 0 | T25: =('Tidsberoende kostnader'!S44+'Tidsberoende kostnader'!S108) -> 0 | U25: =('Tidsberoende kostnader'!T44+'Tidsberoende kostnader'!T108) -> 0 | V25: =('Tidsberoende kostnader'!U44+'Tidsberoende kostnader'!U108) -> 0 | W25: =('Tidsberoende kostnader'!V44+'Tidsberoende kostnader'!V108) -> 0 | X25: =('Tidsberoende kostnader'!W44+'Tidsberoende kostnader'!W108) -> 0 | Y25: =('Tidsberoende kostnader'!X44+'Tidsberoende kostnader'!X108) -> 0 | Z25: =('Tidsberoende kostnader'!Y44+'Tidsberoende kostnader'!Y108) -> 0 | AA25: =('Tidsberoende kostnader'!Z44+'Tidsberoende kostnader'!Z108) -> 0 | AB25: =('Tidsberoende kostnader'!AA44+'Tidsberoende kostnader'!AA108) -> 0 | AC25: =('Tidsberoende kostnader'!AB44+'Tidsberoende kostnader'!AB108) -> 0 | AD25: =('Tidsberoende kostnader'!AC44+'Tidsberoende kostnader'!AC108) -> 0 | AE25: =('Tidsberoende kostnader'!AD44+'Tidsberoende kostnader'!AD108) -> 0 | AF25: =('Tidsberoende kostnader'!AE44+'Tidsberoende kostnader'!AE108) -> 0 | AG25: =('Tidsberoende kostnader'!AF44+'Tidsberoende kostnader'!AF108) -> 0 | AH25: =('Tidsberoende kostnader'!AG44+'Tidsberoende kostnader'!AG108) -> 0 | AI25: =('Tidsberoende kostnader'!AH44+'Tidsberoende kostnader'!AH108) -> 0 | AJ25: =('Tidsberoende kostnader'!AI44+'Tidsberoende kostnader'!AI108) -> 0 | AK25: =('Tidsberoende kostnader'!AJ44+'Tidsberoende kostnader'!AJ108) -> 0 | AL25: =('Tidsberoende kostnader'!AK44+'Tidsberoende kostnader'!AK108) -> 0 | AM25: =('Tidsberoende kostnader'!AL44+'Tidsberoende kostnader'!AL108) -> 0 | AN25: =('Tidsberoende kostnader'!AM44+'Tidsberoende kostnader'!AM108) -> 0 | AO25: =('Tidsberoende kostnader'!AN44+'Tidsberoende kostnader'!AN108) -> 0 | AP25: =('Tidsberoende kostnader'!AO44+'Tidsberoende kostnader'!AO108) -> 0 | AQ25: =('Tidsberoende kostnader'!AP44+'Tidsberoende kostnader'!AP108) -> 0 | AR25: =('Tidsberoende kostnader'!AQ44+'Tidsberoende kostnader'!AQ108) -> 0 | AS25: =('Tidsberoende kostnader'!AR44+'Tidsberoende kostnader'!AR108) -> 0 | AT25: =('Tidsberoende kostnader'!AS44+'Tidsberoende kostnader'!AS108) -> 0 | AU25: =('Tidsberoende kostnader'!AT44+'Tidsberoende kostnader'!AT108) -> 0 | AV25: =('Tidsberoende kostnader'!AU44+'Tidsberoende kostnader'!AU108) -> 0 | AW25: =('Tidsberoende kostnader'!AV44+'Tidsberoende kostnader'!AV108) -> 0 | AX25: =('Tidsberoende kostnader'!AW44+'Tidsberoende kostnader'!AW108) -> 0 | AY25: =('Tidsberoende kostnader'!AX44+'Tidsberoende kostnader'!AX108) -> 0 | AZ25: =('Tidsberoende kostnader'!AY44+'Tidsberoende kostnader'!AY108) -> 0 | BA25: =('Tidsberoende kostnader'!AZ44+'Tidsberoende kostnader'!AZ108) -> 0 | BB25: =('Tidsberoende kostnader'!BA44+'Tidsberoende kostnader'!BA108) -> 0 | BC25: =('Tidsberoende kostnader'!BB44+'Tidsberoende kostnader'!BB108) -> 0 | BD25: =('Tidsberoende kostnader'!BC44+'Tidsberoende kostnader'!BC108) -> 0 | BE25: =('Tidsberoende kostnader'!BD44+'Tidsberoende kostnader'!BD108) -> 0 | BF25: =('Tidsberoende kostnader'!BE44+'Tidsberoende kostnader'!BE108) -> 0 | BG25: =('Tidsberoende kostnader'!BF44+'Tidsberoende kostnader'!BF108) -> 0 | BH25: =('Tidsberoende kostnader'!BG44+'Tidsberoende kostnader'!BG108) -> 0 | BI25: =('Tidsberoende kostnader'!BH44+'Tidsberoende kostnader'!BH108) -> 0 | BJ25: =('Tidsberoende kostnader'!BI44+'Tidsberoende kostnader'!BI108) -> 0 | BK25: =('Tidsberoende kostnader'!BJ44+'Tidsberoende kostnader'!BJ108) -> 0 | BL25: =('Tidsberoende kostnader'!BK44+'Tidsberoende kostnader'!BK108) -> 0 | BM25: =('Tidsberoende kostnader'!BL44+'Tidsberoende kostnader'!BL108) -> 0 | BN25: =('Tidsberoende kostnader'!BM44+'Tidsberoende kostnader'!BM108) -> 0 | BO25: =('Tidsberoende kostnader'!BN44+'Tidsberoende kostnader'!BN108) -> 0 | BP25: =('Tidsberoende kostnader'!BO44+'Tidsberoende kostnader'!BO108) -> 0 | BQ25: =('Tidsberoende kostnader'!BP44+'Tidsberoende kostnader'!BP108) -> 0 | BR25: =('Tidsberoende kostnader'!BQ44+'Tidsberoende kostnader'!BQ108) -> 0 | BS25: =('Tidsberoende kostnader'!BR44+'Tidsberoende kostnader'!BR108) -> 0 | BT25: =('Tidsberoende kostnader'!BS44+'Tidsberoende kostnader'!BS108) -> 0 | BU25: =('Tidsberoende kostnader'!BT44+'Tidsberoende kostnader'!BT108) -> 0 | BV25: =('Tidsberoende kostnader'!BU44+'Tidsberoende kostnader'!BU108) -> 0 | BW25: =('Tidsberoende kostnader'!BV44+'Tidsberoende kostnader'!BV108) -> 0 | BX25: =('Tidsberoende kostnader'!BW44+'Tidsberoende kostnader'!BW108) -> 0 | BY25: =('Tidsberoende kostnader'!BX44+'Tidsberoende kostnader'!BX108) -> 0 | BZ25: =('Tidsberoende kostnader'!BY44+'Tidsberoende kostnader'!BY108) -> 0 | CA25: =('Tidsberoende kostnader'!BZ44+'Tidsberoende kostnader'!BZ108) -> 0 | CB25: =('Tidsberoende kostnader'!CA44+'Tidsberoende kostnader'!CA108) -> 0 | CC25: =('Tidsberoende kostnader'!CB44+'Tidsberoende kostnader'!CB108) -> 0 | CD25: =('Tidsberoende kostnader'!CC44+'Tidsberoende kostnader'!CC108) -> 0 | CE25: =('Tidsberoende kostnader'!CD44+'Tidsberoende kostnader'!CD108) -> 0 | CF25: =('Tidsberoende kostnader'!CE44+'Tidsberoende kostnader'!CE108) -> 0 | CG25: =('Tidsberoende kostnader'!CF44+'Tidsberoende kostnader'!CF108) -> 0 | CH25: =('Tidsberoende kostnader'!CG44+'Tidsberoende kostnader'!CG108) -> 0 | CI25: =('Tidsberoende kostnader'!CH44+'Tidsberoende kostnader'!CH108) -> 0 | CJ25: =('Tidsberoende kostnader'!CI44+'Tidsberoende kostnader'!CI108) -> 0 | CK25: =('Tidsberoende kostnader'!CJ44+'Tidsberoende kostnader'!CJ108) -> 0 | CL25: =('Tidsberoende kostnader'!CK44+'Tidsberoende kostnader'!CK108) -> 0 | CM25: =('Tidsberoende kostnader'!CL44+'Tidsberoende kostnader'!CL108) -> 0 | CN25: =('Tidsberoende kostnader'!CM44+'Tidsberoende kostnader'!CM108) -> 0 | CO25: =('Tidsberoende kostnader'!CN44+'Tidsberoende kostnader'!CN108) -> 0 | CP25: =('Tidsberoende kostnader'!CO44+'Tidsberoende kostnader'!CO108) -> 0 | CQ25: =('Tidsberoende kostnader'!CP44+'Tidsberoende kostnader'!CP108) -> 0 | CR25: =('Tidsberoende kostnader'!CQ44+'Tidsberoende kostnader'!CQ108) -> 0 | CS25: =('Tidsberoende kostnader'!CR44+'Tidsberoende kostnader'!CR108) -> 0 | CT25: =('Tidsberoende kostnader'!CS44+'Tidsberoende kostnader'!CS108) -> 0
A26: Total lastning och lossningskostnad per år | B26: =HLOOKUP($B$8,$E$16:$CT$34,11) -> 0 | C26: =HLOOKUP($B$9,$E$16:$CT$34,11) -> 0 | E26: ='Lastning och lossning'!D44 -> 0 | F26: ='Lastning och lossning'!E44 -> 0 | G26: ='Lastning och lossning'!F44 -> 0 | H26: ='Lastning och lossning'!G44 -> 0 | I26: ='Lastning och lossning'!H44 -> 0 | J26: ='Lastning och lossning'!I44 -> 0 | K26: ='Lastning och lossning'!J44 -> 0 | L26: ='Lastning och lossning'!K44 -> 0 | M26: ='Lastning och lossning'!L44 -> 0 | N26: ='Lastning och lossning'!M44 -> 0 | O26: ='Lastning och lossning'!N44 -> 0 | P26: ='Lastning och lossning'!O44 -> 0 | Q26: ='Lastning och lossning'!P44 -> 0 | R26: ='Lastning och lossning'!Q44 -> 0 | S26: ='Lastning och lossning'!R44 -> 0 | T26: ='Lastning och lossning'!S44 -> 0 | U26: ='Lastning och lossning'!T44 -> 0 | V26: ='Lastning och lossning'!U44 -> 0 | W26: ='Lastning och lossning'!V44 -> 0 | X26: ='Lastning och lossning'!W44 -> 0 | Y26: ='Lastning och lossning'!X44 -> 0 | Z26: ='Lastning och lossning'!Y44 -> 0 | AA26: ='Lastning och lossning'!Z44 -> 0 | AB26: ='Lastning och lossning'!AA44 -> 0 | AC26: ='Lastning och lossning'!AB44 -> 0 | AD26: ='Lastning och lossning'!AC44 -> 0 | AE26: ='Lastning och lossning'!AD44 -> 0 | AF26: ='Lastning och lossning'!AE44 -> 0 | AG26: ='Lastning och lossning'!AF44 -> 0 | AH26: ='Lastning och lossning'!AG44 -> 0 | AI26: ='Lastning och lossning'!AH44 -> 0 | AJ26: ='Lastning och lossning'!AI44 -> 0 | AK26: ='Lastning och lossning'!AJ44 -> 0 | AL26: ='Lastning och lossning'!AK44 -> 0 | AM26: ='Lastning och lossning'!AL44 -> 0 | AN26: ='Lastning och lossning'!AM44 -> 0 | AO26: ='Lastning och lossning'!AN44 -> 0 | AP26: ='Lastning och lossning'!AO44 -> 0 | AQ26: ='Lastning och lossning'!AP44 -> 0 | AR26: ='Lastning och lossning'!AQ44 -> 0 | AS26: ='Lastning och lossning'!AR44 -> 0 | AT26: ='Lastning och lossning'!AS44 -> 0 | AU26: ='Lastning och lossning'!AT44 -> 0 | AV26: ='Lastning och lossning'!AU44 -> 0 | AW26: ='Lastning och lossning'!AV44 -> 0 | AX26: ='Lastning och lossning'!AW44 -> 0 | AY26: ='Lastning och lossning'!AX44 -> 0 | AZ26: ='Lastning och lossning'!AY44 -> 0 | BA26: ='Lastning och lossning'!AZ44 -> 0 | BB26: ='Lastning och lossning'!BA44 -> 0 | BC26: ='Lastning och lossning'!BB44 -> 0 | BD26: ='Lastning och lossning'!BC44 -> 0 | BE26: ='Lastning och lossning'!BD44 -> 0 | BF26: ='Lastning och lossning'!BE44 -> 0 | BG26: ='Lastning och lossning'!BF44 -> 0 | BH26: ='Lastning och lossning'!BG44 -> 0 | BI26: ='Lastning och lossning'!BH44 -> 0 | BJ26: ='Lastning och lossning'!BI44 -> 0 | BK26: ='Lastning och lossning'!BJ44 -> 0 | BL26: ='Lastning och lossning'!BK44 -> 0 | BM26: ='Lastning och lossning'!BL44 -> 0 | BN26: ='Lastning och lossning'!BM44 -> 0 | BO26: ='Lastning och lossning'!BN44 -> 0 | BP26: ='Lastning och lossning'!BO44 -> 0 | BQ26: ='Lastning och lossning'!BP44 -> 0 | BR26: ='Lastning och lossning'!BQ44 -> 0 | BS26: ='Lastning och lossning'!BR44 -> 0 | BT26: ='Lastning och lossning'!BS44 -> 0 | BU26: ='Lastning och lossning'!BT44 -> 0 | BV26: ='Lastning och lossning'!BU44 -> 0 | BW26: ='Lastning och lossning'!BV44 -> 0 | BX26: ='Lastning och lossning'!BW44 -> 0 | BY26: ='Lastning och lossning'!BX44 -> 0 | BZ26: ='Lastning och lossning'!BY44 -> 0 | CA26: ='Lastning och lossning'!BZ44 -> 0 | CB26: ='Lastning och lossning'!CA44 -> 0 | CC26: ='Lastning och lossning'!CB44 -> 0 | CD26: ='Lastning och lossning'!CC44 -> 0 | CE26: ='Lastning och lossning'!CD44 -> 0 | CF26: ='Lastning och lossning'!CE44 -> 0 | CG26: ='Lastning och lossning'!CF44 -> 0 | CH26: ='Lastning och lossning'!CG44 -> 0 | CI26: ='Lastning och lossning'!CH44 -> 0 | CJ26: ='Lastning och lossning'!CI44 -> 0 | CK26: ='Lastning och lossning'!CJ44 -> 0 | CL26: ='Lastning och lossning'!CK44 -> 0 | CM26: ='Lastning och lossning'!CL44 -> 0 | CN26: ='Lastning och lossning'!CM44 -> 0 | CO26: ='Lastning och lossning'!CN44 -> 0 | CP26: ='Lastning och lossning'!CO44 -> 0 | CQ26: ='Lastning och lossning'!CP44 -> 0 | CR26: ='Lastning och lossning'!CQ44 -> 0 | CS26: ='Lastning och lossning'!CR44 -> 0 | CT26: ='Lastning och lossning'!CS44 -> 0
A27: Total tidsberoende kostnad för lastning och lossning | B27: =HLOOKUP($B$8,$E$16:$CT$34,12) -> 0 | C27: =HLOOKUP($B$9,$E$16:$CT$34,12) -> 0 | E27: ='Lastning och lossning'!D108 -> 0 | F27: ='Lastning och lossning'!E108 -> 0 | G27: ='Lastning och lossning'!F108 -> 0 | H27: ='Lastning och lossning'!G108 -> 0 | I27: ='Lastning och lossning'!H108 -> 0 | J27: ='Lastning och lossning'!I108 -> 0 | K27: ='Lastning och lossning'!J108 -> 0 | L27: ='Lastning och lossning'!K108 -> 0 | M27: ='Lastning och lossning'!L108 -> 0 | N27: ='Lastning och lossning'!M108 -> 0 | O27: ='Lastning och lossning'!N108 -> 0 | P27: ='Lastning och lossning'!O108 -> 0 | Q27: ='Lastning och lossning'!P108 -> 0 | R27: ='Lastning och lossning'!Q108 -> 0 | S27: ='Lastning och lossning'!R108 -> 0 | T27: ='Lastning och lossning'!S108 -> 0 | U27: ='Lastning och lossning'!T108 -> 0 | V27: ='Lastning och lossning'!U108 -> 0 | W27: ='Lastning och lossning'!V108 -> 0 | X27: ='Lastning och lossning'!W108 -> 0 | Y27: ='Lastning och lossning'!X108 -> 0 | Z27: ='Lastning och lossning'!Y108 -> 0 | AA27: ='Lastning och lossning'!Z108 -> 0 | AB27: ='Lastning och lossning'!AA108 -> 0 | AC27: ='Lastning och lossning'!AB108 -> 0 | AD27: ='Lastning och lossning'!AC108 -> 0 | AE27: ='Lastning och lossning'!AD108 -> 0 | AF27: ='Lastning och lossning'!AE108 -> 0 | AG27: ='Lastning och lossning'!AF108 -> 0 | AH27: ='Lastning och lossning'!AG108 -> 0 | AI27: ='Lastning och lossning'!AH108 -> 0 | AJ27: ='Lastning och lossning'!AI108 -> 0 | AK27: ='Lastning och lossning'!AJ108 -> 0 | AL27: ='Lastning och lossning'!AK108 -> 0 | AM27: ='Lastning och lossning'!AL108 -> 0 | AN27: ='Lastning och lossning'!AM108 -> 0 | AO27: ='Lastning och lossning'!AN108 -> 0 | AP27: ='Lastning och lossning'!AO108 -> 0 | AQ27: ='Lastning och lossning'!AP108 -> 0 | AR27: ='Lastning och lossning'!AQ108 -> 0 | AS27: ='Lastning och lossning'!AR108 -> 0 | AT27: ='Lastning och lossning'!AS108 -> 0 | AU27: ='Lastning och lossning'!AT108 -> 0 | AV27: ='Lastning och lossning'!AU108 -> 0 | AW27: ='Lastning och lossning'!AV108 -> 0 | AX27: ='Lastning och lossning'!AW108 -> 0 | AY27: ='Lastning och lossning'!AX108 -> 0 | AZ27: ='Lastning och lossning'!AY108 -> 0 | BA27: ='Lastning och lossning'!AZ108 -> 0 | BB27: ='Lastning och lossning'!BA108 -> 0 | BC27: ='Lastning och lossning'!BB108 -> 0 | BD27: ='Lastning och lossning'!BC108 -> 0 | BE27: ='Lastning och lossning'!BD108 -> 0 | BF27: ='Lastning och lossning'!BE108 -> 0 | BG27: ='Lastning och lossning'!BF108 -> 0 | BH27: ='Lastning och lossning'!BG108 -> 0 | BI27: ='Lastning och lossning'!BH108 -> 0 | BJ27: ='Lastning och lossning'!BI108 -> 0 | BK27: ='Lastning och lossning'!BJ108 -> 0 | BL27: ='Lastning och lossning'!BK108 -> 0 | BM27: ='Lastning och lossning'!BL108 -> 0 | BN27: ='Lastning och lossning'!BM108 -> 0 | BO27: ='Lastning och lossning'!BN108 -> 0 | BP27: ='Lastning och lossning'!BO108 -> 0 | BQ27: ='Lastning och lossning'!BP108 -> 0 | BR27: ='Lastning och lossning'!BQ108 -> 0 | BS27: ='Lastning och lossning'!BR108 -> 0 | BT27: ='Lastning och lossning'!BS108 -> 0 | BU27: ='Lastning och lossning'!BT108 -> 0 | BV27: ='Lastning och lossning'!BU108 -> 0 | BW27: ='Lastning och lossning'!BV108 -> 0 | BX27: ='Lastning och lossning'!BW108 -> 0 | BY27: ='Lastning och lossning'!BX108 -> 0 | BZ27: ='Lastning och lossning'!BY108 -> 0 | CA27: ='Lastning och lossning'!BZ108 -> 0 | CB27: ='Lastning och lossning'!CA108 -> 0 | CC27: ='Lastning och lossning'!CB108 -> 0 | CD27: ='Lastning och lossning'!CC108 -> 0 | CE27: ='Lastning och lossning'!CD108 -> 0 | CF27: ='Lastning och lossning'!CE108 -> 0 | CG27: ='Lastning och lossning'!CF108 -> 0 | CH27: ='Lastning och lossning'!CG108 -> 0 | CI27: ='Lastning och lossning'!CH108 -> 0 | CJ27: ='Lastning och lossning'!CI108 -> 0 | CK27: ='Lastning och lossning'!CJ108 -> 0 | CL27: ='Lastning och lossning'!CK108 -> 0 | CM27: ='Lastning och lossning'!CL108 -> 0 | CN27: ='Lastning och lossning'!CM108 -> 0 | CO27: ='Lastning och lossning'!CN108 -> 0 | CP27: ='Lastning och lossning'!CO108 -> 0 | CQ27: ='Lastning och lossning'!CP108 -> 0 | CR27: ='Lastning och lossning'!CQ108 -> 0 | CS27: ='Lastning och lossning'!CR108 -> 0 | CT27: ='Lastning och lossning'!CS108 -> 0
A28: Total lotskostnad per år | B28: =HLOOKUP($B$8,$E$16:$CT$34,13) -> 0 | C28: =HLOOKUP($B$9,$E$16:$CT$34,13) -> 0 | E28: =Lotskostnader!D44 -> 0 | F28: =Lotskostnader!E44 -> 0 | G28: =Lotskostnader!F44 -> 0 | H28: =Lotskostnader!G44 -> 0 | I28: =Lotskostnader!H44 -> 0 | J28: =Lotskostnader!I44 -> 0 | K28: =Lotskostnader!J44 -> 0 | L28: =Lotskostnader!K44 -> 0 | M28: =Lotskostnader!L44 -> 0 | N28: =Lotskostnader!M44 -> 0 | O28: =Lotskostnader!N44 -> 0 | P28: =Lotskostnader!O44 -> 0 | Q28: =Lotskostnader!P44 -> 0 | R28: =Lotskostnader!Q44 -> 0 | S28: =Lotskostnader!R44 -> 0 | T28: =Lotskostnader!S44 -> 0 | U28: =Lotskostnader!T44 -> 0 | V28: =Lotskostnader!U44 -> 0 | W28: =Lotskostnader!V44 -> 0 | X28: =Lotskostnader!W44 -> 0 | Y28: =Lotskostnader!X44 -> 0 | Z28: =Lotskostnader!Y44 -> 0 | AA28: =Lotskostnader!Z44 -> 0 | AB28: =Lotskostnader!AA44 -> 0 | AC28: =Lotskostnader!AB44 -> 0 | AD28: =Lotskostnader!AC44 -> 0 | AE28: =Lotskostnader!AD44 -> 0 | AF28: =Lotskostnader!AE44 -> 0 | AG28: =Lotskostnader!AF44 -> 0 | AH28: =Lotskostnader!AG44 -> 0 | AI28: =Lotskostnader!AH44 -> 0 | AJ28: =Lotskostnader!AI44 -> 0 | AK28: =Lotskostnader!AJ44 -> 0 | AL28: =Lotskostnader!AK44 -> 0 | AM28: =Lotskostnader!AL44 -> 0 | AN28: =Lotskostnader!AM44 -> 0 | AO28: =Lotskostnader!AN44 -> 0 | AP28: =Lotskostnader!AO44 -> 0 | AQ28: =Lotskostnader!AP44 -> 0 | AR28: =Lotskostnader!AQ44 -> 0 | AS28: =Lotskostnader!AR44 -> 0 | AT28: =Lotskostnader!AS44 -> 0 | AU28: =Lotskostnader!AT44 -> 0 | AV28: =Lotskostnader!AU44 -> 0 | AW28: =Lotskostnader!AV44 -> 0 | AX28: =Lotskostnader!AW44 -> 0 | AY28: =Lotskostnader!AX44 -> 0 | AZ28: =Lotskostnader!AY44 -> 0 | BA28: =Lotskostnader!AZ44 -> 0 | BB28: =Lotskostnader!BA44 -> 0 | BC28: =Lotskostnader!BB44 -> 0 | BD28: =Lotskostnader!BC44 -> 0 | BE28: =Lotskostnader!BD44 -> 0 | BF28: =Lotskostnader!BE44 -> 0 | BG28: =Lotskostnader!BF44 -> 0 | BH28: =Lotskostnader!BG44 -> 0 | BI28: =Lotskostnader!BH44 -> 0 | BJ28: =Lotskostnader!BI44 -> 0 | BK28: =Lotskostnader!BJ44 -> 0 | BL28: =Lotskostnader!BK44 -> 0 | BM28: =Lotskostnader!BL44 -> 0 | BN28: =Lotskostnader!BM44 -> 0 | BO28: =Lotskostnader!BN44 -> 0 | BP28: =Lotskostnader!BO44 -> 0 | BQ28: =Lotskostnader!BP44 -> 0 | BR28: =Lotskostnader!BQ44 -> 0 | BS28: =Lotskostnader!BR44 -> 0 | BT28: =Lotskostnader!BS44 -> 0 | BU28: =Lotskostnader!BT44 -> 0 | BV28: =Lotskostnader!BU44 -> 0 | BW28: =Lotskostnader!BV44 -> 0 | BX28: =Lotskostnader!BW44 -> 0 | BY28: =Lotskostnader!BX44 -> 0 | BZ28: =Lotskostnader!BY44 -> 0 | CA28: =Lotskostnader!BZ44 -> 0 | CB28: =Lotskostnader!CA44 -> 0 | CC28: =Lotskostnader!CB44 -> 0 | CD28: =Lotskostnader!CC44 -> 0 | CE28: =Lotskostnader!CD44 -> 0 | CF28: =Lotskostnader!CE44 -> 0 | CG28: =Lotskostnader!CF44 -> 0 | CH28: =Lotskostnader!CG44 -> 0 | CI28: =Lotskostnader!CH44 -> 0 | CJ28: =Lotskostnader!CI44 -> 0 | CK28: =Lotskostnader!CJ44 -> 0 | CL28: =Lotskostnader!CK44 -> 0 | CM28: =Lotskostnader!CL44 -> 0 | CN28: =Lotskostnader!CM44 -> 0 | CO28: =Lotskostnader!CN44 -> 0 | CP28: =Lotskostnader!CO44 -> 0 | CQ28: =Lotskostnader!CP44 -> 0 | CR28: =Lotskostnader!CQ44 -> 0 | CS28: =Lotskostnader!CR44 -> 0 | CT28: =Lotskostnader!CS44 -> 0
A29: Total årlig kostnad CO2 | B29: =HLOOKUP($B$8,$E$16:$CT$34,14) -> 0 | C29: =HLOOKUP($B$9,$E$16:$CT$34,14) -> 0 | E29: =E18*Indata!$B$44*1000*E6 -> 0 | F29: =F18*Indata!$B$44*1000*F6 -> 0 | G29: =G18*Indata!$B$44*1000*G6 -> 0 | H29: =H18*Indata!$B$44*1000*H6 -> 0 | I29: =I18*Indata!$B$44*1000*I6 -> 0 | J29: =J18*Indata!$B$44*1000*J6 -> 0 | K29: =K18*Indata!$B$44*1000*K6 -> 0 | L29: =L18*Indata!$B$44*1000*L6 -> 0 | M29: =M18*Indata!$B$44*1000*M6 -> 0 | N29: =N18*Indata!$B$44*1000*N6 -> 0 | O29: =O18*Indata!$B$44*1000*O6 -> 0 | P29: =P18*Indata!$B$44*1000*P6 -> 0 | Q29: =Q18*Indata!$B$44*1000*Q6 -> 0 | R29: =R18*Indata!$B$44*1000*R6 -> 0 | S29: =S18*Indata!$B$44*1000*S6 -> 0 | T29: =T18*Indata!$B$44*1000*T6 -> 0 | U29: =U18*Indata!$B$44*1000*U6 -> 0 | V29: =V18*Indata!$B$44*1000*V6 -> 0 | W29: =W18*Indata!$B$44*1000*W6 -> 0 | X29: =X18*Indata!$B$44*1000*X6 -> 0 | Y29: =Y18*Indata!$B$44*1000*Y6 -> 0 | Z29: =Z18*Indata!$B$44*1000*Z6 -> 0 | AA29: =AA18*Indata!$B$44*1000*AA6 -> 0 | AB29: =AB18*Indata!$B$44*1000*AB6 -> 0 | AC29: =AC18*Indata!$B$44*1000*AC6 -> 0 | AD29: =AD18*Indata!$B$44*1000*AD6 -> 0 | AE29: =AE18*Indata!$B$44*1000*AE6 -> 0 | AF29: =AF18*Indata!$B$44*1000*AF6 -> 0 | AG29: =AG18*Indata!$B$44*1000*AG6 -> 0 | AH29: =AH18*Indata!$B$44*1000*AH6 -> 0 | AI29: =AI18*Indata!$B$44*1000*AI6 -> 0 | AJ29: =AJ18*Indata!$B$44*1000*AJ6 -> 0 | AK29: =AK18*Indata!$B$44*1000*AK6 -> 0 | AL29: =AL18*Indata!$B$44*1000*AL6 -> 0 | AM29: =AM18*Indata!$B$44*1000*AM6 -> 0 | AN29: =AN18*Indata!$B$44*1000*AN6 -> 0 | AO29: =AO18*Indata!$B$44*1000*AO6 -> 0 | AP29: =AP18*Indata!$B$44*1000*AP6 -> 0 | AQ29: =AQ18*Indata!$B$44*1000*AQ6 -> 0 | AR29: =AR18*Indata!$B$44*1000*AR6 -> 0 | AS29: =AS18*Indata!$B$44*1000*AS6 -> 0 | AT29: =AT18*Indata!$B$44*1000*AT6 -> 0 | AU29: =AU18*Indata!$B$44*1000*AU6 -> 0 | AV29: =AV18*Indata!$B$44*1000*AV6 -> 0 | AW29: =AW18*Indata!$B$44*1000*AW6 -> 0 | AX29: =AX18*Indata!$B$44*1000*AX6 -> 0 | AY29: =AY18*Indata!$B$44*1000*AY6 -> 0 | AZ29: =AZ18*Indata!$B$44*1000*AZ6 -> 0 | BA29: =BA18*Indata!$B$44*1000*BA6 -> 0 | BB29: =BB18*Indata!$B$44*1000*BB6 -> 0 | BC29: =BC18*Indata!$B$44*1000*BC6 -> 0 | BD29: =BD18*Indata!$B$44*1000*BD6 -> 0 | BE29: =BE18*Indata!$B$44*1000*BE6 -> 0 | BF29: =BF18*Indata!$B$44*1000*BF6 -> 0 | BG29: =BG18*Indata!$B$44*1000*BG6 -> 0 | BH29: =BH18*Indata!$B$44*1000*BH6 -> 0 | BI29: =BI18*Indata!$B$44*1000*BI6 -> 0 | BJ29: =BJ18*Indata!$B$44*1000*BJ6 -> 0 | BK29: =BK18*Indata!$B$44*1000*BK6 -> 0 | BL29: =BL18*Indata!$B$44*1000*BL6 -> 0 | BM29: =BM18*Indata!$B$44*1000*BM6 -> 0 | BN29: =BN18*Indata!$B$44*1000*BN6 -> 0 | BO29: =BO18*Indata!$B$44*1000*BO6 -> 0 | BP29: =BP18*Indata!$B$44*1000*BP6 -> 0 | BQ29: =BQ18*Indata!$B$44*1000*BQ6 -> 0 | BR29: =BR18*Indata!$B$44*1000*BR6 -> 0 | BS29: =BS18*Indata!$B$44*1000*BS6 -> 0 | BT29: =BT18*Indata!$B$44*1000*BT6 -> 0 | BU29: =BU18*Indata!$B$44*1000*BU6 -> 0 | BV29: =BV18*Indata!$B$44*1000*BV6 -> 0 | BW29: =BW18*Indata!$B$44*1000*BW6 -> 0 | BX29: =BX18*Indata!$B$44*1000*BX6 -> 0 | BY29: =BY18*Indata!$B$44*1000*BY6 -> 0 | BZ29: =BZ18*Indata!$B$44*1000*BZ6 -> 0 | CA29: =CA18*Indata!$B$44*1000*CA6 -> 0 | CB29: =CB18*Indata!$B$44*1000*CB6 -> 0 | CC29: =CC18*Indata!$B$44*1000*CC6 -> 0 | CD29: =CD18*Indata!$B$44*1000*CD6 -> 0 | CE29: =CE18*Indata!$B$44*1000*CE6 -> 0 | CF29: =CF18*Indata!$B$44*1000*CF6 -> 0 | CG29: =CG18*Indata!$B$44*1000*CG6 -> 0 | CH29: =CH18*Indata!$B$44*1000*CH6 -> 0 | CI29: =CI18*Indata!$B$44*1000*CI6 -> 0 | CJ29: =CJ18*Indata!$B$44*1000*CJ6 -> 0 | CK29: =CK18*Indata!$B$44*1000*CK6 -> 0 | CL29: =CL18*Indata!$B$44*1000*CL6 -> 0 | CM29: =CM18*Indata!$B$44*1000*CM6 -> 0 | CN29: =CN18*Indata!$B$44*1000*CN6 -> 0 | CO29: =CO18*Indata!$B$44*1000*CO6 -> 0 | CP29: =CP18*Indata!$B$44*1000*CP6 -> 0 | CQ29: =CQ18*Indata!$B$44*1000*CQ6 -> 0 | CR29: =CR18*Indata!$B$44*1000*CR6 -> 0 | CS29: =CS18*Indata!$B$44*1000*CS6 -> 0 | CT29: =CT18*Indata!$B$44*1000*CT6 -> 0
A30: Total årlig kostnad NOx | B30: =HLOOKUP($B$8,$E$16:$CT$34,15) -> 0 | C30: =HLOOKUP($B$9,$E$16:$CT$34,15) -> 0 | E30: =E19*Indata!$B$45*1000*E7 -> 0 | F30: =F19*Indata!$B$45*1000*F7 -> 0 | G30: =G19*Indata!$B$45*1000*G7 -> 0 | H30: =H19*Indata!$B$45*1000*H7 -> 0 | I30: =I19*Indata!$B$45*1000*I7 -> 0 | J30: =J19*Indata!$B$45*1000*J7 -> 0 | K30: =K19*Indata!$B$45*1000*K7 -> 0 | L30: =L19*Indata!$B$45*1000*L7 -> 0 | M30: =M19*Indata!$B$45*1000*M7 -> 0 | N30: =N19*Indata!$B$45*1000*N7 -> 0 | O30: =O19*Indata!$B$45*1000*O7 -> 0 | P30: =P19*Indata!$B$45*1000*P7 -> 0 | Q30: =Q19*Indata!$B$45*1000*Q7 -> 0 | R30: =R19*Indata!$B$45*1000*R7 -> 0 | S30: =S19*Indata!$B$45*1000*S7 -> 0 | T30: =T19*Indata!$B$45*1000*T7 -> 0 | U30: =U19*Indata!$B$45*1000*U7 -> 0 | V30: =V19*Indata!$B$45*1000*V7 -> 0 | W30: =W19*Indata!$B$45*1000*W7 -> 0 | X30: =X19*Indata!$B$45*1000*X7 -> 0 | Y30: =Y19*Indata!$B$45*1000*Y7 -> 0 | Z30: =Z19*Indata!$B$45*1000*Z7 -> 0 | AA30: =AA19*Indata!$B$45*1000*AA7 -> 0 | AB30: =AB19*Indata!$B$45*1000*AB7 -> 0 | AC30: =AC19*Indata!$B$45*1000*AC7 -> 0 | AD30: =AD19*Indata!$B$45*1000*AD7 -> 0 | AE30: =AE19*Indata!$B$45*1000*AE7 -> 0 | AF30: =AF19*Indata!$B$45*1000*AF7 -> 0 | AG30: =AG19*Indata!$B$45*1000*AG7 -> 0 | AH30: =AH19*Indata!$B$45*1000*AH7 -> 0 | AI30: =AI19*Indata!$B$45*1000*AI7 -> 0 | AJ30: =AJ19*Indata!$B$45*1000*AJ7 -> 0 | AK30: =AK19*Indata!$B$45*1000*AK7 -> 0 | AL30: =AL19*Indata!$B$45*1000*AL7 -> 0 | AM30: =AM19*Indata!$B$45*1000*AM7 -> 0 | AN30: =AN19*Indata!$B$45*1000*AN7 -> 0 | AO30: =AO19*Indata!$B$45*1000*AO7 -> 0 | AP30: =AP19*Indata!$B$45*1000*AP7 -> 0 | AQ30: =AQ19*Indata!$B$45*1000*AQ7 -> 0 | AR30: =AR19*Indata!$B$45*1000*AR7 -> 0 | AS30: =AS19*Indata!$B$45*1000*AS7 -> 0 | AT30: =AT19*Indata!$B$45*1000*AT7 -> 0 | AU30: =AU19*Indata!$B$45*1000*AU7 -> 0 | AV30: =AV19*Indata!$B$45*1000*AV7 -> 0 | AW30: =AW19*Indata!$B$45*1000*AW7 -> 0 | AX30: =AX19*Indata!$B$45*1000*AX7 -> 0 | AY30: =AY19*Indata!$B$45*1000*AY7 -> 0 | AZ30: =AZ19*Indata!$B$45*1000*AZ7 -> 0 | BA30: =BA19*Indata!$B$45*1000*BA7 -> 0 | BB30: =BB19*Indata!$B$45*1000*BB7 -> 0 | BC30: =BC19*Indata!$B$45*1000*BC7 -> 0 | BD30: =BD19*Indata!$B$45*1000*BD7 -> 0 | BE30: =BE19*Indata!$B$45*1000*BE7 -> 0 | BF30: =BF19*Indata!$B$45*1000*BF7 -> 0 | BG30: =BG19*Indata!$B$45*1000*BG7 -> 0 | BH30: =BH19*Indata!$B$45*1000*BH7 -> 0 | BI30: =BI19*Indata!$B$45*1000*BI7 -> 0 | BJ30: =BJ19*Indata!$B$45*1000*BJ7 -> 0 | BK30: =BK19*Indata!$B$45*1000*BK7 -> 0 | BL30: =BL19*Indata!$B$45*1000*BL7 -> 0 | BM30: =BM19*Indata!$B$45*1000*BM7 -> 0 | BN30: =BN19*Indata!$B$45*1000*BN7 -> 0 | BO30: =BO19*Indata!$B$45*1000*BO7 -> 0 | BP30: =BP19*Indata!$B$45*1000*BP7 -> 0 | BQ30: =BQ19*Indata!$B$45*1000*BQ7 -> 0 | BR30: =BR19*Indata!$B$45*1000*BR7 -> 0 | BS30: =BS19*Indata!$B$45*1000*BS7 -> 0 | BT30: =BT19*Indata!$B$45*1000*BT7 -> 0 | BU30: =BU19*Indata!$B$45*1000*BU7 -> 0 | BV30: =BV19*Indata!$B$45*1000*BV7 -> 0 | BW30: =BW19*Indata!$B$45*1000*BW7 -> 0 | BX30: =BX19*Indata!$B$45*1000*BX7 -> 0 | BY30: =BY19*Indata!$B$45*1000*BY7 -> 0 | BZ30: =BZ19*Indata!$B$45*1000*BZ7 -> 0 | CA30: =CA19*Indata!$B$45*1000*CA7 -> 0 | CB30: =CB19*Indata!$B$45*1000*CB7 -> 0 | CC30: =CC19*Indata!$B$45*1000*CC7 -> 0 | CD30: =CD19*Indata!$B$45*1000*CD7 -> 0 | CE30: =CE19*Indata!$B$45*1000*CE7 -> 0 | CF30: =CF19*Indata!$B$45*1000*CF7 -> 0 | CG30: =CG19*Indata!$B$45*1000*CG7 -> 0 | CH30: =CH19*Indata!$B$45*1000*CH7 -> 0 | CI30: =CI19*Indata!$B$45*1000*CI7 -> 0 | CJ30: =CJ19*Indata!$B$45*1000*CJ7 -> 0 | CK30: =CK19*Indata!$B$45*1000*CK7 -> 0 | CL30: =CL19*Indata!$B$45*1000*CL7 -> 0 | CM30: =CM19*Indata!$B$45*1000*CM7 -> 0 | CN30: =CN19*Indata!$B$45*1000*CN7 -> 0 | CO30: =CO19*Indata!$B$45*1000*CO7 -> 0 | CP30: =CP19*Indata!$B$45*1000*CP7 -> 0 | CQ30: =CQ19*Indata!$B$45*1000*CQ7 -> 0 | CR30: =CR19*Indata!$B$45*1000*CR7 -> 0 | CS30: =CS19*Indata!$B$45*1000*CS7 -> 0 | CT30: =CT19*Indata!$B$45*1000*CT7 -> 0
A31: Total årlig kostnad VOC | B31: =HLOOKUP($B$8,$E$16:$CT$34,16) -> 0 | C31: =HLOOKUP($B$9,$E$16:$CT$34,16) -> 0 | E31: =E20*Indata!$B$46*1000*E8 -> 0 | F31: =F20*Indata!$B$46*1000*F8 -> 0 | G31: =G20*Indata!$B$46*1000*G8 -> 0 | H31: =H20*Indata!$B$46*1000*H8 -> 0 | I31: =I20*Indata!$B$46*1000*I8 -> 0 | J31: =J20*Indata!$B$46*1000*J8 -> 0 | K31: =K20*Indata!$B$46*1000*K8 -> 0 | L31: =L20*Indata!$B$46*1000*L8 -> 0 | M31: =M20*Indata!$B$46*1000*M8 -> 0 | N31: =N20*Indata!$B$46*1000*N8 -> 0 | O31: =O20*Indata!$B$46*1000*O8 -> 0 | P31: =P20*Indata!$B$46*1000*P8 -> 0 | Q31: =Q20*Indata!$B$46*1000*Q8 -> 0 | R31: =R20*Indata!$B$46*1000*R8 -> 0 | S31: =S20*Indata!$B$46*1000*S8 -> 0 | T31: =T20*Indata!$B$46*1000*T8 -> 0 | U31: =U20*Indata!$B$46*1000*U8 -> 0 | V31: =V20*Indata!$B$46*1000*V8 -> 0 | W31: =W20*Indata!$B$46*1000*W8 -> 0 | X31: =X20*Indata!$B$46*1000*X8 -> 0 | Y31: =Y20*Indata!$B$46*1000*Y8 -> 0 | Z31: =Z20*Indata!$B$46*1000*Z8 -> 0 | AA31: =AA20*Indata!$B$46*1000*AA8 -> 0 | AB31: =AB20*Indata!$B$46*1000*AB8 -> 0 | AC31: =AC20*Indata!$B$46*1000*AC8 -> 0 | AD31: =AD20*Indata!$B$46*1000*AD8 -> 0 | AE31: =AE20*Indata!$B$46*1000*AE8 -> 0 | AF31: =AF20*Indata!$B$46*1000*AF8 -> 0 | AG31: =AG20*Indata!$B$46*1000*AG8 -> 0 | AH31: =AH20*Indata!$B$46*1000*AH8 -> 0 | AI31: =AI20*Indata!$B$46*1000*AI8 -> 0 | AJ31: =AJ20*Indata!$B$46*1000*AJ8 -> 0 | AK31: =AK20*Indata!$B$46*1000*AK8 -> 0 | AL31: =AL20*Indata!$B$46*1000*AL8 -> 0 | AM31: =AM20*Indata!$B$46*1000*AM8 -> 0 | AN31: =AN20*Indata!$B$46*1000*AN8 -> 0 | AO31: =AO20*Indata!$B$46*1000*AO8 -> 0 | AP31: =AP20*Indata!$B$46*1000*AP8 -> 0 | AQ31: =AQ20*Indata!$B$46*1000*AQ8 -> 0 | AR31: =AR20*Indata!$B$46*1000*AR8 -> 0 | AS31: =AS20*Indata!$B$46*1000*AS8 -> 0 | AT31: =AT20*Indata!$B$46*1000*AT8 -> 0 | AU31: =AU20*Indata!$B$46*1000*AU8 -> 0 | AV31: =AV20*Indata!$B$46*1000*AV8 -> 0 | AW31: =AW20*Indata!$B$46*1000*AW8 -> 0 | AX31: =AX20*Indata!$B$46*1000*AX8 -> 0 | AY31: =AY20*Indata!$B$46*1000*AY8 -> 0 | AZ31: =AZ20*Indata!$B$46*1000*AZ8 -> 0 | BA31: =BA20*Indata!$B$46*1000*BA8 -> 0 | BB31: =BB20*Indata!$B$46*1000*BB8 -> 0 | BC31: =BC20*Indata!$B$46*1000*BC8 -> 0 | BD31: =BD20*Indata!$B$46*1000*BD8 -> 0 | BE31: =BE20*Indata!$B$46*1000*BE8 -> 0 | BF31: =BF20*Indata!$B$46*1000*BF8 -> 0 | BG31: =BG20*Indata!$B$46*1000*BG8 -> 0 | BH31: =BH20*Indata!$B$46*1000*BH8 -> 0 | BI31: =BI20*Indata!$B$46*1000*BI8 -> 0 | BJ31: =BJ20*Indata!$B$46*1000*BJ8 -> 0 | BK31: =BK20*Indata!$B$46*1000*BK8 -> 0 | BL31: =BL20*Indata!$B$46*1000*BL8 -> 0 | BM31: =BM20*Indata!$B$46*1000*BM8 -> 0 | BN31: =BN20*Indata!$B$46*1000*BN8 -> 0 | BO31: =BO20*Indata!$B$46*1000*BO8 -> 0 | BP31: =BP20*Indata!$B$46*1000*BP8 -> 0 | BQ31: =BQ20*Indata!$B$46*1000*BQ8 -> 0 | BR31: =BR20*Indata!$B$46*1000*BR8 -> 0 | BS31: =BS20*Indata!$B$46*1000*BS8 -> 0 | BT31: =BT20*Indata!$B$46*1000*BT8 -> 0 | BU31: =BU20*Indata!$B$46*1000*BU8 -> 0 | BV31: =BV20*Indata!$B$46*1000*BV8 -> 0 | BW31: =BW20*Indata!$B$46*1000*BW8 -> 0 | BX31: =BX20*Indata!$B$46*1000*BX8 -> 0 | BY31: =BY20*Indata!$B$46*1000*BY8 -> 0 | BZ31: =BZ20*Indata!$B$46*1000*BZ8 -> 0 | CA31: =CA20*Indata!$B$46*1000*CA8 -> 0 | CB31: =CB20*Indata!$B$46*1000*CB8 -> 0 | CC31: =CC20*Indata!$B$46*1000*CC8 -> 0 | CD31: =CD20*Indata!$B$46*1000*CD8 -> 0 | CE31: =CE20*Indata!$B$46*1000*CE8 -> 0 | CF31: =CF20*Indata!$B$46*1000*CF8 -> 0 | CG31: =CG20*Indata!$B$46*1000*CG8 -> 0 | CH31: =CH20*Indata!$B$46*1000*CH8 -> 0 | CI31: =CI20*Indata!$B$46*1000*CI8 -> 0 | CJ31: =CJ20*Indata!$B$46*1000*CJ8 -> 0 | CK31: =CK20*Indata!$B$46*1000*CK8 -> 0 | CL31: =CL20*Indata!$B$46*1000*CL8 -> 0 | CM31: =CM20*Indata!$B$46*1000*CM8 -> 0 | CN31: =CN20*Indata!$B$46*1000*CN8 -> 0 | CO31: =CO20*Indata!$B$46*1000*CO8 -> 0 | CP31: =CP20*Indata!$B$46*1000*CP8 -> 0 | CQ31: =CQ20*Indata!$B$46*1000*CQ8 -> 0 | CR31: =CR20*Indata!$B$46*1000*CR8 -> 0 | CS31: =CS20*Indata!$B$46*1000*CS8 -> 0 | CT31: =CT20*Indata!$B$46*1000*CT8 -> 0
A32: Total årlig kostnad SO2 | B32: =HLOOKUP($B$8,$E$16:$CT$34,17) -> 0 | C32: =HLOOKUP($B$9,$E$16:$CT$34,17) -> 0 | E32: =E21*Indata!$B$47*1000*E9 -> 0 | F32: =F21*Indata!$B$47*1000*F9 -> 0 | G32: =G21*Indata!$B$47*1000*G9 -> 0 | H32: =H21*Indata!$B$47*1000*H9 -> 0 | I32: =I21*Indata!$B$47*1000*I9 -> 0 | J32: =J21*Indata!$B$47*1000*J9 -> 0 | K32: =K21*Indata!$B$47*1000*K9 -> 0 | L32: =L21*Indata!$B$47*1000*L9 -> 0 | M32: =M21*Indata!$B$47*1000*M9 -> 0 | N32: =N21*Indata!$B$47*1000*N9 -> 0 | O32: =O21*Indata!$B$47*1000*O9 -> 0 | P32: =P21*Indata!$B$47*1000*P9 -> 0 | Q32: =Q21*Indata!$B$47*1000*Q9 -> 0 | R32: =R21*Indata!$B$47*1000*R9 -> 0 | S32: =S21*Indata!$B$47*1000*S9 -> 0 | T32: =T21*Indata!$B$47*1000*T9 -> 0 | U32: =U21*Indata!$B$47*1000*U9 -> 0 | V32: =V21*Indata!$B$47*1000*V9 -> 0 | W32: =W21*Indata!$B$47*1000*W9 -> 0 | X32: =X21*Indata!$B$47*1000*X9 -> 0 | Y32: =Y21*Indata!$B$47*1000*Y9 -> 0 | Z32: =Z21*Indata!$B$47*1000*Z9 -> 0 | AA32: =AA21*Indata!$B$47*1000*AA9 -> 0 | AB32: =AB21*Indata!$B$47*1000*AB9 -> 0 | AC32: =AC21*Indata!$B$47*1000*AC9 -> 0 | AD32: =AD21*Indata!$B$47*1000*AD9 -> 0 | AE32: =AE21*Indata!$B$47*1000*AE9 -> 0 | AF32: =AF21*Indata!$B$47*1000*AF9 -> 0 | AG32: =AG21*Indata!$B$47*1000*AG9 -> 0 | AH32: =AH21*Indata!$B$47*1000*AH9 -> 0 | AI32: =AI21*Indata!$B$47*1000*AI9 -> 0 | AJ32: =AJ21*Indata!$B$47*1000*AJ9 -> 0 | AK32: =AK21*Indata!$B$47*1000*AK9 -> 0 | AL32: =AL21*Indata!$B$47*1000*AL9 -> 0 | AM32: =AM21*Indata!$B$47*1000*AM9 -> 0 | AN32: =AN21*Indata!$B$47*1000*AN9 -> 0 | AO32: =AO21*Indata!$B$47*1000*AO9 -> 0 | AP32: =AP21*Indata!$B$47*1000*AP9 -> 0 | AQ32: =AQ21*Indata!$B$47*1000*AQ9 -> 0 | AR32: =AR21*Indata!$B$47*1000*AR9 -> 0 | AS32: =AS21*Indata!$B$47*1000*AS9 -> 0 | AT32: =AT21*Indata!$B$47*1000*AT9 -> 0 | AU32: =AU21*Indata!$B$47*1000*AU9 -> 0 | AV32: =AV21*Indata!$B$47*1000*AV9 -> 0 | AW32: =AW21*Indata!$B$47*1000*AW9 -> 0 | AX32: =AX21*Indata!$B$47*1000*AX9 -> 0 | AY32: =AY21*Indata!$B$47*1000*AY9 -> 0 | AZ32: =AZ21*Indata!$B$47*1000*AZ9 -> 0 | BA32: =BA21*Indata!$B$47*1000*BA9 -> 0 | BB32: =BB21*Indata!$B$47*1000*BB9 -> 0 | BC32: =BC21*Indata!$B$47*1000*BC9 -> 0 | BD32: =BD21*Indata!$B$47*1000*BD9 -> 0 | BE32: =BE21*Indata!$B$47*1000*BE9 -> 0 | BF32: =BF21*Indata!$B$47*1000*BF9 -> 0 | BG32: =BG21*Indata!$B$47*1000*BG9 -> 0 | BH32: =BH21*Indata!$B$47*1000*BH9 -> 0 | BI32: =BI21*Indata!$B$47*1000*BI9 -> 0 | BJ32: =BJ21*Indata!$B$47*1000*BJ9 -> 0 | BK32: =BK21*Indata!$B$47*1000*BK9 -> 0 | BL32: =BL21*Indata!$B$47*1000*BL9 -> 0 | BM32: =BM21*Indata!$B$47*1000*BM9 -> 0 | BN32: =BN21*Indata!$B$47*1000*BN9 -> 0 | BO32: =BO21*Indata!$B$47*1000*BO9 -> 0 | BP32: =BP21*Indata!$B$47*1000*BP9 -> 0 | BQ32: =BQ21*Indata!$B$47*1000*BQ9 -> 0 | BR32: =BR21*Indata!$B$47*1000*BR9 -> 0 | BS32: =BS21*Indata!$B$47*1000*BS9 -> 0 | BT32: =BT21*Indata!$B$47*1000*BT9 -> 0 | BU32: =BU21*Indata!$B$47*1000*BU9 -> 0 | BV32: =BV21*Indata!$B$47*1000*BV9 -> 0 | BW32: =BW21*Indata!$B$47*1000*BW9 -> 0 | BX32: =BX21*Indata!$B$47*1000*BX9 -> 0 | BY32: =BY21*Indata!$B$47*1000*BY9 -> 0 | BZ32: =BZ21*Indata!$B$47*1000*BZ9 -> 0 | CA32: =CA21*Indata!$B$47*1000*CA9 -> 0 | CB32: =CB21*Indata!$B$47*1000*CB9 -> 0 | CC32: =CC21*Indata!$B$47*1000*CC9 -> 0 | CD32: =CD21*Indata!$B$47*1000*CD9 -> 0 | CE32: =CE21*Indata!$B$47*1000*CE9 -> 0 | CF32: =CF21*Indata!$B$47*1000*CF9 -> 0 | CG32: =CG21*Indata!$B$47*1000*CG9 -> 0 | CH32: =CH21*Indata!$B$47*1000*CH9 -> 0 | CI32: =CI21*Indata!$B$47*1000*CI9 -> 0 | CJ32: =CJ21*Indata!$B$47*1000*CJ9 -> 0 | CK32: =CK21*Indata!$B$47*1000*CK9 -> 0 | CL32: =CL21*Indata!$B$47*1000*CL9 -> 0 | CM32: =CM21*Indata!$B$47*1000*CM9 -> 0 | CN32: =CN21*Indata!$B$47*1000*CN9 -> 0 | CO32: =CO21*Indata!$B$47*1000*CO9 -> 0 | CP32: =CP21*Indata!$B$47*1000*CP9 -> 0 | CQ32: =CQ21*Indata!$B$47*1000*CQ9 -> 0 | CR32: =CR21*Indata!$B$47*1000*CR9 -> 0 | CS32: =CS21*Indata!$B$47*1000*CS9 -> 0 | CT32: =CT21*Indata!$B$47*1000*CT9 -> 0
A33: Total årlig kostnad NH3 | B33: =HLOOKUP($B$8,$E$16:$CT$34,18) -> 0 | C33: =HLOOKUP($B$9,$E$16:$CT$34,18) -> 0 | E33: =E22*Indata!$B$48*1000*E10 -> 0 | F33: =F22*Indata!$B$48*1000*F10 -> 0 | G33: =G22*Indata!$B$48*1000*G10 -> 0 | H33: =H22*Indata!$B$48*1000*H10 -> 0 | I33: =I22*Indata!$B$48*1000*I10 -> 0 | J33: =J22*Indata!$B$48*1000*J10 -> 0 | K33: =K22*Indata!$B$48*1000*K10 -> 0 | L33: =L22*Indata!$B$48*1000*L10 -> 0 | M33: =M22*Indata!$B$48*1000*M10 -> 0 | N33: =N22*Indata!$B$48*1000*N10 -> 0 | O33: =O22*Indata!$B$48*1000*O10 -> 0 | P33: =P22*Indata!$B$48*1000*P10 -> 0 | Q33: =Q22*Indata!$B$48*1000*Q10 -> 0 | R33: =R22*Indata!$B$48*1000*R10 -> 0 | S33: =S22*Indata!$B$48*1000*S10 -> 0 | T33: =T22*Indata!$B$48*1000*T10 -> 0 | U33: =U22*Indata!$B$48*1000*U10 -> 0 | V33: =V22*Indata!$B$48*1000*V10 -> 0 | W33: =W22*Indata!$B$48*1000*W10 -> 0 | X33: =X22*Indata!$B$48*1000*X10 -> 0 | Y33: =Y22*Indata!$B$48*1000*Y10 -> 0 | Z33: =Z22*Indata!$B$48*1000*Z10 -> 0 | AA33: =AA22*Indata!$B$48*1000*AA10 -> 0 | AB33: =AB22*Indata!$B$48*1000*AB10 -> 0 | AC33: =AC22*Indata!$B$48*1000*AC10 -> 0 | AD33: =AD22*Indata!$B$48*1000*AD10 -> 0 | AE33: =AE22*Indata!$B$48*1000*AE10 -> 0 | AF33: =AF22*Indata!$B$48*1000*AF10 -> 0 | AG33: =AG22*Indata!$B$48*1000*AG10 -> 0 | AH33: =AH22*Indata!$B$48*1000*AH10 -> 0 | AI33: =AI22*Indata!$B$48*1000*AI10 -> 0 | AJ33: =AJ22*Indata!$B$48*1000*AJ10 -> 0 | AK33: =AK22*Indata!$B$48*1000*AK10 -> 0 | AL33: =AL22*Indata!$B$48*1000*AL10 -> 0 | AM33: =AM22*Indata!$B$48*1000*AM10 -> 0 | AN33: =AN22*Indata!$B$48*1000*AN10 -> 0 | AO33: =AO22*Indata!$B$48*1000*AO10 -> 0 | AP33: =AP22*Indata!$B$48*1000*AP10 -> 0 | AQ33: =AQ22*Indata!$B$48*1000*AQ10 -> 0 | AR33: =AR22*Indata!$B$48*1000*AR10 -> 0 | AS33: =AS22*Indata!$B$48*1000*AS10 -> 0 | AT33: =AT22*Indata!$B$48*1000*AT10 -> 0 | AU33: =AU22*Indata!$B$48*1000*AU10 -> 0 | AV33: =AV22*Indata!$B$48*1000*AV10 -> 0 | AW33: =AW22*Indata!$B$48*1000*AW10 -> 0 | AX33: =AX22*Indata!$B$48*1000*AX10 -> 0 | AY33: =AY22*Indata!$B$48*1000*AY10 -> 0 | AZ33: =AZ22*Indata!$B$48*1000*AZ10 -> 0 | BA33: =BA22*Indata!$B$48*1000*BA10 -> 0 | BB33: =BB22*Indata!$B$48*1000*BB10 -> 0 | BC33: =BC22*Indata!$B$48*1000*BC10 -> 0 | BD33: =BD22*Indata!$B$48*1000*BD10 -> 0 | BE33: =BE22*Indata!$B$48*1000*BE10 -> 0 | BF33: =BF22*Indata!$B$48*1000*BF10 -> 0 | BG33: =BG22*Indata!$B$48*1000*BG10 -> 0 | BH33: =BH22*Indata!$B$48*1000*BH10 -> 0 | BI33: =BI22*Indata!$B$48*1000*BI10 -> 0 | BJ33: =BJ22*Indata!$B$48*1000*BJ10 -> 0 | BK33: =BK22*Indata!$B$48*1000*BK10 -> 0 | BL33: =BL22*Indata!$B$48*1000*BL10 -> 0 | BM33: =BM22*Indata!$B$48*1000*BM10 -> 0 | BN33: =BN22*Indata!$B$48*1000*BN10 -> 0 | BO33: =BO22*Indata!$B$48*1000*BO10 -> 0 | BP33: =BP22*Indata!$B$48*1000*BP10 -> 0 | BQ33: =BQ22*Indata!$B$48*1000*BQ10 -> 0 | BR33: =BR22*Indata!$B$48*1000*BR10 -> 0 | BS33: =BS22*Indata!$B$48*1000*BS10 -> 0 | BT33: =BT22*Indata!$B$48*1000*BT10 -> 0 | BU33: =BU22*Indata!$B$48*1000*BU10 -> 0 | BV33: =BV22*Indata!$B$48*1000*BV10 -> 0 | BW33: =BW22*Indata!$B$48*1000*BW10 -> 0 | BX33: =BX22*Indata!$B$48*1000*BX10 -> 0 | BY33: =BY22*Indata!$B$48*1000*BY10 -> 0 | BZ33: =BZ22*Indata!$B$48*1000*BZ10 -> 0 | CA33: =CA22*Indata!$B$48*1000*CA10 -> 0 | CB33: =CB22*Indata!$B$48*1000*CB10 -> 0 | CC33: =CC22*Indata!$B$48*1000*CC10 -> 0 | CD33: =CD22*Indata!$B$48*1000*CD10 -> 0 | CE33: =CE22*Indata!$B$48*1000*CE10 -> 0 | CF33: =CF22*Indata!$B$48*1000*CF10 -> 0 | CG33: =CG22*Indata!$B$48*1000*CG10 -> 0 | CH33: =CH22*Indata!$B$48*1000*CH10 -> 0 | CI33: =CI22*Indata!$B$48*1000*CI10 -> 0 | CJ33: =CJ22*Indata!$B$48*1000*CJ10 -> 0 | CK33: =CK22*Indata!$B$48*1000*CK10 -> 0 | CL33: =CL22*Indata!$B$48*1000*CL10 -> 0 | CM33: =CM22*Indata!$B$48*1000*CM10 -> 0 | CN33: =CN22*Indata!$B$48*1000*CN10 -> 0 | CO33: =CO22*Indata!$B$48*1000*CO10 -> 0 | CP33: =CP22*Indata!$B$48*1000*CP10 -> 0 | CQ33: =CQ22*Indata!$B$48*1000*CQ10 -> 0 | CR33: =CR22*Indata!$B$48*1000*CR10 -> 0 | CS33: =CS22*Indata!$B$48*1000*CS10 -> 0 | CT33: =CT22*Indata!$B$48*1000*CT10 -> 0
A34: Total årlig kostnad PM | B34: =HLOOKUP($B$8,$E$16:$CT$34,19) -> 0 | C34: =HLOOKUP($B$9,$E$16:$CT$34,19) -> 0 | E34: =E23*Indata!$B$49*1000*E11 -> 0 | F34: =F23*Indata!$B$49*1000*F11 -> 0 | G34: =G23*Indata!$B$49*1000*G11 -> 0 | H34: =H23*Indata!$B$49*1000*H11 -> 0 | I34: =I23*Indata!$B$49*1000*I11 -> 0 | J34: =J23*Indata!$B$49*1000*J11 -> 0 | K34: =K23*Indata!$B$49*1000*K11 -> 0 | L34: =L23*Indata!$B$49*1000*L11 -> 0 | M34: =M23*Indata!$B$49*1000*M11 -> 0 | N34: =N23*Indata!$B$49*1000*N11 -> 0 | O34: =O23*Indata!$B$49*1000*O11 -> 0 | P34: =P23*Indata!$B$49*1000*P11 -> 0 | Q34: =Q23*Indata!$B$49*1000*Q11 -> 0 | R34: =R23*Indata!$B$49*1000*R11 -> 0 | S34: =S23*Indata!$B$49*1000*S11 -> 0 | T34: =T23*Indata!$B$49*1000*T11 -> 0 | U34: =U23*Indata!$B$49*1000*U11 -> 0 | V34: =V23*Indata!$B$49*1000*V11 -> 0 | W34: =W23*Indata!$B$49*1000*W11 -> 0 | X34: =X23*Indata!$B$49*1000*X11 -> 0 | Y34: =Y23*Indata!$B$49*1000*Y11 -> 0 | Z34: =Z23*Indata!$B$49*1000*Z11 -> 0 | AA34: =AA23*Indata!$B$49*1000*AA11 -> 0 | AB34: =AB23*Indata!$B$49*1000*AB11 -> 0 | AC34: =AC23*Indata!$B$49*1000*AC11 -> 0 | AD34: =AD23*Indata!$B$49*1000*AD11 -> 0 | AE34: =AE23*Indata!$B$49*1000*AE11 -> 0 | AF34: =AF23*Indata!$B$49*1000*AF11 -> 0 | AG34: =AG23*Indata!$B$49*1000*AG11 -> 0 | AH34: =AH23*Indata!$B$49*1000*AH11 -> 0 | AI34: =AI23*Indata!$B$49*1000*AI11 -> 0 | AJ34: =AJ23*Indata!$B$49*1000*AJ11 -> 0 | AK34: =AK23*Indata!$B$49*1000*AK11 -> 0 | AL34: =AL23*Indata!$B$49*1000*AL11 -> 0 | AM34: =AM23*Indata!$B$49*1000*AM11 -> 0 | AN34: =AN23*Indata!$B$49*1000*AN11 -> 0 | AO34: =AO23*Indata!$B$49*1000*AO11 -> 0 | AP34: =AP23*Indata!$B$49*1000*AP11 -> 0 | AQ34: =AQ23*Indata!$B$49*1000*AQ11 -> 0 | AR34: =AR23*Indata!$B$49*1000*AR11 -> 0 | AS34: =AS23*Indata!$B$49*1000*AS11 -> 0 | AT34: =AT23*Indata!$B$49*1000*AT11 -> 0 | AU34: =AU23*Indata!$B$49*1000*AU11 -> 0 | AV34: =AV23*Indata!$B$49*1000*AV11 -> 0 | AW34: =AW23*Indata!$B$49*1000*AW11 -> 0 | AX34: =AX23*Indata!$B$49*1000*AX11 -> 0 | AY34: =AY23*Indata!$B$49*1000*AY11 -> 0 | AZ34: =AZ23*Indata!$B$49*1000*AZ11 -> 0 | BA34: =BA23*Indata!$B$49*1000*BA11 -> 0 | BB34: =BB23*Indata!$B$49*1000*BB11 -> 0 | BC34: =BC23*Indata!$B$49*1000*BC11 -> 0 | BD34: =BD23*Indata!$B$49*1000*BD11 -> 0 | BE34: =BE23*Indata!$B$49*1000*BE11 -> 0 | BF34: =BF23*Indata!$B$49*1000*BF11 -> 0 | BG34: =BG23*Indata!$B$49*1000*BG11 -> 0 | BH34: =BH23*Indata!$B$49*1000*BH11 -> 0 | BI34: =BI23*Indata!$B$49*1000*BI11 -> 0 | BJ34: =BJ23*Indata!$B$49*1000*BJ11 -> 0 | BK34: =BK23*Indata!$B$49*1000*BK11 -> 0 | BL34: =BL23*Indata!$B$49*1000*BL11 -> 0 | BM34: =BM23*Indata!$B$49*1000*BM11 -> 0 | BN34: =BN23*Indata!$B$49*1000*BN11 -> 0 | BO34: =BO23*Indata!$B$49*1000*BO11 -> 0 | BP34: =BP23*Indata!$B$49*1000*BP11 -> 0 | BQ34: =BQ23*Indata!$B$49*1000*BQ11 -> 0 | BR34: =BR23*Indata!$B$49*1000*BR11 -> 0 | BS34: =BS23*Indata!$B$49*1000*BS11 -> 0 | BT34: =BT23*Indata!$B$49*1000*BT11 -> 0 | BU34: =BU23*Indata!$B$49*1000*BU11 -> 0 | BV34: =BV23*Indata!$B$49*1000*BV11 -> 0 | BW34: =BW23*Indata!$B$49*1000*BW11 -> 0 | BX34: =BX23*Indata!$B$49*1000*BX11 -> 0 | BY34: =BY23*Indata!$B$49*1000*BY11 -> 0 | BZ34: =BZ23*Indata!$B$49*1000*BZ11 -> 0 | CA34: =CA23*Indata!$B$49*1000*CA11 -> 0 | CB34: =CB23*Indata!$B$49*1000*CB11 -> 0 | CC34: =CC23*Indata!$B$49*1000*CC11 -> 0 | CD34: =CD23*Indata!$B$49*1000*CD11 -> 0 | CE34: =CE23*Indata!$B$49*1000*CE11 -> 0 | CF34: =CF23*Indata!$B$49*1000*CF11 -> 0 | CG34: =CG23*Indata!$B$49*1000*CG11 -> 0 | CH34: =CH23*Indata!$B$49*1000*CH11 -> 0 | CI34: =CI23*Indata!$B$49*1000*CI11 -> 0 | CJ34: =CJ23*Indata!$B$49*1000*CJ11 -> 0 | CK34: =CK23*Indata!$B$49*1000*CK11 -> 0 | CL34: =CL23*Indata!$B$49*1000*CL11 -> 0 | CM34: =CM23*Indata!$B$49*1000*CM11 -> 0 | CN34: =CN23*Indata!$B$49*1000*CN11 -> 0 | CO34: =CO23*Indata!$B$49*1000*CO11 -> 0 | CP34: =CP23*Indata!$B$49*1000*CP11 -> 0 | CQ34: =CQ23*Indata!$B$49*1000*CQ11 -> 0 | CR34: =CR23*Indata!$B$49*1000*CR11 -> 0 | CS34: =CS23*Indata!$B$49*1000*CS11 -> 0 | CT34: =CT23*Indata!$B$49*1000*CT11 -> 0
A35: Summa kostnader | B35: =SUM(B24:B34) -> 0 | C35: =SUM(C24:C34) -> 0
A38: UA
B39: =B16 -> Öppningsår, år 2025 | C39: =C16 -> Prognosår 1, år 2040 | D39: År | E39: =E16 -> 2017 | F39: 2018 | G39: 2019 | H39: 2020 | I39: 2021 | J39: 2022 | K39: 2023 | L39: 2024 | M39: 2025 | N39: 2026 | O39: 2027 | P39: 2028 | Q39: 2029 | R39: 2030 | S39: 2031 | T39: 2032 | U39: 2033 | V39: 2034 | W39: 2035 | X39: 2036 | Y39: 2037 | Z39: 2038 | AA39: 2039 | AB39: 2040 | AC39: 2041 | AD39: 2042 | AE39: 2043 | AF39: 2044 | AG39: 2045 | AH39: 2046 | AI39: 2047 | AJ39: 2048 | AK39: =AK16 -> 2049 | AL39: 2050 | AM39: 2051 | AN39: 2052 | AO39: 2053 | AP39: 2054 | AQ39: 2055 | AR39: 2056 | AS39: 2057 | AT39: 2058 | AU39: 2059 | AV39: 2060 | AW39: 2061 | AX39: 2062 | AY39: 2063 | AZ39: 2064 | BA39: 2065 | BB39: 2066 | BC39: 2067 | BD39: 2068 | BE39: 2069 | BF39: 2070 | BG39: 2071 | BH39: 2072 | BI39: 2073 | BJ39: 2074 | BK39: 2075 | BL39: 2076 | BM39: 2077 | BN39: 2078 | BO39: 2079 | BP39: 2080 | BQ39: =BQ16 -> 2081 | BR39: 2082 | BS39: 2083 | BT39: 2084 | BU39: 2085 | BV39: 2086 | BW39: 2087 | BX39: 2088 | BY39: 2089 | BZ39: 2090 | CA39: 2091 | CB39: 2092 | CC39: 2093 | CD39: 2094 | CE39: 2095 | CF39: 2096 | CG39: 2097 | CH39: 2098 | CI39: 2099 | CJ39: 2100 | CK39: 2101 | CL39: 2102 | CM39: 2103 | CN39: 2104 | CO39: 2105 | CP39: 2106 | CQ39: 2107 | CR39: 2108 | CS39: 2109 | CT39: 2110
